Workbook

Sheet CPVRRtable
A1: OPC 002097 FPL RC-16
D4: CPVRR ($ millions)
B5: Equipment and Installation | D5: =SUM(Capital!I196,Capital!I197,Capital!I199)/1000 -> 425.5858157
B6: Avoided Replacement Costs | D6: =Capital!I198/1000 -> -168.3727949
B7: Incremental Fixed O&M | D7: =Capital!I221/1000 -> 24.16248456
B8: Subtotal | D8: =SUM(ROUND(D5:D7,0)) -> 282
B10: Fuel Savings | D10: =RevReq!H46/1000 -> -255.0943161
B11: Emissions Savings | D11: =RevReq!H49/1000 -> -27.96530482
B12: Variable O&M Savings | D12: =ROUND(D14,0)-ROUND(D10,0)-ROUND(D11,0)-ROUND(D13,0) -> -40
B13: Avoided Capacity Purchases | D13: =RevReq!H50/1000 -> -16.33280785
B14: Net System Benefits | D14: =RevReq!H51/1000 -> -338.5747648
B16: CPVRR (Favorable) / Unfavorable | D16: =D8+D14 -> -56.57476479

Sheet Assumptions
A1: GENERAL ASSUMPTIONS
A2: OPC 002098 FPL RC-16
B3: PROJECT TITLE: | C3: TITLE | G3: CPVRR: | H3: =RevReq!$H$1 -> -57199.25942
B7: Model Start Year | C7: 2014
A10: I)
B11: STATE INCOME TAX RATE | E11: 0.055
B12: FEDERAL INCOME TAX RATE | E12: 0.35
B13: COMPOSITE INCOME TAX RATE | E13: =((1-E11)*E12)+E11 -> 0.38575
A15: II) | B15: DISCOUNT DATE | E15: 2014-12-31
D17: LONG LIVED
D18: ASSETS | E18: WTD COST | F18: UNWTD AFTER | G18: WTD AFTER | H18: WTD PRE
B19: SOURCE | C19: WEIGHT | D19: COST | E19: RATE | F19: TAX RATE | G19: TAX RATE | H19: TAX RATE
B20: DEBT | C20: 0.4038 | D20: 0.05142276797 | E20: =C20*D20 -> 0.02076451371 | F20: =D20*(1-$E$13) -> 0.03158643523 | G20: =E20*(1-$E$13) -> 0.01275460255 | H20: =+E20 -> 0.02076451371
B21: PREFERRED | C21: 0 | D21: 0 | E21: =C21*D21 -> 0 | F21: =D21 -> 0 | G21: =E21 -> 0 | H21: =+E21 -> 0
B22: COMMON | C22: =1-C20-C21 -> 0.5962 | D22: 0.105 | E22: =C22*D22 -> 0.062601 | F22: =D22 -> 0.105 | G22: =E22 -> 0.062601 | H22: =+E22/(1-Tax_Rate) -> 0.1019145299
B23: TOTAL | C23: =SUM(C20:C22) -> 1 | G23: =SUM(G20:G22) -> 0.07535560255 | H23: =SUM(H20:H22) -> 0.1226790436
B25: DISCOUNT RATE ("WACC"): | E25: =G23 -> 0.07535560255
A27: III) | B27: PROPERTY TAXES | E27: 0.0182
B29: PROPERTY INSURANCE | E29: 0.0053
A32: III) | B32: AFUDC
C34: 2014 | D34: 2015 | E34: =+C34+1 -> 2015 | F34: =+E34+1 -> 2016 | G34: 2017
B35: Debt | C35: 0.01470185074 | D35: 0.01470185074 | E35: 0.01538899291 | F35: 0.01532770566 | G35: 0.01603873522
B36: Equity | C36: 0.04814509059 | D36: 0.04814509059 | E36: 0.0482778189 | F36: 0.04859558308 | G36: 0.05126548952
B37: Total | C37: =C35+C36 -> 0.06284694133 | D37: 0.06284694133 | E37: 0.06366681182 | F37: 0.06392328873 | G37: 0.06730422474
B42: Escalation Factors | C42: 0.025
B43: Escalation Base Year | C43: 2016
B46: Solar ITC
B47: 2017 | C47: 0.3
B48: ="Post-"&B47 -> Post-2017 | C48: 0.1
B49: Tax Basis Reduction | C49: 0.5

Sheet Input
A1: INPUTS | G1: CPVRR: | H1: =RevReq!$H$1 -> -57199.25942
A2: OPC 002099 FPL RC-16 | C2: Period | E2: Input | F2: Input | I2: SUM | K2: 0 | L2: =K2+1 -> 1 | M2: =L2+1 -> 2 | N2: 3 | O2: 4 | P2: 5 | Q2: 6 | R2: 7 | S2: 8 | T2: 9 | U2: 10 | V2: 11 | W2: 12 | X2: 13 | Y2: 14 | Z2: 15 | AA2: 16 | AB2: 17 | AC2: 18 | AD2: 19 | AE2: 20 | AF2: 21 | AG2: 22 | AH2: 23 | AI2: 24 | AJ2: 25 | AK2: 26 | AL2: 27 | AM2: 28 | AN2: 29 | AO2: 30 | AP2: 31 | AQ2: 32 | AR2: 33 | AS2: 34 | AT2: 35 | AU2: 36 | AV2: 37 | AW2: 38 | AX2: 39 | AY2: 40
C3: Year | K3: =Assumptions!$C$7 -> 2014 | L3: =K3+1 -> 2015 | M3: 2016 | N3: 2017 | O3: 2018 | P3: 2019 | Q3: 2020 | R3: 2021 | S3: 2022 | T3: 2023 | U3: 2024 | V3: 2025 | W3: 2026 | X3: 2027 | Y3: 2028 | Z3: 2029 | AA3: 2030 | AB3: 2031 | AC3: 2032 | AD3: 2033 | AE3: 2034 | AF3: 2035 | AG3: 2036 | AH3: 2037 | AI3: 2038 | AJ3: 2039 | AK3: 2040 | AL3: 2041 | AM3: 2042 | AN3: 2043 | AO3: 2044 | AP3: 2045 | AQ3: 2046 | AR3: 2047 | AS3: 2048 | AT3: 2049 | AU3: 2050 | AV3: 2051 | AW3: 2052 | AX3: 2053 | AY3: 2054
C4: Discount Date | E4: =Assumptions!$E$15 -> 2014-12-31 | K4: =DATE(K3,12,31) -> 2014-12-31 | L4: =DATE(L3,12,31) -> 2015-12-31 | M4: 2016-12-31 | N4: 2017-12-31 | O4: 2018-12-31 | P4: 2019-12-31 | Q4: 2020-12-31 | R4: 2021-12-31 | S4: 2022-12-31 | T4: 2023-12-31 | U4: 2024-12-31 | V4: 2025-12-31 | W4: 2026-12-31 | X4: 2027-12-31 | Y4: 2028-12-31 | Z4: 2029-12-31 | AA4: 2030-12-31 | AB4: 2031-12-31 | AC4: 2032-12-31 | AD4: 2033-12-31 | AE4: 2034-12-31 | AF4: 2035-12-31 | AG4: 2036-12-31 | AH4: 2037-12-31 | AI4: 2038-12-31 | AJ4: 2039-12-31 | AK4: 2040-12-31 | AL4: 2041-12-31 | AM4: 2042-12-31 | AN4: 2043-12-31 | AO4: 2044-12-31 | AP4: 2045-12-31 | AQ4: 2046-12-31 | AR4: 2047-12-31 | AS4: 2048-12-31 | AT4: 2049-12-31 | AU4: 2050-12-31 | AV4: 2051-12-31 | AW4: 2052-12-31 | AX4: 2053-12-31 | AY4: =DATE(AY3,12,31) -> 2054-12-31
C5: Discount Factor | E5: =Assumptions!$G$23 -> 0.07535560255 | K5: =(1+$E5)^(($E$4-K$4)/365) -> 1 | L5: =(1+$E5)^(($E$4-L$4)/365) -> 0.9299249454 | M5: 0.8645882951 | N5: 0.8040022231 | O5: 0.7476617234 | P5: 0.6952692873 | Q5: 0.6464195747 | R5: 0.6011216878 | S5: 0.5589980527 | T5: 0.5198262336 | U5: 0.4833031733 | V5: 0.4494356771 | W5: 0.4179414475 | X5: 0.3886541777 | Y5: 0.3613472835 | Z5: 0.3360258529 | AA5: 0.3124788229 | AB5: 0.2905818523 | AC5: 0.2701655327 | AD5: 0.2512336683 | AE5: 0.2336284553 | AF5: 0.2172569285 | AG5: 0.2019924278 | AH5: 0.1878377974 | AI5: 0.1746750535 | AJ5: 0.1624346896 | AK5: 0.1510220067 | AL5: 0.1404391313 | AM5: 0.1305978515 | AN5: 0.1214462 | AO5: 0.1129133738 | AP5: 0.105000963 | AQ5: 0.09764301476 | AR5: 0.09080067517 | AS5: 0.08442100765 | AT5: 0.07850520093 | AU5: 0.07300394469 | AV5: 0.06788818928 | AW5: 0.06311835607 | AX5: 0.05869533383 | AY5: 0.05458225511
A8: CAPITAL EXPENDITURES / (CAPITAL SAVINGS)
C11: Capital Item | E11: Initial Spending Date | F11: Commercial Operations Date (COD) | G11: Recovery During Construction | H11: Investment Tax Credit (Solar) | I11: Percent ITC Eligible
B12: 1 | C12: .05 Compressors | E12: 2014-12-01 | F12: 2015-01-01 | G12: CWIP | H12: No | I12: 1
B13: =B12+1 -> 2 | C13: Installation Costs | E13: 2014-12-01 | F13: 2015-01-01 | G13: CWIP | H13: No | I13: 1
B14: =B13+1 -> 3 | C14: Avoided Like-Kind Replacements | E14: 2014-12-01 | F14: 2015-01-01 | G14: CWIP | H14: No | I14: 1
B15: 4 | C15: Tax Effects of Existing Part Retirement | E15: 2014-12-01 | F15: 2015-01-01 | G15: CWIP | H15: No | I15: 1
B16: 5 | C16: … | G16: CWIP | H16: No | I16: 1
B17: 6 | C17: … | G17: CWIP | H17: No | I17: 1
B18: 7 | C18: … | G18: CWIP | H18: No | I18: 1
B19: 8 | C19: … | G19: CWIP | H19: No | I19: 1
B20: 9 | C20: … | G20: CWIP | H20: No | I20: 1
B21: 10 | C21: … | G21: CWIP | H21: No | I21: 1
K23: =K$3 -> 2014 | L23: =L$3 -> 2015 | M23: 2016 | N23: 2017 | O23: 2018 | P23: 2019 | Q23: 2020 | R23: 2021 | S23: 2022 | T23: 2023 | U23: 2024 | V23: 2025 | W23: 2026 | X23: 2027 | Y23: 2028 | Z23: 2029 | AA23: 2030 | AB23: 2031 | AC23: 2032 | AD23: 2033 | AE23: 2034 | AF23: 2035 | AG23: 2036 | AH23: 2037 | AI23: 2038 | AJ23: 2039 | AK23: 2040 | AL23: 2041 | AM23: 2042 | AN23: 2043 | AO23: 2044 | AP23: 2045 | AQ23: 2046 | AR23: 2047 | AS23: 2048 | AT23: 2049 | AU23: 2050 | AV23: 2051 | AW23: 2052 | AX23: 2053 | AY23: 2054
C24: Capital Expenditures, Unescalated | E24: Type | F24: Book Life | G24: Tax Life | H24: Tax Depr Method
B25: =B12 -> 1 | C25: =C12 -> .05 Compressors | F25: =1/AVERAGE(Book_Capital!$H$128:$H$153) -> 21.95945946 | G25: 20 | H25: MACRS | I25: =SUM(K25:AY25) -> 286056.248 | K25: =Book_Capital!L37 -> 286056.248 | L25: =Book_Capital!M37 -> 0 | M25: =Book_Capital!N37 -> 0 | N25: =Book_Capital!O37 -> 0 | O25: =Book_Capital!P37 -> 0 | P25: =Book_Capital!Q37 -> 0 | Q25: =Book_Capital!R37 -> 0 | R25: =Book_Capital!S37 -> 0 | S25: =Book_Capital!T37 -> 0 | T25: =Book_Capital!U37 -> 0 | U25: =Book_Capital!V37 -> 0 | V25: =Book_Capital!W37 -> 0 | W25: =Book_Capital!X37 -> 0 | X25: =Book_Capital!Y37 -> 0 | Y25: =Book_Capital!Z37 -> 0 | Z25: =Book_Capital!AA37 -> 0 | AA25: =Book_Capital!AB37 -> 0 | AB25: =Book_Capital!AC37 -> 0 | AC25: =Book_Capital!AD37 -> 0 | AD25: =Book_Capital!AE37 -> 0 | AE25: =Book_Capital!AF37 -> 0 | AF25: =Book_Capital!AG37 -> 0 | AG25: =Book_Capital!AH37 -> 0 | AH25: =Book_Capital!AI37 -> 0 | AI25: =Book_Capital!AJ37 -> 0 | AJ25: =Book_Capital!AK37 -> 0 | AK25: =Book_Capital!AL37 -> 0 | AL25: =Book_Capital!AM37 -> 0 | AM25: =Book_Capital!AN37 -> 0 | AN25: =Book_Capital!AO37 -> 0 | AO25: =Book_Capital!AP37 -> 0 | AP25: =Book_Capital!AQ37 -> 0 | AQ25: =Book_Capital!AR37 -> 0 | AR25: =Book_Capital!AS37 -> 0 | AS25: =Book_Capital!AT37 -> 0 | AT25: =Book_Capital!AU37 -> 0 | AU25: =Book_Capital!AV37 -> 0 | AV25: =Book_Capital!AW37 -> 0 | AW25: =Book_Capital!AX37 -> 0 | AX25: =Book_Capital!AY37 -> 0 | AY25: =Book_Capital!AZ37 -> 0
B26: =B13 -> 2 | C26: =C13 -> Installation Costs | F26: =1/AVERAGE(Book_Capital!$H$128:$H$153) -> 21.95945946 | G26: 20 | H26: MACRS | I26: =SUM(K26:AY26) -> 38735.37426 | K26: =Book_Capital!L126 -> 0 | L26: =Book_Capital!M126 -> 2758.179144 | M26: =Book_Capital!N126 -> 20539.38648 | N26: =Book_Capital!O126 -> 15437.80864 | O26: =Book_Capital!P126 -> 0 | P26: =Book_Capital!Q126 -> 0 | Q26: =Book_Capital!R126 -> 0 | R26: =Book_Capital!S126 -> 0 | S26: =Book_Capital!T126 -> 0 | T26: =Book_Capital!U126 -> 0 | U26: =Book_Capital!V126 -> 0 | V26: =Book_Capital!W126 -> 0 | W26: =Book_Capital!X126 -> 0 | X26: =Book_Capital!Y126 -> 0 | Y26: =Book_Capital!Z126 -> 0 | Z26: =Book_Capital!AA126 -> 0 | AA26: =Book_Capital!AB126 -> 0 | AB26: =Book_Capital!AC126 -> 0 | AC26: =Book_Capital!AD126 -> 0 | AD26: =Book_Capital!AE126 -> 0 | AE26: =Book_Capital!AF126 -> 0 | AF26: =Book_Capital!AG126 -> 0 | AG26: =Book_Capital!AH126 -> 0 | AH26: =Book_Capital!AI126 -> 0 | AI26: =Book_Capital!AJ126 -> 0 | AJ26: =Book_Capital!AK126 -> 0 | AK26: =Book_Capital!AL126 -> 0 | AL26: =Book_Capital!AM126 -> 0 | AM26: =Book_Capital!AN126 -> 0 | AN26: =Book_Capital!AO126 -> 0 | AO26: =Book_Capital!AP126 -> 0 | AP26: =Book_Capital!AQ126 -> 0 | AQ26: =Book_Capital!AR126 -> 0 | AR26: =Book_Capital!AS126 -> 0 | AS26: =Book_Capital!AT126 -> 0 | AT26: =Book_Capital!AU126 -> 0 | AU26: =Book_Capital!AV126 -> 0 | AV26: =Book_Capital!AW126 -> 0 | AW26: =Book_Capital!AX126 -> 0 | AX26: =Book_Capital!AY126 -> 0 | AY26: =Book_Capital!AZ126 -> 0
B27: 3 | C27: Avoided Like-Kind Replacements | F27: =1/AVERAGE(Book_Capital!$H$128:$H$153) -> 21.95945946 | G27: 20 | H27: MACRS | I27: -376923.4266 | K27: =-Book_Capital!L278 -> 0 | L27: =-Book_Capital!M278 -> 0 | M27: =-Book_Capital!N278 -> 0 | N27: =-Book_Capital!O278 -> 0 | O27: =-Book_Capital!P278 -> 0 | P27: =-Book_Capital!Q278 -> 0 | Q27: =-Book_Capital!R278 -> 0 | R27: =-Book_Capital!S278 -> 0 | S27: =-Book_Capital!T278 -> 0 | T27: =-Book_Capital!U278 -> -12532.6183 | U27: =-Book_Capital!V278 -> 0 | V27: =-Book_Capital!W278 -> -79125.56632 | W27: =-Book_Capital!X278 -> -13594.17866 | X27: =-Book_Capital!Y278 -> -13798.26055 | Y27: =-Book_Capital!Z278 -> -43238.7594 | Z27: =-Book_Capital!AA278 -> -88007.62813 | AA27: =-Book_Capital!AB278 -> -60493.71635 | AB27: =-Book_Capital!AC278 -> -31444.4126 | AC27: =-Book_Capital!AD278 -> 0 | AD27: =-Book_Capital!AE278 -> -16639.43165 | AE27: =-Book_Capital!AF278 -> 0 | AF27: =-Book_Capital!AG278 -> 0 | AG27: =-Book_Capital!AH278 -> -18048.85469 | AH27: =-Book_Capital!AI278 -> 0 | AI27: =-Book_Capital!AJ278 -> 0 | AJ27: =-Book_Capital!AK278 -> 0 | AK27: =-Book_Capital!AL278 -> 0 | AL27: =-Book_Capital!AM278 -> 0 | AM27: =-Book_Capital!AN278 -> 0 | AN27: =-Book_Capital!AO278 -> 0 | AO27: =-Book_Capital!AP278 -> 0 | AP27: =-Book_Capital!AQ278 -> 0 | AQ27: =-Book_Capital!AR278 -> 0 | AR27: =-Book_Capital!AS278 -> 0 | AS27: =-Book_Capital!AT278 -> 0 | AT27: =-Book_Capital!AU278 -> 0 | AU27: =-Book_Capital!AV278 -> 0 | AV27: =-Book_Capital!AW278 -> 0 | AW27: =-Book_Capital!AX278 -> 0 | AX27: =-Book_Capital!AY278 -> 0 | AY27: =-Book_Capital!AZ278 -> 0
B28: 4 | C28: Tax Effects of Existing Part Retirement | F28: =1/AVERAGE(Book_Capital!$H$128:$H$153) -> 21.95945946 | G28: 20 | H28: MACRS | I28: 0 | K28: 0 | L28: 0 | M28: 0 | N28: 0 | O28: 0 | P28: 0 | Q28: 0 | R28: 0 | S28: 0 | T28: 0 | U28: 0 | V28: 0 | W28: 0 | X28: 0 | Y28: 0 | Z28: 0 | AA28: 0 | AB28: 0 | AC28: 0 | AD28: 0 | AE28: 0 | AF28: 0 | AG28: 0 | AH28: 0 | AI28: 0 | AJ28: 0 | AK28: 0 | AL28: 0 | AM28: 0 | AN28: 0 | AO28: 0 | AP28: 0 | AQ28: 0 | AR28: 0 | AS28: 0 | AT28: 0 | AU28: 0 | AV28: 0 | AW28: 0 | AX28: 0 | AY28: 0
B29: 5 | C29: … | F29: =1/AVERAGE(Book_Capital!$H$128:$H$153) -> 21.95945946 | G29: 20 | H29: MACRS | I29: 0 | K29: 0 | L29: 0 | M29: 0 | N29: 0 | O29: 0 | P29: 0 | Q29: 0 | R29: 0 | S29: 0 | T29: 0 | U29: 0 | V29: 0 | W29: 0 | X29: 0 | Y29: 0 | Z29: 0 | AA29: 0 | AB29: 0 | AC29: 0 | AD29: 0 | AE29: 0 | AF29: 0 | AG29: 0 | AH29: 0 | AI29: 0 | AJ29: 0 | AK29: 0 | AL29: 0 | AM29: 0 | AN29: 0 | AO29: 0 | AP29: 0 | AQ29: 0 | AR29: 0 | AS29: 0 | AT29: 0 | AU29: 0 | AV29: 0 | AW29: 0 | AX29: 0 | AY29: 0
B30: 6 | C30: … | F30: =1/AVERAGE(Book_Capital!$H$128:$H$153) -> 21.95945946 | G30: 20 | H30: MACRS | I30: 0 | K30: 0 | L30: 0 | M30: 0 | N30: 0 | O30: 0 | P30: 0 | Q30: 0 | R30: 0 | S30: 0 | T30: 0 | U30: 0 | V30: 0 | W30: 0 | X30: 0 | Y30: 0 | Z30: 0 | AA30: 0 | AB30: 0 | AC30: 0 | AD30: 0 | AE30: 0 | AF30: 0 | AG30: 0 | AH30: 0 | AI30: 0 | AJ30: 0 | AK30: 0 | AL30: 0 | AM30: 0 | AN30: 0 | AO30: 0 | AP30: 0 | AQ30: 0 | AR30: 0 | AS30: 0 | AT30: 0 | AU30: 0 | AV30: 0 | AW30: 0 | AX30: 0 | AY30: 0
B31: 7 | C31: … | F31: =1/AVERAGE(Book_Capital!$H$128:$H$153) -> 21.95945946 | G31: 20 | H31: MACRS | I31: 0 | K31: 0 | L31: 0 | M31: 0 | N31: 0 | O31: 0 | P31: 0 | Q31: 0 | R31: 0 | S31: 0 | T31: 0 | U31: 0 | V31: 0 | W31: 0 | X31: 0 | Y31: 0 | Z31: 0 | AA31: 0 | AB31: 0 | AC31: 0 | AD31: 0 | AE31: 0 | AF31: 0 | AG31: 0 | AH31: 0 | AI31: 0 | AJ31: 0 | AK31: 0 | AL31: 0 | AM31: 0 | AN31: 0 | AO31: 0 | AP31: 0 | AQ31: 0 | AR31: 0 | AS31: 0 | AT31: 0 | AU31: 0 | AV31: 0 | AW31: 0 | AX31: 0 | AY31: 0
B32: 8 | C32: … | F32: =1/AVERAGE(Book_Capital!$H$128:$H$153) -> 21.95945946 | G32: 20 | H32: MACRS | I32: 0 | K32: 0 | L32: 0 | M32: 0 | N32: 0 | O32: 0 | P32: 0 | Q32: 0 | R32: 0 | S32: 0 | T32: 0 | U32: 0 | V32: 0 | W32: 0 | X32: 0 | Y32: 0 | Z32: 0 | AA32: 0 | AB32: 0 | AC32: 0 | AD32: 0 | AE32: 0 | AF32: 0 | AG32: 0 | AH32: 0 | AI32: 0 | AJ32: 0 | AK32: 0 | AL32: 0 | AM32: 0 | AN32: 0 | AO32: 0 | AP32: 0 | AQ32: 0 | AR32: 0 | AS32: 0 | AT32: 0 | AU32: 0 | AV32: 0 | AW32: 0 | AX32: 0 | AY32: 0
B33: 9 | C33: … | F33: =1/AVERAGE(Book_Capital!$H$128:$H$153) -> 21.95945946 | G33: 20 | H33: MACRS | I33: 0 | K33: 0 | L33: 0 | M33: 0 | N33: 0 | O33: 0 | P33: 0 | Q33: 0 | R33: 0 | S33: 0 | T33: 0 | U33: 0 | V33: 0 | W33: 0 | X33: 0 | Y33: 0 | Z33: 0 | AA33: 0 | AB33: 0 | AC33: 0 | AD33: 0 | AE33: 0 | AF33: 0 | AG33: 0 | AH33: 0 | AI33: 0 | AJ33: 0 | AK33: 0 | AL33: 0 | AM33: 0 | AN33: 0 | AO33: 0 | AP33: 0 | AQ33: 0 | AR33: 0 | AS33: 0 | AT33: 0 | AU33: 0 | AV33: 0 | AW33: 0 | AX33: 0 | AY33: 0
B34: 10 | C34: … | F34: =1/AVERAGE(Book_Capital!$H$128:$H$153) -> 21.95945946 | G34: 20 | H34: MACRS | I34: 0 | K34: 0 | L34: 0 | M34: 0 | N34: 0 | O34: 0 | P34: 0 | Q34: 0 | R34: 0 | S34: 0 | T34: 0 | U34: 0 | V34: 0 | W34: 0 | X34: 0 | Y34: 0 | Z34: 0 | AA34: 0 | AB34: 0 | AC34: 0 | AD34: 0 | AE34: 0 | AF34: 0 | AG34: 0 | AH34: 0 | AI34: 0 | AJ34: 0 | AK34: 0 | AL34: 0 | AM34: 0 | AN34: 0 | AO34: 0 | AP34: 0 | AQ34: 0 | AR34: 0 | AS34: 0 | AT34: 0 | AU34: 0 | AV34: 0 | AW34: 0 | AX34: 0 | AY34: 0
C35: =C24 -> Capital Expenditures, Unescalated | I35: -52131.80438 | K35: =SUM(K25:K34) -> 286056.248 | L35: =SUM(L25:L34) -> 2758.179144 | M35: 20539.38648 | N35: 15437.80864 | O35: 0 | P35: 0 | Q35: 0 | R35: 0 | S35: 0 | T35: -12532.6183 | U35: 0 | V35: -79125.56632 | W35: -13594.17866 | X35: -13798.26055 | Y35: -43238.7594 | Z35: -88007.62813 | AA35: -60493.71635 | AB35: -31444.4126 | AC35: 0 | AD35: -16639.43165 | AE35: 0 | AF35: 0 | AG35: -18048.85469 | AH35: 0 | AI35: 0 | AJ35: 0 | AK35: 0 | AL35: 0 | AM35: 0 | AN35: 0 | AO35: 0 | AP35: 0 | AQ35: 0 | AR35: 0 | AS35: 0 | AT35: 0 | AU35: 0 | AV35: 0 | AW35: 0 | AX35: 0 | AY35: 0
C37: Escalation Factor | E37: Inflation Rate | F37: Base Year
B38: =B25 -> 1 | C38: =C25 -> .05 Compressors | E38: 0 | F38: 2016 | K38: =(1+$E38)^(K$3-$F38) -> 1 | L38: =(1+$E38)^(L$3-$F38) -> 1 | M38: =(1+$E38)^(M$3-$F38) -> 1 | N38: 1 | O38: 1 | P38: 1 | Q38: 1 | R38: 1 | S38: 1 | T38: 1 | U38: 1 | V38: 1 | W38: 1 | X38: 1 | Y38: 1 | Z38: 1 | AA38: 1 | AB38: 1 | AC38: =(1+$E38)^(AC$3-$F38) -> 1 | AD38: 1 | AE38: 1 | AF38: 1 | AG38: 1 | AH38: 1 | AI38: 1 | AJ38: 1 | AK38: 1 | AL38: 1 | AM38: 1 | AN38: 1 | AO38: 1 | AP38: 1 | AQ38: 1 | AR38: 1 | AS38: =(1+$E38)^(AS$3-$F38) -> 1 | AT38: 1 | AU38: 1 | AV38: 1 | AW38: 1 | AX38: 1 | AY38: 1
B39: =B26 -> 2 | C39: =C26 -> Installation Costs | E39: 0 | F39: 2016 | K39: =(1+$E39)^(K$3-$F39) -> 1 | L39: 1 | M39: 1 | N39: 1 | O39: 1 | P39: 1 | Q39: 1 | R39: 1 | S39: 1 | T39: 1 | U39: 1 | V39: 1 | W39: 1 | X39: 1 | Y39: 1 | Z39: 1 | AA39: 1 | AB39: 1 | AC39: 1 | AD39: 1 | AE39: 1 | AF39: 1 | AG39: 1 | AH39: 1 | AI39: 1 | AJ39: 1 | AK39: 1 | AL39: 1 | AM39: 1 | AN39: 1 | AO39: 1 | AP39: 1 | AQ39: 1 | AR39: 1 | AS39: 1 | AT39: 1 | AU39: 1 | AV39: 1 | AW39: 1 | AX39: 1 | AY39: 1
B40: 3 | C40: Avoided Like-Kind Replacements | E40: 0 | F40: 2016 | K40: 1 | L40: 1 | M40: 1 | N40: 1 | O40: 1 | P40: 1 | Q40: 1 | R40: 1 | S40: 1 | T40: 1 | U40: 1 | V40: 1 | W40: 1 | X40: 1 | Y40: 1 | Z40: 1 | AA40: 1 | AB40: 1 | AC40: 1 | AD40: 1 | AE40: 1 | AF40: 1 | AG40: 1 | AH40: 1 | AI40: 1 | AJ40: 1 | AK40: 1 | AL40: 1 | AM40: 1 | AN40: 1 | AO40: 1 | AP40: 1 | AQ40: 1 | AR40: 1 | AS40: 1 | AT40: 1 | AU40: 1 | AV40: 1 | AW40: 1 | AX40: 1 | AY40: 1
B41: 4 | C41: Tax Effects of Existing Part Retirement | E41: 0 | F41: 2016 | K41: 1 | L41: 1 | M41: 1 | N41: 1 | O41: 1 | P41: 1 | Q41: 1 | R41: 1 | S41: 1 | T41: 1 | U41: 1 | V41: 1 | W41: 1 | X41: 1 | Y41: 1 | Z41: 1 | AA41: 1 | AB41: 1 | AC41: 1 | AD41: 1 | AE41: 1 | AF41: 1 | AG41: 1 | AH41: 1 | AI41: 1 | AJ41: 1 | AK41: 1 | AL41: 1 | AM41: 1 | AN41: 1 | AO41: 1 | AP41: 1 | AQ41: 1 | AR41: 1 | AS41: 1 | AT41: 1 | AU41: 1 | AV41: 1 | AW41: 1 | AX41: 1 | AY41: 1
B42: 5 | C42: … | E42: 0 | F42: 2016 | K42: 1 | L42: 1 | M42: 1 | N42: 1 | O42: 1 | P42: 1 | Q42: 1 | R42: 1 | S42: 1 | T42: 1 | U42: 1 | V42: 1 | W42: 1 | X42: 1 | Y42: 1 | Z42: 1 | AA42: 1 | AB42: 1 | AC42: 1 | AD42: 1 | AE42: 1 | AF42: 1 | AG42: 1 | AH42: 1 | AI42: 1 | AJ42: 1 | AK42: 1 | AL42: 1 | AM42: 1 | AN42: 1 | AO42: 1 | AP42: 1 | AQ42: 1 | AR42: 1 | AS42: 1 | AT42: 1 | AU42: 1 | AV42: 1 | AW42: 1 | AX42: 1 | AY42: 1
B43: 6 | C43: … | E43: 0 | F43: 2016 | K43: 1 | L43: 1 | M43: 1 | N43: 1 | O43: 1 | P43: 1 | Q43: 1 | R43: 1 | S43: 1 | T43: 1 | U43: 1 | V43: 1 | W43: 1 | X43: 1 | Y43: 1 | Z43: 1 | AA43: 1 | AB43: 1 | AC43: 1 | AD43: 1 | AE43: 1 | AF43: 1 | AG43: 1 | AH43: 1 | AI43: 1 | AJ43: 1 | AK43: 1 | AL43: 1 | AM43: 1 | AN43: 1 | AO43: 1 | AP43: 1 | AQ43: 1 | AR43: 1 | AS43: 1 | AT43: 1 | AU43: 1 | AV43: 1 | AW43: 1 | AX43: 1 | AY43: 1
B44: 7 | C44: … | E44: 0 | F44: 2016 | K44: 1 | L44: 1 | M44: 1 | N44: 1 | O44: 1 | P44: 1 | Q44: 1 | R44: 1 | S44: 1 | T44: 1 | U44: 1 | V44: 1 | W44: 1 | X44: 1 | Y44: 1 | Z44: 1 | AA44: 1 | AB44: 1 | AC44: 1 | AD44: 1 | AE44: 1 | AF44: 1 | AG44: 1 | AH44: 1 | AI44: 1 | AJ44: 1 | AK44: 1 | AL44: 1 | AM44: 1 | AN44: 1 | AO44: 1 | AP44: 1 | AQ44: 1 | AR44: 1 | AS44: 1 | AT44: 1 | AU44: 1 | AV44: 1 | AW44: 1 | AX44: 1 | AY44: 1
B45: 8 | C45: … | E45: 0 | F45: 2016 | K45: 1 | L45: 1 | M45: 1 | N45: 1 | O45: 1 | P45: 1 | Q45: 1 | R45: 1 | S45: 1 | T45: 1 | U45: 1 | V45: 1 | W45: 1 | X45: 1 | Y45: 1 | Z45: 1 | AA45: 1 | AB45: 1 | AC45: 1 | AD45: 1 | AE45: 1 | AF45: 1 | AG45: 1 | AH45: 1 | AI45: 1 | AJ45: 1 | AK45: 1 | AL45: 1 | AM45: 1 | AN45: 1 | AO45: 1 | AP45: 1 | AQ45: 1 | AR45: 1 | AS45: 1 | AT45: 1 | AU45: 1 | AV45: 1 | AW45: 1 | AX45: 1 | AY45: 1
B46: 9 | C46: … | E46: 0 | F46: 2016 | K46: 1 | L46: 1 | M46: 1 | N46: 1 | O46: 1 | P46: 1 | Q46: 1 | R46: 1 | S46: 1 | T46: 1 | U46: 1 | V46: 1 | W46: 1 | X46: 1 | Y46: 1 | Z46: 1 | AA46: 1 | AB46: 1 | AC46: 1 | AD46: 1 | AE46: 1 | AF46: 1 | AG46: 1 | AH46: 1 | AI46: 1 | AJ46: 1 | AK46: 1 | AL46: 1 | AM46: 1 | AN46: 1 | AO46: 1 | AP46: 1 | AQ46: 1 | AR46: 1 | AS46: 1 | AT46: 1 | AU46: 1 | AV46: 1 | AW46: 1 | AX46: 1 | AY46: 1
B47: 10 | C47: … | E47: 0 | F47: 2016 | K47: 1 | L47: 1 | M47: 1 | N47: 1 | O47: 1 | P47: 1 | Q47: 1 | R47: 1 | S47: 1 | T47: 1 | U47: 1 | V47: 1 | W47: 1 | X47: 1 | Y47: 1 | Z47: 1 | AA47: 1 | AB47: 1 | AC47: 1 | AD47: 1 | AE47: 1 | AF47: 1 | AG47: 1 | AH47: 1 | AI47: 1 | AJ47: 1 | AK47: 1 | AL47: 1 | AM47: 1 | AN47: 1 | AO47: 1 | AP47: 1 | AQ47: 1 | AR47: 1 | AS47: 1 | AT47: 1 | AU47: 1 | AV47: 1 | AW47: 1 | AX47: 1 | AY47: 1
C48: =C37 -> Escalation Factor | K48: =SUM(K38:K47)/COUNT(K38:K47) -> 1 | L48: =SUM(L38:L47)/COUNT(L38:L47) -> 1 | M48: 1 | N48: 1 | O48: 1 | P48: 1 | Q48: 1 | R48: 1 | S48: 1 | T48: 1 | U48: 1 | V48: 1 | W48: 1 | X48: 1 | Y48: 1 | Z48: 1 | AA48: 1 | AB48: 1 | AC48: 1 | AD48: 1 | AE48: 1 | AF48: 1 | AG48: 1 | AH48: 1 | AI48: 1 | AJ48: 1 | AK48: 1 | AL48: 1 | AM48: 1 | AN48: 1 | AO48: 1 | AP48: 1 | AQ48: 1 | AR48: 1 | AS48: 1 | AT48: 1 | AU48: 1 | AV48: 1 | AW48: 1 | AX48: 1 | AY48: 1
C50: Capital Expenditures, Escalated
B51: =B38 -> 1 | C51: =C38 -> .05 Compressors | I51: =SUM(K51:AY51) -> 286056.248 | K51: =K25*K38 -> 286056.248 | L51: =L25*L38 -> 0 | M51: 0 | N51: 0 | O51: 0 | P51: 0 | Q51: 0 | R51: 0 | S51: 0 | T51: 0 | U51: 0 | V51: 0 | W51: 0 | X51: 0 | Y51: 0 | Z51: 0 | AA51: 0 | AB51: 0 | AC51: 0 | AD51: 0 | AE51: 0 | AF51: 0 | AG51: 0 | AH51: 0 | AI51: 0 | AJ51: 0 | AK51: 0 | AL51: 0 | AM51: 0 | AN51: 0 | AO51: 0 | AP51: 0 | AQ51: 0 | AR51: 0 | AS51: 0 | AT51: 0 | AU51: 0 | AV51: 0 | AW51: 0 | AX51: 0 | AY51: =AY25*AY38 -> 0
B52: =B39 -> 2 | C52: Installation Costs | I52: =SUM(K52:AY52) -> 38735.37426 | K52: =K26*K39 -> 0 | L52: 2758.179144 | M52: 20539.38648 | N52: 15437.80864 | O52: 0 | P52: 0 | Q52: 0 | R52: 0 | S52: 0 | T52: 0 | U52: 0 | V52: 0 | W52: 0 | X52: 0 | Y52: 0 | Z52: 0 | AA52: 0 | AB52: 0 | AC52: 0 | AD52: 0 | AE52: 0 | AF52: 0 | AG52: 0 | AH52: 0 | AI52: 0 | AJ52: 0 | AK52: 0 | AL52: 0 | AM52: 0 | AN52: 0 | AO52: 0 | AP52: 0 | AQ52: 0 | AR52: 0 | AS52: 0 | AT52: 0 | AU52: 0 | AV52: 0 | AW52: 0 | AX52: 0 | AY52: 0
B53: =B40 -> 3 | C53: Avoided Like-Kind Replacements | I53: -376923.4266 | K53: =K27*K40 -> 0 | L53: 0 | M53: 0 | N53: 0 | O53: 0 | P53: 0 | Q53: 0 | R53: 0 | S53: 0 | T53: -12532.6183 | U53: 0 | V53: -79125.56632 | W53: -13594.17866 | X53: -13798.26055 | Y53: -43238.7594 | Z53: -88007.62813 | AA53: -60493.71635 | AB53: -31444.4126 | AC53: 0 | AD53: -16639.43165 | AE53: 0 | AF53: 0 | AG53: -18048.85469 | AH53: 0 | AI53: 0 | AJ53: 0 | AK53: 0 | AL53: 0 | AM53: 0 | AN53: 0 | AO53: 0 | AP53: 0 | AQ53: 0 | AR53: 0 | AS53: 0 | AT53: 0 | AU53: 0 | AV53: 0 | AW53: 0 | AX53: 0 | AY53: 0
B54: =B41 -> 4 | C54: Tax Effects of Existing Part Retirement | I54: 0 | K54: =K28*K41 -> 0 | L54: 0 | M54: 0 | N54: 0 | O54: 0 | P54: 0 | Q54: 0 | R54: 0 | S54: 0 | T54: 0 | U54: 0 | V54: 0 | W54: 0 | X54: 0 | Y54: 0 | Z54: 0 | AA54: 0 | AB54: 0 | AC54: 0 | AD54: 0 | AE54: 0 | AF54: 0 | AG54: 0 | AH54: 0 | AI54: 0 | AJ54: 0 | AK54: 0 | AL54: 0 | AM54: 0 | AN54: 0 | AO54: 0 | AP54: 0 | AQ54: 0 | AR54: 0 | AS54: 0 | AT54: 0 | AU54: 0 | AV54: 0 | AW54: 0 | AX54: 0 | AY54: 0
B55: =B42 -> 5 | C55: … | I55: 0 | K55: =K29*K42 -> 0 | L55: 0 | M55: 0 | N55: 0 | O55: 0 | P55: 0 | Q55: 0 | R55: 0 | S55: 0 | T55: 0 | U55: 0 | V55: 0 | W55: 0 | X55: 0 | Y55: 0 | Z55: 0 | AA55: 0 | AB55: 0 | AC55: 0 | AD55: 0 | AE55: 0 | AF55: 0 | AG55: 0 | AH55: 0 | AI55: 0 | AJ55: 0 | AK55: 0 | AL55: 0 | AM55: 0 | AN55: 0 | AO55: 0 | AP55: 0 | AQ55: 0 | AR55: 0 | AS55: 0 | AT55: 0 | AU55: 0 | AV55: 0 | AW55: 0 | AX55: 0 | AY55: 0
B56: =B43 -> 6 | C56: … | I56: 0 | K56: =K30*K43 -> 0 | L56: 0 | M56: 0 | N56: 0 | O56: 0 | P56: 0 | Q56: 0 | R56: 0 | S56: 0 | T56: 0 | U56: 0 | V56: 0 | W56: 0 | X56: 0 | Y56: 0 | Z56: 0 | AA56: 0 | AB56: 0 | AC56: 0 | AD56: 0 | AE56: 0 | AF56: 0 | AG56: 0 | AH56: 0 | AI56: 0 | AJ56: 0 | AK56: 0 | AL56: 0 | AM56: 0 | AN56: 0 | AO56: 0 | AP56: 0 | AQ56: 0 | AR56: 0 | AS56: 0 | AT56: 0 | AU56: 0 | AV56: 0 | AW56: 0 | AX56: 0 | AY56: 0
B57: =B44 -> 7 | C57: … | I57: 0 | K57: =K31*K44 -> 0 | L57: 0 | M57: 0 | N57: 0 | O57: 0 | P57: 0 | Q57: 0 | R57: 0 | S57: 0 | T57: 0 | U57: 0 | V57: 0 | W57: 0 | X57: 0 | Y57: 0 | Z57: 0 | AA57: 0 | AB57: 0 | AC57: 0 | AD57: 0 | AE57: 0 | AF57: 0 | AG57: 0 | AH57: 0 | AI57: 0 | AJ57: 0 | AK57: 0 | AL57: 0 | AM57: 0 | AN57: 0 | AO57: 0 | AP57: 0 | AQ57: 0 | AR57: 0 | AS57: 0 | AT57: 0 | AU57: 0 | AV57: 0 | AW57: 0 | AX57: 0 | AY57: 0
B58: =B45 -> 8 | C58: … | I58: 0 | K58: =K32*K45 -> 0 | L58: 0 | M58: 0 | N58: 0 | O58: 0 | P58: 0 | Q58: 0 | R58: 0 | S58: 0 | T58: 0 | U58: 0 | V58: 0 | W58: 0 | X58: 0 | Y58: 0 | Z58: 0 | AA58: 0 | AB58: 0 | AC58: 0 | AD58: 0 | AE58: 0 | AF58: 0 | AG58: 0 | AH58: 0 | AI58: 0 | AJ58: 0 | AK58: 0 | AL58: 0 | AM58: 0 | AN58: 0 | AO58: 0 | AP58: 0 | AQ58: 0 | AR58: 0 | AS58: 0 | AT58: 0 | AU58: 0 | AV58: 0 | AW58: 0 | AX58: 0 | AY58: 0
B59: =B46 -> 9 | C59: … | I59: 0 | K59: =K33*K46 -> 0 | L59: 0 | M59: 0 | N59: 0 | O59: 0 | P59: 0 | Q59: 0 | R59: 0 | S59: 0 | T59: 0 | U59: 0 | V59: 0 | W59: 0 | X59: 0 | Y59: 0 | Z59: 0 | AA59: 0 | AB59: 0 | AC59: 0 | AD59: 0 | AE59: 0 | AF59: 0 | AG59: 0 | AH59: 0 | AI59: 0 | AJ59: 0 | AK59: 0 | AL59: 0 | AM59: 0 | AN59: 0 | AO59: 0 | AP59: 0 | AQ59: 0 | AR59: 0 | AS59: 0 | AT59: 0 | AU59: 0 | AV59: 0 | AW59: 0 | AX59: 0 | AY59: 0
B60: =B47 -> 10 | C60: … | I60: 0 | K60: =K34*K47 -> 0 | L60: 0 | M60: 0 | N60: 0 | O60: 0 | P60: 0 | Q60: 0 | R60: 0 | S60: 0 | T60: 0 | U60: 0 | V60: 0 | W60: 0 | X60: 0 | Y60: 0 | Z60: 0 | AA60: 0 | AB60: 0 | AC60: 0 | AD60: 0 | AE60: 0 | AF60: 0 | AG60: 0 | AH60: 0 | AI60: 0 | AJ60: 0 | AK60: 0 | AL60: 0 | AM60: 0 | AN60: 0 | AO60: 0 | AP60: 0 | AQ60: 0 | AR60: 0 | AS60: 0 | AT60: 0 | AU60: 0 | AV60: 0 | AW60: 0 | AX60: 0 | AY60: 0
C61: =C50 -> Capital Expenditures, Escalated | I61: -52131.80438 | K61: =SUM(K51:K60) -> 286056.248 | L61: =SUM(L51:L60) -> 2758.179144 | M61: =SUM(M51:M60) -> 20539.38648 | N61: =SUM(N51:N60) -> 15437.80864 | O61: =SUM(O51:O60) -> 0 | P61: =SUM(P51:P60) -> 0 | Q61: =SUM(Q51:Q60) -> 0 | R61: =SUM(R51:R60) -> 0 | S61: =SUM(S51:S60) -> 0 | T61: =SUM(T51:T60) -> -12532.6183 | U61: =SUM(U51:U60) -> 0 | V61: =SUM(V51:V60) -> -79125.56632 | W61: =SUM(W51:W60) -> -13594.17866 | X61: =SUM(X51:X60) -> -13798.26055 | Y61: =SUM(Y51:Y60) -> -43238.7594 | Z61: =SUM(Z51:Z60) -> -88007.62813 | AA61: =SUM(AA51:AA60) -> -60493.71635 | AB61: =SUM(AB51:AB60) -> -31444.4126 | AC61: =SUM(AC51:AC60) -> 0 | AD61: =SUM(AD51:AD60) -> -16639.43165 | AE61: =SUM(AE51:AE60) -> 0 | AF61: =SUM(AF51:AF60) -> 0 | AG61: =SUM(AG51:AG60) -> -18048.85469 | AH61: =SUM(AH51:AH60) -> 0 | AI61: =SUM(AI51:AI60) -> 0 | AJ61: =SUM(AJ51:AJ60) -> 0 | AK61: =SUM(AK51:AK60) -> 0 | AL61: =SUM(AL51:AL60) -> 0 | AM61: =SUM(AM51:AM60) -> 0 | AN61: =SUM(AN51:AN60) -> 0 | AO61: =SUM(AO51:AO60) -> 0 | AP61: =SUM(AP51:AP60) -> 0 | AQ61: =SUM(AQ51:AQ60) -> 0 | AR61: =SUM(AR51:AR60) -> 0 | AS61: =SUM(AS51:AS60) -> 0 | AT61: =SUM(AT51:AT60) -> 0 | AU61: =SUM(AU51:AU60) -> 0 | AV61: =SUM(AV51:AV60) -> 0 | AW61: =SUM(AW51:AW60) -> 0 | AX61: =SUM(AX51:AX60) -> 0 | AY61: 0
C64: Land Sale/Reassignment Year | E64: =YEAR(F12)+F25 -> 2036.959459
C65: Land Appreciation Rate | E65: 0.025
C66: Book Amort of Gain/Loss | E66: 5
C67: Tax Amort of Gain/Loss | E67: 1
A69: OPERATING EXPENSES / (SAVINGS)
K70: =K$3 -> 2014 | L70: =L$3 -> 2015 | M70: 2016 | N70: 2017 | O70: 2018 | P70: 2019 | Q70: 2020 | R70: 2021 | S70: 2022 | T70: 2023 | U70: 2024 | V70: 2025 | W70: 2026 | X70: 2027 | Y70: 2028 | Z70: 2029 | AA70: 2030 | AB70: 2031 | AC70: 2032 | AD70: 2033 | AE70: 2034 | AF70: 2035 | AG70: 2036 | AH70: 2037 | AI70: 2038 | AJ70: 2039 | AK70: 2040 | AL70: 2041 | AM70: 2042 | AN70: 2043 | AO70: 2044 | AP70: 2045 | AQ70: 2046 | AR70: 2047 | AS70: 2048 | AT70: 2049 | AU70: 2050 | AV70: 2051 | AW70: 2052 | AX70: 2053 | AY70: 2054
C71: Operating Expenses / (Savings)
B72: 1 | C72: … | I72: =SUM(K72:AY72) -> 0 | K72: 0 | L72: 0 | M72: 0 | N72: 0 | O72: 0 | P72: 0 | Q72: 0 | R72: 0 | S72: 0 | T72: 0 | U72: 0 | V72: 0 | W72: 0 | X72: 0 | Y72: 0 | Z72: 0 | AA72: 0 | AB72: 0 | AC72: 0 | AD72: 0 | AE72: 0 | AF72: 0 | AG72: 0 | AH72: 0 | AI72: 0 | AJ72: 0 | AK72: 0 | AL72: 0 | AM72: 0 | AN72: 0 | AO72: 0 | AP72: 0 | AQ72: 0 | AR72: 0 | AS72: 0 | AT72: 0 | AU72: 0 | AV72: 0 | AW72: 0 | AX72: 0 | AY72: 0
B73: 2 | C73: … | I73: 0 | K73: 0 | L73: 0 | M73: 0 | N73: 0 | O73: 0 | P73: 0 | Q73: 0 | R73: 0 | S73: 0 | T73: 0 | U73: 0 | V73: 0 | W73: 0 | X73: 0 | Y73: 0 | Z73: 0 | AA73: 0 | AB73: 0 | AC73: 0 | AD73: 0 | AE73: 0 | AF73: 0 | AG73: 0 | AH73: 0 | AI73: 0 | AJ73: 0 | AK73: 0 | AL73: 0 | AM73: 0 | AN73: 0 | AO73: 0 | AP73: 0 | AQ73: 0 | AR73: 0 | AS73: 0 | AT73: 0 | AU73: 0 | AV73: 0 | AW73: 0 | AX73: 0 | AY73: 0
B74: 3 | C74: … | I74: 0 | K74: 0 | L74: 0 | M74: 0 | N74: 0 | O74: 0 | P74: 0 | Q74: 0 | R74: 0 | S74: 0 | T74: 0 | U74: 0 | V74: 0 | W74: 0 | X74: 0 | Y74: 0 | Z74: 0 | AA74: 0 | AB74: 0 | AC74: 0 | AD74: 0 | AE74: 0 | AF74: 0 | AG74: 0 | AH74: 0 | AI74: 0 | AJ74: 0 | AK74: 0 | AL74: 0 | AM74: 0 | AN74: 0 | AO74: 0 | AP74: 0 | AQ74: 0 | AR74: 0 | AS74: 0 | AT74: 0 | AU74: 0 | AV74: 0 | AW74: 0 | AX74: 0 | AY74: 0
B75: 4 | C75: … | I75: 0 | K75: 0 | L75: 0 | M75: 0 | N75: 0 | O75: 0 | P75: 0 | Q75: 0 | R75: 0 | S75: 0 | T75: 0 | U75: 0 | V75: 0 | W75: 0 | X75: 0 | Y75: 0 | Z75: 0 | AA75: 0 | AB75: 0 | AC75: 0 | AD75: 0 | AE75: 0 | AF75: 0 | AG75: 0 | AH75: 0 | AI75: 0 | AJ75: 0 | AK75: 0 | AL75: 0 | AM75: 0 | AN75: 0 | AO75: 0 | AP75: 0 | AQ75: 0 | AR75: 0 | AS75: 0 | AT75: 0 | AU75: 0 | AV75: 0 | AW75: 0 | AX75: 0 | AY75: 0
B76: 5 | C76: … | I76: 0 | K76: 0 | L76: 0 | M76: 0 | N76: 0 | O76: 0 | P76: 0 | Q76: 0 | R76: 0 | S76: 0 | T76: 0 | U76: 0 | V76: 0 | W76: 0 | X76: 0 | Y76: 0 | Z76: 0 | AA76: 0 | AB76: 0 | AC76: 0 | AD76: 0 | AE76: 0 | AF76: 0 | AG76: 0 | AH76: 0 | AI76: 0 | AJ76: 0 | AK76: 0 | AL76: 0 | AM76: 0 | AN76: 0 | AO76: 0 | AP76: 0 | AQ76: 0 | AR76: 0 | AS76: 0 | AT76: 0 | AU76: 0 | AV76: 0 | AW76: 0 | AX76: 0 | AY76: 0
C77: =C71 -> Operating Expenses / (Savings) | I77: 0 | K77: =SUM(K72:K76) -> 0 | L77: =SUM(L72:L76) -> 0 | M77: =SUM(M72:M76) -> 0 | N77: =SUM(N72:N76) -> 0 | O77: =SUM(O72:O76) -> 0 | P77: =SUM(P72:P76) -> 0 | Q77: =SUM(Q72:Q76) -> 0 | R77: =SUM(R72:R76) -> 0 | S77: =SUM(S72:S76) -> 0 | T77: =SUM(T72:T76) -> 0 | U77: =SUM(U72:U76) -> 0 | V77: =SUM(V72:V76) -> 0 | W77: =SUM(W72:W76) -> 0 | X77: =SUM(X72:X76) -> 0 | Y77: =SUM(Y72:Y76) -> 0 | Z77: =SUM(Z72:Z76) -> 0 | AA77: =SUM(AA72:AA76) -> 0 | AB77: =SUM(AB72:AB76) -> 0 | AC77: =SUM(AC72:AC76) -> 0 | AD77: =SUM(AD72:AD76) -> 0 | AE77: =SUM(AE72:AE76) -> 0 | AF77: =SUM(AF72:AF76) -> 0 | AG77: =SUM(AG72:AG76) -> 0 | AH77: =SUM(AH72:AH76) -> 0 | AI77: =SUM(AI72:AI76) -> 0 | AJ77: =SUM(AJ72:AJ76) -> 0 | AK77: =SUM(AK72:AK76) -> 0 | AL77: =SUM(AL72:AL76) -> 0 | AM77: =SUM(AM72:AM76) -> 0 | AN77: =SUM(AN72:AN76) -> 0 | AO77: =SUM(AO72:AO76) -> 0 | AP77: =SUM(AP72:AP76) -> 0 | AQ77: =SUM(AQ72:AQ76) -> 0 | AR77: =SUM(AR72:AR76) -> 0 | AS77: =SUM(AS72:AS76) -> 0 | AT77: =SUM(AT72:AT76) -> 0 | AU77: =SUM(AU72:AU76) -> 0 | AV77: =SUM(AV72:AV76) -> 0 | AW77: =SUM(AW72:AW76) -> 0 | AX77: =SUM(AX72:AX76) -> 0 | AY77: 0
C79: Escalation Factor | E79: Inflation Rate | F79: Base Year
B80: 1 | C80: =C72 -> … | E80: 0 | F80: 2016 | K80: =(1+$E80)^(K$3-$F80) -> 1 | L80: =(1+$E80)^(L$3-$F80) -> 1 | M80: 1 | N80: 1 | O80: 1 | P80: 1 | Q80: 1 | R80: 1 | S80: 1 | T80: 1 | U80: 1 | V80: 1 | W80: 1 | X80: 1 | Y80: 1 | Z80: 1 | AA80: 1 | AB80: =(1+$E80)^(AB$3-$F80) -> 1 | AC80: 1 | AD80: 1 | AE80: 1 | AF80: 1 | AG80: 1 | AH80: 1 | AI80: 1 | AJ80: 1 | AK80: 1 | AL80: 1 | AM80: 1 | AN80: 1 | AO80: 1 | AP80: 1 | AQ80: 1 | AR80: =(1+$E80)^(AR$3-$F80) -> 1 | AS80: 1 | AT80: 1 | AU80: 1 | AV80: 1 | AW80: 1 | AX80: 1 | AY80: 1
B81: 2 | C81: =C73 -> … | E81: 0 | F81: =F80 -> 2016 | K81: =(1+$E81)^(K$3-$F81) -> 1 | L81: 1 | M81: 1 | N81: 1 | O81: 1 | P81: 1 | Q81: 1 | R81: 1 | S81: 1 | T81: 1 | U81: 1 | V81: 1 | W81: 1 | X81: 1 | Y81: 1 | Z81: 1 | AA81: 1 | AB81: 1 | AC81: 1 | AD81: 1 | AE81: 1 | AF81: 1 | AG81: 1 | AH81: 1 | AI81: 1 | AJ81: 1 | AK81: 1 | AL81: 1 | AM81: 1 | AN81: 1 | AO81: 1 | AP81: 1 | AQ81: 1 | AR81: 1 | AS81: 1 | AT81: 1 | AU81: 1 | AV81: 1 | AW81: 1 | AX81: 1 | AY81: 1
B82: 3 | C82: =C74 -> … | E82: 0 | F82: =F81 -> 2016 | K82: 1 | L82: 1 | M82: 1 | N82: 1 | O82: 1 | P82: 1 | Q82: 1 | R82: 1 | S82: 1 | T82: 1 | U82: 1 | V82: 1 | W82: 1 | X82: 1 | Y82: 1 | Z82: 1 | AA82: 1 | AB82: 1 | AC82: 1 | AD82: 1 | AE82: 1 | AF82: 1 | AG82: 1 | AH82: 1 | AI82: 1 | AJ82: 1 | AK82: 1 | AL82: 1 | AM82: 1 | AN82: 1 | AO82: 1 | AP82: 1 | AQ82: 1 | AR82: 1 | AS82: 1 | AT82: 1 | AU82: 1 | AV82: 1 | AW82: 1 | AX82: 1 | AY82: 1
B83: 4 | C83: =C75 -> … | E83: 0 | F83: 2016 | K83: 1 | L83: 1 | M83: 1 | N83: 1 | O83: 1 | P83: 1 | Q83: 1 | R83: 1 | S83: 1 | T83: 1 | U83: 1 | V83: 1 | W83: 1 | X83: 1 | Y83: 1 | Z83: 1 | AA83: 1 | AB83: 1 | AC83: 1 | AD83: 1 | AE83: 1 | AF83: 1 | AG83: 1 | AH83: 1 | AI83: 1 | AJ83: 1 | AK83: 1 | AL83: 1 | AM83: 1 | AN83: 1 | AO83: 1 | AP83: 1 | AQ83: 1 | AR83: 1 | AS83: 1 | AT83: 1 | AU83: 1 | AV83: 1 | AW83: 1 | AX83: 1 | AY83: 1
B84: 5 | C84: =C76 -> … | E84: 0 | F84: 2016 | K84: 1 | L84: 1 | M84: 1 | N84: 1 | O84: 1 | P84: 1 | Q84: 1 | R84: 1 | S84: 1 | T84: 1 | U84: 1 | V84: 1 | W84: 1 | X84: 1 | Y84: 1 | Z84: 1 | AA84: 1 | AB84: 1 | AC84: 1 | AD84: 1 | AE84: 1 | AF84: 1 | AG84: 1 | AH84: 1 | AI84: 1 | AJ84: 1 | AK84: 1 | AL84: 1 | AM84: 1 | AN84: 1 | AO84: 1 | AP84: 1 | AQ84: 1 | AR84: 1 | AS84: 1 | AT84: 1 | AU84: 1 | AV84: 1 | AW84: 1 | AX84: 1 | AY84: 1
C85: =C79 -> Escalation Factor | K85: =SUM(K80:K84)/COUNT(K80:K84) -> 1 | L85: =SUM(L80:L84)/COUNT(L80:L84) -> 1 | M85: =SUM(M80:M84)/COUNT(M80:M84) -> 1 | N85: =SUM(N80:N84)/COUNT(N80:N84) -> 1 | O85: =SUM(O80:O84)/COUNT(O80:O84) -> 1 | P85: =SUM(P80:P84)/COUNT(P80:P84) -> 1 | Q85: =SUM(Q80:Q84)/COUNT(Q80:Q84) -> 1 | R85: =SUM(R80:R84)/COUNT(R80:R84) -> 1 | S85: =SUM(S80:S84)/COUNT(S80:S84) -> 1 | T85: =SUM(T80:T84)/COUNT(T80:T84) -> 1 | U85: =SUM(U80:U84)/COUNT(U80:U84) -> 1 | V85: =SUM(V80:V84)/COUNT(V80:V84) -> 1 | W85: =SUM(W80:W84)/COUNT(W80:W84) -> 1 | X85: =SUM(X80:X84)/COUNT(X80:X84) -> 1 | Y85: =SUM(Y80:Y84)/COUNT(Y80:Y84) -> 1 | Z85: =SUM(Z80:Z84)/COUNT(Z80:Z84) -> 1 | AA85: =SUM(AA80:AA84)/COUNT(AA80:AA84) -> 1 | AB85: =SUM(AB80:AB84)/COUNT(AB80:AB84) -> 1 | AC85: =SUM(AC80:AC84)/COUNT(AC80:AC84) -> 1 | AD85: =SUM(AD80:AD84)/COUNT(AD80:AD84) -> 1 | AE85: =SUM(AE80:AE84)/COUNT(AE80:AE84) -> 1 | AF85: =SUM(AF80:AF84)/COUNT(AF80:AF84) -> 1 | AG85: =SUM(AG80:AG84)/COUNT(AG80:AG84) -> 1 | AH85: =SUM(AH80:AH84)/COUNT(AH80:AH84) -> 1 | AI85: =SUM(AI80:AI84)/COUNT(AI80:AI84) -> 1 | AJ85: =SUM(AJ80:AJ84)/COUNT(AJ80:AJ84) -> 1 | AK85: =SUM(AK80:AK84)/COUNT(AK80:AK84) -> 1 | AL85: =SUM(AL80:AL84)/COUNT(AL80:AL84) -> 1 | AM85: =SUM(AM80:AM84)/COUNT(AM80:AM84) -> 1 | AN85: =SUM(AN80:AN84)/COUNT(AN80:AN84) -> 1 | AO85: =SUM(AO80:AO84)/COUNT(AO80:AO84) -> 1 | AP85: =SUM(AP80:AP84)/COUNT(AP80:AP84) -> 1 | AQ85: =SUM(AQ80:AQ84)/COUNT(AQ80:AQ84) -> 1 | AR85: =SUM(AR80:AR84)/COUNT(AR80:AR84) -> 1 | AS85: =SUM(AS80:AS84)/COUNT(AS80:AS84) -> 1 | AT85: =SUM(AT80:AT84)/COUNT(AT80:AT84) -> 1 | AU85: =SUM(AU80:AU84)/COUNT(AU80:AU84) -> 1 | AV85: =SUM(AV80:AV84)/COUNT(AV80:AV84) -> 1 | AW85: =SUM(AW80:AW84)/COUNT(AW80:AW84) -> 1 | AX85: =SUM(AX80:AX84)/COUNT(AX80:AX84) -> 1 | AY85: 1
C87: Operating Expenses / (Savings), Escalated
B88: 1 | C88: =C80 -> … | I88: =SUM(K88:AY88) -> 0 | K88: =K72*K80 -> 0 | L88: =L72*L80 -> 0 | M88: 0 | N88: 0 | O88: 0 | P88: 0 | Q88: 0 | R88: 0 | S88: 0 | T88: 0 | U88: 0 | V88: 0 | W88: 0 | X88: 0 | Y88: 0 | Z88: 0 | AA88: 0 | AB88: 0 | AC88: 0 | AD88: 0 | AE88: 0 | AF88: 0 | AG88: 0 | AH88: 0 | AI88: 0 | AJ88: 0 | AK88: 0 | AL88: 0 | AM88: 0 | AN88: 0 | AO88: 0 | AP88: 0 | AQ88: 0 | AR88: 0 | AS88: 0 | AT88: 0 | AU88: 0 | AV88: 0 | AW88: 0 | AX88: 0 | AY88: =AY72*AY80 -> 0
B89: 2 | C89: =C81 -> … | I89: 0 | K89: =K73*K81 -> 0 | L89: 0 | M89: 0 | N89: 0 | O89: 0 | P89: 0 | Q89: 0 | R89: 0 | S89: 0 | T89: 0 | U89: 0 | V89: 0 | W89: 0 | X89: 0 | Y89: 0 | Z89: 0 | AA89: 0 | AB89: 0 | AC89: 0 | AD89: 0 | AE89: 0 | AF89: 0 | AG89: 0 | AH89: 0 | AI89: 0 | AJ89: 0 | AK89: 0 | AL89: 0 | AM89: 0 | AN89: 0 | AO89: 0 | AP89: 0 | AQ89: 0 | AR89: 0 | AS89: 0 | AT89: 0 | AU89: 0 | AV89: 0 | AW89: 0 | AX89: 0 | AY89: =AY73*AY81 -> 0
B90: 3 | C90: =C82 -> … | I90: 0 | K90: =K74*K82 -> 0 | L90: 0 | M90: 0 | N90: 0 | O90: 0 | P90: 0 | Q90: 0 | R90: 0 | S90: 0 | T90: 0 | U90: 0 | V90: 0 | W90: 0 | X90: 0 | Y90: 0 | Z90: 0 | AA90: 0 | AB90: 0 | AC90: 0 | AD90: 0 | AE90: 0 | AF90: 0 | AG90: 0 | AH90: 0 | AI90: 0 | AJ90: 0 | AK90: 0 | AL90: 0 | AM90: 0 | AN90: 0 | AO90: 0 | AP90: 0 | AQ90: 0 | AR90: 0 | AS90: 0 | AT90: 0 | AU90: 0 | AV90: 0 | AW90: 0 | AX90: 0 | AY90: =AY74*AY82 -> 0
B91: 4 | C91: =C83 -> … | I91: 0 | K91: =K75*K83 -> 0 | L91: 0 | M91: 0 | N91: 0 | O91: 0 | P91: 0 | Q91: 0 | R91: 0 | S91: 0 | T91: 0 | U91: 0 | V91: 0 | W91: 0 | X91: 0 | Y91: 0 | Z91: 0 | AA91: 0 | AB91: 0 | AC91: 0 | AD91: 0 | AE91: 0 | AF91: 0 | AG91: 0 | AH91: 0 | AI91: 0 | AJ91: 0 | AK91: 0 | AL91: 0 | AM91: 0 | AN91: 0 | AO91: 0 | AP91: 0 | AQ91: 0 | AR91: 0 | AS91: 0 | AT91: 0 | AU91: 0 | AV91: 0 | AW91: 0 | AX91: 0 | AY91: =AY75*AY83 -> 0
B92: 5 | C92: =C84 -> … | I92: 0 | K92: =K76*K84 -> 0 | L92: 0 | M92: 0 | N92: 0 | O92: 0 | P92: 0 | Q92: 0 | R92: 0 | S92: 0 | T92: 0 | U92: 0 | V92: 0 | W92: 0 | X92: 0 | Y92: 0 | Z92: 0 | AA92: 0 | AB92: 0 | AC92: 0 | AD92: 0 | AE92: 0 | AF92: 0 | AG92: 0 | AH92: 0 | AI92: 0 | AJ92: 0 | AK92: 0 | AL92: 0 | AM92: 0 | AN92: 0 | AO92: 0 | AP92: 0 | AQ92: 0 | AR92: 0 | AS92: 0 | AT92: 0 | AU92: 0 | AV92: 0 | AW92: 0 | AX92: 0 | AY92: =AY76*AY84 -> 0
C93: =C87 -> Operating Expenses / (Savings), Escalated | I93: 0 | K93: =SUM(K88:K92) -> 0 | L93: =SUM(L88:L92) -> 0 | M93: =SUM(M88:M92) -> 0 | N93: =SUM(N88:N92) -> 0 | O93: =SUM(O88:O92) -> 0 | P93: =SUM(P88:P92) -> 0 | Q93: =SUM(Q88:Q92) -> 0 | R93: =SUM(R88:R92) -> 0 | S93: =SUM(S88:S92) -> 0 | T93: =SUM(T88:T92) -> 0 | U93: =SUM(U88:U92) -> 0 | V93: =SUM(V88:V92) -> 0 | W93: =SUM(W88:W92) -> 0 | X93: =SUM(X88:X92) -> 0 | Y93: =SUM(Y88:Y92) -> 0 | Z93: =SUM(Z88:Z92) -> 0 | AA93: =SUM(AA88:AA92) -> 0 | AB93: =SUM(AB88:AB92) -> 0 | AC93: =SUM(AC88:AC92) -> 0 | AD93: =SUM(AD88:AD92) -> 0 | AE93: =SUM(AE88:AE92) -> 0 | AF93: =SUM(AF88:AF92) -> 0 | AG93: =SUM(AG88:AG92) -> 0 | AH93: =SUM(AH88:AH92) -> 0 | AI93: =SUM(AI88:AI92) -> 0 | AJ93: =SUM(AJ88:AJ92) -> 0 | AK93: =SUM(AK88:AK92) -> 0 | AL93: =SUM(AL88:AL92) -> 0 | AM93: =SUM(AM88:AM92) -> 0 | AN93: =SUM(AN88:AN92) -> 0 | AO93: =SUM(AO88:AO92) -> 0 | AP93: =SUM(AP88:AP92) -> 0 | AQ93: =SUM(AQ88:AQ92) -> 0 | AR93: =SUM(AR88:AR92) -> 0 | AS93: =SUM(AS88:AS92) -> 0 | AT93: =SUM(AT88:AT92) -> 0 | AU93: =SUM(AU88:AU92) -> 0 | AV93: =SUM(AV88:AV92) -> 0 | AW93: =SUM(AW88:AW92) -> 0 | AX93: =SUM(AX88:AX92) -> 0 | AY93: 0
A97: SYSTEM IMPACT COST / (SAVINGS)
K98: =K$3 -> 2014 | L98: =L$3 -> 2015 | M98: 2016 | N98: 2017 | O98: 2018 | P98: 2019 | Q98: 2020 | R98: 2021 | S98: 2022 | T98: 2023 | U98: 2024 | V98: 2025 | W98: 2026 | X98: 2027 | Y98: 2028 | Z98: 2029 | AA98: 2030 | AB98: 2031 | AC98: 2032 | AD98: 2033 | AE98: 2034 | AF98: 2035 | AG98: 2036 | AH98: 2037 | AI98: 2038 | AJ98: 2039 | AK98: 2040 | AL98: 2041 | AM98: 2042 | AN98: 2043 | AO98: 2044 | AP98: 2045 | AQ98: 2046 | AR98: 2047 | AS98: 2048 | AT98: 2049 | AU98: 2050 | AV98: 2051 | AW98: 2052 | AX98: 2053 | AY98: 2054
C99: System Impact Cost / (Savings)
B100: 1 | C100: Fuel Savings | I100: =SUM(K100:AY100) -> -571000 | K100: =SUMIF('Fuel Savings'!$A$4:$A$34,K$3,'Fuel Savings'!$B$4:$B$34)*1000 -> 0 | L100: =SUMIF('Fuel Savings'!$A$4:$A$34,L$3,'Fuel Savings'!$B$4:$B$34)*1000 -> 5000 | M100: =SUMIF('Fuel Savings'!$A$4:$A$34,M$3,'Fuel Savings'!$B$4:$B$34)*1000 -> -14000 | N100: =SUMIF('Fuel Savings'!$A$4:$A$34,N$3,'Fuel Savings'!$B$4:$B$34)*1000 -> -23000 | O100: =SUMIF('Fuel Savings'!$A$4:$A$34,O$3,'Fuel Savings'!$B$4:$B$34)*1000 -> -46000 | P100: =SUMIF('Fuel Savings'!$A$4:$A$34,P$3,'Fuel Savings'!$B$4:$B$34)*1000 -> -32000 | Q100: =SUMIF('Fuel Savings'!$A$4:$A$34,Q$3,'Fuel Savings'!$B$4:$B$34)*1000 -> -29000 | R100: =SUMIF('Fuel Savings'!$A$4:$A$34,R$3,'Fuel Savings'!$B$4:$B$34)*1000 -> -28000 | S100: =SUMIF('Fuel Savings'!$A$4:$A$34,S$3,'Fuel Savings'!$B$4:$B$34)*1000 -> -24000 | T100: =SUMIF('Fuel Savings'!$A$4:$A$34,T$3,'Fuel Savings'!$B$4:$B$34)*1000 -> -24000 | U100: =SUMIF('Fuel Savings'!$A$4:$A$34,U$3,'Fuel Savings'!$B$4:$B$34)*1000 -> -23000 | V100: =SUMIF('Fuel Savings'!$A$4:$A$34,V$3,'Fuel Savings'!$B$4:$B$34)*1000 -> -27000 | W100: =SUMIF('Fuel Savings'!$A$4:$A$34,W$3,'Fuel Savings'!$B$4:$B$34)*1000 -> -26000 | X100: =SUMIF('Fuel Savings'!$A$4:$A$34,X$3,'Fuel Savings'!$B$4:$B$34)*1000 -> -18000 | Y100: =SUMIF('Fuel Savings'!$A$4:$A$34,Y$3,'Fuel Savings'!$B$4:$B$34)*1000 -> -19000 | Z100: =SUMIF('Fuel Savings'!$A$4:$A$34,Z$3,'Fuel Savings'!$B$4:$B$34)*1000 -> -20000 | AA100: =SUMIF('Fuel Savings'!$A$4:$A$34,AA$3,'Fuel Savings'!$B$4:$B$34)*1000 -> -22000 | AB100: =SUMIF('Fuel Savings'!$A$4:$A$34,AB$3,'Fuel Savings'!$B$4:$B$34)*1000 -> -21000 | AC100: =SUMIF('Fuel Savings'!$A$4:$A$34,AC$3,'Fuel Savings'!$B$4:$B$34)*1000 -> -20000 | AD100: =SUMIF('Fuel Savings'!$A$4:$A$34,AD$3,'Fuel Savings'!$B$4:$B$34)*1000 -> -19000 | AE100: =SUMIF('Fuel Savings'!$A$4:$A$34,AE$3,'Fuel Savings'!$B$4:$B$34)*1000 -> -19000 | AF100: =SUMIF('Fuel Savings'!$A$4:$A$34,AF$3,'Fuel Savings'!$B$4:$B$34)*1000 -> -11000 | AG100: =SUMIF('Fuel Savings'!$A$4:$A$34,AG$3,'Fuel Savings'!$B$4:$B$34)*1000 -> -16000 | AH100: =SUMIF('Fuel Savings'!$A$4:$A$34,AH$3,'Fuel Savings'!$B$4:$B$34)*1000 -> -11000 | AI100: =SUMIF('Fuel Savings'!$A$4:$A$34,AI$3,'Fuel Savings'!$B$4:$B$34)*1000 -> -7000 | AJ100: =SUMIF('Fuel Savings'!$A$4:$A$34,AJ$3,'Fuel Savings'!$B$4:$B$34)*1000 -> -15000 | AK100: =SUMIF('Fuel Savings'!$A$4:$A$34,AK$3,'Fuel Savings'!$B$4:$B$34)*1000 -> -14000 | AL100: =SUMIF('Fuel Savings'!$A$4:$A$34,AL$3,'Fuel Savings'!$B$4:$B$34)*1000 -> -13000 | AM100: =SUMIF('Fuel Savings'!$A$4:$A$34,AM$3,'Fuel Savings'!$B$4:$B$34)*1000 -> -14000 | AN100: =SUMIF('Fuel Savings'!$A$4:$A$34,AN$3,'Fuel Savings'!$B$4:$B$34)*1000 -> -10000 | AO100: =SUMIF('Fuel Savings'!$A$4:$A$34,AO$3,'Fuel Savings'!$B$4:$B$34)*1000 -> -11000 | AP100: =SUMIF('Fuel Savings'!$A$4:$A$34,AP$3,'Fuel Savings'!$B$4:$B$34)*1000 -> 0 | AQ100: =SUMIF('Fuel Savings'!$A$4:$A$34,AQ$3,'Fuel Savings'!$B$4:$B$34)*1000 -> 0 | AR100: =SUMIF('Fuel Savings'!$A$4:$A$34,AR$3,'Fuel Savings'!$B$4:$B$34)*1000 -> 0 | AS100: =SUMIF('Fuel Savings'!$A$4:$A$34,AS$3,'Fuel Savings'!$B$4:$B$34)*1000 -> 0 | AT100: =SUMIF('Fuel Savings'!$A$4:$A$34,AT$3,'Fuel Savings'!$B$4:$B$34)*1000 -> 0 | AU100: =SUMIF('Fuel Savings'!$A$4:$A$34,AU$3,'Fuel Savings'!$B$4:$B$34)*1000 -> 0 | AV100: =SUMIF('Fuel Savings'!$A$4:$A$34,AV$3,'Fuel Savings'!$B$4:$B$34)*1000 -> 0 | AW100: =SUMIF('Fuel Savings'!$A$4:$A$34,AW$3,'Fuel Savings'!$B$4:$B$34)*1000 -> 0 | AX100: =SUMIF('Fuel Savings'!$A$4:$A$34,AX$3,'Fuel Savings'!$B$4:$B$34)*1000 -> 0 | AY100: =SUMIF('Fuel Savings'!$A$4:$A$34,AY$3,'Fuel Savings'!$B$4:$B$34)*1000 -> 0
B101: 2 | C101: Startup Savings | I101: -106000 | K101: =SUMIF('Fuel Savings'!$A$4:$A$34,K$3,'Fuel Savings'!$C$4:$C$34)*1000 -> 0 | L101: =SUMIF('Fuel Savings'!$A$4:$A$34,L$3,'Fuel Savings'!$C$4:$C$34)*1000 -> 0 | M101: =SUMIF('Fuel Savings'!$A$4:$A$34,M$3,'Fuel Savings'!$C$4:$C$34)*1000 -> -1000 | N101: =SUMIF('Fuel Savings'!$A$4:$A$34,N$3,'Fuel Savings'!$C$4:$C$34)*1000 -> -2000 | O101: =SUMIF('Fuel Savings'!$A$4:$A$34,O$3,'Fuel Savings'!$C$4:$C$34)*1000 -> -3000 | P101: =SUMIF('Fuel Savings'!$A$4:$A$34,P$3,'Fuel Savings'!$C$4:$C$34)*1000 -> -4000 | Q101: =SUMIF('Fuel Savings'!$A$4:$A$34,Q$3,'Fuel Savings'!$C$4:$C$34)*1000 -> -2000 | R101: =SUMIF('Fuel Savings'!$A$4:$A$34,R$3,'Fuel Savings'!$C$4:$C$34)*1000 -> -4000 | S101: =SUMIF('Fuel Savings'!$A$4:$A$34,S$3,'Fuel Savings'!$C$4:$C$34)*1000 -> -3000 | T101: =SUMIF('Fuel Savings'!$A$4:$A$34,T$3,'Fuel Savings'!$C$4:$C$34)*1000 -> -2000 | U101: =SUMIF('Fuel Savings'!$A$4:$A$34,U$3,'Fuel Savings'!$C$4:$C$34)*1000 -> -2000 | V101: =SUMIF('Fuel Savings'!$A$4:$A$34,V$3,'Fuel Savings'!$C$4:$C$34)*1000 -> -5000 | W101: =SUMIF('Fuel Savings'!$A$4:$A$34,W$3,'Fuel Savings'!$C$4:$C$34)*1000 -> -4000 | X101: =SUMIF('Fuel Savings'!$A$4:$A$34,X$3,'Fuel Savings'!$C$4:$C$34)*1000 -> -3000 | Y101: =SUMIF('Fuel Savings'!$A$4:$A$34,Y$3,'Fuel Savings'!$C$4:$C$34)*1000 -> -3000 | Z101: =SUMIF('Fuel Savings'!$A$4:$A$34,Z$3,'Fuel Savings'!$C$4:$C$34)*1000 -> -4000 | AA101: =SUMIF('Fuel Savings'!$A$4:$A$34,AA$3,'Fuel Savings'!$C$4:$C$34)*1000 -> -4000 | AB101: =SUMIF('Fuel Savings'!$A$4:$A$34,AB$3,'Fuel Savings'!$C$4:$C$34)*1000 -> -5000 | AC101: =SUMIF('Fuel Savings'!$A$4:$A$34,AC$3,'Fuel Savings'!$C$4:$C$34)*1000 -> -5000 | AD101: =SUMIF('Fuel Savings'!$A$4:$A$34,AD$3,'Fuel Savings'!$C$4:$C$34)*1000 -> -6000 | AE101: =SUMIF('Fuel Savings'!$A$4:$A$34,AE$3,'Fuel Savings'!$C$4:$C$34)*1000 -> -4000 | AF101: =SUMIF('Fuel Savings'!$A$4:$A$34,AF$3,'Fuel Savings'!$C$4:$C$34)*1000 -> -2000 | AG101: =SUMIF('Fuel Savings'!$A$4:$A$34,AG$3,'Fuel Savings'!$C$4:$C$34)*1000 -> -6000 | AH101: =SUMIF('Fuel Savings'!$A$4:$A$34,AH$3,'Fuel Savings'!$C$4:$C$34)*1000 -> -3000 | AI101: =SUMIF('Fuel Savings'!$A$4:$A$34,AI$3,'Fuel Savings'!$C$4:$C$34)*1000 -> -3000 | AJ101: =SUMIF('Fuel Savings'!$A$4:$A$34,AJ$3,'Fuel Savings'!$C$4:$C$34)*1000 -> -4000 | AK101: =SUMIF('Fuel Savings'!$A$4:$A$34,AK$3,'Fuel Savings'!$C$4:$C$34)*1000 -> -4000 | AL101: =SUMIF('Fuel Savings'!$A$4:$A$34,AL$3,'Fuel Savings'!$C$4:$C$34)*1000 -> -4000 | AM101: =SUMIF('Fuel Savings'!$A$4:$A$34,AM$3,'Fuel Savings'!$C$4:$C$34)*1000 -> -5000 | AN101: =SUMIF('Fuel Savings'!$A$4:$A$34,AN$3,'Fuel Savings'!$C$4:$C$34)*1000 -> -5000 | AO101: =SUMIF('Fuel Savings'!$A$4:$A$34,AO$3,'Fuel Savings'!$C$4:$C$34)*1000 -> -4000 | AP101: =SUMIF('Fuel Savings'!$A$4:$A$34,AP$3,'Fuel Savings'!$C$4:$C$34)*1000 -> 0 | AQ101: =SUMIF('Fuel Savings'!$A$4:$A$34,AQ$3,'Fuel Savings'!$C$4:$C$34)*1000 -> 0 | AR101: =SUMIF('Fuel Savings'!$A$4:$A$34,AR$3,'Fuel Savings'!$C$4:$C$34)*1000 -> 0 | AS101: =SUMIF('Fuel Savings'!$A$4:$A$34,AS$3,'Fuel Savings'!$C$4:$C$34)*1000 -> 0 | AT101: =SUMIF('Fuel Savings'!$A$4:$A$34,AT$3,'Fuel Savings'!$C$4:$C$34)*1000 -> 0 | AU101: =SUMIF('Fuel Savings'!$A$4:$A$34,AU$3,'Fuel Savings'!$C$4:$C$34)*1000 -> 0 | AV101: =SUMIF('Fuel Savings'!$A$4:$A$34,AV$3,'Fuel Savings'!$C$4:$C$34)*1000 -> 0 | AW101: =SUMIF('Fuel Savings'!$A$4:$A$34,AW$3,'Fuel Savings'!$C$4:$C$34)*1000 -> 0 | AX101: =SUMIF('Fuel Savings'!$A$4:$A$34,AX$3,'Fuel Savings'!$C$4:$C$34)*1000 -> 0 | AY101: =SUMIF('Fuel Savings'!$A$4:$A$34,AY$3,'Fuel Savings'!$C$4:$C$34)*1000 -> 0
B102: 3 | C102: Variable O&M Savings | I102: -11000 | K102: =SUMIF('Fuel Savings'!$A$4:$A$34,K$3,'Fuel Savings'!$D$4:$D$34)*1000 -> 0 | L102: =SUMIF('Fuel Savings'!$A$4:$A$34,L$3,'Fuel Savings'!$D$4:$D$34)*1000 -> 0 | M102: =SUMIF('Fuel Savings'!$A$4:$A$34,M$3,'Fuel Savings'!$D$4:$D$34)*1000 -> 0 | N102: =SUMIF('Fuel Savings'!$A$4:$A$34,N$3,'Fuel Savings'!$D$4:$D$34)*1000 -> -1000 | O102: =SUMIF('Fuel Savings'!$A$4:$A$34,O$3,'Fuel Savings'!$D$4:$D$34)*1000 -> 0 | P102: =SUMIF('Fuel Savings'!$A$4:$A$34,P$3,'Fuel Savings'!$D$4:$D$34)*1000 -> 0 | Q102: =SUMIF('Fuel Savings'!$A$4:$A$34,Q$3,'Fuel Savings'!$D$4:$D$34)*1000 -> 0 | R102: =SUMIF('Fuel Savings'!$A$4:$A$34,R$3,'Fuel Savings'!$D$4:$D$34)*1000 -> 0 | S102: =SUMIF('Fuel Savings'!$A$4:$A$34,S$3,'Fuel Savings'!$D$4:$D$34)*1000 -> 0 | T102: =SUMIF('Fuel Savings'!$A$4:$A$34,T$3,'Fuel Savings'!$D$4:$D$34)*1000 -> 0 | U102: =SUMIF('Fuel Savings'!$A$4:$A$34,U$3,'Fuel Savings'!$D$4:$D$34)*1000 -> 0 | V102: =SUMIF('Fuel Savings'!$A$4:$A$34,V$3,'Fuel Savings'!$D$4:$D$34)*1000 -> 0 | W102: =SUMIF('Fuel Savings'!$A$4:$A$34,W$3,'Fuel Savings'!$D$4:$D$34)*1000 -> 0 | X102: =SUMIF('Fuel Savings'!$A$4:$A$34,X$3,'Fuel Savings'!$D$4:$D$34)*1000 -> 0 | Y102: =SUMIF('Fuel Savings'!$A$4:$A$34,Y$3,'Fuel Savings'!$D$4:$D$34)*1000 -> 0 | Z102: =SUMIF('Fuel Savings'!$A$4:$A$34,Z$3,'Fuel Savings'!$D$4:$D$34)*1000 -> 0 | AA102: =SUMIF('Fuel Savings'!$A$4:$A$34,AA$3,'Fuel Savings'!$D$4:$D$34)*1000 -> 0 | AB102: =SUMIF('Fuel Savings'!$A$4:$A$34,AB$3,'Fuel Savings'!$D$4:$D$34)*1000 -> -1000 | AC102: =SUMIF('Fuel Savings'!$A$4:$A$34,AC$3,'Fuel Savings'!$D$4:$D$34)*1000 -> 0 | AD102: =SUMIF('Fuel Savings'!$A$4:$A$34,AD$3,'Fuel Savings'!$D$4:$D$34)*1000 -> 0 | AE102: =SUMIF('Fuel Savings'!$A$4:$A$34,AE$3,'Fuel Savings'!$D$4:$D$34)*1000 -> -1000 | AF102: =SUMIF('Fuel Savings'!$A$4:$A$34,AF$3,'Fuel Savings'!$D$4:$D$34)*1000 -> -1000 | AG102: =SUMIF('Fuel Savings'!$A$4:$A$34,AG$3,'Fuel Savings'!$D$4:$D$34)*1000 -> -1000 | AH102: =SUMIF('Fuel Savings'!$A$4:$A$34,AH$3,'Fuel Savings'!$D$4:$D$34)*1000 -> -1000 | AI102: =SUMIF('Fuel Savings'!$A$4:$A$34,AI$3,'Fuel Savings'!$D$4:$D$34)*1000 -> -1000 | AJ102: =SUMIF('Fuel Savings'!$A$4:$A$34,AJ$3,'Fuel Savings'!$D$4:$D$34)*1000 -> 0 | AK102: =SUMIF('Fuel Savings'!$A$4:$A$34,AK$3,'Fuel Savings'!$D$4:$D$34)*1000 -> -1000 | AL102: =SUMIF('Fuel Savings'!$A$4:$A$34,AL$3,'Fuel Savings'!$D$4:$D$34)*1000 -> 0 | AM102: =SUMIF('Fuel Savings'!$A$4:$A$34,AM$3,'Fuel Savings'!$D$4:$D$34)*1000 -> -1000 | AN102: =SUMIF('Fuel Savings'!$A$4:$A$34,AN$3,'Fuel Savings'!$D$4:$D$34)*1000 -> -1000 | AO102: =SUMIF('Fuel Savings'!$A$4:$A$34,AO$3,'Fuel Savings'!$D$4:$D$34)*1000 -> -1000 | AP102: =SUMIF('Fuel Savings'!$A$4:$A$34,AP$3,'Fuel Savings'!$D$4:$D$34)*1000 -> 0 | AQ102: =SUMIF('Fuel Savings'!$A$4:$A$34,AQ$3,'Fuel Savings'!$D$4:$D$34)*1000 -> 0 | AR102: =SUMIF('Fuel Savings'!$A$4:$A$34,AR$3,'Fuel Savings'!$D$4:$D$34)*1000 -> 0 | AS102: =SUMIF('Fuel Savings'!$A$4:$A$34,AS$3,'Fuel Savings'!$D$4:$D$34)*1000 -> 0 | AT102: =SUMIF('Fuel Savings'!$A$4:$A$34,AT$3,'Fuel Savings'!$D$4:$D$34)*1000 -> 0 | AU102: =SUMIF('Fuel Savings'!$A$4:$A$34,AU$3,'Fuel Savings'!$D$4:$D$34)*1000 -> 0 | AV102: =SUMIF('Fuel Savings'!$A$4:$A$34,AV$3,'Fuel Savings'!$D$4:$D$34)*1000 -> 0 | AW102: =SUMIF('Fuel Savings'!$A$4:$A$34,AW$3,'Fuel Savings'!$D$4:$D$34)*1000 -> 0 | AX102: =SUMIF('Fuel Savings'!$A$4:$A$34,AX$3,'Fuel Savings'!$D$4:$D$34)*1000 -> 0 | AY102: =SUMIF('Fuel Savings'!$A$4:$A$34,AY$3,'Fuel Savings'!$D$4:$D$34)*1000 -> 0
B103: 4 | C103: Emissions Savings | I103: -129078.6849 | K103: =SUMIF('Fuel Savings'!$A$4:$A$34,K$3,'Fuel Savings'!$E$4:$E$34)*1000 -> 0 | L103: =SUMIF('Fuel Savings'!$A$4:$A$34,L$3,'Fuel Savings'!$E$4:$E$34)*1000 -> 141 | M103: =SUMIF('Fuel Savings'!$A$4:$A$34,M$3,'Fuel Savings'!$E$4:$E$34)*1000 -> 23.09852356 | N103: =SUMIF('Fuel Savings'!$A$4:$A$34,N$3,'Fuel Savings'!$E$4:$E$34)*1000 -> -70.46497678 | O103: =SUMIF('Fuel Savings'!$A$4:$A$34,O$3,'Fuel Savings'!$E$4:$E$34)*1000 -> -212.1085497 | P103: =SUMIF('Fuel Savings'!$A$4:$A$34,P$3,'Fuel Savings'!$E$4:$E$34)*1000 -> -144.924648 | Q103: =SUMIF('Fuel Savings'!$A$4:$A$34,Q$3,'Fuel Savings'!$E$4:$E$34)*1000 -> -130.4248904 | R103: =SUMIF('Fuel Savings'!$A$4:$A$34,R$3,'Fuel Savings'!$E$4:$E$34)*1000 -> -139.1987261 | S103: =SUMIF('Fuel Savings'!$A$4:$A$34,S$3,'Fuel Savings'!$E$4:$E$34)*1000 -> -109.5199743 | T103: =SUMIF('Fuel Savings'!$A$4:$A$34,T$3,'Fuel Savings'!$E$4:$E$34)*1000 -> -2478.010862 | U103: =SUMIF('Fuel Savings'!$A$4:$A$34,U$3,'Fuel Savings'!$E$4:$E$34)*1000 -> -2451.940291 | V103: =SUMIF('Fuel Savings'!$A$4:$A$34,V$3,'Fuel Savings'!$E$4:$E$34)*1000 -> -3122.345821 | W103: =SUMIF('Fuel Savings'!$A$4:$A$34,W$3,'Fuel Savings'!$E$4:$E$34)*1000 -> -2527.480898 | X103: =SUMIF('Fuel Savings'!$A$4:$A$34,X$3,'Fuel Savings'!$E$4:$E$34)*1000 -> -2949.783555 | Y103: =SUMIF('Fuel Savings'!$A$4:$A$34,Y$3,'Fuel Savings'!$E$4:$E$34)*1000 -> -1574.433116 | Z103: =SUMIF('Fuel Savings'!$A$4:$A$34,Z$3,'Fuel Savings'!$E$4:$E$34)*1000 -> -3715.137906 | AA103: =SUMIF('Fuel Savings'!$A$4:$A$34,AA$3,'Fuel Savings'!$E$4:$E$34)*1000 -> -3221.176699 | AB103: =SUMIF('Fuel Savings'!$A$4:$A$34,AB$3,'Fuel Savings'!$E$4:$E$34)*1000 -> -4600.503533 | AC103: =SUMIF('Fuel Savings'!$A$4:$A$34,AC$3,'Fuel Savings'!$E$4:$E$34)*1000 -> -4807.566121 | AD103: =SUMIF('Fuel Savings'!$A$4:$A$34,AD$3,'Fuel Savings'!$E$4:$E$34)*1000 -> -404.7454338 | AE103: =SUMIF('Fuel Savings'!$A$4:$A$34,AE$3,'Fuel Savings'!$E$4:$E$34)*1000 -> -3907.546464 | AF103: =SUMIF('Fuel Savings'!$A$4:$A$34,AF$3,'Fuel Savings'!$E$4:$E$34)*1000 -> -8572.910046 | AG103: =SUMIF('Fuel Savings'!$A$4:$A$34,AG$3,'Fuel Savings'!$E$4:$E$34)*1000 -> -4564.954243 | AH103: =SUMIF('Fuel Savings'!$A$4:$A$34,AH$3,'Fuel Savings'!$E$4:$E$34)*1000 -> -7733.11977 | AI103: =SUMIF('Fuel Savings'!$A$4:$A$34,AI$3,'Fuel Savings'!$E$4:$E$34)*1000 -> -9698.93162 | AJ103: =SUMIF('Fuel Savings'!$A$4:$A$34,AJ$3,'Fuel Savings'!$E$4:$E$34)*1000 -> -3687.535967 | AK103: =SUMIF('Fuel Savings'!$A$4:$A$34,AK$3,'Fuel Savings'!$E$4:$E$34)*1000 -> -7613.174697 | AL103: =SUMIF('Fuel Savings'!$A$4:$A$34,AL$3,'Fuel Savings'!$E$4:$E$34)*1000 -> -9297.653085 | AM103: =SUMIF('Fuel Savings'!$A$4:$A$34,AM$3,'Fuel Savings'!$E$4:$E$34)*1000 -> -11151.98348 | AN103: =SUMIF('Fuel Savings'!$A$4:$A$34,AN$3,'Fuel Savings'!$E$4:$E$34)*1000 -> -16686.20807 | AO103: =SUMIF('Fuel Savings'!$A$4:$A$34,AO$3,'Fuel Savings'!$E$4:$E$34)*1000 -> -13669 | AP103: =SUMIF('Fuel Savings'!$A$4:$A$34,AP$3,'Fuel Savings'!$E$4:$E$34)*1000 -> 0 | AQ103: =SUMIF('Fuel Savings'!$A$4:$A$34,AQ$3,'Fuel Savings'!$E$4:$E$34)*1000 -> 0 | AR103: =SUMIF('Fuel Savings'!$A$4:$A$34,AR$3,'Fuel Savings'!$E$4:$E$34)*1000 -> 0 | AS103: =SUMIF('Fuel Savings'!$A$4:$A$34,AS$3,'Fuel Savings'!$E$4:$E$34)*1000 -> 0 | AT103: =SUMIF('Fuel Savings'!$A$4:$A$34,AT$3,'Fuel Savings'!$E$4:$E$34)*1000 -> 0 | AU103: =SUMIF('Fuel Savings'!$A$4:$A$34,AU$3,'Fuel Savings'!$E$4:$E$34)*1000 -> 0 | AV103: =SUMIF('Fuel Savings'!$A$4:$A$34,AV$3,'Fuel Savings'!$E$4:$E$34)*1000 -> 0 | AW103: =SUMIF('Fuel Savings'!$A$4:$A$34,AW$3,'Fuel Savings'!$E$4:$E$34)*1000 -> 0 | AX103: =SUMIF('Fuel Savings'!$A$4:$A$34,AX$3,'Fuel Savings'!$E$4:$E$34)*1000 -> 0 | AY103: =SUMIF('Fuel Savings'!$A$4:$A$34,AY$3,'Fuel Savings'!$E$4:$E$34)*1000 -> 0
B104: 5 | C104: Capacity Savings | I104: -80809.50144 | K104: =-SUMIF('Capacity annual values'!$A$47:$A$77,K$3,'Capacity annual values'!$AH$47:$AH$77) -> 0 | L104: =-SUMIF('Capacity annual values'!$A$47:$A$77,L$3,'Capacity annual values'!$AH$47:$AH$77) -> 0 | M104: =-SUMIF('Capacity annual values'!$A$47:$A$77,M$3,'Capacity annual values'!$AH$47:$AH$77) -> 0 | N104: =-SUMIF('Capacity annual values'!$A$47:$A$77,N$3,'Capacity annual values'!$AH$47:$AH$77) -> 0 | O104: =-SUMIF('Capacity annual values'!$A$47:$A$77,O$3,'Capacity annual values'!$AH$47:$AH$77) -> 0 | P104: =-SUMIF('Capacity annual values'!$A$47:$A$77,P$3,'Capacity annual values'!$AH$47:$AH$77) -> 0 | Q104: =-SUMIF('Capacity annual values'!$A$47:$A$77,Q$3,'Capacity annual values'!$AH$47:$AH$77) -> 0 | R104: =-SUMIF('Capacity annual values'!$A$47:$A$77,R$3,'Capacity annual values'!$AH$47:$AH$77) -> 0 | S104: =-SUMIF('Capacity annual values'!$A$47:$A$77,S$3,'Capacity annual values'!$AH$47:$AH$77) -> 0 | T104: =-SUMIF('Capacity annual values'!$A$47:$A$77,T$3,'Capacity annual values'!$AH$47:$AH$77) -> 0 | U104: =-SUMIF('Capacity annual values'!$A$47:$A$77,U$3,'Capacity annual values'!$AH$47:$AH$77) -> 0 | V104: =-SUMIF('Capacity annual values'!$A$47:$A$77,V$3,'Capacity annual values'!$AH$47:$AH$77) -> 0 | W104: =-SUMIF('Capacity annual values'!$A$47:$A$77,W$3,'Capacity annual values'!$AH$47:$AH$77) -> 0 | X104: =-SUMIF('Capacity annual values'!$A$47:$A$77,X$3,'Capacity annual values'!$AH$47:$AH$77) -> 0 | Y104: =-SUMIF('Capacity annual values'!$A$47:$A$77,Y$3,'Capacity annual values'!$AH$47:$AH$77) -> 0 | Z104: =-SUMIF('Capacity annual values'!$A$47:$A$77,Z$3,'Capacity annual values'!$AH$47:$AH$77) -> 0 | AA104: =-SUMIF('Capacity annual values'!$A$47:$A$77,AA$3,'Capacity annual values'!$AH$47:$AH$77) -> -3434.769361 | AB104: =-SUMIF('Capacity annual values'!$A$47:$A$77,AB$3,'Capacity annual values'!$AH$47:$AH$77) -> -5739.423161 | AC104: =-SUMIF('Capacity annual values'!$A$47:$A$77,AC$3,'Capacity annual values'!$AH$47:$AH$77) -> -5739.788956 | AD104: =-SUMIF('Capacity annual values'!$A$47:$A$77,AD$3,'Capacity annual values'!$AH$47:$AH$77) -> -5714.765552 | AE104: =-SUMIF('Capacity annual values'!$A$47:$A$77,AE$3,'Capacity annual values'!$AH$47:$AH$77) -> -5570.595963 | AF104: =-SUMIF('Capacity annual values'!$A$47:$A$77,AF$3,'Capacity annual values'!$AH$47:$AH$77) -> -5498.30482 | AG104: =-SUMIF('Capacity annual values'!$A$47:$A$77,AG$3,'Capacity annual values'!$AH$47:$AH$77) -> -5269.676421 | AH104: =-SUMIF('Capacity annual values'!$A$47:$A$77,AH$3,'Capacity annual values'!$AH$47:$AH$77) -> -5188.575445 | AI104: =-SUMIF('Capacity annual values'!$A$47:$A$77,AI$3,'Capacity annual values'!$AH$47:$AH$77) -> -5492.506434 | AJ104: =-SUMIF('Capacity annual values'!$A$47:$A$77,AJ$3,'Capacity annual values'!$AH$47:$AH$77) -> -5196.111396 | AK104: =-SUMIF('Capacity annual values'!$A$47:$A$77,AK$3,'Capacity annual values'!$AH$47:$AH$77) -> -5331.567344 | AL104: =-SUMIF('Capacity annual values'!$A$47:$A$77,AL$3,'Capacity annual values'!$AH$47:$AH$77) -> -6303.076393 | AM104: =-SUMIF('Capacity annual values'!$A$47:$A$77,AM$3,'Capacity annual values'!$AH$47:$AH$77) -> -5595.927082 | AN104: =-SUMIF('Capacity annual values'!$A$47:$A$77,AN$3,'Capacity annual values'!$AH$47:$AH$77) -> -5417.04143 | AO104: =-SUMIF('Capacity annual values'!$A$47:$A$77,AO$3,'Capacity annual values'!$AH$47:$AH$77) -> -5317.371681 | AP104: =-SUMIF('Capacity annual values'!$A$47:$A$77,AP$3,'Capacity annual values'!$AH$47:$AH$77) -> 0 | AQ104: =-SUMIF('Capacity annual values'!$A$47:$A$77,AQ$3,'Capacity annual values'!$AH$47:$AH$77) -> 0 | AR104: =-SUMIF('Capacity annual values'!$A$47:$A$77,AR$3,'Capacity annual values'!$AH$47:$AH$77) -> 0 | AS104: =-SUMIF('Capacity annual values'!$A$47:$A$77,AS$3,'Capacity annual values'!$AH$47:$AH$77) -> 0 | AT104: =-SUMIF('Capacity annual values'!$A$47:$A$77,AT$3,'Capacity annual values'!$AH$47:$AH$77) -> 0 | AU104: =-SUMIF('Capacity annual values'!$A$47:$A$77,AU$3,'Capacity annual values'!$AH$47:$AH$77) -> 0 | AV104: =-SUMIF('Capacity annual values'!$A$47:$A$77,AV$3,'Capacity annual values'!$AH$47:$AH$77) -> 0 | AW104: =-SUMIF('Capacity annual values'!$A$47:$A$77,AW$3,'Capacity annual values'!$AH$47:$AH$77) -> 0 | AX104: =-SUMIF('Capacity annual values'!$A$47:$A$77,AX$3,'Capacity annual values'!$AH$47:$AH$77) -> 0 | AY104: =-SUMIF('Capacity annual values'!$A$47:$A$77,AY$3,'Capacity annual values'!$AH$47:$AH$77) -> 0
C105: =C99 -> System Impact Cost / (Savings) | I105: -897888.1864 | K105: =SUM(K100:K104) -> 0 | L105: =SUM(L100:L104) -> 5141 | M105: =SUM(M100:M104) -> -14976.90148 | N105: =SUM(N100:N104) -> -26070.46498 | O105: =SUM(O100:O104) -> -49212.10855 | P105: =SUM(P100:P104) -> -36144.92465 | Q105: =SUM(Q100:Q104) -> -31130.42489 | R105: =SUM(R100:R104) -> -32139.19873 | S105: =SUM(S100:S104) -> -27109.51997 | T105: =SUM(T100:T104) -> -28478.01086 | U105: =SUM(U100:U104) -> -27451.94029 | V105: =SUM(V100:V104) -> -35122.34582 | W105: =SUM(W100:W104) -> -32527.4809 | X105: =SUM(X100:X104) -> -23949.78355 | Y105: =SUM(Y100:Y104) -> -23574.43312 | Z105: =SUM(Z100:Z104) -> -27715.13791 | AA105: =SUM(AA100:AA104) -> -32655.94606 | AB105: =SUM(AB100:AB104) -> -37339.92669 | AC105: =SUM(AC100:AC104) -> -35547.35508 | AD105: =SUM(AD100:AD104) -> -31119.51099 | AE105: =SUM(AE100:AE104) -> -33478.14243 | AF105: =SUM(AF100:AF104) -> -28071.21487 | AG105: =SUM(AG100:AG104) -> -32834.63066 | AH105: =SUM(AH100:AH104) -> -27921.69521 | AI105: =SUM(AI100:AI104) -> -26191.43805 | AJ105: =SUM(AJ100:AJ104) -> -27883.64736 | AK105: =SUM(AK100:AK104) -> -31944.74204 | AL105: =SUM(AL100:AL104) -> -32600.72948 | AM105: =SUM(AM100:AM104) -> -36747.91056 | AN105: =SUM(AN100:AN104) -> -38103.2495 | AO105: =SUM(AO100:AO104) -> -34986.37168 | AP105: =SUM(AP100:AP104) -> 0 | AQ105: =SUM(AQ100:AQ104) -> 0 | AR105: =SUM(AR100:AR104) -> 0 | AS105: =SUM(AS100:AS104) -> 0 | AT105: =SUM(AT100:AT104) -> 0 | AU105: =SUM(AU100:AU104) -> 0 | AV105: =SUM(AV100:AV104) -> 0 | AW105: =SUM(AW100:AW104) -> 0 | AX105: =SUM(AX100:AX104) -> 0 | AY105: 0

Sheet RevReq
B1: REVENUE REQUIREMENT | G1: CPVRR: | H1: =H53 -> -57199.25942
A2: OPC 002100 FPL RC-16 | C2: Period | E2: Input | F2: Input | H2: PV | I2: SUM | K2: 0 | L2: =K2+1 -> 1 | M2: =L2+1 -> 2 | N2: 3 | O2: 4 | P2: 5 | Q2: 6 | R2: 7 | S2: 8 | T2: 9 | U2: 10 | V2: 11 | W2: 12 | X2: 13 | Y2: 14 | Z2: 15 | AA2: 16 | AB2: 17 | AC2: 18 | AD2: 19 | AE2: 20 | AF2: 21 | AG2: 22 | AH2: 23 | AI2: 24 | AJ2: =AI2+1 -> 25 | AK2: =AJ2+1 -> 26 | AL2: =AK2+1 -> 27 | AM2: =AL2+1 -> 28 | AN2: =AM2+1 -> 29 | AO2: =AN2+1 -> 30 | AP2: =AO2+1 -> 31 | AQ2: =AP2+1 -> 32 | AR2: =AQ2+1 -> 33 | AS2: =AR2+1 -> 34 | AT2: =AS2+1 -> 35 | AU2: =AT2+1 -> 36 | AV2: =AU2+1 -> 37 | AW2: =AV2+1 -> 38 | AX2: =AW2+1 -> 39 | AY2: =AX2+1 -> 40 | AZ2: =AY2+1 -> 41 | BA2: =AZ2+1 -> 42 | BB2: =BA2+1 -> 43 | BC2: =BB2+1 -> 44 | BD2: =BC2+1 -> 45 | BE2: =BD2+1 -> 46 | BF2: =BE2+1 -> 47 | BG2: =BF2+1 -> 48 | BH2: =BG2+1 -> 49 | BI2: =BH2+1 -> 50
C3: Year | K3: =Assumptions!$C$7 -> 2014 | L3: =K3+1 -> 2015 | M3: =L3+1 -> 2016 | N3: 2017 | O3: 2018 | P3: 2019 | Q3: 2020 | R3: 2021 | S3: 2022 | T3: 2023 | U3: 2024 | V3: 2025 | W3: 2026 | X3: 2027 | Y3: 2028 | Z3: 2029 | AA3: 2030 | AB3: 2031 | AC3: 2032 | AD3: 2033 | AE3: 2034 | AF3: 2035 | AG3: 2036 | AH3: 2037 | AI3: 2038 | AJ3: 2039 | AK3: 2040 | AL3: 2041 | AM3: 2042 | AN3: 2043 | AO3: 2044 | AP3: 2045 | AQ3: 2046 | AR3: 2047 | AS3: 2048 | AT3: 2049 | AU3: 2050 | AV3: 2051 | AW3: 2052 | AX3: 2053 | AY3: 2054 | AZ3: 2055 | BA3: 2056 | BB3: 2057 | BC3: 2058 | BD3: 2059 | BE3: 2060 | BF3: 2061 | BG3: 2062 | BH3: 2063 | BI3: 2064
C4: Discount Date | E4: =Assumptions!$E$15 -> 2014-12-31 | K4: =DATE(K3,12,31) -> 2014-12-31 | L4: =DATE(L3,6,30) -> 2015-06-30 | M4: 2016-06-30 | N4: 2017-06-30 | O4: 2018-06-30 | P4: 2019-06-30 | Q4: 2020-06-30 | R4: 2021-06-30 | S4: 2022-06-30 | T4: 2023-06-30 | U4: 2024-06-30 | V4: 2025-06-30 | W4: 2026-06-30 | X4: 2027-06-30 | Y4: 2028-06-30 | Z4: 2029-06-30 | AA4: 2030-06-30 | AB4: 2031-06-30 | AC4: 2032-06-30 | AD4: 2033-06-30 | AE4: 2034-06-30 | AF4: 2035-06-30 | AG4: 2036-06-30 | AH4: 2037-06-30 | AI4: 2038-06-30 | AJ4: =DATE(AJ3,6,30) -> 2039-06-30 | AK4: 2040-06-30 | AL4: 2041-06-30 | AM4: 2042-06-30 | AN4: 2043-06-30 | AO4: 2044-06-30 | AP4: 2045-06-30 | AQ4: 2046-06-30 | AR4: 2047-06-30 | AS4: 2048-06-30 | AT4: 2049-06-30 | AU4: 2050-06-30 | AV4: 2051-06-30 | AW4: 2052-06-30 | AX4: 2053-06-30 | AY4: 2054-06-30 | AZ4: 2055-06-30 | BA4: 2056-06-30 | BB4: 2057-06-30 | BC4: 2058-06-30 | BD4: 2059-06-30 | BE4: 2060-06-30 | BF4: 2061-06-30 | BG4: 2062-06-30 | BH4: 2063-06-30 | BI4: 2064-06-30
C5: Discount Factor | E5: =Assumptions!$G$23 -> 0.07535560255 | K5: =(1+$E5)^(($E$4-K$4)/365) -> 1 | L5: =(1+$E5)^(($E$4-L$4)/365) -> 0.9646141207 | M5: 0.8968402042 | N5: 0.833994078 | O5: 0.7755518974 | P5: 0.7212050559 | Q5: 0.6705330927 | R5: 0.6235454497 | S5: 0.5798504682 | T5: 0.539217415 | U5: 0.5013319277 | V5: 0.4662010655 | W5: 0.4335320004 | X5: 0.4031522218 | Y5: 0.3748266931 | Z5: 0.3485606921 | AA5: 0.3241352826 | AB5: 0.301421485 | AC5: 0.2802435713 | AD5: 0.2606054878 | AE5: 0.242343544 | AF5: 0.2253613069 | AG5: 0.2095273915 | AH5: 0.1948447481 | AI5: 0.1811909918 | AJ5: 0.1684940231 | AK5: 0.1566556107 | AL5: 0.1456779602 | AM5: 0.1354695692 | AN5: 0.1259765317 | AO5: 0.1171254038 | AP5: 0.1089178348 | AQ5: 0.1012854116 | AR5: 0.09418783082 | AS5: 0.0875701813 | AT5: 0.08143369606 | AU5: 0.07572722537 | AV5: 0.07042063591 | AW5: 0.06547287267 | AX5: 0.06088485754 | AY5: 0.05661834783 | AZ5: 0.05265081401 | BA5: 0.04895156082 | BB5: 0.04552127752 | BC5: 0.04233137151 | BD5: 0.03936499834 | BE5: 0.03659920832 | BF5: 0.0340345168 | BG5: 0.03164954618 | BH5: 0.0294317025 | BI5: 0.02736382717
B7: RETURN ON RATE BASE
C9: Rate Base, Beginning | K9: =J10 -> 0 | L9: =K10 -> 286056.248 | M9: 285127.5957 | N9: 290997.655 | O9: 287248.2066 | P9: 271663.2348 | Q9: 256711.9487 | R9: 242346.822 | S9: 228438.0117 | T9: 214689.9048 | U9: 188721.6508 | V9: 175480.9005 | W9: 85139.06183 | X9: 62591.73968 | Y9: 40215.5686 | Z9: -10338.27711 | AA9: -102291.2118 | AB9: -162869.7786 | AC9: -192326.3785 | AD9: -190036.4642 | AE9: -204323.9861 | AF9: -200514.2438 | AG9: -196035.0301 | AH9: -207415.5067 | AI9: -197194.2506 | AJ9: =AI10 -> -185494.192 | AK9: =AJ10 -> -172388.9558 | AL9: =AK10 -> -157651.097 | AM9: =AL10 -> -141372.3663 | AN9: =AM10 -> -124711.8589 | AO9: =AN10 -> -108184.723 | AP9: =AO10 -> -91769.62991 | AQ9: =AP10 -> -76035.42471 | AR9: =AQ10 -> -61099.08746 | AS9: =AR10 -> -46889.66876 | AT9: =AS10 -> -33448.12837 | AU9: =AT10 -> -22717.98911 | AV9: =AU10 -> -14518.25372 | AW9: =AV10 -> -8917.658337 | AX9: =AW10 -> -4807.179143 | AY9: =AX10 -> -1888.481632 | AZ9: =AY10 -> -590.5551572 | BA9: =AZ10 -> -155.3132265 | BB9: =BA10 -> -3.705480367e-11 | BC9: =BB10 -> -3.705480367e-11 | BD9: =BC10 -> -3.705480367e-11 | BE9: =BD10 -> -3.705480367e-11 | BF9: =BE10 -> -3.705480367e-11 | BG9: =BF10 -> -3.705480367e-11 | BH9: =BG10 -> -3.705480367e-11 | BI9: =BH10 -> -3.705480367e-11
C10: Rate Base, Ending | K10: =Capital!M171 -> 286056.248 | L10: =Capital!N171 -> 285127.5957 | M10: =Capital!O171 -> 290997.655 | N10: =Capital!P171 -> 287248.2066 | O10: =Capital!Q171 -> 271663.2348 | P10: =Capital!R171 -> 256711.9487 | Q10: =Capital!S171 -> 242346.822 | R10: =Capital!T171 -> 228438.0117 | S10: =Capital!U171 -> 214689.9048 | T10: =Capital!V171 -> 188721.6508 | U10: =Capital!W171 -> 175480.9005 | V10: =Capital!X171 -> 85139.06183 | W10: =Capital!Y171 -> 62591.73968 | X10: =Capital!Z171 -> 40215.5686 | Y10: =Capital!AA171 -> -10338.27711 | Z10: =Capital!AB171 -> -102291.2118 | AA10: =Capital!AC171 -> -162869.7786 | AB10: =Capital!AD171 -> -192326.3785 | AC10: =Capital!AE171 -> -190036.4642 | AD10: =Capital!AF171 -> -204323.9861 | AE10: =Capital!AG171 -> -200514.2438 | AF10: =Capital!AH171 -> -196035.0301 | AG10: =Capital!AI171 -> -207415.5067 | AH10: =Capital!AJ171 -> -197194.2506 | AI10: =Capital!AK171 -> -185494.192 | AJ10: =Capital!AL171 -> -172388.9558 | AK10: =Capital!AM171 -> -157651.097 | AL10: =Capital!AN171 -> -141372.3663 | AM10: =Capital!AO171 -> -124711.8589 | AN10: =Capital!AP171 -> -108184.723 | AO10: =Capital!AQ171 -> -91769.62991 | AP10: =Capital!AR171 -> -76035.42471 | AQ10: =Capital!AS171 -> -61099.08746 | AR10: =Capital!AT171 -> -46889.66876 | AS10: =Capital!AU171 -> -33448.12837 | AT10: =Capital!AV171 -> -22717.98911 | AU10: =Capital!AW171 -> -14518.25372 | AV10: =Capital!AX171 -> -8917.658337 | AW10: =Capital!AY171 -> -4807.179143 | AX10: =Capital!AZ171 -> -1888.481632 | AY10: =Capital!BA171 -> -590.5551572 | AZ10: =Capital!BB171 -> -155.3132265 | BA10: =Capital!BC171 -> -3.705480367e-11 | BB10: =Capital!BD171 -> -3.705480367e-11 | BC10: =Capital!BE171 -> -3.705480367e-11 | BD10: =Capital!BF171 -> -3.705480367e-11 | BE10: =Capital!BG171 -> -3.705480367e-11 | BF10: =Capital!BH171 -> -3.705480367e-11 | BG10: =Capital!BI171 -> -3.705480367e-11 | BH10: =Capital!BJ171 -> -3.705480367e-11 | BI10: =Capital!BK171 -> -3.705480367e-11
C11: Rate Base, Average | K11: =Capital!M185 -> 17346.58434 | L11: =Capital!N185 -> 285591.9218 | M11: =Capital!O185 -> 288062.6253 | N11: =Capital!P185 -> 289122.9308 | O11: =Capital!Q185 -> 279455.7207 | P11: =Capital!R185 -> 264187.5918 | Q11: =Capital!S185 -> 249529.3854 | R11: =Capital!T185 -> 235392.4169 | S11: =Capital!U185 -> 221563.9583 | T11: =Capital!V185 -> 201705.7778 | U11: =Capital!W185 -> 182101.2756 | V11: =Capital!X185 -> 130309.9812 | W11: =Capital!Y185 -> 73865.40075 | X11: =Capital!Z185 -> 51403.65414 | Y11: =Capital!AA185 -> 14938.64575 | Z11: =Capital!AB185 -> -56314.74447 | AA11: =Capital!AC185 -> -132580.4952 | AB11: =Capital!AD185 -> -177598.0786 | AC11: =Capital!AE185 -> -191181.4213 | AD11: =Capital!AF185 -> -197180.2251 | AE11: =Capital!AG185 -> -202419.1149 | AF11: =Capital!AH185 -> -198274.6369 | AG11: =Capital!AI185 -> -201725.2684 | AH11: =Capital!AJ185 -> -202304.8786 | AI11: =Capital!AK185 -> -191344.2213 | AJ11: =Capital!AL185 -> -178941.5739 | AK11: =Capital!AM185 -> -165020.0264 | AL11: =Capital!AN185 -> -149511.7317 | AM11: =Capital!AO185 -> -133042.1126 | AN11: =Capital!AP185 -> -116448.291 | AO11: =Capital!AQ185 -> -99977.17646 | AP11: =Capital!AR185 -> -83902.52731 | AQ11: =Capital!AS185 -> -68567.25608 | AR11: =Capital!AT185 -> -53994.37811 | AS11: =Capital!AU185 -> -40168.89857 | AT11: =Capital!AV185 -> -28083.05874 | AU11: =Capital!AW185 -> -18618.12141 | AV11: =Capital!AX185 -> -11717.95603 | AW11: =Capital!AY185 -> -6862.41874 | AX11: =Capital!AZ185 -> -3347.830388 | AY11: =Capital!BA185 -> -1239.518395 | AZ11: =Capital!BB185 -> -372.9341919 | BA11: =Capital!BC185 -> -77.65661326 | BB11: =Capital!BD185 -> -3.705480367e-11 | BC11: =Capital!BE185 -> -3.705480367e-11 | BD11: =Capital!BF185 -> -3.705480367e-11 | BE11: =Capital!BG185 -> -3.705480367e-11 | BF11: =Capital!BH185 -> -3.705480367e-11 | BG11: =Capital!BI185 -> -3.705480367e-11 | BH11: =Capital!BJ185 -> -3.705480367e-11 | BI11: =Capital!BK185 -> -3.705480367e-11
C13: Debt Ratio | E13: =Assumptions!$C$20 -> 0.4038 | K13: =$E13 -> 0.4038 | L13: =$E13 -> 0.4038 | M13: 0.4038 | N13: 0.4038 | O13: 0.4038 | P13: 0.4038 | Q13: 0.4038 | R13: 0.4038 | S13: 0.4038 | T13: 0.4038 | U13: 0.4038 | V13: 0.4038 | W13: 0.4038 | X13: 0.4038 | Y13: 0.4038 | Z13: 0.4038 | AA13: 0.4038 | AB13: 0.4038 | AC13: 0.4038 | AD13: 0.4038 | AE13: 0.4038 | AF13: 0.4038 | AG13: 0.4038 | AH13: 0.4038 | AI13: 0.4038 | AJ13: 0.4038 | AK13: 0.4038 | AL13: 0.4038 | AM13: 0.4038 | AN13: 0.4038 | AO13: 0.4038 | AP13: 0.4038 | AQ13: 0.4038 | AR13: 0.4038 | AS13: 0.4038 | AT13: 0.4038 | AU13: 0.4038 | AV13: 0.4038 | AW13: 0.4038 | AX13: 0.4038 | AY13: 0.4038 | AZ13: 0.4038 | BA13: 0.4038 | BB13: 0.4038 | BC13: 0.4038 | BD13: 0.4038 | BE13: 0.4038 | BF13: 0.4038 | BG13: 0.4038 | BH13: 0.4038 | BI13: 0.4038
C14: Debt Portion of Rate Base | K14: =K11*K13 -> 7004.550755 | L14: =L11*L13 -> 115322.018 | M14: 116319.6881 | N14: 116747.8395 | O14: 112844.22 | P14: 106678.9496 | Q14: 100759.9658 | R14: 95051.45794 | S14: 89467.52635 | T14: 81448.79306 | U14: 73532.4951 | V14: 52619.17039 | W14: 29826.84882 | X14: 20756.79554 | Y14: 6032.225152 | Z14: -22739.89382 | AA14: -53536.00398 | AB14: -71714.10412 | AC14: -77199.05793 | AD14: -79621.37491 | AE14: -81736.83861 | AF14: -80063.29838 | AG14: -81456.66337 | AH14: -81690.70999 | AI14: -77264.79655 | AJ14: =AJ11*AJ13 -> -72256.60753 | AK14: -66635.08666 | AL14: -60372.83724 | AM14: -53722.40507 | AN14: -47021.8199 | AO14: -40370.78386 | AP14: -33879.84053 | AQ14: -27687.45801 | AR14: -21802.92988 | AS14: -16220.20124 | AT14: -11339.93912 | AU14: -7517.997427 | AV14: -4731.710643 | AW14: -2771.044687 | AX14: -1351.853911 | AY14: -500.5175278 | AZ14: -150.5908267 | BA14: -31.35774044 | BB14: -1.496272972e-11 | BC14: -1.496272972e-11 | BD14: -1.496272972e-11 | BE14: -1.496272972e-11 | BF14: -1.496272972e-11 | BG14: -1.496272972e-11 | BH14: -1.496272972e-11 | BI14: -1.496272972e-11
C15: Cost of Debt | E15: =Assumptions!$D$20 -> 0.05142276797 | K15: =$E15 -> 0.05142276797 | L15: =$E15 -> 0.05142276797 | M15: 0.05142276797 | N15: 0.05142276797 | O15: 0.05142276797 | P15: 0.05142276797 | Q15: 0.05142276797 | R15: 0.05142276797 | S15: 0.05142276797 | T15: 0.05142276797 | U15: 0.05142276797 | V15: 0.05142276797 | W15: 0.05142276797 | X15: 0.05142276797 | Y15: 0.05142276797 | Z15: 0.05142276797 | AA15: 0.05142276797 | AB15: 0.05142276797 | AC15: 0.05142276797 | AD15: 0.05142276797 | AE15: 0.05142276797 | AF15: 0.05142276797 | AG15: 0.05142276797 | AH15: 0.05142276797 | AI15: 0.05142276797 | AJ15: 0.05142276797 | AK15: 0.05142276797 | AL15: 0.05142276797 | AM15: 0.05142276797 | AN15: 0.05142276797 | AO15: 0.05142276797 | AP15: 0.05142276797 | AQ15: 0.05142276797 | AR15: 0.05142276797 | AS15: 0.05142276797 | AT15: 0.05142276797 | AU15: 0.05142276797 | AV15: 0.05142276797 | AW15: 0.05142276797 | AX15: 0.05142276797 | AY15: 0.05142276797 | AZ15: 0.05142276797 | BA15: 0.05142276797 | BB15: 0.05142276797 | BC15: 0.05142276797 | BD15: 0.05142276797 | BE15: 0.05142276797 | BF15: 0.05142276797 | BG15: 0.05142276797 | BH15: 0.05142276797 | BI15: 0.05142276797
C16: Interest Expense | H16: =SUMPRODUCT(K16:BI16,$K$5:$BI$5) -> 28612.70126 | I16: =SUM(K16:BI16) -> -2621.28482 | K16: =K14*K15 -> 360.1933883 | L16: =L14*L15 -> 5930.177376 | M16: 5981.480332 | N16: 6003.49706 | O16: 5802.762143 | P16: 5485.726871 | Q16: 5181.356343 | R16: 4887.809067 | S16: 4600.667849 | T16: 4188.322387 | U16: 3781.244434 | V16: 2705.82339 | W16: 1533.779127 | X16: 1067.371881 | Y16: 310.1937144 | Z16: -1169.348284 | AA16: -2752.969511 | AB16: -3687.737737 | AC16: -3969.789244 | AD16: -4094.351488 | AE16: -4203.134487 | AF16: -4117.076416 | AG16: -4188.7271 | AH16: -4200.762425 | AI16: -3973.169705 | AJ16: =AJ14*AJ15 -> -3715.634763 | AK16: -3426.5606 | AL16: -3104.538402 | AM16: -2762.554771 | AN16: -2417.992134 | AO16: -2075.977451 | AP16: -1742.195178 | AQ16: -1423.765729 | AR16: -1121.167004 | AS16: -834.0876449 | AT16: -583.1310582 | AU16: -386.5962373 | AV16: -243.3176585 | AW16: -142.494788 | AX16: -69.51606998 | AY16: -25.7379967 | AZ16: -7.743797139 | BA16: -1.612501811 | BB16: -7.694249788e-13 | BC16: -7.694249788e-13 | BD16: -7.694249788e-13 | BE16: -7.694249788e-13 | BF16: -7.694249788e-13 | BG16: -7.694249788e-13 | BH16: -7.694249788e-13 | BI16: -7.694249788e-13
C19: Equity Ratio | E19: =Assumptions!$C$22 -> 0.5962 | K19: =$E19 -> 0.5962 | L19: =$E19 -> 0.5962 | M19: 0.5962 | N19: 0.5962 | O19: 0.5962 | P19: 0.5962 | Q19: 0.5962 | R19: 0.5962 | S19: 0.5962 | T19: 0.5962 | U19: 0.5962 | V19: 0.5962 | W19: 0.5962 | X19: 0.5962 | Y19: 0.5962 | Z19: 0.5962 | AA19: 0.5962 | AB19: 0.5962 | AC19: 0.5962 | AD19: 0.5962 | AE19: 0.5962 | AF19: 0.5962 | AG19: 0.5962 | AH19: 0.5962 | AI19: 0.5962 | AJ19: 0.5962 | AK19: 0.5962 | AL19: 0.5962 | AM19: 0.5962 | AN19: 0.5962 | AO19: 0.5962 | AP19: 0.5962 | AQ19: 0.5962 | AR19: 0.5962 | AS19: 0.5962 | AT19: 0.5962 | AU19: 0.5962 | AV19: 0.5962 | AW19: 0.5962 | AX19: 0.5962 | AY19: 0.5962 | AZ19: 0.5962 | BA19: 0.5962 | BB19: 0.5962 | BC19: 0.5962 | BD19: 0.5962 | BE19: 0.5962 | BF19: 0.5962 | BG19: 0.5962 | BH19: 0.5962 | BI19: 0.5962
C20: Equity Portion of Rate Base | K20: =K11*K19 -> 10342.03358 | L20: =L11*L19 -> 170269.9038 | M20: 171742.9372 | N20: 172375.0913 | O20: 166611.5007 | P20: 157508.6422 | Q20: 148769.4196 | R20: 140340.9589 | S20: 132096.4319 | T20: 120256.9847 | U20: 108568.7805 | V20: 77690.81077 | W20: 44038.55193 | X20: 30646.8586 | Y20: 8906.420594 | Z20: -33574.85065 | AA20: -79044.49126 | AB20: -105883.9744 | AC20: -113982.3634 | AD20: -117558.8502 | AE20: -120682.2763 | AF20: -118211.3385 | AG20: -120268.605 | AH20: -120614.1686 | AI20: -114079.4247 | AJ20: =AJ11*AJ19 -> -106684.9663 | AK20: -98384.93974 | AL20: -89138.89441 | AM20: -79319.70753 | AN20: -69426.47108 | AO20: -59606.39261 | AP20: -50022.68678 | AQ20: -40879.79808 | AR20: -32191.44823 | AS20: -23948.69733 | AT20: -16743.11962 | AU20: -11100.12399 | AV20: -6986.245383 | AW20: -4091.374053 | AX20: -1995.976477 | AY20: -739.0008669 | AZ20: -222.3433652 | BA20: -46.29887283 | BB20: -2.209207395e-11 | BC20: -2.209207395e-11 | BD20: -2.209207395e-11 | BE20: -2.209207395e-11 | BF20: -2.209207395e-11 | BG20: -2.209207395e-11 | BH20: -2.209207395e-11 | BI20: -2.209207395e-11
C21: After-Tax Return on Equity | E21: =Assumptions!$D$22 -> 0.105 | K21: =$E21 -> 0.105 | L21: =$E21 -> 0.105 | M21: 0.105 | N21: 0.105 | O21: 0.105 | P21: 0.105 | Q21: 0.105 | R21: 0.105 | S21: 0.105 | T21: 0.105 | U21: 0.105 | V21: 0.105 | W21: 0.105 | X21: 0.105 | Y21: 0.105 | Z21: 0.105 | AA21: 0.105 | AB21: 0.105 | AC21: 0.105 | AD21: 0.105 | AE21: 0.105 | AF21: 0.105 | AG21: 0.105 | AH21: 0.105 | AI21: 0.105 | AJ21: 0.105 | AK21: 0.105 | AL21: 0.105 | AM21: 0.105 | AN21: 0.105 | AO21: 0.105 | AP21: 0.105 | AQ21: 0.105 | AR21: 0.105 | AS21: 0.105 | AT21: 0.105 | AU21: 0.105 | AV21: 0.105 | AW21: 0.105 | AX21: 0.105 | AY21: 0.105 | AZ21: 0.105 | BA21: 0.105 | BB21: 0.105 | BC21: 0.105 | BD21: 0.105 | BE21: 0.105 | BF21: 0.105 | BG21: 0.105 | BH21: 0.105 | BI21: 0.105
C22: After-Tax Earnings | H22: =SUMPRODUCT(K22:BI22,$K$5:$BI$5) -> 86261.7703 | I22: =SUM(K22:BI22) -> -7902.667662 | K22: =K20*K21 -> 1085.913526 | L22: =L20*L21 -> 17878.3399 | M22: =M20*M21 -> 18033.00841 | N22: =N20*N21 -> 18099.38459 | O22: =O20*O21 -> 17494.20757 | P22: =P20*P21 -> 16538.40743 | Q22: =Q20*Q21 -> 15620.78905 | R22: =R20*R21 -> 14735.80069 | S22: =S20*S21 -> 13870.12535 | T22: =T20*T21 -> 12626.98339 | U22: =U20*U21 -> 11399.72196 | V22: =V20*V21 -> 8157.535131 | W22: =W20*W21 -> 4624.047953 | X22: =X20*X21 -> 3217.920153 | Y22: =Y20*Y21 -> 935.1741624 | Z22: =Z20*Z21 -> -3525.359319 | AA22: =AA20*AA21 -> -8299.671582 | AB22: =AB20*AB21 -> -11117.81732 | AC22: =AC20*AC21 -> -11968.14816 | AD22: =AD20*AD21 -> -12343.67927 | AE22: =AE20*AE21 -> -12671.63901 | AF22: =AF20*AF21 -> -12412.19055 | AG22: =AG20*AG21 -> -12628.20353 | AH22: =AH20*AH21 -> -12664.48771 | AI22: =AI20*AI21 -> -11978.3396 | AJ22: -11201.92147 | AK22: -10330.41867 | AL22: -9359.583914 | AM22: -8328.569291 | AN22: -7289.779463 | AO22: -6258.671224 | AP22: -5252.382112 | AQ22: -4292.378798 | AR22: -3380.102064 | AS22: -2514.613219 | AT22: -1758.02756 | AU22: -1165.513019 | AV22: -733.5557652 | AW22: -429.5942756 | AX22: -209.5775301 | AY22: -77.59509103 | AZ22: -23.34605334 | BA22: -4.861381647 | BB22: -2.319667765e-12 | BC22: -2.319667765e-12 | BD22: -2.319667765e-12 | BE22: -2.319667765e-12 | BF22: -2.319667765e-12 | BG22: -2.319667765e-12 | BH22: -2.319667765e-12 | BI22: -2.319667765e-12
C23: Income Tax | E23: =Tax_Rate -> 0.38575 | H23: =SUMPRODUCT(K23:BI23,$K$5:$BI$5) -> 54172.53218 | I23: =SUM(K23:BI23) -> -4962.888157 | K23: =K22*(1/(1-$E23)-1) -> 681.9554622 | L23: =L22*(1/(1-$E23)-1) -> 11227.62656 | M23: 11324.75864 | N23: 11366.44299 | O23: 10986.39084 | P23: 10386.14679 | Q23: 9809.880956 | R23: 9254.106823 | S23: 8710.461301 | T23: 7929.766128 | U23: 7159.043947 | V23: 5122.945343 | W23: 2903.909642 | X23: 2020.859095 | Y23: 587.2908964 | Z23: -2213.931391 | AA23: -5212.207265 | AB23: -6982.007374 | AC23: -7516.016526 | AD23: -7751.850679 | AE23: -7957.80993 | AF23: -7794.875869 | AG23: -7930.532373 | AH23: -7953.318898 | AI23: -7522.416767 | AJ23: =AJ22*(1/(1-$E23)-1) -> -7034.824917 | AK23: -6487.519744 | AL23: -5877.833935 | AM23: -5230.355074 | AN23: -4577.993371 | AO23: -3930.455718 | AP23: -3298.504517 | AQ23: -2695.620873 | AR23: -2122.709599 | AS23: -1579.181195 | AT23: -1104.04417 | AU23: -731.9440731 | AV23: -460.6742148 | AW23: -269.7859044 | AX23: -131.6150301 | AY23: -48.72984349 | AZ23: -14.66135951 | BA23: -3.052955589 | BB23: -1.456755133e-12 | BC23: -1.456755133e-12 | BD23: -1.456755133e-12 | BE23: -1.456755133e-12 | BF23: -1.456755133e-12 | BG23: -1.456755133e-12 | BH23: -1.456755133e-12 | BI23: -1.456755133e-12
C24: Pre-Tax Income | H24: =SUMPRODUCT(K24:BI24,$K$5:$BI$5) -> 140434.3025 | I24: =SUM(K24:BI24) -> -12865.55582 | K24: =K22+K23 -> 1767.868988 | L24: =L22+L23 -> 29105.96646 | M24: 29357.76705 | N24: 29465.82758 | O24: 28480.59841 | P24: 26924.55422 | Q24: 25430.67001 | R24: 23989.90751 | S24: 22580.58665 | T24: 20556.74952 | U24: 18558.7659 | V24: 13280.48047 | W24: 7527.957595 | X24: 5238.779248 | Y24: 1522.465059 | Z24: -5739.29071 | AA24: -13511.87885 | AB24: -18099.82469 | AC24: -19484.16468 | AD24: -20095.52995 | AE24: -20629.44894 | AF24: -20207.06641 | AG24: -20558.7359 | AH24: -20617.8066 | AI24: -19500.75636 | AJ24: =AJ22+AJ23 -> -18236.74638 | AK24: -16817.93842 | AL24: -15237.41785 | AM24: -13558.92436 | AN24: -11867.77283 | AO24: -10189.12694 | AP24: -8550.886629 | AQ24: -6987.999671 | AR24: -5502.811663 | AS24: -4093.794415 | AT24: -2862.07173 | AU24: -1897.457092 | AV24: -1194.22998 | AW24: -699.38018 | AX24: -341.1925602 | AY24: -126.3249345 | AZ24: -38.00741285 | BA24: -7.914337235 | BB24: -3.776422897e-12 | BC24: -3.776422897e-12 | BD24: -3.776422897e-12 | BE24: -3.776422897e-12 | BF24: -3.776422897e-12 | BG24: -3.776422897e-12 | BH24: -3.776422897e-12 | BI24: -3.776422897e-12
B28: REVENUE REQUIREMENT -- ASSUMING PERFECT RATE-MAKING
C30: CPVRR Horizon | E30: 30 | I30: =SUM(K30:BI30) -> 31 | K30: =IF(K$2<=$E30,1,0) -> 1 | L30: =IF(L$2<=$E30,1,0) -> 1 | M30: 1 | N30: 1 | O30: 1 | P30: 1 | Q30: 1 | R30: 1 | S30: 1 | T30: 1 | U30: 1 | V30: 1 | W30: 1 | X30: 1 | Y30: 1 | Z30: 1 | AA30: 1 | AB30: 1 | AC30: 1 | AD30: 1 | AE30: 1 | AF30: 1 | AG30: 1 | AH30: 1 | AI30: 1 | AJ30: 1 | AK30: 1 | AL30: 1 | AM30: 1 | AN30: 1 | AO30: 1 | AP30: 0 | AQ30: 0 | AR30: 0 | AS30: 0 | AT30: 0 | AU30: 0 | AV30: 0 | AW30: 0 | AX30: 0 | AY30: 0 | AZ30: 0 | BA30: 0 | BB30: 0 | BC30: 0 | BD30: 0 | BE30: 0 | BF30: 0 | BG30: 0 | BH30: 0 | BI30: 0
C32: =Input!C88 -> … | H32: =SUMPRODUCT(K32:BI32,$K$5:$BI$5,$K$30:$BI$30) -> 0 | I32: 0 | K32: =Input!K88 -> 0 | L32: =Input!L88 -> 0 | M32: =Input!M88 -> 0 | N32: =Input!N88 -> 0 | O32: =Input!O88 -> 0 | P32: =Input!P88 -> 0 | Q32: =Input!Q88 -> 0 | R32: =Input!R88 -> 0 | S32: =Input!S88 -> 0 | T32: =Input!T88 -> 0 | U32: =Input!U88 -> 0 | V32: =Input!V88 -> 0 | W32: =Input!W88 -> 0 | X32: =Input!X88 -> 0 | Y32: =Input!Y88 -> 0 | Z32: =Input!Z88 -> 0 | AA32: =Input!AA88 -> 0 | AB32: =Input!AB88 -> 0 | AC32: =Input!AC88 -> 0 | AD32: =Input!AD88 -> 0 | AE32: =Input!AE88 -> 0 | AF32: =Input!AF88 -> 0 | AG32: =Input!AG88 -> 0 | AH32: =Input!AH88 -> 0 | AI32: =Input!AI88 -> 0 | AJ32: =Input!AJ88 -> 0 | AK32: =Input!AK88 -> 0 | AL32: =Input!AL88 -> 0 | AM32: =Input!AM88 -> 0 | AN32: =Input!AN88 -> 0 | AO32: =Input!AO88 -> 0 | AP32: =Input!AP88 -> 0 | AQ32: =Input!AQ88 -> 0 | AR32: =Input!AR88 -> 0 | AS32: =Input!AS88 -> 0 | AT32: =Input!AT88 -> 0 | AU32: =Input!AU88 -> 0 | AV32: =Input!AV88 -> 0 | AW32: =Input!AW88 -> 0 | AX32: =Input!AX88 -> 0 | AY32: =Input!AY88 -> 0 | AZ32: =Input!AZ88 -> 0 | BA32: =Input!BA88 -> 0 | BB32: =Input!BB88 -> 0 | BC32: =Input!BC88 -> 0 | BD32: =Input!BD88 -> 0 | BE32: =Input!BE88 -> 0 | BF32: =Input!BF88 -> 0 | BG32: =Input!BG88 -> 0 | BH32: =Input!BH88 -> 0 | BI32: =Input!BI88 -> 0
C33: =Input!C89 -> … | H33: 0 | I33: =SUM(K33:BI33) -> 0 | K33: =Input!K89 -> 0 | L33: =Input!L89 -> 0 | M33: =Input!M89 -> 0 | N33: =Input!N89 -> 0 | O33: =Input!O89 -> 0 | P33: =Input!P89 -> 0 | Q33: =Input!Q89 -> 0 | R33: =Input!R89 -> 0 | S33: =Input!S89 -> 0 | T33: =Input!T89 -> 0 | U33: =Input!U89 -> 0 | V33: =Input!V89 -> 0 | W33: =Input!W89 -> 0 | X33: =Input!X89 -> 0 | Y33: =Input!Y89 -> 0 | Z33: =Input!Z89 -> 0 | AA33: =Input!AA89 -> 0 | AB33: =Input!AB89 -> 0 | AC33: =Input!AC89 -> 0 | AD33: =Input!AD89 -> 0 | AE33: =Input!AE89 -> 0 | AF33: =Input!AF89 -> 0 | AG33: =Input!AG89 -> 0 | AH33: =Input!AH89 -> 0 | AI33: =Input!AI89 -> 0 | AJ33: =Input!AJ89 -> 0 | AK33: =Input!AK89 -> 0 | AL33: =Input!AL89 -> 0 | AM33: =Input!AM89 -> 0 | AN33: =Input!AN89 -> 0 | AO33: =Input!AO89 -> 0 | AP33: =Input!AP89 -> 0 | AQ33: =Input!AQ89 -> 0 | AR33: =Input!AR89 -> 0 | AS33: =Input!AS89 -> 0 | AT33: =Input!AT89 -> 0 | AU33: =Input!AU89 -> 0 | AV33: =Input!AV89 -> 0 | AW33: =Input!AW89 -> 0 | AX33: =Input!AX89 -> 0 | AY33: =Input!AY89 -> 0 | AZ33: =Input!AZ89 -> 0 | BA33: =Input!BA89 -> 0 | BB33: =Input!BB89 -> 0 | BC33: =Input!BC89 -> 0 | BD33: =Input!BD89 -> 0 | BE33: =Input!BE89 -> 0 | BF33: =Input!BF89 -> 0 | BG33: =Input!BG89 -> 0 | BH33: =Input!BH89 -> 0 | BI33: =Input!BI89 -> 0
C34: =Input!C90 -> … | H34: 0 | I34: 0 | K34: =Input!K90 -> 0 | L34: =Input!L90 -> 0 | M34: =Input!M90 -> 0 | N34: =Input!N90 -> 0 | O34: =Input!O90 -> 0 | P34: =Input!P90 -> 0 | Q34: =Input!Q90 -> 0 | R34: =Input!R90 -> 0 | S34: =Input!S90 -> 0 | T34: =Input!T90 -> 0 | U34: =Input!U90 -> 0 | V34: =Input!V90 -> 0 | W34: =Input!W90 -> 0 | X34: =Input!X90 -> 0 | Y34: =Input!Y90 -> 0 | Z34: =Input!Z90 -> 0 | AA34: =Input!AA90 -> 0 | AB34: =Input!AB90 -> 0 | AC34: =Input!AC90 -> 0 | AD34: =Input!AD90 -> 0 | AE34: =Input!AE90 -> 0 | AF34: =Input!AF90 -> 0 | AG34: =Input!AG90 -> 0 | AH34: =Input!AH90 -> 0 | AI34: =Input!AI90 -> 0 | AJ34: =Input!AJ90 -> 0 | AK34: =Input!AK90 -> 0 | AL34: =Input!AL90 -> 0 | AM34: =Input!AM90 -> 0 | AN34: =Input!AN90 -> 0 | AO34: =Input!AO90 -> 0 | AP34: =Input!AP90 -> 0 | AQ34: =Input!AQ90 -> 0 | AR34: =Input!AR90 -> 0 | AS34: =Input!AS90 -> 0 | AT34: =Input!AT90 -> 0 | AU34: =Input!AU90 -> 0 | AV34: =Input!AV90 -> 0 | AW34: =Input!AW90 -> 0 | AX34: =Input!AX90 -> 0 | AY34: =Input!AY90 -> 0 | AZ34: =Input!AZ90 -> 0 | BA34: =Input!BA90 -> 0 | BB34: =Input!BB90 -> 0 | BC34: =Input!BC90 -> 0 | BD34: =Input!BD90 -> 0 | BE34: =Input!BE90 -> 0 | BF34: =Input!BF90 -> 0 | BG34: =Input!BG90 -> 0 | BH34: =Input!BH90 -> 0 | BI34: =Input!BI90 -> 0
C35: =Input!C91 -> … | H35: 0 | I35: 0 | K35: =Input!K91 -> 0 | L35: =Input!L91 -> 0 | M35: =Input!M91 -> 0 | N35: =Input!N91 -> 0 | O35: =Input!O91 -> 0 | P35: =Input!P91 -> 0 | Q35: =Input!Q91 -> 0 | R35: =Input!R91 -> 0 | S35: =Input!S91 -> 0 | T35: =Input!T91 -> 0 | U35: =Input!U91 -> 0 | V35: =Input!V91 -> 0 | W35: =Input!W91 -> 0 | X35: =Input!X91 -> 0 | Y35: =Input!Y91 -> 0 | Z35: =Input!Z91 -> 0 | AA35: =Input!AA91 -> 0 | AB35: =Input!AB91 -> 0 | AC35: =Input!AC91 -> 0 | AD35: =Input!AD91 -> 0 | AE35: =Input!AE91 -> 0 | AF35: =Input!AF91 -> 0 | AG35: =Input!AG91 -> 0 | AH35: =Input!AH91 -> 0 | AI35: =Input!AI91 -> 0 | AJ35: =Input!AJ91 -> 0 | AK35: =Input!AK91 -> 0 | AL35: =Input!AL91 -> 0 | AM35: =Input!AM91 -> 0 | AN35: =Input!AN91 -> 0 | AO35: =Input!AO91 -> 0 | AP35: =Input!AP91 -> 0 | AQ35: =Input!AQ91 -> 0 | AR35: =Input!AR91 -> 0 | AS35: =Input!AS91 -> 0 | AT35: =Input!AT91 -> 0 | AU35: =Input!AU91 -> 0 | AV35: =Input!AV91 -> 0 | AW35: =Input!AW91 -> 0 | AX35: =Input!AX91 -> 0 | AY35: =Input!AY91 -> 0 | AZ35: =Input!AZ91 -> 0 | BA35: =Input!BA91 -> 0 | BB35: =Input!BB91 -> 0 | BC35: =Input!BC91 -> 0 | BD35: =Input!BD91 -> 0 | BE35: =Input!BE91 -> 0 | BF35: =Input!BF91 -> 0 | BG35: =Input!BG91 -> 0 | BH35: =Input!BH91 -> 0 | BI35: =Input!BI91 -> 0
C36: =Input!C92 -> … | H36: 0 | I36: 0 | K36: =Input!K92 -> 0 | L36: =Input!L92 -> 0 | M36: =Input!M92 -> 0 | N36: =Input!N92 -> 0 | O36: =Input!O92 -> 0 | P36: =Input!P92 -> 0 | Q36: =Input!Q92 -> 0 | R36: =Input!R92 -> 0 | S36: =Input!S92 -> 0 | T36: =Input!T92 -> 0 | U36: =Input!U92 -> 0 | V36: =Input!V92 -> 0 | W36: =Input!W92 -> 0 | X36: =Input!X92 -> 0 | Y36: =Input!Y92 -> 0 | Z36: =Input!Z92 -> 0 | AA36: =Input!AA92 -> 0 | AB36: =Input!AB92 -> 0 | AC36: =Input!AC92 -> 0 | AD36: =Input!AD92 -> 0 | AE36: =Input!AE92 -> 0 | AF36: =Input!AF92 -> 0 | AG36: =Input!AG92 -> 0 | AH36: =Input!AH92 -> 0 | AI36: =Input!AI92 -> 0 | AJ36: =Input!AJ92 -> 0 | AK36: =Input!AK92 -> 0 | AL36: =Input!AL92 -> 0 | AM36: =Input!AM92 -> 0 | AN36: =Input!AN92 -> 0 | AO36: =Input!AO92 -> 0 | AP36: =Input!AP92 -> 0 | AQ36: =Input!AQ92 -> 0 | AR36: =Input!AR92 -> 0 | AS36: =Input!AS92 -> 0 | AT36: =Input!AT92 -> 0 | AU36: =Input!AU92 -> 0 | AV36: =Input!AV92 -> 0 | AW36: =Input!AW92 -> 0 | AX36: =Input!AX92 -> 0 | AY36: =Input!AY92 -> 0 | AZ36: =Input!AZ92 -> 0 | BA36: =Input!BA92 -> 0 | BB36: =Input!BB92 -> 0 | BC36: =Input!BC92 -> 0 | BD36: =Input!BD92 -> 0 | BE36: =Input!BE92 -> 0 | BF36: =Input!BF92 -> 0 | BG36: =Input!BG92 -> 0 | BH36: =Input!BH92 -> 0 | BI36: =Input!BI92 -> 0
C37: Property Tax | E37: =Assumptions!$E$27 -> 0.0182 | H37: 18713.07315 | I37: -16005.90422 | K37: =Capital!M$221*$E37/SUM($E$37:$E$38) -> 0 | L37: =Capital!N$221*$E37/SUM($E$37:$E$38) -> 0 | M37: =Capital!O$221*$E37/SUM($E$37:$E$38) -> 1237.315373 | N37: =Capital!P$221*$E37/SUM($E$37:$E$38) -> 3940.281952 | O37: =Capital!Q$221*$E37/SUM($E$37:$E$38) -> 5647.952073 | P37: =Capital!R$221*$E37/SUM($E$37:$E$38) -> 5399.585575 | Q37: =Capital!S$221*$E37/SUM($E$37:$E$38) -> 5148.594213 | R37: =Capital!T$221*$E37/SUM($E$37:$E$38) -> 4894.957947 | S37: =Capital!U$221*$E37/SUM($E$37:$E$38) -> 4638.656605 | T37: =Capital!V$221*$E37/SUM($E$37:$E$38) -> 4379.669875 | U37: =Capital!W$221*$E37/SUM($E$37:$E$38) -> 3885.052032 | V37: =Capital!X$221*$E37/SUM($E$37:$E$38) -> 3633.202984 | W37: =Capital!Y$221*$E37/SUM($E$37:$E$38) -> 1882.320021 | X37: =Capital!Z$221*$E37/SUM($E$37:$E$38) -> 1424.72766 | Y37: =Capital!AA$221*$E37/SUM($E$37:$E$38) -> 970.0232529 | Z37: =Capital!AB$221*$E37/SUM($E$37:$E$38) -> -42.93728902 | AA37: =Capital!AC$221*$E37/SUM($E$37:$E$38) -> -1890.01595 | AB37: =Capital!AD$221*$E37/SUM($E$37:$E$38) -> -3142.852593 | AC37: =Capital!AE$221*$E37/SUM($E$37:$E$38) -> -3789.403947 | AD37: =Capital!AF$221*$E37/SUM($E$37:$E$38) -> -3799.798196 | AE37: =Capital!AG$221*$E37/SUM($E$37:$E$38) -> -4135.269425 | AF37: =Capital!AH$221*$E37/SUM($E$37:$E$38) -> -4083.821526 | AG37: =Capital!AI$221*$E37/SUM($E$37:$E$38) -> -4016.296211 | AH37: =Capital!AJ$221*$E37/SUM($E$37:$E$38) -> -4305.292807 | AI37: =Capital!AK$221*$E37/SUM($E$37:$E$38) -> -4183.666172 | AJ37: =Capital!AL$221*$E37/SUM($E$37:$E$38) -> -4036.807983 | AK37: =Capital!AM$221*$E37/SUM($E$37:$E$38) -> -3838.695958 | AL37: =Capital!AN$221*$E37/SUM($E$37:$E$38) -> -3581.263522 | AM37: =Capital!AO$221*$E37/SUM($E$37:$E$38) -> -3267.514539 | AN37: =Capital!AP$221*$E37/SUM($E$37:$E$38) -> -2936.521352 | AO37: =Capital!AQ$221*$E37/SUM($E$37:$E$38) -> -2602.136546 | AP37: =Capital!AR$221*$E37/SUM($E$37:$E$38) -> -2264.334478 | AQ37: =Capital!AS$221*$E37/SUM($E$37:$E$38) -> -1923.089336 | AR37: =Capital!AT$221*$E37/SUM($E$37:$E$38) -> -1578.375134 | AS37: =Capital!AU$221*$E37/SUM($E$37:$E$38) -> -1247.409503 | AT37: =Capital!AV$221*$E37/SUM($E$37:$E$38) -> -922.8698585 | AU37: =Capital!AW$221*$E37/SUM($E$37:$E$38) -> -651.1471145 | AV37: =Capital!AX$221*$E37/SUM($E$37:$E$38) -> -421.3172099 | AW37: =Capital!AY$221*$E37/SUM($E$37:$E$38) -> -253.9219436 | AX37: =Capital!AZ$221*$E37/SUM($E$37:$E$38) -> -128.7352519 | AY37: =Capital!BA$221*$E37/SUM($E$37:$E$38) -> -40.21985284 | AZ37: =Capital!BB$221*$E37/SUM($E$37:$E$38) -> -4.530089071 | BA37: =Capital!BC$221*$E37/SUM($E$37:$E$38) -> 6.378171269e-13 | BB37: =Capital!BD$221*$E37/SUM($E$37:$E$38) -> 6.410062125e-13 | BC37: =Capital!BE$221*$E37/SUM($E$37:$E$38) -> 6.442112436e-13 | BD37: =Capital!BF$221*$E37/SUM($E$37:$E$38) -> 6.474322998e-13 | BE37: =Capital!BG$221*$E37/SUM($E$37:$E$38) -> 6.506694613e-13 | BF37: =Capital!BH$221*$E37/SUM($E$37:$E$38) -> 6.539228086e-13 | BG37: =Capital!BI$221*$E37/SUM($E$37:$E$38) -> 6.571924226e-13 | BH37: =Capital!BJ$221*$E37/SUM($E$37:$E$38) -> 6.604783847e-13 | BI37: =Capital!BK$221*$E37/SUM($E$37:$E$38) -> 6.637807767e-13
C38: Insurance | E38: =Assumptions!$E$29 -> 0.0053 | H38: 5449.411413 | I38: -4661.060021 | K38: =Capital!M$221*$E38/SUM($E$37:$E$38) -> 0 | L38: =Capital!N$221*$E38/SUM($E$37:$E$38) -> 0 | M38: =Capital!O$221*$E38/SUM($E$37:$E$38) -> 360.317114 | N38: =Capital!P$221*$E38/SUM($E$37:$E$38) -> 1147.444744 | O38: =Capital!Q$221*$E38/SUM($E$37:$E$38) -> 1644.733296 | P38: =Capital!R$221*$E38/SUM($E$37:$E$38) -> 1572.406788 | Q38: =Capital!S$221*$E38/SUM($E$37:$E$38) -> 1499.315897 | R38: =Capital!T$221*$E38/SUM($E$37:$E$38) -> 1425.454787 | S38: =Capital!U$221*$E38/SUM($E$37:$E$38) -> 1350.817583 | T38: =Capital!V$221*$E38/SUM($E$37:$E$38) -> 1275.39837 | U38: =Capital!W$221*$E38/SUM($E$37:$E$38) -> 1131.361306 | V38: =Capital!X$221*$E38/SUM($E$37:$E$38) -> 1058.020649 | W38: =Capital!Y$221*$E38/SUM($E$37:$E$38) -> 548.1481381 | X38: =Capital!Z$221*$E38/SUM($E$37:$E$38) -> 414.8932198 | Y38: =Capital!AA$221*$E38/SUM($E$37:$E$38) -> 282.4792989 | Z38: =Capital!AB$221*$E38/SUM($E$37:$E$38) -> -12.50371603 | AA38: =Capital!AC$221*$E38/SUM($E$37:$E$38) -> -550.3892603 | AB38: =Capital!AD$221*$E38/SUM($E$37:$E$38) -> -915.2263044 | AC38: =Capital!AE$221*$E38/SUM($E$37:$E$38) -> -1103.507743 | AD38: =Capital!AF$221*$E38/SUM($E$37:$E$38) -> -1106.534639 | AE38: =Capital!AG$221*$E38/SUM($E$37:$E$38) -> -1204.226811 | AF38: =Capital!AH$221*$E38/SUM($E$37:$E$38) -> -1189.24473 | AG38: =Capital!AI$221*$E38/SUM($E$37:$E$38) -> -1169.580765 | AH38: =Capital!AJ$221*$E38/SUM($E$37:$E$38) -> -1253.739114 | AI38: =Capital!AK$221*$E38/SUM($E$37:$E$38) -> -1218.320369 | AJ38: =Capital!AL$221*$E38/SUM($E$37:$E$38) -> -1175.553973 | AK38: =Capital!AM$221*$E38/SUM($E$37:$E$38) -> -1117.86201 | AL38: =Capital!AN$221*$E38/SUM($E$37:$E$38) -> -1042.895421 | AM38: =Capital!AO$221*$E38/SUM($E$37:$E$38) -> -951.5289592 | AN38: =Capital!AP$221*$E38/SUM($E$37:$E$38) -> -855.1408333 | AO38: =Capital!AQ$221*$E38/SUM($E$37:$E$38) -> -757.765038 | AP38: =Capital!AR$221*$E38/SUM($E$37:$E$38) -> -659.3941061 | AQ38: =Capital!AS$221*$E38/SUM($E$37:$E$38) -> -560.0205209 | AR38: =Capital!AT$221*$E38/SUM($E$37:$E$38) -> -459.6367149 | AS38: =Capital!AU$221*$E38/SUM($E$37:$E$38) -> -363.2566135 | AT38: =Capital!AV$221*$E38/SUM($E$37:$E$38) -> -268.7478159 | AU38: =Capital!AW$221*$E38/SUM($E$37:$E$38) -> -189.6197641 | AV38: =Capital!AX$221*$E38/SUM($E$37:$E$38) -> -122.6912754 | AW38: =Capital!AY$221*$E38/SUM($E$37:$E$38) -> -73.94430226 | AX38: =Capital!AZ$221*$E38/SUM($E$37:$E$38) -> -37.48883708 | AY38: =Capital!BA$221*$E38/SUM($E$37:$E$38) -> -11.71237473 | AZ38: =Capital!BB$221*$E38/SUM($E$37:$E$38) -> -1.319201762 | BA38: =Capital!BC$221*$E38/SUM($E$37:$E$38) -> 1.857379545e-13 | BB38: =Capital!BD$221*$E38/SUM($E$37:$E$38) -> 1.866666443e-13 | BC38: =Capital!BE$221*$E38/SUM($E$37:$E$38) -> 1.875999775e-13 | BD38: =Capital!BF$221*$E38/SUM($E$37:$E$38) -> 1.885379774e-13 | BE38: =Capital!BG$221*$E38/SUM($E$37:$E$38) -> 1.894806673e-13 | BF38: =Capital!BH$221*$E38/SUM($E$37:$E$38) -> 1.904280706e-13 | BG38: =Capital!BI$221*$E38/SUM($E$37:$E$38) -> 1.91380211e-13 | BH38: =Capital!BJ$221*$E38/SUM($E$37:$E$38) -> 1.92337112e-13 | BI38: =Capital!BK$221*$E38/SUM($E$37:$E$38) -> 1.932987976e-13
C39: Depreciation | H39: 84491.12976 | I39: -52131.80438 | K39: =-Capital!M96 -> 0 | L39: =-Capital!N96 -> 1461.576878 | M39: =-Capital!O96 -> 6591.200208 | N39: =-Capital!P96 -> 12541.53628 | O39: =-Capital!Q96 -> 14823.82589 | P39: =-Capital!R96 -> 14823.82589 | Q39: =-Capital!S96 -> 14823.82589 | R39: =-Capital!T96 -> 14823.82589 | S39: =-Capital!U96 -> 14823.82589 | T39: =-Capital!V96 -> 14466.64627 | U39: =-Capital!W96 -> 14109.46665 | V39: =-Capital!X96 -> 12428.09733 | W39: =-Capital!Y96 -> 10454.45316 | X39: =-Capital!Z96 -> 9865.515716 | Y39: =-Capital!AA96 -> 8653.75088 | Z39: =-Capital!AB96 -> 5685.24003 | AA39: =-Capital!AC96 -> 2270.445209 | AB39: =-Capital!AD96 -> 240.806986 | AC39: =-Capital!AE96 -> -427.4450309 | AD39: =-Capital!AF96 -> -901.6688328 | AE39: =-Capital!AG96 -> -3568.803229 | AF39: =-Capital!AH96 -> -4329.956738 | AG39: =-Capital!AI96 -> -4874.650073 | AH39: =-Capital!AJ96 -> -6978.207544 | AI39: =-Capital!AK96 -> -8137.823218 | AJ39: =-Capital!AL96 -> -10535.54273 | AK39: =-Capital!AM96 -> -13284.27351 | AL39: =-Capital!AN96 -> -15847.68483 | AM39: =-Capital!AO96 -> -16514.144 | AN39: =-Capital!AP96 -> -16514.144 | AO39: =-Capital!AQ96 -> -16514.144 | AP39: =-Capital!AR96 -> -16514.144 | AQ39: =-Capital!AS96 -> -16514.144 | AR39: =-Capital!AT96 -> -15714.46584 | AS39: =-Capital!AU96 -> -15263.40227 | AT39: =-Capital!AV96 -> -12687.89494 | AU39: =-Capital!AW96 -> -10648.77977 | AV39: =-Capital!AX96 -> -7705.356094 | AW39: =-Capital!AY96 -> -5719.955882 | AX39: =-Capital!AZ96 -> -4012.838646 | AY39: =-Capital!BA96 -> -1607.326043 | AZ39: =-Capital!BB96 -> -202.8742004 | BA39: =-Capital!BC96 -> 0 | BB39: =-Capital!BD96 -> 0 | BC39: =-Capital!BE96 -> 0 | BD39: =-Capital!BF96 -> 0 | BE39: =-Capital!BG96 -> 0 | BF39: =-Capital!BH96 -> 0 | BG39: =-Capital!BI96 -> 0 | BH39: =-Capital!BJ96 -> 0 | BI39: =-Capital!BK96 -> 0
C40: Interest Expense | H40: 29234.70846 | I40: -2621.28482 | K40: =K16 -> 360.1933883 | L40: 5930.177376 | M40: 5981.480332 | N40: 6003.49706 | O40: 5802.762143 | P40: 5485.726871 | Q40: 5181.356343 | R40: 4887.809067 | S40: 4600.667849 | T40: 4188.322387 | U40: 3781.244434 | V40: 2705.82339 | W40: 1533.779127 | X40: 1067.371881 | Y40: 310.1937144 | Z40: -1169.348284 | AA40: -2752.969511 | AB40: -3687.737737 | AC40: -3969.789244 | AD40: -4094.351488 | AE40: -4203.134487 | AF40: -4117.076416 | AG40: -4188.7271 | AH40: -4200.762425 | AI40: -3973.169705 | AJ40: -3715.634763 | AK40: -3426.5606 | AL40: -3104.538402 | AM40: -2762.554771 | AN40: -2417.992134 | AO40: -2075.977451 | AP40: -1742.195178 | AQ40: =AQ16 -> -1423.765729 | AR40: -1121.167004 | AS40: -834.0876449 | AT40: -583.1310582 | AU40: -386.5962373 | AV40: -243.3176585 | AW40: -142.494788 | AX40: -69.51606998 | AY40: -25.7379967 | AZ40: -7.743797139 | BA40: -1.612501811 | BB40: -7.694249788e-13 | BC40: -7.694249788e-13 | BD40: -7.694249788e-13 | BE40: -7.694249788e-13 | BF40: -7.694249788e-13 | BG40: -7.694249788e-13 | BH40: -7.694249788e-13 | BI40: -7.694249788e-13
C41: Income Tax | H41: 55350.18068 | I41: -4962.888157 | K41: =K23 -> 681.9554622 | L41: 11227.62656 | M41: 11324.75864 | N41: 11366.44299 | O41: 10986.39084 | P41: 10386.14679 | Q41: 9809.880956 | R41: 9254.106823 | S41: 8710.461301 | T41: 7929.766128 | U41: 7159.043947 | V41: 5122.945343 | W41: 2903.909642 | X41: 2020.859095 | Y41: 587.2908964 | Z41: -2213.931391 | AA41: -5212.207265 | AB41: -6982.007374 | AC41: -7516.016526 | AD41: -7751.850679 | AE41: -7957.80993 | AF41: -7794.875869 | AG41: -7930.532373 | AH41: -7953.318898 | AI41: -7522.416767 | AJ41: -7034.824917 | AK41: -6487.519744 | AL41: -5877.833935 | AM41: -5230.355074 | AN41: -4577.993371 | AO41: -3930.455718 | AP41: -3298.504517 | AQ41: =AQ23 -> -2695.620873 | AR41: -2122.709599 | AS41: -1579.181195 | AT41: -1104.04417 | AU41: -731.9440731 | AV41: -460.6742148 | AW41: -269.7859044 | AX41: -131.6150301 | AY41: -48.72984349 | AZ41: -14.66135951 | BA41: -3.052955589 | BB41: -1.456755133e-12 | BC41: -1.456755133e-12 | BD41: -1.456755133e-12 | BE41: -1.456755133e-12 | BF41: -1.456755133e-12 | BG41: -1.456755133e-12 | BH41: -1.456755133e-12 | BI41: -1.456755133e-12
C42: After-Tax Earnings | H42: 88137.0019 | I42: -7902.667662 | K42: =K22 -> 1085.913526 | L42: 17878.3399 | M42: 18033.00841 | N42: 18099.38459 | O42: 17494.20757 | P42: 16538.40743 | Q42: 15620.78905 | R42: 14735.80069 | S42: 13870.12535 | T42: 12626.98339 | U42: 11399.72196 | V42: 8157.535131 | W42: 4624.047953 | X42: 3217.920153 | Y42: 935.1741624 | Z42: -3525.359319 | AA42: -8299.671582 | AB42: -11117.81732 | AC42: -11968.14816 | AD42: -12343.67927 | AE42: -12671.63901 | AF42: -12412.19055 | AG42: -12628.20353 | AH42: -12664.48771 | AI42: -11978.3396 | AJ42: -11201.92147 | AK42: -10330.41867 | AL42: -9359.583914 | AM42: -8328.569291 | AN42: -7289.779463 | AO42: -6258.671224 | AP42: -5252.382112 | AQ42: =AQ22 -> -4292.378798 | AR42: -3380.102064 | AS42: -2514.613219 | AT42: -1758.02756 | AU42: -1165.513019 | AV42: -733.5557652 | AW42: -429.5942756 | AX42: -209.5775301 | AY42: -77.59509103 | AZ42: -23.34605334 | BA42: -4.861381647 | BB42: -2.319667765e-12 | BC42: -2.319667765e-12 | BD42: -2.319667765e-12 | BE42: -2.319667765e-12 | BF42: -2.319667765e-12 | BG42: -2.319667765e-12 | BH42: -2.319667765e-12 | BI42: -2.319667765e-12
H43: 0 | I43: 0
C44: Revenue Requirement, before System Impacts | H44: 281375.5054 | I44: -88285.60926 | K44: =SUM(K32:K43) -> 2128.062377 | L44: 36497.72071 | M44: 43528.08007 | N44: 53098.58761 | O44: 56399.87181 | P44: 54206.09935 | Q44: 52083.76236 | R44: 50021.95521 | S44: 47994.55458 | T44: 44866.78643 | U44: 41465.89033 | V44: 33105.62482 | W44: 21946.65804 | X44: 18011.28772 | Y44: 11738.9122 | Z44: -1278.839968 | AA44: -16434.80836 | AB44: -25604.83434 | AC44: -28774.31065 | AD44: -29997.88311 | AE44: -33740.8829 | AF44: -33927.16582 | AG44: -34807.99005 | AH44: -37355.80849 | AI44: -37013.73583 | AJ44: -37700.28583 | AK44: -38485.33049 | AL44: -38813.80003 | AM44: -37054.66664 | AN44: -34591.57116 | AO44: -32139.14998 | AP44: -29730.95439 | AQ44: =SUM(AQ32:AQ43) -> -27409.01926 | AR44: -24376.45636 | AS44: -21801.95045 | AT44: -17324.7154 | AU44: -13773.59998 | AV44: -9686.912218 | AW44: -6889.697096 | AX44: -4589.771365 | AY44: -1811.321202 | AZ44: -254.4747013 | BA44: -9.526839046 | BB44: -3.718175019e-12 | BC44: -3.714036655e-12 | BD44: -3.709877599e-12 | BE44: -3.705697747e-12 | BF44: -3.701496997e-12 | BG44: -3.697275242e-12 | BH44: -3.693032379e-12 | BI44: -3.688768302e-12
C46: =Input!C100 -> Fuel Savings | H46: =SUMPRODUCT(K46:BI46,$K$5:$BI$5,$K$30:$BI$30) -> -255094.3161 | I46: =SUMPRODUCT(L46:BJ46,$K$5:$BI$5,$K$30:$BI$30) -> -274517.1239 | K46: =Input!K100 -> 0 | L46: =Input!L100 -> 5000 | M46: =Input!M100 -> -14000 | N46: =Input!N100 -> -23000 | O46: =Input!O100 -> -46000 | P46: =Input!P100 -> -32000 | Q46: =Input!Q100 -> -29000 | R46: =Input!R100 -> -28000 | S46: =Input!S100 -> -24000 | T46: =Input!T100 -> -24000 | U46: =Input!U100 -> -23000 | V46: =Input!V100 -> -27000 | W46: =Input!W100 -> -26000 | X46: =Input!X100 -> -18000 | Y46: =Input!Y100 -> -19000 | Z46: =Input!Z100 -> -20000 | AA46: =Input!AA100 -> -22000 | AB46: =Input!AB100 -> -21000 | AC46: =Input!AC100 -> -20000 | AD46: =Input!AD100 -> -19000 | AE46: =Input!AE100 -> -19000 | AF46: =Input!AF100 -> -11000 | AG46: =Input!AG100 -> -16000 | AH46: =Input!AH100 -> -11000 | AI46: =Input!AI100 -> -7000 | AJ46: =Input!AJ100 -> -15000 | AK46: =Input!AK100 -> -14000 | AL46: =Input!AL100 -> -13000 | AM46: =Input!AM100 -> -14000 | AN46: =Input!AN100 -> -10000 | AO46: =Input!AO100 -> -11000 | AP46: =Input!AP100 -> 0 | AQ46: =Input!AQ100 -> 0 | AR46: =Input!AR100 -> 0 | AS46: =Input!AS100 -> 0 | AT46: =Input!AT100 -> 0 | AU46: =Input!AU100 -> 0 | AV46: =Input!AV100 -> 0 | AW46: =Input!AW100 -> 0 | AX46: =Input!AX100 -> 0 | AY46: =Input!AY100 -> 0 | AZ46: =Input!AZ100 -> 0 | BA46: =Input!BA100 -> 0 | BB46: =Input!BB100 -> 0 | BC46: =Input!BC100 -> 0 | BD46: =Input!BD100 -> 0 | BE46: =Input!BE100 -> 0 | BF46: =Input!BF100 -> 0 | BG46: =Input!BG100 -> 0 | BH46: =Input!BH100 -> 0 | BI46: =Input!BI100 -> 0
C47: =Input!C101 -> Startup Savings | H47: -36458.42539 | I47: -39207.5099 | K47: =Input!K101 -> 0 | L47: =Input!L101 -> 0 | M47: =Input!M101 -> -1000 | N47: =Input!N101 -> -2000 | O47: =Input!O101 -> -3000 | P47: =Input!P101 -> -4000 | Q47: =Input!Q101 -> -2000 | R47: =Input!R101 -> -4000 | S47: =Input!S101 -> -3000 | T47: =Input!T101 -> -2000 | U47: =Input!U101 -> -2000 | V47: =Input!V101 -> -5000 | W47: =Input!W101 -> -4000 | X47: =Input!X101 -> -3000 | Y47: =Input!Y101 -> -3000 | Z47: =Input!Z101 -> -4000 | AA47: =Input!AA101 -> -4000 | AB47: =Input!AB101 -> -5000 | AC47: =Input!AC101 -> -5000 | AD47: =Input!AD101 -> -6000 | AE47: =Input!AE101 -> -4000 | AF47: =Input!AF101 -> -2000 | AG47: =Input!AG101 -> -6000 | AH47: =Input!AH101 -> -3000 | AI47: =Input!AI101 -> -3000 | AJ47: =Input!AJ101 -> -4000 | AK47: =Input!AK101 -> -4000 | AL47: =Input!AL101 -> -4000 | AM47: =Input!AM101 -> -5000 | AN47: =Input!AN101 -> -5000 | AO47: =Input!AO101 -> -4000 | AP47: =Input!AP101 -> 0 | AQ47: =Input!AQ101 -> 0 | AR47: =Input!AR101 -> 0 | AS47: =Input!AS101 -> 0 | AT47: =Input!AT101 -> 0 | AU47: =Input!AU101 -> 0 | AV47: =Input!AV101 -> 0 | AW47: =Input!AW101 -> 0 | AX47: =Input!AX101 -> 0 | AY47: =Input!AY101 -> 0 | AZ47: =Input!AZ101 -> 0 | BA47: =Input!BA101 -> 0 | BB47: =Input!BB101 -> 0 | BC47: =Input!BC101 -> 0 | BD47: =Input!BD101 -> 0 | BE47: =Input!BE101 -> 0 | BF47: =Input!BF101 -> 0 | BG47: =Input!BG101 -> 0 | BH47: =Input!BH101 -> 0 | BI47: =Input!BI101 -> 0
C48: =Input!C102 -> Variable O&M Savings | H48: -2723.910661 | I48: -2929.276049 | K48: =Input!K102 -> 0 | L48: =Input!L102 -> 0 | M48: =Input!M102 -> 0 | N48: =Input!N102 -> -1000 | O48: =Input!O102 -> 0 | P48: =Input!P102 -> 0 | Q48: =Input!Q102 -> 0 | R48: =Input!R102 -> 0 | S48: =Input!S102 -> 0 | T48: =Input!T102 -> 0 | U48: =Input!U102 -> 0 | V48: =Input!V102 -> 0 | W48: =Input!W102 -> 0 | X48: =Input!X102 -> 0 | Y48: =Input!Y102 -> 0 | Z48: =Input!Z102 -> 0 | AA48: =Input!AA102 -> 0 | AB48: =Input!AB102 -> -1000 | AC48: =Input!AC102 -> 0 | AD48: =Input!AD102 -> 0 | AE48: =Input!AE102 -> -1000 | AF48: =Input!AF102 -> -1000 | AG48: =Input!AG102 -> -1000 | AH48: =Input!AH102 -> -1000 | AI48: =Input!AI102 -> -1000 | AJ48: =Input!AJ102 -> 0 | AK48: =Input!AK102 -> -1000 | AL48: =Input!AL102 -> 0 | AM48: =Input!AM102 -> -1000 | AN48: =Input!AN102 -> -1000 | AO48: =Input!AO102 -> -1000 | AP48: =Input!AP102 -> 0 | AQ48: =Input!AQ102 -> 0 | AR48: =Input!AR102 -> 0 | AS48: =Input!AS102 -> 0 | AT48: =Input!AT102 -> 0 | AU48: =Input!AU102 -> 0 | AV48: =Input!AV102 -> 0 | AW48: =Input!AW102 -> 0 | AX48: =Input!AX102 -> 0 | AY48: =Input!AY102 -> 0 | AZ48: =Input!AZ102 -> 0 | BA48: =Input!BA102 -> 0 | BB48: =Input!BB102 -> 0 | BC48: =Input!BC102 -> 0 | BD48: =Input!BD102 -> 0 | BE48: =Input!BE102 -> 0 | BF48: =Input!BF102 -> 0 | BG48: =Input!BG102 -> 0 | BH48: =Input!BH102 -> 0 | BI48: =Input!BI102 -> 0
C49: =Input!C103 -> Emissions Savings | H49: -27965.30482 | I49: -30079.4019 | K49: =Input!K103 -> 0 | L49: =Input!L103 -> 141 | M49: =Input!M103 -> 23.09852356 | N49: =Input!N103 -> -70.46497678 | O49: =Input!O103 -> -212.1085497 | P49: =Input!P103 -> -144.924648 | Q49: =Input!Q103 -> -130.4248904 | R49: =Input!R103 -> -139.1987261 | S49: =Input!S103 -> -109.5199743 | T49: =Input!T103 -> -2478.010862 | U49: =Input!U103 -> -2451.940291 | V49: =Input!V103 -> -3122.345821 | W49: =Input!W103 -> -2527.480898 | X49: =Input!X103 -> -2949.783555 | Y49: =Input!Y103 -> -1574.433116 | Z49: =Input!Z103 -> -3715.137906 | AA49: =Input!AA103 -> -3221.176699 | AB49: =Input!AB103 -> -4600.503533 | AC49: =Input!AC103 -> -4807.566121 | AD49: =Input!AD103 -> -404.7454338 | AE49: =Input!AE103 -> -3907.546464 | AF49: =Input!AF103 -> -8572.910046 | AG49: =Input!AG103 -> -4564.954243 | AH49: =Input!AH103 -> -7733.11977 | AI49: =Input!AI103 -> -9698.93162 | AJ49: =Input!AJ103 -> -3687.535967 | AK49: =Input!AK103 -> -7613.174697 | AL49: =Input!AL103 -> -9297.653085 | AM49: =Input!AM103 -> -11151.98348 | AN49: =Input!AN103 -> -16686.20807 | AO49: =Input!AO103 -> -13669 | AP49: =Input!AP103 -> 0 | AQ49: =Input!AQ103 -> 0 | AR49: =Input!AR103 -> 0 | AS49: =Input!AS103 -> 0 | AT49: =Input!AT103 -> 0 | AU49: =Input!AU103 -> 0 | AV49: =Input!AV103 -> 0 | AW49: =Input!AW103 -> 0 | AX49: =Input!AX103 -> 0 | AY49: =Input!AY103 -> 0 | AZ49: =Input!AZ103 -> 0 | BA49: =Input!BA103 -> 0 | BB49: =Input!BB103 -> 0 | BC49: =Input!BC103 -> 0 | BD49: =Input!BD103 -> 0 | BE49: =Input!BE103 -> 0 | BF49: =Input!BF103 -> 0 | BG49: =Input!BG103 -> 0 | BH49: =Input!BH103 -> 0 | BI49: =Input!BI103 -> 0
C50: =Input!C104 -> Capacity Savings | H50: -16332.80785 | I50: -17564.46923 | K50: =Input!K104 -> 0 | L50: =Input!L104 -> 0 | M50: =Input!M104 -> 0 | N50: =Input!N104 -> 0 | O50: =Input!O104 -> 0 | P50: =Input!P104 -> 0 | Q50: =Input!Q104 -> 0 | R50: =Input!R104 -> 0 | S50: =Input!S104 -> 0 | T50: =Input!T104 -> 0 | U50: =Input!U104 -> 0 | V50: =Input!V104 -> 0 | W50: =Input!W104 -> 0 | X50: =Input!X104 -> 0 | Y50: =Input!Y104 -> 0 | Z50: =Input!Z104 -> 0 | AA50: =Input!AA104 -> -3434.769361 | AB50: =Input!AB104 -> -5739.423161 | AC50: =Input!AC104 -> -5739.788956 | AD50: =Input!AD104 -> -5714.765552 | AE50: =Input!AE104 -> -5570.595963 | AF50: =Input!AF104 -> -5498.30482 | AG50: =Input!AG104 -> -5269.676421 | AH50: =Input!AH104 -> -5188.575445 | AI50: =Input!AI104 -> -5492.506434 | AJ50: =Input!AJ104 -> -5196.111396 | AK50: =Input!AK104 -> -5331.567344 | AL50: =Input!AL104 -> -6303.076393 | AM50: =Input!AM104 -> -5595.927082 | AN50: =Input!AN104 -> -5417.04143 | AO50: =Input!AO104 -> -5317.371681 | AP50: =Input!AP104 -> 0 | AQ50: =Input!AQ104 -> 0 | AR50: =Input!AR104 -> 0 | AS50: =Input!AS104 -> 0 | AT50: =Input!AT104 -> 0 | AU50: =Input!AU104 -> 0 | AV50: =Input!AV104 -> 0 | AW50: =Input!AW104 -> 0 | AX50: =Input!AX104 -> 0 | AY50: =Input!AY104 -> 0 | AZ50: =Input!AZ104 -> 0 | BA50: =Input!BA104 -> 0 | BB50: =Input!BB104 -> 0 | BC50: =Input!BC104 -> 0 | BD50: =Input!BD104 -> 0 | BE50: =Input!BE104 -> 0 | BF50: =Input!BF104 -> 0 | BG50: =Input!BG104 -> 0 | BH50: =Input!BH104 -> 0 | BI50: =Input!BI104 -> 0
C51: System Impacts | H51: -338574.7648 | I51: =SUM(K51:BI51) -> -897888.1864 | K51: =SUM(K46:K50) -> 0 | L51: =SUM(L46:L50) -> 5141 | M51: -14976.90148 | N51: -26070.46498 | O51: -49212.10855 | P51: -36144.92465 | Q51: -31130.42489 | R51: -32139.19873 | S51: -27109.51997 | T51: -28478.01086 | U51: -27451.94029 | V51: -35122.34582 | W51: -32527.4809 | X51: -23949.78355 | Y51: -23574.43312 | Z51: -27715.13791 | AA51: -32655.94606 | AB51: -37339.92669 | AC51: -35547.35508 | AD51: -31119.51099 | AE51: -33478.14243 | AF51: -28071.21487 | AG51: -32834.63066 | AH51: -27921.69521 | AI51: -26191.43805 | AJ51: -27883.64736 | AK51: -31944.74204 | AL51: -32600.72948 | AM51: -36747.91056 | AN51: -38103.2495 | AO51: -34986.37168 | AP51: 0 | AQ51: 0 | AR51: 0 | AS51: 0 | AT51: 0 | AU51: 0 | AV51: 0 | AW51: 0 | AX51: 0 | AY51: 0 | AZ51: 0 | BA51: 0 | BB51: 0 | BC51: 0 | BD51: 0 | BE51: 0 | BF51: 0 | BG51: 0 | BH51: 0 | BI51: 0
C53: Net Revenue Requirment | H53: -57199.25942 | I53: -986173.7956 | K53: =K44+K51 -> 2128.062377 | L53: =L44+L51 -> 41638.72071 | M53: 28551.1786 | N53: 27028.12264 | O53: 7187.763263 | P53: 18061.1747 | Q53: 20953.33747 | R53: 17882.75648 | S53: 20885.03461 | T53: 16388.77556 | U53: 14013.95003 | V53: -2016.720999 | W53: -10580.82286 | X53: -5938.49583 | Y53: -11835.52091 | Z53: -28993.97787 | AA53: -49090.75442 | AB53: -62944.76103 | AC53: -64321.66572 | AD53: -61117.39409 | AE53: -67219.02532 | AF53: -61998.38069 | AG53: -67642.62071 | AH53: -65277.50371 | AI53: -63205.17388 | AJ53: -65583.93319 | AK53: -70430.07254 | AL53: -71414.5295 | AM53: -73802.5772 | AN53: -72694.82066 | AO53: -67125.52166 | AP53: -29730.95439 | AQ53: -27409.01926 | AR53: -24376.45636 | AS53: -21801.95045 | AT53: -17324.7154 | AU53: -13773.59998 | AV53: -9686.912218 | AW53: -6889.697096 | AX53: -4589.771365 | AY53: -1811.321202 | AZ53: -254.4747013 | BA53: -9.526839046 | BB53: -3.718175019e-12 | BC53: -3.714036655e-12 | BD53: -3.709877599e-12 | BE53: -3.705697747e-12 | BF53: -3.701496997e-12 | BG53: -3.697275242e-12 | BH53: -3.693032379e-12 | BI53: -3.688768302e-12
C55: Cummulative CPVRR | K55: =SUMPRODUCT($K53:K53,$K$5:K$5) -> 2128.062377 | L55: =SUMPRODUCT($K53:L53,$K$5:L$5) -> 42293.36034 | M55: =SUMPRODUCT($K53:M53,$K$5:M$5) -> 67899.20519 | N55: =SUMPRODUCT($K53:N53,$K$5:N$5) -> 90440.4994 | O55: =SUMPRODUCT($K53:O53,$K$5:O$5) -> 96014.98284 | P55: =SUMPRODUCT($K53:P53,$K$5:P$5) -> 109040.7934 | Q55: =SUMPRODUCT($K53:Q53,$K$5:Q$5) -> 123090.6995 | R55: =SUMPRODUCT($K53:R53,$K$5:R$5) -> 134241.411 | S55: =SUMPRODUCT($K53:S53,$K$5:S$5) -> 146351.6081 | T55: =SUMPRODUCT($K53:T53,$K$5:T$5) -> 155188.7213 | U55: =SUMPRODUCT($K53:U53,$K$5:U$5) -> 162214.3618 | V55: =SUMPRODUCT($K53:V53,$K$5:V$5) -> 161274.1644 | W55: =SUMPRODUCT($K53:W53,$K$5:W$5) -> 156687.0391 | X55: =SUMPRODUCT($K53:X53,$K$5:X$5) -> 154292.9213 | Y55: =SUMPRODUCT($K53:Y53,$K$5:Y$5) -> 149856.6521 | Z55: =SUMPRODUCT($K53:Z53,$K$5:Z$5) -> 139750.4911 | AA55: =SUMPRODUCT($K53:AA53,$K$5:AA$5) -> 123838.4456 | AB55: =SUMPRODUCT($K53:AB53,$K$5:AB$5) -> 104865.5422 | AC55: =SUMPRODUCT($K53:AC53,$K$5:AC$5) -> 86839.8089 | AD55: =SUMPRODUCT($K53:AD53,$K$5:AD$5) -> 70912.2806 | AE55: =SUMPRODUCT($K53:AE53,$K$5:AE$5) -> 54622.18377 | AF55: =SUMPRODUCT($K53:AF53,$K$5:AF$5) -> 40650.14767 | AG55: =SUMPRODUCT($K53:AG53,$K$5:AG$5) -> 26477.1658 | AH55: =SUMPRODUCT($K53:AH53,$K$5:AH$5) -> 13758.18703 | AI55: =SUMPRODUCT($K53:AI53,$K$5:AI$5) -> 2305.978892 | AJ55: =SUMPRODUCT($K53:AJ53,$K$5:AJ$5) -> -8744.521865 | AK55: =SUMPRODUCT($K53:AK53,$K$5:AK$5) -> -19777.78789 | AL55: =SUMPRODUCT($K53:AL53,$K$5:AL$5) -> -30181.31087 | AM55: =SUMPRODUCT($K53:AM53,$K$5:AM$5) -> -40179.31421 | AN55: =SUMPRODUCT($K53:AN53,$K$5:AN$5) -> -49337.15559 | AO55: =SUMPRODUCT($K53:AO53,$K$5:AO$5) -> -57199.25942 | AP55: =SUMPRODUCT($K53:AP53,$K$5:AP$5) -> -60437.4906 | AQ55: =SUMPRODUCT($K53:AQ53,$K$5:AQ$5) -> -63213.6244 | AR55: =SUMPRODUCT($K53:AR53,$K$5:AR$5) -> -65509.58995 | AS55: =SUMPRODUCT($K53:AS53,$K$5:AS$5) -> -67418.7907 | AT55: =SUMPRODUCT($K53:AT53,$K$5:AT$5) -> -68829.60631 | AU55: =SUMPRODUCT($K53:AU53,$K$5:AU$5) -> -69872.64282 | AV55: =SUMPRODUCT($K53:AV53,$K$5:AV$5) -> -70554.80134 | AW55: =SUMPRODUCT($K53:AW53,$K$5:AW$5) -> -71005.8896 | AX55: =SUMPRODUCT($K53:AX53,$K$5:AX$5) -> -71285.33717 | AY55: =SUMPRODUCT($K53:AY53,$K$5:AY$5) -> -71387.89119 | AZ55: =SUMPRODUCT($K53:AZ53,$K$5:AZ$5) -> -71401.28949 | BA55: =SUMPRODUCT($K53:BA53,$K$5:BA$5) -> -71401.75584 | BB55: =SUMPRODUCT($K53:BB53,$K$5:BB$5) -> -71401.75584 | BC55: =SUMPRODUCT($K53:BC53,$K$5:BC$5) -> -71401.75584 | BD55: =SUMPRODUCT($K53:BD53,$K$5:BD$5) -> -71401.75584 | BE55: =SUMPRODUCT($K53:BE53,$K$5:BE$5) -> -71401.75584 | BF55: =SUMPRODUCT($K53:BF53,$K$5:BF$5) -> -71401.75584 | BG55: =SUMPRODUCT($K53:BG53,$K$5:BG$5) -> -71401.75584 | BH55: =SUMPRODUCT($K53:BH53,$K$5:BH$5) -> -71401.75584 | BI55: =SUMPRODUCT($K53:BI53,$K$5:BI$5) -> -71401.75584

Sheet Capital
A1: CAPITAL | H1: CPVRR: | I1: =RevReq!$H$1 -> -57199.25942
A2: OPC 002101 FPL RC-16 | D2: Period | F2: Input | G2: Input | I2: PV | J2: SUM | M2: 0 | N2: =M2+1 -> 1 | O2: =N2+1 -> 2 | P2: 3 | Q2: 4 | R2: 5 | S2: 6 | T2: 7 | U2: 8 | V2: 9 | W2: 10 | X2: 11 | Y2: 12 | Z2: 13 | AA2: 14 | AB2: 15 | AC2: 16 | AD2: 17 | AE2: =AD2+1 -> 18 | AF2: 19 | AG2: 20 | AH2: 21 | AI2: 22 | AJ2: 23 | AK2: 24 | AL2: 25 | AM2: 26 | AN2: 27 | AO2: 28 | AP2: =AO2+1 -> 29 | AQ2: =AP2+1 -> 30 | AR2: =AQ2+1 -> 31 | AS2: =AR2+1 -> 32 | AT2: =AS2+1 -> 33 | AU2: =AT2+1 -> 34 | AV2: =AU2+1 -> 35 | AW2: =AV2+1 -> 36 | AX2: =AW2+1 -> 37 | AY2: =AX2+1 -> 38 | AZ2: =AY2+1 -> 39 | BA2: =AZ2+1 -> 40 | BB2: =BA2+1 -> 41 | BC2: =BB2+1 -> 42 | BD2: =BC2+1 -> 43 | BE2: =BD2+1 -> 44 | BF2: =BE2+1 -> 45 | BG2: =BF2+1 -> 46 | BH2: =BG2+1 -> 47 | BI2: =BH2+1 -> 48 | BJ2: =BI2+1 -> 49 | BK2: =BJ2+1 -> 50
D3: Year | M3: =Assumptions!$C$7 -> 2014 | N3: =M3+1 -> 2015 | O3: 2016 | P3: 2017 | Q3: 2018 | R3: 2019 | S3: 2020 | T3: 2021 | U3: 2022 | V3: 2023 | W3: 2024 | X3: 2025 | Y3: 2026 | Z3: 2027 | AA3: 2028 | AB3: 2029 | AC3: 2030 | AD3: 2031 | AE3: 2032 | AF3: 2033 | AG3: 2034 | AH3: 2035 | AI3: 2036 | AJ3: 2037 | AK3: 2038 | AL3: 2039 | AM3: 2040 | AN3: 2041 | AO3: 2042 | AP3: 2043 | AQ3: 2044 | AR3: 2045 | AS3: 2046 | AT3: 2047 | AU3: 2048 | AV3: 2049 | AW3: 2050 | AX3: 2051 | AY3: 2052 | AZ3: 2053 | BA3: 2054 | BB3: 2055 | BC3: 2056 | BD3: 2057 | BE3: 2058 | BF3: 2059 | BG3: 2060 | BH3: 2061 | BI3: 2062 | BJ3: 2063 | BK3: 2064
D4: Discount Date | F4: =Assumptions!$E$15 -> 2014-12-31 | M4: =RevReq!K4 -> 2014-12-31 | N4: =RevReq!L4 -> 2015-06-30 | O4: =RevReq!M4 -> 2016-06-30 | P4: =RevReq!N4 -> 2017-06-30 | Q4: =RevReq!O4 -> 2018-06-30 | R4: =RevReq!P4 -> 2019-06-30 | S4: =RevReq!Q4 -> 2020-06-30 | T4: =RevReq!R4 -> 2021-06-30 | U4: =RevReq!S4 -> 2022-06-30 | V4: =RevReq!T4 -> 2023-06-30 | W4: =RevReq!U4 -> 2024-06-30 | X4: =RevReq!V4 -> 2025-06-30 | Y4: =RevReq!W4 -> 2026-06-30 | Z4: =RevReq!X4 -> 2027-06-30 | AA4: =RevReq!Y4 -> 2028-06-30 | AB4: =RevReq!Z4 -> 2029-06-30 | AC4: =RevReq!AA4 -> 2030-06-30 | AD4: =RevReq!AB4 -> 2031-06-30 | AE4: =RevReq!AC4 -> 2032-06-30 | AF4: =RevReq!AD4 -> 2033-06-30 | AG4: =RevReq!AE4 -> 2034-06-30 | AH4: =RevReq!AF4 -> 2035-06-30 | AI4: =RevReq!AG4 -> 2036-06-30 | AJ4: =RevReq!AH4 -> 2037-06-30 | AK4: =RevReq!AI4 -> 2038-06-30 | AL4: =RevReq!AJ4 -> 2039-06-30 | AM4: =RevReq!AK4 -> 2040-06-30 | AN4: =RevReq!AL4 -> 2041-06-30 | AO4: =RevReq!AM4 -> 2042-06-30 | AP4: =RevReq!AN4 -> 2043-06-30 | AQ4: =RevReq!AO4 -> 2044-06-30 | AR4: =RevReq!AP4 -> 2045-06-30 | AS4: =RevReq!AQ4 -> 2046-06-30 | AT4: =RevReq!AR4 -> 2047-06-30 | AU4: =RevReq!AS4 -> 2048-06-30 | AV4: =RevReq!AT4 -> 2049-06-30 | AW4: =RevReq!AU4 -> 2050-06-30 | AX4: =RevReq!AV4 -> 2051-06-30 | AY4: =RevReq!AW4 -> 2052-06-30 | AZ4: =RevReq!AX4 -> 2053-06-30 | BA4: =RevReq!AY4 -> 2054-06-30 | BB4: =RevReq!AZ4 -> 2055-06-30 | BC4: =RevReq!BA4 -> 2056-06-30 | BD4: =RevReq!BB4 -> 2057-06-30 | BE4: =RevReq!BC4 -> 2058-06-30 | BF4: =RevReq!BD4 -> 2059-06-30 | BG4: =RevReq!BE4 -> 2060-06-30 | BH4: =RevReq!BF4 -> 2061-06-30 | BI4: =RevReq!BG4 -> 2062-06-30 | BJ4: =RevReq!BH4 -> 2063-06-30 | BK4: =RevReq!BI4 -> 2064-06-30
D5: Discount Factor | F5: =Assumptions!$G$23 -> 0.07535560255 | M5: =(1+$F5)^(($F$4-M$4)/365) -> 1 | N5: =(1+$F5)^(($F$4-N$4)/365) -> 0.9646141207 | O5: 0.8968402042 | P5: 0.833994078 | Q5: 0.7755518974 | R5: 0.7212050559 | S5: 0.6705330927 | T5: 0.6235454497 | U5: 0.5798504682 | V5: 0.539217415 | W5: 0.5013319277 | X5: 0.4662010655 | Y5: 0.4335320004 | Z5: 0.4031522218 | AA5: 0.3748266931 | AB5: 0.3485606921 | AC5: 0.3241352826 | AD5: 0.301421485 | AE5: 0.2802435713 | AF5: 0.2606054878 | AG5: 0.242343544 | AH5: 0.2253613069 | AI5: 0.2095273915 | AJ5: 0.1948447481 | AK5: 0.1811909918 | AL5: 0.1684940231 | AM5: 0.1566556107 | AN5: 0.1456779602 | AO5: 0.1354695692 | AP5: 0.1259765317 | AQ5: 0.1171254038 | AR5: 0.1089178348 | AS5: 0.1012854116 | AT5: 0.09418783082 | AU5: 0.0875701813 | AV5: 0.08143369606 | AW5: 0.07572722537 | AX5: 0.07042063591 | AY5: 0.06547287267 | AZ5: 0.06088485754 | BA5: 0.05661834783 | BB5: 0.05265081401 | BC5: 0.04895156082 | BD5: 0.04552127752 | BE5: 0.04233137151 | BF5: 0.03936499834 | BG5: 0.03659920832 | BH5: 0.0340345168 | BI5: 0.03164954618 | BJ5: 0.0294317025 | BK5: 0.02736382717
D7: CAPITAL EXPENDITURES
D9: Capital Expenditures | F9: Const. Start | G9: COD
C10: =C9+1 -> 1 | D10: =Input!C12 -> .05 Compressors | F10: =Input!E12 -> 2014-12-01 | G10: =Input!F12 -> 2015-01-01 | I10: =SUMPRODUCT(M10:BK10,$M$5:$BK$5) -> 286056.248 | J10: =SUM(M10:BK10) -> 286056.248 | M10: =Input!K25 -> 286056.248 | N10: =Input!L25 -> 0 | O10: =Input!M25 -> 0 | P10: =Input!N25 -> 0 | Q10: =Input!O25 -> 0 | R10: =Input!P25 -> 0 | S10: =Input!Q25 -> 0 | T10: =Input!R25 -> 0 | U10: =Input!S25 -> 0 | V10: =Input!T25 -> 0 | W10: =Input!U25 -> 0 | X10: =Input!V25 -> 0 | Y10: =Input!W25 -> 0 | Z10: =Input!X25 -> 0 | AA10: =Input!Y25 -> 0 | AB10: =Input!Z25 -> 0 | AC10: =Input!AA25 -> 0 | AD10: =Input!AB25 -> 0 | AE10: =Input!AC25 -> 0 | AF10: =Input!AD25 -> 0 | AG10: =Input!AE25 -> 0 | AH10: =Input!AF25 -> 0 | AI10: =Input!AG25 -> 0 | AJ10: =Input!AH25 -> 0 | AK10: =Input!AI25 -> 0 | AL10: =Input!AJ25 -> 0 | AM10: =Input!AK25 -> 0 | AN10: =Input!AL25 -> 0 | AO10: =Input!AM25 -> 0 | AP10: =Input!AN25 -> 0 | AQ10: =Input!AO25 -> 0 | AR10: =Input!AP25 -> 0 | AS10: =Input!AQ25 -> 0 | AT10: =Input!AR25 -> 0 | AU10: =Input!AS25 -> 0 | AV10: =Input!AT25 -> 0 | AW10: =Input!AU25 -> 0 | AX10: =Input!AV25 -> 0 | AY10: =Input!AW25 -> 0 | AZ10: =Input!AX25 -> 0 | BA10: =Input!AY25 -> 0 | BB10: =Input!AZ25 -> 0 | BC10: =Input!BA25 -> 0 | BD10: =Input!BB25 -> 0 | BE10: =Input!BC25 -> 0 | BF10: =Input!BD25 -> 0 | BG10: =Input!BE25 -> 0 | BH10: =Input!BF25 -> 0 | BI10: =Input!BG25 -> 0 | BJ10: =Input!BH25 -> 0 | BK10: =Input!BI25 -> 0
C11: =C10+1 -> 2 | D11: =Input!C13 -> Installation Costs | F11: =Input!E13 -> 2014-12-01 | G11: =Input!F13 -> 2015-01-01 | I11: =SUMPRODUCT(M11:BK11,$M$5:$BK$5) -> 33956.1671 | J11: =SUM(M11:BK11) -> 38735.37426 | M11: =Input!K26 -> 0 | N11: =Input!L26 -> 2758.179144 | O11: =Input!M26 -> 20539.38648 | P11: =Input!N26 -> 15437.80864 | Q11: =Input!O26 -> 0 | R11: =Input!P26 -> 0 | S11: =Input!Q26 -> 0 | T11: =Input!R26 -> 0 | U11: =Input!S26 -> 0 | V11: =Input!T26 -> 0 | W11: =Input!U26 -> 0 | X11: =Input!V26 -> 0 | Y11: =Input!W26 -> 0 | Z11: =Input!X26 -> 0 | AA11: =Input!Y26 -> 0 | AB11: =Input!Z26 -> 0 | AC11: =Input!AA26 -> 0 | AD11: =Input!AB26 -> 0 | AE11: =Input!AC26 -> 0 | AF11: =Input!AD26 -> 0 | AG11: =Input!AE26 -> 0 | AH11: =Input!AF26 -> 0 | AI11: =Input!AG26 -> 0 | AJ11: =Input!AH26 -> 0 | AK11: =Input!AI26 -> 0 | AL11: =Input!AJ26 -> 0 | AM11: =Input!AK26 -> 0 | AN11: =Input!AL26 -> 0 | AO11: =Input!AM26 -> 0 | AP11: =Input!AN26 -> 0 | AQ11: =Input!AO26 -> 0 | AR11: =Input!AP26 -> 0 | AS11: =Input!AQ26 -> 0 | AT11: =Input!AR26 -> 0 | AU11: =Input!AS26 -> 0 | AV11: =Input!AT26 -> 0 | AW11: =Input!AU26 -> 0 | AX11: =Input!AV26 -> 0 | AY11: =Input!AW26 -> 0 | AZ11: =Input!AX26 -> 0 | BA11: =Input!AY26 -> 0 | BB11: =Input!AZ26 -> 0 | BC11: =Input!BA26 -> 0 | BD11: =Input!BB26 -> 0 | BE11: =Input!BC26 -> 0 | BF11: =Input!BD26 -> 0 | BG11: =Input!BE26 -> 0 | BH11: =Input!BF26 -> 0 | BI11: =Input!BG26 -> 0 | BJ11: =Input!BH26 -> 0 | BK11: =Input!BI26 -> 0
C12: 3 | D12: =Input!C14 -> Avoided Like-Kind Replacements | F12: =Input!E14 -> 2014-12-01 | G12: =Input!F14 -> 2015-01-01 | I12: -139189.8072 | J12: -376923.4266 | M12: =Input!K27 -> 0 | N12: =Input!L27 -> 0 | O12: =Input!M27 -> 0 | P12: =Input!N27 -> 0 | Q12: =Input!O27 -> 0 | R12: =Input!P27 -> 0 | S12: =Input!Q27 -> 0 | T12: =Input!R27 -> 0 | U12: =Input!S27 -> 0 | V12: =Input!T27 -> -12532.6183 | W12: =Input!U27 -> 0 | X12: =Input!V27 -> -79125.56632 | Y12: =Input!W27 -> -13594.17866 | Z12: =Input!X27 -> -13798.26055 | AA12: =Input!Y27 -> -43238.7594 | AB12: =Input!Z27 -> -88007.62813 | AC12: =Input!AA27 -> -60493.71635 | AD12: =Input!AB27 -> -31444.4126 | AE12: =Input!AC27 -> 0 | AF12: =Input!AD27 -> -16639.43165 | AG12: =Input!AE27 -> 0 | AH12: =Input!AF27 -> 0 | AI12: =Input!AG27 -> -18048.85469 | AJ12: =Input!AH27 -> 0 | AK12: =Input!AI27 -> 0 | AL12: =Input!AJ27 -> 0 | AM12: =Input!AK27 -> 0 | AN12: =Input!AL27 -> 0 | AO12: =Input!AM27 -> 0 | AP12: =Input!AN27 -> 0 | AQ12: =Input!AO27 -> 0 | AR12: =Input!AP27 -> 0 | AS12: =Input!AQ27 -> 0 | AT12: =Input!AR27 -> 0 | AU12: =Input!AS27 -> 0 | AV12: =Input!AT27 -> 0 | AW12: =Input!AU27 -> 0 | AX12: =Input!AV27 -> 0 | AY12: =Input!AW27 -> 0 | AZ12: =Input!AX27 -> 0 | BA12: =Input!AY27 -> 0 | BB12: =Input!AZ27 -> 0 | BC12: =Input!BA27 -> 0 | BD12: =Input!BB27 -> 0 | BE12: =Input!BC27 -> 0 | BF12: =Input!BD27 -> 0 | BG12: =Input!BE27 -> 0 | BH12: =Input!BF27 -> 0 | BI12: =Input!BG27 -> 0 | BJ12: =Input!BH27 -> 0 | BK12: =Input!BI27 -> 0
C13: 4 | D13: =Input!C15 -> Tax Effects of Existing Part Retirement | F13: =Input!E15 -> 2014-12-01 | G13: =Input!F15 -> 2015-01-01 | I13: 0 | J13: 0 | M13: =Input!K28 -> 0 | N13: =Input!L28 -> 0 | O13: =Input!M28 -> 0 | P13: =Input!N28 -> 0 | Q13: =Input!O28 -> 0 | R13: =Input!P28 -> 0 | S13: =Input!Q28 -> 0 | T13: =Input!R28 -> 0 | U13: =Input!S28 -> 0 | V13: =Input!T28 -> 0 | W13: =Input!U28 -> 0 | X13: =Input!V28 -> 0 | Y13: =Input!W28 -> 0 | Z13: =Input!X28 -> 0 | AA13: =Input!Y28 -> 0 | AB13: =Input!Z28 -> 0 | AC13: =Input!AA28 -> 0 | AD13: =Input!AB28 -> 0 | AE13: =Input!AC28 -> 0 | AF13: =Input!AD28 -> 0 | AG13: =Input!AE28 -> 0 | AH13: =Input!AF28 -> 0 | AI13: =Input!AG28 -> 0 | AJ13: =Input!AH28 -> 0 | AK13: =Input!AI28 -> 0 | AL13: =Input!AJ28 -> 0 | AM13: =Input!AK28 -> 0 | AN13: =Input!AL28 -> 0 | AO13: =Input!AM28 -> 0 | AP13: =Input!AN28 -> 0 | AQ13: =Input!AO28 -> 0 | AR13: =Input!AP28 -> 0 | AS13: =Input!AQ28 -> 0 | AT13: =Input!AR28 -> 0 | AU13: =Input!AS28 -> 0 | AV13: =Input!AT28 -> 0 | AW13: =Input!AU28 -> 0 | AX13: =Input!AV28 -> 0 | AY13: =Input!AW28 -> 0 | AZ13: =Input!AX28 -> 0 | BA13: =Input!AY28 -> 0 | BB13: =Input!AZ28 -> 0 | BC13: =Input!BA28 -> 0 | BD13: =Input!BB28 -> 0 | BE13: =Input!BC28 -> 0 | BF13: =Input!BD28 -> 0 | BG13: =Input!BE28 -> 0 | BH13: =Input!BF28 -> 0 | BI13: =Input!BG28 -> 0 | BJ13: =Input!BH28 -> 0 | BK13: =Input!BI28 -> 0
C14: 5 | D14: =Input!C16 -> … | F14: =Input!E16 -> 00:00:00 | G14: =Input!F16 -> 00:00:00 | I14: 0 | J14: 0 | M14: =Input!K29 -> 0 | N14: =Input!L29 -> 0 | O14: =Input!M29 -> 0 | P14: =Input!N29 -> 0 | Q14: =Input!O29 -> 0 | R14: =Input!P29 -> 0 | S14: =Input!Q29 -> 0 | T14: =Input!R29 -> 0 | U14: =Input!S29 -> 0 | V14: =Input!T29 -> 0 | W14: =Input!U29 -> 0 | X14: =Input!V29 -> 0 | Y14: =Input!W29 -> 0 | Z14: =Input!X29 -> 0 | AA14: =Input!Y29 -> 0 | AB14: =Input!Z29 -> 0 | AC14: =Input!AA29 -> 0 | AD14: =Input!AB29 -> 0 | AE14: =Input!AC29 -> 0 | AF14: =Input!AD29 -> 0 | AG14: =Input!AE29 -> 0 | AH14: =Input!AF29 -> 0 | AI14: =Input!AG29 -> 0 | AJ14: =Input!AH29 -> 0 | AK14: =Input!AI29 -> 0 | AL14: =Input!AJ29 -> 0 | AM14: =Input!AK29 -> 0 | AN14: =Input!AL29 -> 0 | AO14: =Input!AM29 -> 0 | AP14: =Input!AN29 -> 0 | AQ14: =Input!AO29 -> 0 | AR14: =Input!AP29 -> 0 | AS14: =Input!AQ29 -> 0 | AT14: =Input!AR29 -> 0 | AU14: =Input!AS29 -> 0 | AV14: =Input!AT29 -> 0 | AW14: =Input!AU29 -> 0 | AX14: =Input!AV29 -> 0 | AY14: =Input!AW29 -> 0 | AZ14: =Input!AX29 -> 0 | BA14: =Input!AY29 -> 0 | BB14: =Input!AZ29 -> 0 | BC14: =Input!BA29 -> 0 | BD14: =Input!BB29 -> 0 | BE14: =Input!BC29 -> 0 | BF14: =Input!BD29 -> 0 | BG14: =Input!BE29 -> 0 | BH14: =Input!BF29 -> 0 | BI14: =Input!BG29 -> 0 | BJ14: =Input!BH29 -> 0 | BK14: =Input!BI29 -> 0
C15: 6 | D15: =Input!C17 -> … | F15: =Input!E17 -> 00:00:00 | G15: =Input!F17 -> 00:00:00 | I15: 0 | J15: 0 | M15: =Input!K30 -> 0 | N15: =Input!L30 -> 0 | O15: =Input!M30 -> 0 | P15: =Input!N30 -> 0 | Q15: =Input!O30 -> 0 | R15: =Input!P30 -> 0 | S15: =Input!Q30 -> 0 | T15: =Input!R30 -> 0 | U15: =Input!S30 -> 0 | V15: =Input!T30 -> 0 | W15: =Input!U30 -> 0 | X15: =Input!V30 -> 0 | Y15: =Input!W30 -> 0 | Z15: =Input!X30 -> 0 | AA15: =Input!Y30 -> 0 | AB15: =Input!Z30 -> 0 | AC15: =Input!AA30 -> 0 | AD15: =Input!AB30 -> 0 | AE15: =Input!AC30 -> 0 | AF15: =Input!AD30 -> 0 | AG15: =Input!AE30 -> 0 | AH15: =Input!AF30 -> 0 | AI15: =Input!AG30 -> 0 | AJ15: =Input!AH30 -> 0 | AK15: =Input!AI30 -> 0 | AL15: =Input!AJ30 -> 0 | AM15: =Input!AK30 -> 0 | AN15: =Input!AL30 -> 0 | AO15: =Input!AM30 -> 0 | AP15: =Input!AN30 -> 0 | AQ15: =Input!AO30 -> 0 | AR15: =Input!AP30 -> 0 | AS15: =Input!AQ30 -> 0 | AT15: =Input!AR30 -> 0 | AU15: =Input!AS30 -> 0 | AV15: =Input!AT30 -> 0 | AW15: =Input!AU30 -> 0 | AX15: =Input!AV30 -> 0 | AY15: =Input!AW30 -> 0 | AZ15: =Input!AX30 -> 0 | BA15: =Input!AY30 -> 0 | BB15: =Input!AZ30 -> 0 | BC15: =Input!BA30 -> 0 | BD15: =Input!BB30 -> 0 | BE15: =Input!BC30 -> 0 | BF15: =Input!BD30 -> 0 | BG15: =Input!BE30 -> 0 | BH15: =Input!BF30 -> 0 | BI15: =Input!BG30 -> 0 | BJ15: =Input!BH30 -> 0 | BK15: =Input!BI30 -> 0
C16: 7 | D16: =Input!C18 -> … | F16: =Input!E18 -> 00:00:00 | G16: =Input!F18 -> 00:00:00 | I16: 0 | J16: 0 | M16: =Input!K31 -> 0 | N16: =Input!L31 -> 0 | O16: =Input!M31 -> 0 | P16: =Input!N31 -> 0 | Q16: =Input!O31 -> 0 | R16: =Input!P31 -> 0 | S16: =Input!Q31 -> 0 | T16: =Input!R31 -> 0 | U16: =Input!S31 -> 0 | V16: =Input!T31 -> 0 | W16: =Input!U31 -> 0 | X16: =Input!V31 -> 0 | Y16: =Input!W31 -> 0 | Z16: =Input!X31 -> 0 | AA16: =Input!Y31 -> 0 | AB16: =Input!Z31 -> 0 | AC16: =Input!AA31 -> 0 | AD16: =Input!AB31 -> 0 | AE16: =Input!AC31 -> 0 | AF16: =Input!AD31 -> 0 | AG16: =Input!AE31 -> 0 | AH16: =Input!AF31 -> 0 | AI16: =Input!AG31 -> 0 | AJ16: =Input!AH31 -> 0 | AK16: =Input!AI31 -> 0 | AL16: =Input!AJ31 -> 0 | AM16: =Input!AK31 -> 0 | AN16: =Input!AL31 -> 0 | AO16: =Input!AM31 -> 0 | AP16: =Input!AN31 -> 0 | AQ16: =Input!AO31 -> 0 | AR16: =Input!AP31 -> 0 | AS16: =Input!AQ31 -> 0 | AT16: =Input!AR31 -> 0 | AU16: =Input!AS31 -> 0 | AV16: =Input!AT31 -> 0 | AW16: =Input!AU31 -> 0 | AX16: =Input!AV31 -> 0 | AY16: =Input!AW31 -> 0 | AZ16: =Input!AX31 -> 0 | BA16: =Input!AY31 -> 0 | BB16: =Input!AZ31 -> 0 | BC16: =Input!BA31 -> 0 | BD16: =Input!BB31 -> 0 | BE16: =Input!BC31 -> 0 | BF16: =Input!BD31 -> 0 | BG16: =Input!BE31 -> 0 | BH16: =Input!BF31 -> 0 | BI16: =Input!BG31 -> 0 | BJ16: =Input!BH31 -> 0 | BK16: =Input!BI31 -> 0
C17: 8 | D17: =Input!C19 -> … | F17: =Input!E19 -> 00:00:00 | G17: =Input!F19 -> 00:00:00 | I17: 0 | J17: 0 | M17: =Input!K32 -> 0 | N17: =Input!L32 -> 0 | O17: =Input!M32 -> 0 | P17: =Input!N32 -> 0 | Q17: =Input!O32 -> 0 | R17: =Input!P32 -> 0 | S17: =Input!Q32 -> 0 | T17: =Input!R32 -> 0 | U17: =Input!S32 -> 0 | V17: =Input!T32 -> 0 | W17: =Input!U32 -> 0 | X17: =Input!V32 -> 0 | Y17: =Input!W32 -> 0 | Z17: =Input!X32 -> 0 | AA17: =Input!Y32 -> 0 | AB17: =Input!Z32 -> 0 | AC17: =Input!AA32 -> 0 | AD17: =Input!AB32 -> 0 | AE17: =Input!AC32 -> 0 | AF17: =Input!AD32 -> 0 | AG17: =Input!AE32 -> 0 | AH17: =Input!AF32 -> 0 | AI17: =Input!AG32 -> 0 | AJ17: =Input!AH32 -> 0 | AK17: =Input!AI32 -> 0 | AL17: =Input!AJ32 -> 0 | AM17: =Input!AK32 -> 0 | AN17: =Input!AL32 -> 0 | AO17: =Input!AM32 -> 0 | AP17: =Input!AN32 -> 0 | AQ17: =Input!AO32 -> 0 | AR17: =Input!AP32 -> 0 | AS17: =Input!AQ32 -> 0 | AT17: =Input!AR32 -> 0 | AU17: =Input!AS32 -> 0 | AV17: =Input!AT32 -> 0 | AW17: =Input!AU32 -> 0 | AX17: =Input!AV32 -> 0 | AY17: =Input!AW32 -> 0 | AZ17: =Input!AX32 -> 0 | BA17: =Input!AY32 -> 0 | BB17: =Input!AZ32 -> 0 | BC17: =Input!BA32 -> 0 | BD17: =Input!BB32 -> 0 | BE17: =Input!BC32 -> 0 | BF17: =Input!BD32 -> 0 | BG17: =Input!BE32 -> 0 | BH17: =Input!BF32 -> 0 | BI17: =Input!BG32 -> 0 | BJ17: =Input!BH32 -> 0 | BK17: =Input!BI32 -> 0
C18: 9 | D18: =Input!C20 -> … | F18: =Input!E20 -> 00:00:00 | G18: =Input!F20 -> 00:00:00 | I18: 0 | J18: 0 | M18: =Input!K33 -> 0 | N18: =Input!L33 -> 0 | O18: =Input!M33 -> 0 | P18: =Input!N33 -> 0 | Q18: =Input!O33 -> 0 | R18: =Input!P33 -> 0 | S18: =Input!Q33 -> 0 | T18: =Input!R33 -> 0 | U18: =Input!S33 -> 0 | V18: =Input!T33 -> 0 | W18: =Input!U33 -> 0 | X18: =Input!V33 -> 0 | Y18: =Input!W33 -> 0 | Z18: =Input!X33 -> 0 | AA18: =Input!Y33 -> 0 | AB18: =Input!Z33 -> 0 | AC18: =Input!AA33 -> 0 | AD18: =Input!AB33 -> 0 | AE18: =Input!AC33 -> 0 | AF18: =Input!AD33 -> 0 | AG18: =Input!AE33 -> 0 | AH18: =Input!AF33 -> 0 | AI18: =Input!AG33 -> 0 | AJ18: =Input!AH33 -> 0 | AK18: =Input!AI33 -> 0 | AL18: =Input!AJ33 -> 0 | AM18: =Input!AK33 -> 0 | AN18: =Input!AL33 -> 0 | AO18: =Input!AM33 -> 0 | AP18: =Input!AN33 -> 0 | AQ18: =Input!AO33 -> 0 | AR18: =Input!AP33 -> 0 | AS18: =Input!AQ33 -> 0 | AT18: =Input!AR33 -> 0 | AU18: =Input!AS33 -> 0 | AV18: =Input!AT33 -> 0 | AW18: =Input!AU33 -> 0 | AX18: =Input!AV33 -> 0 | AY18: =Input!AW33 -> 0 | AZ18: =Input!AX33 -> 0 | BA18: =Input!AY33 -> 0 | BB18: =Input!AZ33 -> 0 | BC18: =Input!BA33 -> 0 | BD18: =Input!BB33 -> 0 | BE18: =Input!BC33 -> 0 | BF18: =Input!BD33 -> 0 | BG18: =Input!BE33 -> 0 | BH18: =Input!BF33 -> 0 | BI18: =Input!BG33 -> 0 | BJ18: =Input!BH33 -> 0 | BK18: =Input!BI33 -> 0
C19: 10 | D19: =Input!C21 -> … | F19: =Input!E21 -> 00:00:00 | G19: =Input!F21 -> 00:00:00 | I19: 0 | J19: 0 | M19: =Input!K34 -> 0 | N19: =Input!L34 -> 0 | O19: =Input!M34 -> 0 | P19: =Input!N34 -> 0 | Q19: =Input!O34 -> 0 | R19: =Input!P34 -> 0 | S19: =Input!Q34 -> 0 | T19: =Input!R34 -> 0 | U19: =Input!S34 -> 0 | V19: =Input!T34 -> 0 | W19: =Input!U34 -> 0 | X19: =Input!V34 -> 0 | Y19: =Input!W34 -> 0 | Z19: =Input!X34 -> 0 | AA19: =Input!Y34 -> 0 | AB19: =Input!Z34 -> 0 | AC19: =Input!AA34 -> 0 | AD19: =Input!AB34 -> 0 | AE19: =Input!AC34 -> 0 | AF19: =Input!AD34 -> 0 | AG19: =Input!AE34 -> 0 | AH19: =Input!AF34 -> 0 | AI19: =Input!AG34 -> 0 | AJ19: =Input!AH34 -> 0 | AK19: =Input!AI34 -> 0 | AL19: =Input!AJ34 -> 0 | AM19: =Input!AK34 -> 0 | AN19: =Input!AL34 -> 0 | AO19: =Input!AM34 -> 0 | AP19: =Input!AN34 -> 0 | AQ19: =Input!AO34 -> 0 | AR19: =Input!AP34 -> 0 | AS19: =Input!AQ34 -> 0 | AT19: =Input!AR34 -> 0 | AU19: =Input!AS34 -> 0 | AV19: =Input!AT34 -> 0 | AW19: =Input!AU34 -> 0 | AX19: =Input!AV34 -> 0 | AY19: =Input!AW34 -> 0 | AZ19: =Input!AX34 -> 0 | BA19: =Input!AY34 -> 0 | BB19: =Input!AZ34 -> 0 | BC19: =Input!BA34 -> 0 | BD19: =Input!BB34 -> 0 | BE19: =Input!BC34 -> 0 | BF19: =Input!BD34 -> 0 | BG19: =Input!BE34 -> 0 | BH19: =Input!BF34 -> 0 | BI19: =Input!BG34 -> 0 | BJ19: =Input!BH34 -> 0 | BK19: =Input!BI34 -> 0
D20: =D9 -> Capital Expenditures | I20: =SUM(I10:I19) -> 180822.6079 | J20: =SUM(J10:J19) -> -52131.80438 | M20: =SUM(M10:M19) -> 286056.248 | N20: 2758.179144 | O20: 20539.38648 | P20: 15437.80864 | Q20: 0 | R20: 0 | S20: 0 | T20: 0 | U20: 0 | V20: -12532.6183 | W20: 0 | X20: -79125.56632 | Y20: -13594.17866 | Z20: -13798.26055 | AA20: -43238.7594 | AB20: -88007.62813 | AC20: -60493.71635 | AD20: -31444.4126 | AE20: 0 | AF20: -16639.43165 | AG20: 0 | AH20: 0 | AI20: -18048.85469 | AJ20: 0 | AK20: 0 | AL20: 0 | AM20: 0 | AN20: 0 | AO20: 0 | AP20: =SUM(AP10:AP19) -> 0 | AQ20: 0 | AR20: 0 | AS20: 0 | AT20: 0 | AU20: 0 | AV20: 0 | AW20: 0 | AX20: 0 | AY20: 0 | AZ20: 0 | BA20: 0 | BB20: 0 | BC20: 0 | BD20: 0 | BE20: 0 | BF20: 0 | BG20: 0 | BH20: 0 | BI20: 0 | BJ20: 0 | BK20: 0
D22: Sale/Reassignment (Land) | F22: Year of Sale | G22: Appreciation
C23: =C22+1 -> 1 | D23: =D10 -> .05 Compressors | F23: =IF(F70="Land",Input!$E$64,"NA") -> NA | G23: =IF(F70="Land",Input!$E$65,"NA") -> NA | J23: =SUM(M23:BA23) -> 0 | M23: =IFERROR(SUM($M10:$BA10*(1+$G23)^($F23-$M$3:$BA$3))*(M$3=$F23),0) -> 0 | N23: =IFERROR(SUM($M10:$BA10*(1+$G23)^($F23-$M$3:$BA$3))*(N$3=$F23),0) -> 0 | O23: =IFERROR(SUM($M10:$BA10*(1+$G23)^($F23-$M$3:$BA$3))*(O$3=$F23),0) -> 0 | P23: =IFERROR(SUM($M10:$BA10*(1+$G23)^($F23-$M$3:$BA$3))*(P$3=$F23),0) -> 0 | Q23: =IFERROR(SUM($M10:$BA10*(1+$G23)^($F23-$M$3:$BA$3))*(Q$3=$F23),0) -> 0 | R23: =IFERROR(SUM($M10:$BA10*(1+$G23)^($F23-$M$3:$BA$3))*(R$3=$F23),0) -> 0 | S23: =IFERROR(SUM($M10:$BA10*(1+$G23)^($F23-$M$3:$BA$3))*(S$3=$F23),0) -> 0 | T23: =IFERROR(SUM($M10:$BA10*(1+$G23)^($F23-$M$3:$BA$3))*(T$3=$F23),0) -> 0 | U23: =IFERROR(SUM($M10:$BA10*(1+$G23)^($F23-$M$3:$BA$3))*(U$3=$F23),0) -> 0 | V23: =IFERROR(SUM($M10:$BA10*(1+$G23)^($F23-$M$3:$BA$3))*(V$3=$F23),0) -> 0 | W23: =IFERROR(SUM($M10:$BA10*(1+$G23)^($F23-$M$3:$BA$3))*(W$3=$F23),0) -> 0 | X23: =IFERROR(SUM($M10:$BA10*(1+$G23)^($F23-$M$3:$BA$3))*(X$3=$F23),0) -> 0 | Y23: =IFERROR(SUM($M10:$BA10*(1+$G23)^($F23-$M$3:$BA$3))*(Y$3=$F23),0) -> 0 | Z23: =IFERROR(SUM($M10:$BA10*(1+$G23)^($F23-$M$3:$BA$3))*(Z$3=$F23),0) -> 0 | AA23: =IFERROR(SUM($M10:$BA10*(1+$G23)^($F23-$M$3:$BA$3))*(AA$3=$F23),0) -> 0 | AB23: =IFERROR(SUM($M10:$BA10*(1+$G23)^($F23-$M$3:$BA$3))*(AB$3=$F23),0) -> 0 | AC23: =IFERROR(SUM($M10:$BA10*(1+$G23)^($F23-$M$3:$BA$3))*(AC$3=$F23),0) -> 0 | AD23: =IFERROR(SUM($M10:$BA10*(1+$G23)^($F23-$M$3:$BA$3))*(AD$3=$F23),0) -> 0 | AE23: =IFERROR(SUM($M10:$BA10*(1+$G23)^($F23-$M$3:$BA$3))*(AE$3=$F23),0) -> 0 | AF23: =IFERROR(SUM($M10:$BA10*(1+$G23)^($F23-$M$3:$BA$3))*(AF$3=$F23),0) -> 0 | AG23: =IFERROR(SUM($M10:$BA10*(1+$G23)^($F23-$M$3:$BA$3))*(AG$3=$F23),0) -> 0 | AH23: =IFERROR(SUM($M10:$BA10*(1+$G23)^($F23-$M$3:$BA$3))*(AH$3=$F23),0) -> 0 | AI23: =IFERROR(SUM($M10:$BA10*(1+$G23)^($F23-$M$3:$BA$3))*(AI$3=$F23),0) -> 0 | AJ23: =IFERROR(SUM($M10:$BA10*(1+$G23)^($F23-$M$3:$BA$3))*(AJ$3=$F23),0) -> 0 | AK23: =IFERROR(SUM($M10:$BA10*(1+$G23)^($F23-$M$3:$BA$3))*(AK$3=$F23),0) -> 0 | AL23: =IFERROR(SUM($M10:$BA10*(1+$G23)^($F23-$M$3:$BA$3))*(AL$3=$F23),0) -> 0 | AM23: =IFERROR(SUM($M10:$BA10*(1+$G23)^($F23-$M$3:$BA$3))*(AM$3=$F23),0) -> 0 | AN23: =IFERROR(SUM($M10:$BA10*(1+$G23)^($F23-$M$3:$BA$3))*(AN$3=$F23),0) -> 0 | AO23: =IFERROR(SUM($M10:$BA10*(1+$G23)^($F23-$M$3:$BA$3))*(AO$3=$F23),0) -> 0 | AP23: =IFERROR(SUM($M10:$BA10*(1+$G23)^($F23-$M$3:$BA$3))*(AP$3=$F23),0) -> 0 | AQ23: =IFERROR(SUM($M10:$BA10*(1+$G23)^($F23-$M$3:$BA$3))*(AQ$3=$F23),0) -> 0 | AR23: =IFERROR(SUM($M10:$BA10*(1+$G23)^($F23-$M$3:$BA$3))*(AR$3=$F23),0) -> 0 | AS23: =IFERROR(SUM($M10:$BA10*(1+$G23)^($F23-$M$3:$BA$3))*(AS$3=$F23),0) -> 0 | AT23: =IFERROR(SUM($M10:$BA10*(1+$G23)^($F23-$M$3:$BA$3))*(AT$3=$F23),0) -> 0 | AU23: =IFERROR(SUM($M10:$BA10*(1+$G23)^($F23-$M$3:$BA$3))*(AU$3=$F23),0) -> 0 | AV23: =IFERROR(SUM($M10:$BA10*(1+$G23)^($F23-$M$3:$BA$3))*(AV$3=$F23),0) -> 0 | AW23: =IFERROR(SUM($M10:$BA10*(1+$G23)^($F23-$M$3:$BA$3))*(AW$3=$F23),0) -> 0 | AX23: =IFERROR(SUM($M10:$BA10*(1+$G23)^($F23-$M$3:$BA$3))*(AX$3=$F23),0) -> 0 | AY23: =IFERROR(SUM($M10:$BA10*(1+$G23)^($F23-$M$3:$BA$3))*(AY$3=$F23),0) -> 0 | AZ23: =IFERROR(SUM($M10:$BA10*(1+$G23)^($F23-$M$3:$BA$3))*(AZ$3=$F23),0) -> 0 | BA23: =IFERROR(SUM($M10:$BA10*(1+$G23)^($F23-$M$3:$BA$3))*(BA$3=$F23),0) -> 0
C24: =C23+1 -> 2 | D24: =D11 -> Installation Costs | F24: =IF(F71="Land",Input!$E$64,"NA") -> NA | G24: =IF(F71="Land",Input!$E$65,"NA") -> NA | J24: =SUM(M24:BA24) -> 0 | M24: =IFERROR(SUM($M11:$BA11*(1+$G24)^($F24-$M$3:$BA$3))*(M$3=$F24),0) -> 0 | N24: =IFERROR(SUM($M11:$BA11*(1+$G24)^($F24-$M$3:$BA$3))*(N$3=$F24),0) -> 0 | O24: =IFERROR(SUM($M11:$BA11*(1+$G24)^($F24-$M$3:$BA$3))*(O$3=$F24),0) -> 0 | P24: =IFERROR(SUM($M11:$BA11*(1+$G24)^($F24-$M$3:$BA$3))*(P$3=$F24),0) -> 0 | Q24: =IFERROR(SUM($M11:$BA11*(1+$G24)^($F24-$M$3:$BA$3))*(Q$3=$F24),0) -> 0 | R24: =IFERROR(SUM($M11:$BA11*(1+$G24)^($F24-$M$3:$BA$3))*(R$3=$F24),0) -> 0 | S24: =IFERROR(SUM($M11:$BA11*(1+$G24)^($F24-$M$3:$BA$3))*(S$3=$F24),0) -> 0 | T24: =IFERROR(SUM($M11:$BA11*(1+$G24)^($F24-$M$3:$BA$3))*(T$3=$F24),0) -> 0 | U24: =IFERROR(SUM($M11:$BA11*(1+$G24)^($F24-$M$3:$BA$3))*(U$3=$F24),0) -> 0 | V24: =IFERROR(SUM($M11:$BA11*(1+$G24)^($F24-$M$3:$BA$3))*(V$3=$F24),0) -> 0 | W24: =IFERROR(SUM($M11:$BA11*(1+$G24)^($F24-$M$3:$BA$3))*(W$3=$F24),0) -> 0 | X24: =IFERROR(SUM($M11:$BA11*(1+$G24)^($F24-$M$3:$BA$3))*(X$3=$F24),0) -> 0 | Y24: =IFERROR(SUM($M11:$BA11*(1+$G24)^($F24-$M$3:$BA$3))*(Y$3=$F24),0) -> 0 | Z24: =IFERROR(SUM($M11:$BA11*(1+$G24)^($F24-$M$3:$BA$3))*(Z$3=$F24),0) -> 0 | AA24: =IFERROR(SUM($M11:$BA11*(1+$G24)^($F24-$M$3:$BA$3))*(AA$3=$F24),0) -> 0 | AB24: =IFERROR(SUM($M11:$BA11*(1+$G24)^($F24-$M$3:$BA$3))*(AB$3=$F24),0) -> 0 | AC24: =IFERROR(SUM($M11:$BA11*(1+$G24)^($F24-$M$3:$BA$3))*(AC$3=$F24),0) -> 0 | AD24: =IFERROR(SUM($M11:$BA11*(1+$G24)^($F24-$M$3:$BA$3))*(AD$3=$F24),0) -> 0 | AE24: =IFERROR(SUM($M11:$BA11*(1+$G24)^($F24-$M$3:$BA$3))*(AE$3=$F24),0) -> 0 | AF24: =IFERROR(SUM($M11:$BA11*(1+$G24)^($F24-$M$3:$BA$3))*(AF$3=$F24),0) -> 0 | AG24: =IFERROR(SUM($M11:$BA11*(1+$G24)^($F24-$M$3:$BA$3))*(AG$3=$F24),0) -> 0 | AH24: =IFERROR(SUM($M11:$BA11*(1+$G24)^($F24-$M$3:$BA$3))*(AH$3=$F24),0) -> 0 | AI24: =IFERROR(SUM($M11:$BA11*(1+$G24)^($F24-$M$3:$BA$3))*(AI$3=$F24),0) -> 0 | AJ24: =IFERROR(SUM($M11:$BA11*(1+$G24)^($F24-$M$3:$BA$3))*(AJ$3=$F24),0) -> 0 | AK24: =IFERROR(SUM($M11:$BA11*(1+$G24)^($F24-$M$3:$BA$3))*(AK$3=$F24),0) -> 0 | AL24: =IFERROR(SUM($M11:$BA11*(1+$G24)^($F24-$M$3:$BA$3))*(AL$3=$F24),0) -> 0 | AM24: =IFERROR(SUM($M11:$BA11*(1+$G24)^($F24-$M$3:$BA$3))*(AM$3=$F24),0) -> 0 | AN24: =IFERROR(SUM($M11:$BA11*(1+$G24)^($F24-$M$3:$BA$3))*(AN$3=$F24),0) -> 0 | AO24: =IFERROR(SUM($M11:$BA11*(1+$G24)^($F24-$M$3:$BA$3))*(AO$3=$F24),0) -> 0 | AP24: =IFERROR(SUM($M11:$BA11*(1+$G24)^($F24-$M$3:$BA$3))*(AP$3=$F24),0) -> 0 | AQ24: =IFERROR(SUM($M11:$BA11*(1+$G24)^($F24-$M$3:$BA$3))*(AQ$3=$F24),0) -> 0 | AR24: =IFERROR(SUM($M11:$BA11*(1+$G24)^($F24-$M$3:$BA$3))*(AR$3=$F24),0) -> 0 | AS24: =IFERROR(SUM($M11:$BA11*(1+$G24)^($F24-$M$3:$BA$3))*(AS$3=$F24),0) -> 0 | AT24: =IFERROR(SUM($M11:$BA11*(1+$G24)^($F24-$M$3:$BA$3))*(AT$3=$F24),0) -> 0 | AU24: =IFERROR(SUM($M11:$BA11*(1+$G24)^($F24-$M$3:$BA$3))*(AU$3=$F24),0) -> 0 | AV24: =IFERROR(SUM($M11:$BA11*(1+$G24)^($F24-$M$3:$BA$3))*(AV$3=$F24),0) -> 0 | AW24: =IFERROR(SUM($M11:$BA11*(1+$G24)^($F24-$M$3:$BA$3))*(AW$3=$F24),0) -> 0 | AX24: =IFERROR(SUM($M11:$BA11*(1+$G24)^($F24-$M$3:$BA$3))*(AX$3=$F24),0) -> 0 | AY24: =IFERROR(SUM($M11:$BA11*(1+$G24)^($F24-$M$3:$BA$3))*(AY$3=$F24),0) -> 0 | AZ24: =IFERROR(SUM($M11:$BA11*(1+$G24)^($F24-$M$3:$BA$3))*(AZ$3=$F24),0) -> 0 | BA24: =IFERROR(SUM($M11:$BA11*(1+$G24)^($F24-$M$3:$BA$3))*(BA$3=$F24),0) -> 0
C25: 3 | D25: Avoided Like-Kind Replacements | F25: =IF(F72="Land",Input!$E$64,"NA") -> NA | G25: =IF(F72="Land",Input!$E$65,"NA") -> NA | J25: 0 | M25: =IFERROR(SUM($M12:$BA12*(1+$G25)^($F25-$M$3:$BA$3))*(M$3=$F25),0) -> 0 | N25: =IFERROR(SUM($M12:$BA12*(1+$G25)^($F25-$M$3:$BA$3))*(N$3=$F25),0) -> 0 | O25: =IFERROR(SUM($M12:$BA12*(1+$G25)^($F25-$M$3:$BA$3))*(O$3=$F25),0) -> 0 | P25: =IFERROR(SUM($M12:$BA12*(1+$G25)^($F25-$M$3:$BA$3))*(P$3=$F25),0) -> 0 | Q25: =IFERROR(SUM($M12:$BA12*(1+$G25)^($F25-$M$3:$BA$3))*(Q$3=$F25),0) -> 0 | R25: =IFERROR(SUM($M12:$BA12*(1+$G25)^($F25-$M$3:$BA$3))*(R$3=$F25),0) -> 0 | S25: =IFERROR(SUM($M12:$BA12*(1+$G25)^($F25-$M$3:$BA$3))*(S$3=$F25),0) -> 0 | T25: =IFERROR(SUM($M12:$BA12*(1+$G25)^($F25-$M$3:$BA$3))*(T$3=$F25),0) -> 0 | U25: =IFERROR(SUM($M12:$BA12*(1+$G25)^($F25-$M$3:$BA$3))*(U$3=$F25),0) -> 0 | V25: =IFERROR(SUM($M12:$BA12*(1+$G25)^($F25-$M$3:$BA$3))*(V$3=$F25),0) -> 0 | W25: =IFERROR(SUM($M12:$BA12*(1+$G25)^($F25-$M$3:$BA$3))*(W$3=$F25),0) -> 0 | X25: =IFERROR(SUM($M12:$BA12*(1+$G25)^($F25-$M$3:$BA$3))*(X$3=$F25),0) -> 0 | Y25: =IFERROR(SUM($M12:$BA12*(1+$G25)^($F25-$M$3:$BA$3))*(Y$3=$F25),0) -> 0 | Z25: =IFERROR(SUM($M12:$BA12*(1+$G25)^($F25-$M$3:$BA$3))*(Z$3=$F25),0) -> 0 | AA25: =IFERROR(SUM($M12:$BA12*(1+$G25)^($F25-$M$3:$BA$3))*(AA$3=$F25),0) -> 0 | AB25: =IFERROR(SUM($M12:$BA12*(1+$G25)^($F25-$M$3:$BA$3))*(AB$3=$F25),0) -> 0 | AC25: =IFERROR(SUM($M12:$BA12*(1+$G25)^($F25-$M$3:$BA$3))*(AC$3=$F25),0) -> 0 | AD25: =IFERROR(SUM($M12:$BA12*(1+$G25)^($F25-$M$3:$BA$3))*(AD$3=$F25),0) -> 0 | AE25: =IFERROR(SUM($M12:$BA12*(1+$G25)^($F25-$M$3:$BA$3))*(AE$3=$F25),0) -> 0 | AF25: =IFERROR(SUM($M12:$BA12*(1+$G25)^($F25-$M$3:$BA$3))*(AF$3=$F25),0) -> 0 | AG25: =IFERROR(SUM($M12:$BA12*(1+$G25)^($F25-$M$3:$BA$3))*(AG$3=$F25),0) -> 0 | AH25: =IFERROR(SUM($M12:$BA12*(1+$G25)^($F25-$M$3:$BA$3))*(AH$3=$F25),0) -> 0 | AI25: =IFERROR(SUM($M12:$BA12*(1+$G25)^($F25-$M$3:$BA$3))*(AI$3=$F25),0) -> 0 | AJ25: =IFERROR(SUM($M12:$BA12*(1+$G25)^($F25-$M$3:$BA$3))*(AJ$3=$F25),0) -> 0 | AK25: =IFERROR(SUM($M12:$BA12*(1+$G25)^($F25-$M$3:$BA$3))*(AK$3=$F25),0) -> 0 | AL25: =IFERROR(SUM($M12:$BA12*(1+$G25)^($F25-$M$3:$BA$3))*(AL$3=$F25),0) -> 0 | AM25: =IFERROR(SUM($M12:$BA12*(1+$G25)^($F25-$M$3:$BA$3))*(AM$3=$F25),0) -> 0 | AN25: =IFERROR(SUM($M12:$BA12*(1+$G25)^($F25-$M$3:$BA$3))*(AN$3=$F25),0) -> 0 | AO25: =IFERROR(SUM($M12:$BA12*(1+$G25)^($F25-$M$3:$BA$3))*(AO$3=$F25),0) -> 0 | AP25: =IFERROR(SUM($M12:$BA12*(1+$G25)^($F25-$M$3:$BA$3))*(AP$3=$F25),0) -> 0 | AQ25: =IFERROR(SUM($M12:$BA12*(1+$G25)^($F25-$M$3:$BA$3))*(AQ$3=$F25),0) -> 0 | AR25: =IFERROR(SUM($M12:$BA12*(1+$G25)^($F25-$M$3:$BA$3))*(AR$3=$F25),0) -> 0 | AS25: =IFERROR(SUM($M12:$BA12*(1+$G25)^($F25-$M$3:$BA$3))*(AS$3=$F25),0) -> 0 | AT25: =IFERROR(SUM($M12:$BA12*(1+$G25)^($F25-$M$3:$BA$3))*(AT$3=$F25),0) -> 0 | AU25: =IFERROR(SUM($M12:$BA12*(1+$G25)^($F25-$M$3:$BA$3))*(AU$3=$F25),0) -> 0 | AV25: =IFERROR(SUM($M12:$BA12*(1+$G25)^($F25-$M$3:$BA$3))*(AV$3=$F25),0) -> 0 | AW25: =IFERROR(SUM($M12:$BA12*(1+$G25)^($F25-$M$3:$BA$3))*(AW$3=$F25),0) -> 0 | AX25: =IFERROR(SUM($M12:$BA12*(1+$G25)^($F25-$M$3:$BA$3))*(AX$3=$F25),0) -> 0 | AY25: =IFERROR(SUM($M12:$BA12*(1+$G25)^($F25-$M$3:$BA$3))*(AY$3=$F25),0) -> 0 | AZ25: =IFERROR(SUM($M12:$BA12*(1+$G25)^($F25-$M$3:$BA$3))*(AZ$3=$F25),0) -> 0 | BA25: =IFERROR(SUM($M12:$BA12*(1+$G25)^($F25-$M$3:$BA$3))*(BA$3=$F25),0) -> 0
C26: 4 | D26: Tax Effects of Existing Part Retirement | F26: =IF(F73="Land",Input!$E$64,"NA") -> NA | G26: =IF(F73="Land",Input!$E$65,"NA") -> NA | J26: 0 | M26: =IFERROR(SUM($M13:$BA13*(1+$G26)^($F26-$M$3:$BA$3))*(M$3=$F26),0) -> 0 | N26: =IFERROR(SUM($M13:$BA13*(1+$G26)^($F26-$M$3:$BA$3))*(N$3=$F26),0) -> 0 | O26: =IFERROR(SUM($M13:$BA13*(1+$G26)^($F26-$M$3:$BA$3))*(O$3=$F26),0) -> 0 | P26: =IFERROR(SUM($M13:$BA13*(1+$G26)^($F26-$M$3:$BA$3))*(P$3=$F26),0) -> 0 | Q26: =IFERROR(SUM($M13:$BA13*(1+$G26)^($F26-$M$3:$BA$3))*(Q$3=$F26),0) -> 0 | R26: =IFERROR(SUM($M13:$BA13*(1+$G26)^($F26-$M$3:$BA$3))*(R$3=$F26),0) -> 0 | S26: =IFERROR(SUM($M13:$BA13*(1+$G26)^($F26-$M$3:$BA$3))*(S$3=$F26),0) -> 0 | T26: =IFERROR(SUM($M13:$BA13*(1+$G26)^($F26-$M$3:$BA$3))*(T$3=$F26),0) -> 0 | U26: =IFERROR(SUM($M13:$BA13*(1+$G26)^($F26-$M$3:$BA$3))*(U$3=$F26),0) -> 0 | V26: =IFERROR(SUM($M13:$BA13*(1+$G26)^($F26-$M$3:$BA$3))*(V$3=$F26),0) -> 0 | W26: =IFERROR(SUM($M13:$BA13*(1+$G26)^($F26-$M$3:$BA$3))*(W$3=$F26),0) -> 0 | X26: =IFERROR(SUM($M13:$BA13*(1+$G26)^($F26-$M$3:$BA$3))*(X$3=$F26),0) -> 0 | Y26: =IFERROR(SUM($M13:$BA13*(1+$G26)^($F26-$M$3:$BA$3))*(Y$3=$F26),0) -> 0 | Z26: =IFERROR(SUM($M13:$BA13*(1+$G26)^($F26-$M$3:$BA$3))*(Z$3=$F26),0) -> 0 | AA26: =IFERROR(SUM($M13:$BA13*(1+$G26)^($F26-$M$3:$BA$3))*(AA$3=$F26),0) -> 0 | AB26: =IFERROR(SUM($M13:$BA13*(1+$G26)^($F26-$M$3:$BA$3))*(AB$3=$F26),0) -> 0 | AC26: =IFERROR(SUM($M13:$BA13*(1+$G26)^($F26-$M$3:$BA$3))*(AC$3=$F26),0) -> 0 | AD26: =IFERROR(SUM($M13:$BA13*(1+$G26)^($F26-$M$3:$BA$3))*(AD$3=$F26),0) -> 0 | AE26: =IFERROR(SUM($M13:$BA13*(1+$G26)^($F26-$M$3:$BA$3))*(AE$3=$F26),0) -> 0 | AF26: =IFERROR(SUM($M13:$BA13*(1+$G26)^($F26-$M$3:$BA$3))*(AF$3=$F26),0) -> 0 | AG26: =IFERROR(SUM($M13:$BA13*(1+$G26)^($F26-$M$3:$BA$3))*(AG$3=$F26),0) -> 0 | AH26: =IFERROR(SUM($M13:$BA13*(1+$G26)^($F26-$M$3:$BA$3))*(AH$3=$F26),0) -> 0 | AI26: =IFERROR(SUM($M13:$BA13*(1+$G26)^($F26-$M$3:$BA$3))*(AI$3=$F26),0) -> 0 | AJ26: =IFERROR(SUM($M13:$BA13*(1+$G26)^($F26-$M$3:$BA$3))*(AJ$3=$F26),0) -> 0 | AK26: =IFERROR(SUM($M13:$BA13*(1+$G26)^($F26-$M$3:$BA$3))*(AK$3=$F26),0) -> 0 | AL26: =IFERROR(SUM($M13:$BA13*(1+$G26)^($F26-$M$3:$BA$3))*(AL$3=$F26),0) -> 0 | AM26: =IFERROR(SUM($M13:$BA13*(1+$G26)^($F26-$M$3:$BA$3))*(AM$3=$F26),0) -> 0 | AN26: =IFERROR(SUM($M13:$BA13*(1+$G26)^($F26-$M$3:$BA$3))*(AN$3=$F26),0) -> 0 | AO26: =IFERROR(SUM($M13:$BA13*(1+$G26)^($F26-$M$3:$BA$3))*(AO$3=$F26),0) -> 0 | AP26: =IFERROR(SUM($M13:$BA13*(1+$G26)^($F26-$M$3:$BA$3))*(AP$3=$F26),0) -> 0 | AQ26: =IFERROR(SUM($M13:$BA13*(1+$G26)^($F26-$M$3:$BA$3))*(AQ$3=$F26),0) -> 0 | AR26: =IFERROR(SUM($M13:$BA13*(1+$G26)^($F26-$M$3:$BA$3))*(AR$3=$F26),0) -> 0 | AS26: =IFERROR(SUM($M13:$BA13*(1+$G26)^($F26-$M$3:$BA$3))*(AS$3=$F26),0) -> 0 | AT26: =IFERROR(SUM($M13:$BA13*(1+$G26)^($F26-$M$3:$BA$3))*(AT$3=$F26),0) -> 0 | AU26: =IFERROR(SUM($M13:$BA13*(1+$G26)^($F26-$M$3:$BA$3))*(AU$3=$F26),0) -> 0 | AV26: =IFERROR(SUM($M13:$BA13*(1+$G26)^($F26-$M$3:$BA$3))*(AV$3=$F26),0) -> 0 | AW26: =IFERROR(SUM($M13:$BA13*(1+$G26)^($F26-$M$3:$BA$3))*(AW$3=$F26),0) -> 0 | AX26: =IFERROR(SUM($M13:$BA13*(1+$G26)^($F26-$M$3:$BA$3))*(AX$3=$F26),0) -> 0 | AY26: =IFERROR(SUM($M13:$BA13*(1+$G26)^($F26-$M$3:$BA$3))*(AY$3=$F26),0) -> 0 | AZ26: =IFERROR(SUM($M13:$BA13*(1+$G26)^($F26-$M$3:$BA$3))*(AZ$3=$F26),0) -> 0 | BA26: =IFERROR(SUM($M13:$BA13*(1+$G26)^($F26-$M$3:$BA$3))*(BA$3=$F26),0) -> 0
C27: 5 | D27: … | F27: =IF(F74="Land",Input!$E$64,"NA") -> NA | G27: =IF(F74="Land",Input!$E$65,"NA") -> NA | J27: 0 | M27: =IFERROR(SUM($M14:$BA14*(1+$G27)^($F27-$M$3:$BA$3))*(M$3=$F27),0) -> 0 | N27: =IFERROR(SUM($M14:$BA14*(1+$G27)^($F27-$M$3:$BA$3))*(N$3=$F27),0) -> 0 | O27: =IFERROR(SUM($M14:$BA14*(1+$G27)^($F27-$M$3:$BA$3))*(O$3=$F27),0) -> 0 | P27: =IFERROR(SUM($M14:$BA14*(1+$G27)^($F27-$M$3:$BA$3))*(P$3=$F27),0) -> 0 | Q27: =IFERROR(SUM($M14:$BA14*(1+$G27)^($F27-$M$3:$BA$3))*(Q$3=$F27),0) -> 0 | R27: =IFERROR(SUM($M14:$BA14*(1+$G27)^($F27-$M$3:$BA$3))*(R$3=$F27),0) -> 0 | S27: =IFERROR(SUM($M14:$BA14*(1+$G27)^($F27-$M$3:$BA$3))*(S$3=$F27),0) -> 0 | T27: =IFERROR(SUM($M14:$BA14*(1+$G27)^($F27-$M$3:$BA$3))*(T$3=$F27),0) -> 0 | U27: =IFERROR(SUM($M14:$BA14*(1+$G27)^($F27-$M$3:$BA$3))*(U$3=$F27),0) -> 0 | V27: =IFERROR(SUM($M14:$BA14*(1+$G27)^($F27-$M$3:$BA$3))*(V$3=$F27),0) -> 0 | W27: =IFERROR(SUM($M14:$BA14*(1+$G27)^($F27-$M$3:$BA$3))*(W$3=$F27),0) -> 0 | X27: =IFERROR(SUM($M14:$BA14*(1+$G27)^($F27-$M$3:$BA$3))*(X$3=$F27),0) -> 0 | Y27: =IFERROR(SUM($M14:$BA14*(1+$G27)^($F27-$M$3:$BA$3))*(Y$3=$F27),0) -> 0 | Z27: =IFERROR(SUM($M14:$BA14*(1+$G27)^($F27-$M$3:$BA$3))*(Z$3=$F27),0) -> 0 | AA27: =IFERROR(SUM($M14:$BA14*(1+$G27)^($F27-$M$3:$BA$3))*(AA$3=$F27),0) -> 0 | AB27: =IFERROR(SUM($M14:$BA14*(1+$G27)^($F27-$M$3:$BA$3))*(AB$3=$F27),0) -> 0 | AC27: =IFERROR(SUM($M14:$BA14*(1+$G27)^($F27-$M$3:$BA$3))*(AC$3=$F27),0) -> 0 | AD27: =IFERROR(SUM($M14:$BA14*(1+$G27)^($F27-$M$3:$BA$3))*(AD$3=$F27),0) -> 0 | AE27: =IFERROR(SUM($M14:$BA14*(1+$G27)^($F27-$M$3:$BA$3))*(AE$3=$F27),0) -> 0 | AF27: =IFERROR(SUM($M14:$BA14*(1+$G27)^($F27-$M$3:$BA$3))*(AF$3=$F27),0) -> 0 | AG27: =IFERROR(SUM($M14:$BA14*(1+$G27)^($F27-$M$3:$BA$3))*(AG$3=$F27),0) -> 0 | AH27: =IFERROR(SUM($M14:$BA14*(1+$G27)^($F27-$M$3:$BA$3))*(AH$3=$F27),0) -> 0 | AI27: =IFERROR(SUM($M14:$BA14*(1+$G27)^($F27-$M$3:$BA$3))*(AI$3=$F27),0) -> 0 | AJ27: =IFERROR(SUM($M14:$BA14*(1+$G27)^($F27-$M$3:$BA$3))*(AJ$3=$F27),0) -> 0 | AK27: =IFERROR(SUM($M14:$BA14*(1+$G27)^($F27-$M$3:$BA$3))*(AK$3=$F27),0) -> 0 | AL27: =IFERROR(SUM($M14:$BA14*(1+$G27)^($F27-$M$3:$BA$3))*(AL$3=$F27),0) -> 0 | AM27: =IFERROR(SUM($M14:$BA14*(1+$G27)^($F27-$M$3:$BA$3))*(AM$3=$F27),0) -> 0 | AN27: =IFERROR(SUM($M14:$BA14*(1+$G27)^($F27-$M$3:$BA$3))*(AN$3=$F27),0) -> 0 | AO27: =IFERROR(SUM($M14:$BA14*(1+$G27)^($F27-$M$3:$BA$3))*(AO$3=$F27),0) -> 0 | AP27: =IFERROR(SUM($M14:$BA14*(1+$G27)^($F27-$M$3:$BA$3))*(AP$3=$F27),0) -> 0 | AQ27: =IFERROR(SUM($M14:$BA14*(1+$G27)^($F27-$M$3:$BA$3))*(AQ$3=$F27),0) -> 0 | AR27: =IFERROR(SUM($M14:$BA14*(1+$G27)^($F27-$M$3:$BA$3))*(AR$3=$F27),0) -> 0 | AS27: =IFERROR(SUM($M14:$BA14*(1+$G27)^($F27-$M$3:$BA$3))*(AS$3=$F27),0) -> 0 | AT27: =IFERROR(SUM($M14:$BA14*(1+$G27)^($F27-$M$3:$BA$3))*(AT$3=$F27),0) -> 0 | AU27: =IFERROR(SUM($M14:$BA14*(1+$G27)^($F27-$M$3:$BA$3))*(AU$3=$F27),0) -> 0 | AV27: =IFERROR(SUM($M14:$BA14*(1+$G27)^($F27-$M$3:$BA$3))*(AV$3=$F27),0) -> 0 | AW27: =IFERROR(SUM($M14:$BA14*(1+$G27)^($F27-$M$3:$BA$3))*(AW$3=$F27),0) -> 0 | AX27: =IFERROR(SUM($M14:$BA14*(1+$G27)^($F27-$M$3:$BA$3))*(AX$3=$F27),0) -> 0 | AY27: =IFERROR(SUM($M14:$BA14*(1+$G27)^($F27-$M$3:$BA$3))*(AY$3=$F27),0) -> 0 | AZ27: =IFERROR(SUM($M14:$BA14*(1+$G27)^($F27-$M$3:$BA$3))*(AZ$3=$F27),0) -> 0 | BA27: =IFERROR(SUM($M14:$BA14*(1+$G27)^($F27-$M$3:$BA$3))*(BA$3=$F27),0) -> 0
C28: 6 | D28: … | F28: =IF(F75="Land",Input!$E$64,"NA") -> NA | G28: =IF(F75="Land",Input!$E$65,"NA") -> NA | J28: 0 | M28: =IFERROR(SUM($M15:$BA15*(1+$G28)^($F28-$M$3:$BA$3))*(M$3=$F28),0) -> 0 | N28: =IFERROR(SUM($M15:$BA15*(1+$G28)^($F28-$M$3:$BA$3))*(N$3=$F28),0) -> 0 | O28: =IFERROR(SUM($M15:$BA15*(1+$G28)^($F28-$M$3:$BA$3))*(O$3=$F28),0) -> 0 | P28: =IFERROR(SUM($M15:$BA15*(1+$G28)^($F28-$M$3:$BA$3))*(P$3=$F28),0) -> 0 | Q28: =IFERROR(SUM($M15:$BA15*(1+$G28)^($F28-$M$3:$BA$3))*(Q$3=$F28),0) -> 0 | R28: =IFERROR(SUM($M15:$BA15*(1+$G28)^($F28-$M$3:$BA$3))*(R$3=$F28),0) -> 0 | S28: =IFERROR(SUM($M15:$BA15*(1+$G28)^($F28-$M$3:$BA$3))*(S$3=$F28),0) -> 0 | T28: =IFERROR(SUM($M15:$BA15*(1+$G28)^($F28-$M$3:$BA$3))*(T$3=$F28),0) -> 0 | U28: =IFERROR(SUM($M15:$BA15*(1+$G28)^($F28-$M$3:$BA$3))*(U$3=$F28),0) -> 0 | V28: =IFERROR(SUM($M15:$BA15*(1+$G28)^($F28-$M$3:$BA$3))*(V$3=$F28),0) -> 0 | W28: =IFERROR(SUM($M15:$BA15*(1+$G28)^($F28-$M$3:$BA$3))*(W$3=$F28),0) -> 0 | X28: =IFERROR(SUM($M15:$BA15*(1+$G28)^($F28-$M$3:$BA$3))*(X$3=$F28),0) -> 0 | Y28: =IFERROR(SUM($M15:$BA15*(1+$G28)^($F28-$M$3:$BA$3))*(Y$3=$F28),0) -> 0 | Z28: =IFERROR(SUM($M15:$BA15*(1+$G28)^($F28-$M$3:$BA$3))*(Z$3=$F28),0) -> 0 | AA28: =IFERROR(SUM($M15:$BA15*(1+$G28)^($F28-$M$3:$BA$3))*(AA$3=$F28),0) -> 0 | AB28: =IFERROR(SUM($M15:$BA15*(1+$G28)^($F28-$M$3:$BA$3))*(AB$3=$F28),0) -> 0 | AC28: =IFERROR(SUM($M15:$BA15*(1+$G28)^($F28-$M$3:$BA$3))*(AC$3=$F28),0) -> 0 | AD28: =IFERROR(SUM($M15:$BA15*(1+$G28)^($F28-$M$3:$BA$3))*(AD$3=$F28),0) -> 0 | AE28: =IFERROR(SUM($M15:$BA15*(1+$G28)^($F28-$M$3:$BA$3))*(AE$3=$F28),0) -> 0 | AF28: =IFERROR(SUM($M15:$BA15*(1+$G28)^($F28-$M$3:$BA$3))*(AF$3=$F28),0) -> 0 | AG28: =IFERROR(SUM($M15:$BA15*(1+$G28)^($F28-$M$3:$BA$3))*(AG$3=$F28),0) -> 0 | AH28: =IFERROR(SUM($M15:$BA15*(1+$G28)^($F28-$M$3:$BA$3))*(AH$3=$F28),0) -> 0 | AI28: =IFERROR(SUM($M15:$BA15*(1+$G28)^($F28-$M$3:$BA$3))*(AI$3=$F28),0) -> 0 | AJ28: =IFERROR(SUM($M15:$BA15*(1+$G28)^($F28-$M$3:$BA$3))*(AJ$3=$F28),0) -> 0 | AK28: =IFERROR(SUM($M15:$BA15*(1+$G28)^($F28-$M$3:$BA$3))*(AK$3=$F28),0) -> 0 | AL28: =IFERROR(SUM($M15:$BA15*(1+$G28)^($F28-$M$3:$BA$3))*(AL$3=$F28),0) -> 0 | AM28: =IFERROR(SUM($M15:$BA15*(1+$G28)^($F28-$M$3:$BA$3))*(AM$3=$F28),0) -> 0 | AN28: =IFERROR(SUM($M15:$BA15*(1+$G28)^($F28-$M$3:$BA$3))*(AN$3=$F28),0) -> 0 | AO28: =IFERROR(SUM($M15:$BA15*(1+$G28)^($F28-$M$3:$BA$3))*(AO$3=$F28),0) -> 0 | AP28: =IFERROR(SUM($M15:$BA15*(1+$G28)^($F28-$M$3:$BA$3))*(AP$3=$F28),0) -> 0 | AQ28: =IFERROR(SUM($M15:$BA15*(1+$G28)^($F28-$M$3:$BA$3))*(AQ$3=$F28),0) -> 0 | AR28: =IFERROR(SUM($M15:$BA15*(1+$G28)^($F28-$M$3:$BA$3))*(AR$3=$F28),0) -> 0 | AS28: =IFERROR(SUM($M15:$BA15*(1+$G28)^($F28-$M$3:$BA$3))*(AS$3=$F28),0) -> 0 | AT28: =IFERROR(SUM($M15:$BA15*(1+$G28)^($F28-$M$3:$BA$3))*(AT$3=$F28),0) -> 0 | AU28: =IFERROR(SUM($M15:$BA15*(1+$G28)^($F28-$M$3:$BA$3))*(AU$3=$F28),0) -> 0 | AV28: =IFERROR(SUM($M15:$BA15*(1+$G28)^($F28-$M$3:$BA$3))*(AV$3=$F28),0) -> 0 | AW28: =IFERROR(SUM($M15:$BA15*(1+$G28)^($F28-$M$3:$BA$3))*(AW$3=$F28),0) -> 0 | AX28: =IFERROR(SUM($M15:$BA15*(1+$G28)^($F28-$M$3:$BA$3))*(AX$3=$F28),0) -> 0 | AY28: =IFERROR(SUM($M15:$BA15*(1+$G28)^($F28-$M$3:$BA$3))*(AY$3=$F28),0) -> 0 | AZ28: =IFERROR(SUM($M15:$BA15*(1+$G28)^($F28-$M$3:$BA$3))*(AZ$3=$F28),0) -> 0 | BA28: =IFERROR(SUM($M15:$BA15*(1+$G28)^($F28-$M$3:$BA$3))*(BA$3=$F28),0) -> 0
C29: 7 | D29: … | F29: =IF(F76="Land",Input!$E$64,"NA") -> NA | G29: =IF(F76="Land",Input!$E$65,"NA") -> NA | J29: 0 | M29: =IFERROR(SUM($M16:$BA16*(1+$G29)^($F29-$M$3:$BA$3))*(M$3=$F29),0) -> 0 | N29: =IFERROR(SUM($M16:$BA16*(1+$G29)^($F29-$M$3:$BA$3))*(N$3=$F29),0) -> 0 | O29: =IFERROR(SUM($M16:$BA16*(1+$G29)^($F29-$M$3:$BA$3))*(O$3=$F29),0) -> 0 | P29: =IFERROR(SUM($M16:$BA16*(1+$G29)^($F29-$M$3:$BA$3))*(P$3=$F29),0) -> 0 | Q29: =IFERROR(SUM($M16:$BA16*(1+$G29)^($F29-$M$3:$BA$3))*(Q$3=$F29),0) -> 0 | R29: =IFERROR(SUM($M16:$BA16*(1+$G29)^($F29-$M$3:$BA$3))*(R$3=$F29),0) -> 0 | S29: =IFERROR(SUM($M16:$BA16*(1+$G29)^($F29-$M$3:$BA$3))*(S$3=$F29),0) -> 0 | T29: =IFERROR(SUM($M16:$BA16*(1+$G29)^($F29-$M$3:$BA$3))*(T$3=$F29),0) -> 0 | U29: =IFERROR(SUM($M16:$BA16*(1+$G29)^($F29-$M$3:$BA$3))*(U$3=$F29),0) -> 0 | V29: =IFERROR(SUM($M16:$BA16*(1+$G29)^($F29-$M$3:$BA$3))*(V$3=$F29),0) -> 0 | W29: =IFERROR(SUM($M16:$BA16*(1+$G29)^($F29-$M$3:$BA$3))*(W$3=$F29),0) -> 0 | X29: =IFERROR(SUM($M16:$BA16*(1+$G29)^($F29-$M$3:$BA$3))*(X$3=$F29),0) -> 0 | Y29: =IFERROR(SUM($M16:$BA16*(1+$G29)^($F29-$M$3:$BA$3))*(Y$3=$F29),0) -> 0 | Z29: =IFERROR(SUM($M16:$BA16*(1+$G29)^($F29-$M$3:$BA$3))*(Z$3=$F29),0) -> 0 | AA29: =IFERROR(SUM($M16:$BA16*(1+$G29)^($F29-$M$3:$BA$3))*(AA$3=$F29),0) -> 0 | AB29: =IFERROR(SUM($M16:$BA16*(1+$G29)^($F29-$M$3:$BA$3))*(AB$3=$F29),0) -> 0 | AC29: =IFERROR(SUM($M16:$BA16*(1+$G29)^($F29-$M$3:$BA$3))*(AC$3=$F29),0) -> 0 | AD29: =IFERROR(SUM($M16:$BA16*(1+$G29)^($F29-$M$3:$BA$3))*(AD$3=$F29),0) -> 0 | AE29: =IFERROR(SUM($M16:$BA16*(1+$G29)^($F29-$M$3:$BA$3))*(AE$3=$F29),0) -> 0 | AF29: =IFERROR(SUM($M16:$BA16*(1+$G29)^($F29-$M$3:$BA$3))*(AF$3=$F29),0) -> 0 | AG29: =IFERROR(SUM($M16:$BA16*(1+$G29)^($F29-$M$3:$BA$3))*(AG$3=$F29),0) -> 0 | AH29: =IFERROR(SUM($M16:$BA16*(1+$G29)^($F29-$M$3:$BA$3))*(AH$3=$F29),0) -> 0 | AI29: =IFERROR(SUM($M16:$BA16*(1+$G29)^($F29-$M$3:$BA$3))*(AI$3=$F29),0) -> 0 | AJ29: =IFERROR(SUM($M16:$BA16*(1+$G29)^($F29-$M$3:$BA$3))*(AJ$3=$F29),0) -> 0 | AK29: =IFERROR(SUM($M16:$BA16*(1+$G29)^($F29-$M$3:$BA$3))*(AK$3=$F29),0) -> 0 | AL29: =IFERROR(SUM($M16:$BA16*(1+$G29)^($F29-$M$3:$BA$3))*(AL$3=$F29),0) -> 0 | AM29: =IFERROR(SUM($M16:$BA16*(1+$G29)^($F29-$M$3:$BA$3))*(AM$3=$F29),0) -> 0 | AN29: =IFERROR(SUM($M16:$BA16*(1+$G29)^($F29-$M$3:$BA$3))*(AN$3=$F29),0) -> 0 | AO29: =IFERROR(SUM($M16:$BA16*(1+$G29)^($F29-$M$3:$BA$3))*(AO$3=$F29),0) -> 0 | AP29: =IFERROR(SUM($M16:$BA16*(1+$G29)^($F29-$M$3:$BA$3))*(AP$3=$F29),0) -> 0 | AQ29: =IFERROR(SUM($M16:$BA16*(1+$G29)^($F29-$M$3:$BA$3))*(AQ$3=$F29),0) -> 0 | AR29: =IFERROR(SUM($M16:$BA16*(1+$G29)^($F29-$M$3:$BA$3))*(AR$3=$F29),0) -> 0 | AS29: =IFERROR(SUM($M16:$BA16*(1+$G29)^($F29-$M$3:$BA$3))*(AS$3=$F29),0) -> 0 | AT29: =IFERROR(SUM($M16:$BA16*(1+$G29)^($F29-$M$3:$BA$3))*(AT$3=$F29),0) -> 0 | AU29: =IFERROR(SUM($M16:$BA16*(1+$G29)^($F29-$M$3:$BA$3))*(AU$3=$F29),0) -> 0 | AV29: =IFERROR(SUM($M16:$BA16*(1+$G29)^($F29-$M$3:$BA$3))*(AV$3=$F29),0) -> 0 | AW29: =IFERROR(SUM($M16:$BA16*(1+$G29)^($F29-$M$3:$BA$3))*(AW$3=$F29),0) -> 0 | AX29: =IFERROR(SUM($M16:$BA16*(1+$G29)^($F29-$M$3:$BA$3))*(AX$3=$F29),0) -> 0 | AY29: =IFERROR(SUM($M16:$BA16*(1+$G29)^($F29-$M$3:$BA$3))*(AY$3=$F29),0) -> 0 | AZ29: =IFERROR(SUM($M16:$BA16*(1+$G29)^($F29-$M$3:$BA$3))*(AZ$3=$F29),0) -> 0 | BA29: =IFERROR(SUM($M16:$BA16*(1+$G29)^($F29-$M$3:$BA$3))*(BA$3=$F29),0) -> 0
C30: 8 | D30: … | F30: =IF(F77="Land",Input!$E$64,"NA") -> NA | G30: =IF(F77="Land",Input!$E$65,"NA") -> NA | J30: 0 | M30: =IFERROR(SUM($M17:$BA17*(1+$G30)^($F30-$M$3:$BA$3))*(M$3=$F30),0) -> 0 | N30: =IFERROR(SUM($M17:$BA17*(1+$G30)^($F30-$M$3:$BA$3))*(N$3=$F30),0) -> 0 | O30: =IFERROR(SUM($M17:$BA17*(1+$G30)^($F30-$M$3:$BA$3))*(O$3=$F30),0) -> 0 | P30: =IFERROR(SUM($M17:$BA17*(1+$G30)^($F30-$M$3:$BA$3))*(P$3=$F30),0) -> 0 | Q30: =IFERROR(SUM($M17:$BA17*(1+$G30)^($F30-$M$3:$BA$3))*(Q$3=$F30),0) -> 0 | R30: =IFERROR(SUM($M17:$BA17*(1+$G30)^($F30-$M$3:$BA$3))*(R$3=$F30),0) -> 0 | S30: =IFERROR(SUM($M17:$BA17*(1+$G30)^($F30-$M$3:$BA$3))*(S$3=$F30),0) -> 0 | T30: =IFERROR(SUM($M17:$BA17*(1+$G30)^($F30-$M$3:$BA$3))*(T$3=$F30),0) -> 0 | U30: =IFERROR(SUM($M17:$BA17*(1+$G30)^($F30-$M$3:$BA$3))*(U$3=$F30),0) -> 0 | V30: =IFERROR(SUM($M17:$BA17*(1+$G30)^($F30-$M$3:$BA$3))*(V$3=$F30),0) -> 0 | W30: =IFERROR(SUM($M17:$BA17*(1+$G30)^($F30-$M$3:$BA$3))*(W$3=$F30),0) -> 0 | X30: =IFERROR(SUM($M17:$BA17*(1+$G30)^($F30-$M$3:$BA$3))*(X$3=$F30),0) -> 0 | Y30: =IFERROR(SUM($M17:$BA17*(1+$G30)^($F30-$M$3:$BA$3))*(Y$3=$F30),0) -> 0 | Z30: =IFERROR(SUM($M17:$BA17*(1+$G30)^($F30-$M$3:$BA$3))*(Z$3=$F30),0) -> 0 | AA30: =IFERROR(SUM($M17:$BA17*(1+$G30)^($F30-$M$3:$BA$3))*(AA$3=$F30),0) -> 0 | AB30: =IFERROR(SUM($M17:$BA17*(1+$G30)^($F30-$M$3:$BA$3))*(AB$3=$F30),0) -> 0 | AC30: =IFERROR(SUM($M17:$BA17*(1+$G30)^($F30-$M$3:$BA$3))*(AC$3=$F30),0) -> 0 | AD30: =IFERROR(SUM($M17:$BA17*(1+$G30)^($F30-$M$3:$BA$3))*(AD$3=$F30),0) -> 0 | AE30: =IFERROR(SUM($M17:$BA17*(1+$G30)^($F30-$M$3:$BA$3))*(AE$3=$F30),0) -> 0 | AF30: =IFERROR(SUM($M17:$BA17*(1+$G30)^($F30-$M$3:$BA$3))*(AF$3=$F30),0) -> 0 | AG30: =IFERROR(SUM($M17:$BA17*(1+$G30)^($F30-$M$3:$BA$3))*(AG$3=$F30),0) -> 0 | AH30: =IFERROR(SUM($M17:$BA17*(1+$G30)^($F30-$M$3:$BA$3))*(AH$3=$F30),0) -> 0 | AI30: =IFERROR(SUM($M17:$BA17*(1+$G30)^($F30-$M$3:$BA$3))*(AI$3=$F30),0) -> 0 | AJ30: =IFERROR(SUM($M17:$BA17*(1+$G30)^($F30-$M$3:$BA$3))*(AJ$3=$F30),0) -> 0 | AK30: =IFERROR(SUM($M17:$BA17*(1+$G30)^($F30-$M$3:$BA$3))*(AK$3=$F30),0) -> 0 | AL30: =IFERROR(SUM($M17:$BA17*(1+$G30)^($F30-$M$3:$BA$3))*(AL$3=$F30),0) -> 0 | AM30: =IFERROR(SUM($M17:$BA17*(1+$G30)^($F30-$M$3:$BA$3))*(AM$3=$F30),0) -> 0 | AN30: =IFERROR(SUM($M17:$BA17*(1+$G30)^($F30-$M$3:$BA$3))*(AN$3=$F30),0) -> 0 | AO30: =IFERROR(SUM($M17:$BA17*(1+$G30)^($F30-$M$3:$BA$3))*(AO$3=$F30),0) -> 0 | AP30: =IFERROR(SUM($M17:$BA17*(1+$G30)^($F30-$M$3:$BA$3))*(AP$3=$F30),0) -> 0 | AQ30: =IFERROR(SUM($M17:$BA17*(1+$G30)^($F30-$M$3:$BA$3))*(AQ$3=$F30),0) -> 0 | AR30: =IFERROR(SUM($M17:$BA17*(1+$G30)^($F30-$M$3:$BA$3))*(AR$3=$F30),0) -> 0 | AS30: =IFERROR(SUM($M17:$BA17*(1+$G30)^($F30-$M$3:$BA$3))*(AS$3=$F30),0) -> 0 | AT30: =IFERROR(SUM($M17:$BA17*(1+$G30)^($F30-$M$3:$BA$3))*(AT$3=$F30),0) -> 0 | AU30: =IFERROR(SUM($M17:$BA17*(1+$G30)^($F30-$M$3:$BA$3))*(AU$3=$F30),0) -> 0 | AV30: =IFERROR(SUM($M17:$BA17*(1+$G30)^($F30-$M$3:$BA$3))*(AV$3=$F30),0) -> 0 | AW30: =IFERROR(SUM($M17:$BA17*(1+$G30)^($F30-$M$3:$BA$3))*(AW$3=$F30),0) -> 0 | AX30: =IFERROR(SUM($M17:$BA17*(1+$G30)^($F30-$M$3:$BA$3))*(AX$3=$F30),0) -> 0 | AY30: =IFERROR(SUM($M17:$BA17*(1+$G30)^($F30-$M$3:$BA$3))*(AY$3=$F30),0) -> 0 | AZ30: =IFERROR(SUM($M17:$BA17*(1+$G30)^($F30-$M$3:$BA$3))*(AZ$3=$F30),0) -> 0 | BA30: =IFERROR(SUM($M17:$BA17*(1+$G30)^($F30-$M$3:$BA$3))*(BA$3=$F30),0) -> 0
C31: 9 | D31: … | F31: =IF(F78="Land",Input!$E$64,"NA") -> NA | G31: =IF(F78="Land",Input!$E$65,"NA") -> NA | J31: 0 | M31: =IFERROR(SUM($M18:$BA18*(1+$G31)^($F31-$M$3:$BA$3))*(M$3=$F31),0) -> 0 | N31: =IFERROR(SUM($M18:$BA18*(1+$G31)^($F31-$M$3:$BA$3))*(N$3=$F31),0) -> 0 | O31: =IFERROR(SUM($M18:$BA18*(1+$G31)^($F31-$M$3:$BA$3))*(O$3=$F31),0) -> 0 | P31: =IFERROR(SUM($M18:$BA18*(1+$G31)^($F31-$M$3:$BA$3))*(P$3=$F31),0) -> 0 | Q31: =IFERROR(SUM($M18:$BA18*(1+$G31)^($F31-$M$3:$BA$3))*(Q$3=$F31),0) -> 0 | R31: =IFERROR(SUM($M18:$BA18*(1+$G31)^($F31-$M$3:$BA$3))*(R$3=$F31),0) -> 0 | S31: =IFERROR(SUM($M18:$BA18*(1+$G31)^($F31-$M$3:$BA$3))*(S$3=$F31),0) -> 0 | T31: =IFERROR(SUM($M18:$BA18*(1+$G31)^($F31-$M$3:$BA$3))*(T$3=$F31),0) -> 0 | U31: =IFERROR(SUM($M18:$BA18*(1+$G31)^($F31-$M$3:$BA$3))*(U$3=$F31),0) -> 0 | V31: =IFERROR(SUM($M18:$BA18*(1+$G31)^($F31-$M$3:$BA$3))*(V$3=$F31),0) -> 0 | W31: =IFERROR(SUM($M18:$BA18*(1+$G31)^($F31-$M$3:$BA$3))*(W$3=$F31),0) -> 0 | X31: =IFERROR(SUM($M18:$BA18*(1+$G31)^($F31-$M$3:$BA$3))*(X$3=$F31),0) -> 0 | Y31: =IFERROR(SUM($M18:$BA18*(1+$G31)^($F31-$M$3:$BA$3))*(Y$3=$F31),0) -> 0 | Z31: =IFERROR(SUM($M18:$BA18*(1+$G31)^($F31-$M$3:$BA$3))*(Z$3=$F31),0) -> 0 | AA31: =IFERROR(SUM($M18:$BA18*(1+$G31)^($F31-$M$3:$BA$3))*(AA$3=$F31),0) -> 0 | AB31: =IFERROR(SUM($M18:$BA18*(1+$G31)^($F31-$M$3:$BA$3))*(AB$3=$F31),0) -> 0 | AC31: =IFERROR(SUM($M18:$BA18*(1+$G31)^($F31-$M$3:$BA$3))*(AC$3=$F31),0) -> 0 | AD31: =IFERROR(SUM($M18:$BA18*(1+$G31)^($F31-$M$3:$BA$3))*(AD$3=$F31),0) -> 0 | AE31: =IFERROR(SUM($M18:$BA18*(1+$G31)^($F31-$M$3:$BA$3))*(AE$3=$F31),0) -> 0 | AF31: =IFERROR(SUM($M18:$BA18*(1+$G31)^($F31-$M$3:$BA$3))*(AF$3=$F31),0) -> 0 | AG31: =IFERROR(SUM($M18:$BA18*(1+$G31)^($F31-$M$3:$BA$3))*(AG$3=$F31),0) -> 0 | AH31: =IFERROR(SUM($M18:$BA18*(1+$G31)^($F31-$M$3:$BA$3))*(AH$3=$F31),0) -> 0 | AI31: =IFERROR(SUM($M18:$BA18*(1+$G31)^($F31-$M$3:$BA$3))*(AI$3=$F31),0) -> 0 | AJ31: =IFERROR(SUM($M18:$BA18*(1+$G31)^($F31-$M$3:$BA$3))*(AJ$3=$F31),0) -> 0 | AK31: =IFERROR(SUM($M18:$BA18*(1+$G31)^($F31-$M$3:$BA$3))*(AK$3=$F31),0) -> 0 | AL31: =IFERROR(SUM($M18:$BA18*(1+$G31)^($F31-$M$3:$BA$3))*(AL$3=$F31),0) -> 0 | AM31: =IFERROR(SUM($M18:$BA18*(1+$G31)^($F31-$M$3:$BA$3))*(AM$3=$F31),0) -> 0 | AN31: =IFERROR(SUM($M18:$BA18*(1+$G31)^($F31-$M$3:$BA$3))*(AN$3=$F31),0) -> 0 | AO31: =IFERROR(SUM($M18:$BA18*(1+$G31)^($F31-$M$3:$BA$3))*(AO$3=$F31),0) -> 0 | AP31: =IFERROR(SUM($M18:$BA18*(1+$G31)^($F31-$M$3:$BA$3))*(AP$3=$F31),0) -> 0 | AQ31: =IFERROR(SUM($M18:$BA18*(1+$G31)^($F31-$M$3:$BA$3))*(AQ$3=$F31),0) -> 0 | AR31: =IFERROR(SUM($M18:$BA18*(1+$G31)^($F31-$M$3:$BA$3))*(AR$3=$F31),0) -> 0 | AS31: =IFERROR(SUM($M18:$BA18*(1+$G31)^($F31-$M$3:$BA$3))*(AS$3=$F31),0) -> 0 | AT31: =IFERROR(SUM($M18:$BA18*(1+$G31)^($F31-$M$3:$BA$3))*(AT$3=$F31),0) -> 0 | AU31: =IFERROR(SUM($M18:$BA18*(1+$G31)^($F31-$M$3:$BA$3))*(AU$3=$F31),0) -> 0 | AV31: =IFERROR(SUM($M18:$BA18*(1+$G31)^($F31-$M$3:$BA$3))*(AV$3=$F31),0) -> 0 | AW31: =IFERROR(SUM($M18:$BA18*(1+$G31)^($F31-$M$3:$BA$3))*(AW$3=$F31),0) -> 0 | AX31: =IFERROR(SUM($M18:$BA18*(1+$G31)^($F31-$M$3:$BA$3))*(AX$3=$F31),0) -> 0 | AY31: =IFERROR(SUM($M18:$BA18*(1+$G31)^($F31-$M$3:$BA$3))*(AY$3=$F31),0) -> 0 | AZ31: =IFERROR(SUM($M18:$BA18*(1+$G31)^($F31-$M$3:$BA$3))*(AZ$3=$F31),0) -> 0 | BA31: =IFERROR(SUM($M18:$BA18*(1+$G31)^($F31-$M$3:$BA$3))*(BA$3=$F31),0) -> 0
C32: 10 | D32: … | F32: =IF(F79="Land",Input!$E$64,"NA") -> NA | G32: =IF(F79="Land",Input!$E$65,"NA") -> NA | J32: 0 | M32: =IFERROR(SUM($M19:$BA19*(1+$G32)^($F32-$M$3:$BA$3))*(M$3=$F32),0) -> 0 | N32: =IFERROR(SUM($M19:$BA19*(1+$G32)^($F32-$M$3:$BA$3))*(N$3=$F32),0) -> 0 | O32: =IFERROR(SUM($M19:$BA19*(1+$G32)^($F32-$M$3:$BA$3))*(O$3=$F32),0) -> 0 | P32: =IFERROR(SUM($M19:$BA19*(1+$G32)^($F32-$M$3:$BA$3))*(P$3=$F32),0) -> 0 | Q32: =IFERROR(SUM($M19:$BA19*(1+$G32)^($F32-$M$3:$BA$3))*(Q$3=$F32),0) -> 0 | R32: =IFERROR(SUM($M19:$BA19*(1+$G32)^($F32-$M$3:$BA$3))*(R$3=$F32),0) -> 0 | S32: =IFERROR(SUM($M19:$BA19*(1+$G32)^($F32-$M$3:$BA$3))*(S$3=$F32),0) -> 0 | T32: =IFERROR(SUM($M19:$BA19*(1+$G32)^($F32-$M$3:$BA$3))*(T$3=$F32),0) -> 0 | U32: =IFERROR(SUM($M19:$BA19*(1+$G32)^($F32-$M$3:$BA$3))*(U$3=$F32),0) -> 0 | V32: =IFERROR(SUM($M19:$BA19*(1+$G32)^($F32-$M$3:$BA$3))*(V$3=$F32),0) -> 0 | W32: =IFERROR(SUM($M19:$BA19*(1+$G32)^($F32-$M$3:$BA$3))*(W$3=$F32),0) -> 0 | X32: =IFERROR(SUM($M19:$BA19*(1+$G32)^($F32-$M$3:$BA$3))*(X$3=$F32),0) -> 0 | Y32: =IFERROR(SUM($M19:$BA19*(1+$G32)^($F32-$M$3:$BA$3))*(Y$3=$F32),0) -> 0 | Z32: =IFERROR(SUM($M19:$BA19*(1+$G32)^($F32-$M$3:$BA$3))*(Z$3=$F32),0) -> 0 | AA32: =IFERROR(SUM($M19:$BA19*(1+$G32)^($F32-$M$3:$BA$3))*(AA$3=$F32),0) -> 0 | AB32: =IFERROR(SUM($M19:$BA19*(1+$G32)^($F32-$M$3:$BA$3))*(AB$3=$F32),0) -> 0 | AC32: =IFERROR(SUM($M19:$BA19*(1+$G32)^($F32-$M$3:$BA$3))*(AC$3=$F32),0) -> 0 | AD32: =IFERROR(SUM($M19:$BA19*(1+$G32)^($F32-$M$3:$BA$3))*(AD$3=$F32),0) -> 0 | AE32: =IFERROR(SUM($M19:$BA19*(1+$G32)^($F32-$M$3:$BA$3))*(AE$3=$F32),0) -> 0 | AF32: =IFERROR(SUM($M19:$BA19*(1+$G32)^($F32-$M$3:$BA$3))*(AF$3=$F32),0) -> 0 | AG32: =IFERROR(SUM($M19:$BA19*(1+$G32)^($F32-$M$3:$BA$3))*(AG$3=$F32),0) -> 0 | AH32: =IFERROR(SUM($M19:$BA19*(1+$G32)^($F32-$M$3:$BA$3))*(AH$3=$F32),0) -> 0 | AI32: =IFERROR(SUM($M19:$BA19*(1+$G32)^($F32-$M$3:$BA$3))*(AI$3=$F32),0) -> 0 | AJ32: =IFERROR(SUM($M19:$BA19*(1+$G32)^($F32-$M$3:$BA$3))*(AJ$3=$F32),0) -> 0 | AK32: =IFERROR(SUM($M19:$BA19*(1+$G32)^($F32-$M$3:$BA$3))*(AK$3=$F32),0) -> 0 | AL32: =IFERROR(SUM($M19:$BA19*(1+$G32)^($F32-$M$3:$BA$3))*(AL$3=$F32),0) -> 0 | AM32: =IFERROR(SUM($M19:$BA19*(1+$G32)^($F32-$M$3:$BA$3))*(AM$3=$F32),0) -> 0 | AN32: =IFERROR(SUM($M19:$BA19*(1+$G32)^($F32-$M$3:$BA$3))*(AN$3=$F32),0) -> 0 | AO32: =IFERROR(SUM($M19:$BA19*(1+$G32)^($F32-$M$3:$BA$3))*(AO$3=$F32),0) -> 0 | AP32: =IFERROR(SUM($M19:$BA19*(1+$G32)^($F32-$M$3:$BA$3))*(AP$3=$F32),0) -> 0 | AQ32: =IFERROR(SUM($M19:$BA19*(1+$G32)^($F32-$M$3:$BA$3))*(AQ$3=$F32),0) -> 0 | AR32: =IFERROR(SUM($M19:$BA19*(1+$G32)^($F32-$M$3:$BA$3))*(AR$3=$F32),0) -> 0 | AS32: =IFERROR(SUM($M19:$BA19*(1+$G32)^($F32-$M$3:$BA$3))*(AS$3=$F32),0) -> 0 | AT32: =IFERROR(SUM($M19:$BA19*(1+$G32)^($F32-$M$3:$BA$3))*(AT$3=$F32),0) -> 0 | AU32: =IFERROR(SUM($M19:$BA19*(1+$G32)^($F32-$M$3:$BA$3))*(AU$3=$F32),0) -> 0 | AV32: =IFERROR(SUM($M19:$BA19*(1+$G32)^($F32-$M$3:$BA$3))*(AV$3=$F32),0) -> 0 | AW32: =IFERROR(SUM($M19:$BA19*(1+$G32)^($F32-$M$3:$BA$3))*(AW$3=$F32),0) -> 0 | AX32: =IFERROR(SUM($M19:$BA19*(1+$G32)^($F32-$M$3:$BA$3))*(AX$3=$F32),0) -> 0 | AY32: =IFERROR(SUM($M19:$BA19*(1+$G32)^($F32-$M$3:$BA$3))*(AY$3=$F32),0) -> 0 | AZ32: =IFERROR(SUM($M19:$BA19*(1+$G32)^($F32-$M$3:$BA$3))*(AZ$3=$F32),0) -> 0 | BA32: =IFERROR(SUM($M19:$BA19*(1+$G32)^($F32-$M$3:$BA$3))*(BA$3=$F32),0) -> 0
D33: =D22 -> Sale/Reassignment (Land) | J33: =SUM(J23:J32) -> 0 | M33: =SUM(M23:M32) -> 0 | N33: =SUM(N23:N32) -> 0 | O33: 0 | P33: 0 | Q33: 0 | R33: 0 | S33: 0 | T33: 0 | U33: 0 | V33: 0 | W33: 0 | X33: 0 | Y33: 0 | Z33: 0 | AA33: 0 | AB33: 0 | AC33: 0 | AD33: 0 | AE33: 0 | AF33: 0 | AG33: 0 | AH33: 0 | AI33: 0 | AJ33: 0 | AK33: 0 | AL33: 0 | AM33: 0 | AN33: 0 | AO33: 0 | AP33: 0 | AQ33: 0 | AR33: 0 | AS33: 0 | AT33: 0 | AU33: 0 | AV33: 0 | AW33: 0 | AX33: 0 | AY33: 0 | AZ33: 0 | BA33: 0
D39: BOOK ENTRIES
D41: Total AFUDC
C42: =C41+1 -> 1 | D42: =D$10 -> .05 Compressors | F42: =Input!G12 -> CWIP | J42: =SUM(M42:BK42) -> 0 | M42: 0 | N42: 0 | O42: 0 | P42: 0 | Q42: 0 | R42: 0 | S42: 0 | T42: 0 | U42: 0 | V42: 0 | W42: 0 | X42: 0 | Y42: 0 | Z42: 0 | AA42: 0 | AB42: 0 | AC42: 0 | AD42: 0 | AE42: 0 | AF42: 0 | AG42: 0 | AH42: 0 | AI42: 0 | AJ42: 0 | AK42: 0 | AL42: 0 | AM42: 0 | AN42: 0 | AO42: 0 | AP42: 0 | AQ42: 0 | AR42: 0 | AS42: 0 | AT42: 0 | AU42: 0 | AV42: 0 | AW42: 0 | AX42: 0 | AY42: 0 | AZ42: 0 | BA42: 0 | BB42: 0 | BC42: 0 | BD42: 0 | BE42: 0 | BF42: 0 | BG42: 0 | BH42: 0 | BI42: 0 | BJ42: 0 | BK42: 0
C43: =C42+1 -> 2 | D43: =D$11 -> Installation Costs | F43: =Input!G13 -> CWIP | J43: =SUM(M43:BK43) -> 0 | M43: 0 | N43: 0 | O43: 0 | P43: 0 | Q43: 0 | R43: 0 | S43: 0 | T43: 0 | U43: 0 | V43: 0 | W43: 0 | X43: 0 | Y43: 0 | Z43: 0 | AA43: 0 | AB43: 0 | AC43: 0 | AD43: 0 | AE43: 0 | AF43: 0 | AG43: 0 | AH43: 0 | AI43: 0 | AJ43: 0 | AK43: 0 | AL43: 0 | AM43: 0 | AN43: 0 | AO43: 0 | AP43: 0 | AQ43: 0 | AR43: 0 | AS43: 0 | AT43: 0 | AU43: 0 | AV43: 0 | AW43: 0 | AX43: 0 | AY43: 0 | AZ43: 0 | BA43: 0 | BB43: 0 | BC43: 0 | BD43: 0 | BE43: 0 | BF43: 0 | BG43: 0 | BH43: 0 | BI43: 0 | BJ43: 0 | BK43: 0
C44: 3 | D44: =D$12 -> Avoided Like-Kind Replacements | F44: =Input!G14 -> CWIP | J44: 0 | M44: 0 | N44: 0 | O44: 0 | P44: 0 | Q44: 0 | R44: 0 | S44: 0 | T44: 0 | U44: 0 | V44: 0 | W44: 0 | X44: 0 | Y44: 0 | Z44: 0 | AA44: 0 | AB44: 0 | AC44: 0 | AD44: 0 | AE44: 0 | AF44: 0 | AG44: 0 | AH44: 0 | AI44: 0 | AJ44: 0 | AK44: 0 | AL44: 0 | AM44: 0 | AN44: 0 | AO44: 0 | AP44: 0 | AQ44: 0 | AR44: 0 | AS44: 0 | AT44: 0 | AU44: 0 | AV44: 0 | AW44: 0 | AX44: 0 | AY44: 0 | AZ44: 0 | BA44: 0 | BB44: 0 | BC44: 0 | BD44: 0 | BE44: 0 | BF44: 0 | BG44: 0 | BH44: 0 | BI44: 0 | BJ44: 0 | BK44: 0
C45: 4 | D45: =D$13 -> Tax Effects of Existing Part Retirement | F45: =Input!G15 -> CWIP | J45: 0 | M45: 0 | N45: 0 | O45: 0 | P45: 0 | Q45: 0 | R45: 0 | S45: 0 | T45: 0 | U45: 0 | V45: 0 | W45: 0 | X45: 0 | Y45: 0 | Z45: 0 | AA45: 0 | AB45: 0 | AC45: 0 | AD45: 0 | AE45: 0 | AF45: 0 | AG45: 0 | AH45: 0 | AI45: 0 | AJ45: 0 | AK45: 0 | AL45: 0 | AM45: 0 | AN45: 0 | AO45: 0 | AP45: 0 | AQ45: 0 | AR45: 0 | AS45: 0 | AT45: 0 | AU45: 0 | AV45: 0 | AW45: 0 | AX45: 0 | AY45: 0 | AZ45: 0 | BA45: 0 | BB45: 0 | BC45: 0 | BD45: 0 | BE45: 0 | BF45: 0 | BG45: 0 | BH45: 0 | BI45: 0 | BJ45: 0 | BK45: 0
C46: 5 | D46: =D$14 -> … | F46: =Input!G16 -> CWIP | J46: 0 | M46: 0 | N46: 0 | O46: 0 | P46: 0 | Q46: 0 | R46: 0 | S46: 0 | T46: 0 | U46: 0 | V46: 0 | W46: 0 | X46: 0 | Y46: 0 | Z46: 0 | AA46: 0 | AB46: 0 | AC46: 0 | AD46: 0 | AE46: 0 | AF46: 0 | AG46: 0 | AH46: 0 | AI46: 0 | AJ46: 0 | AK46: 0 | AL46: 0 | AM46: 0 | AN46: 0 | AO46: 0 | AP46: 0 | AQ46: 0 | AR46: 0 | AS46: 0 | AT46: 0 | AU46: 0 | AV46: 0 | AW46: 0 | AX46: 0 | AY46: 0 | AZ46: 0 | BA46: 0 | BB46: 0 | BC46: 0 | BD46: 0 | BE46: 0 | BF46: 0 | BG46: 0 | BH46: 0 | BI46: 0 | BJ46: 0 | BK46: 0
C47: 6 | D47: =D$15 -> … | F47: =Input!G17 -> CWIP | J47: 0 | M47: 0 | N47: 0 | O47: 0 | P47: 0 | Q47: 0 | R47: 0 | S47: 0 | T47: 0 | U47: 0 | V47: 0 | W47: 0 | X47: 0 | Y47: 0 | Z47: 0 | AA47: 0 | AB47: 0 | AC47: 0 | AD47: 0 | AE47: 0 | AF47: 0 | AG47: 0 | AH47: 0 | AI47: 0 | AJ47: 0 | AK47: 0 | AL47: 0 | AM47: 0 | AN47: 0 | AO47: 0 | AP47: 0 | AQ47: 0 | AR47: 0 | AS47: 0 | AT47: 0 | AU47: 0 | AV47: 0 | AW47: 0 | AX47: 0 | AY47: 0 | AZ47: 0 | BA47: 0 | BB47: 0 | BC47: 0 | BD47: 0 | BE47: 0 | BF47: 0 | BG47: 0 | BH47: 0 | BI47: 0 | BJ47: 0 | BK47: 0
C48: 7 | D48: =D$16 -> … | F48: =Input!G18 -> CWIP | J48: 0 | M48: 0 | N48: 0 | O48: 0 | P48: 0 | Q48: 0 | R48: 0 | S48: 0 | T48: 0 | U48: 0 | V48: 0 | W48: 0 | X48: 0 | Y48: 0 | Z48: 0 | AA48: 0 | AB48: 0 | AC48: 0 | AD48: 0 | AE48: 0 | AF48: 0 | AG48: 0 | AH48: 0 | AI48: 0 | AJ48: 0 | AK48: 0 | AL48: 0 | AM48: 0 | AN48: 0 | AO48: 0 | AP48: 0 | AQ48: 0 | AR48: 0 | AS48: 0 | AT48: 0 | AU48: 0 | AV48: 0 | AW48: 0 | AX48: 0 | AY48: 0 | AZ48: 0 | BA48: 0 | BB48: 0 | BC48: 0 | BD48: 0 | BE48: 0 | BF48: 0 | BG48: 0 | BH48: 0 | BI48: 0 | BJ48: 0 | BK48: 0
C49: 8 | D49: =D$17 -> … | F49: =Input!G19 -> CWIP | J49: 0 | M49: 0 | N49: 0 | O49: 0 | P49: 0 | Q49: 0 | R49: 0 | S49: 0 | T49: 0 | U49: 0 | V49: 0 | W49: 0 | X49: 0 | Y49: 0 | Z49: 0 | AA49: 0 | AB49: 0 | AC49: 0 | AD49: 0 | AE49: 0 | AF49: 0 | AG49: 0 | AH49: 0 | AI49: 0 | AJ49: 0 | AK49: 0 | AL49: 0 | AM49: 0 | AN49: 0 | AO49: 0 | AP49: 0 | AQ49: 0 | AR49: 0 | AS49: 0 | AT49: 0 | AU49: 0 | AV49: 0 | AW49: 0 | AX49: 0 | AY49: 0 | AZ49: 0 | BA49: 0 | BB49: 0 | BC49: 0 | BD49: 0 | BE49: 0 | BF49: 0 | BG49: 0 | BH49: 0 | BI49: 0 | BJ49: 0 | BK49: 0
C50: 9 | D50: =D$18 -> … | F50: =Input!G20 -> CWIP | J50: 0 | M50: 0 | N50: 0 | O50: 0 | P50: 0 | Q50: 0 | R50: 0 | S50: 0 | T50: 0 | U50: 0 | V50: 0 | W50: 0 | X50: 0 | Y50: 0 | Z50: 0 | AA50: 0 | AB50: 0 | AC50: 0 | AD50: 0 | AE50: 0 | AF50: 0 | AG50: 0 | AH50: 0 | AI50: 0 | AJ50: 0 | AK50: 0 | AL50: 0 | AM50: 0 | AN50: 0 | AO50: 0 | AP50: 0 | AQ50: 0 | AR50: 0 | AS50: 0 | AT50: 0 | AU50: 0 | AV50: 0 | AW50: 0 | AX50: 0 | AY50: 0 | AZ50: 0 | BA50: 0 | BB50: 0 | BC50: 0 | BD50: 0 | BE50: 0 | BF50: 0 | BG50: 0 | BH50: 0 | BI50: 0 | BJ50: 0 | BK50: 0
C51: 10 | D51: =D$19 -> … | F51: =Input!G21 -> CWIP | J51: 0 | M51: 0 | N51: 0 | O51: 0 | P51: 0 | Q51: 0 | R51: 0 | S51: 0 | T51: 0 | U51: 0 | V51: 0 | W51: 0 | X51: 0 | Y51: 0 | Z51: 0 | AA51: 0 | AB51: 0 | AC51: 0 | AD51: 0 | AE51: 0 | AF51: 0 | AG51: 0 | AH51: 0 | AI51: 0 | AJ51: 0 | AK51: 0 | AL51: 0 | AM51: 0 | AN51: 0 | AO51: 0 | AP51: 0 | AQ51: 0 | AR51: 0 | AS51: 0 | AT51: 0 | AU51: 0 | AV51: 0 | AW51: 0 | AX51: 0 | AY51: 0 | AZ51: 0 | BA51: 0 | BB51: 0 | BC51: 0 | BD51: 0 | BE51: 0 | BF51: 0 | BG51: 0 | BH51: 0 | BI51: 0 | BJ51: 0 | BK51: 0
D52: =D41 -> Total AFUDC | J52: =SUM(J42:J51) -> 0 | M52: =SUM(M42:M51) -> 0 | N52: 0 | O52: 0 | P52: 0 | Q52: 0 | R52: 0 | S52: 0 | T52: 0 | U52: 0 | V52: 0 | W52: 0 | X52: 0 | Y52: 0 | Z52: 0 | AA52: 0 | AB52: 0 | AC52: 0 | AD52: 0 | AE52: 0 | AF52: 0 | AG52: 0 | AH52: 0 | AI52: 0 | AJ52: 0 | AK52: 0 | AL52: 0 | AM52: 0 | AN52: 0 | AO52: 0 | AP52: 0 | AQ52: 0 | AR52: 0 | AS52: 0 | AT52: 0 | AU52: 0 | AV52: 0 | AW52: 0 | AX52: 0 | AY52: 0 | AZ52: 0 | BA52: 0 | BB52: 0 | BC52: 0 | BD52: 0 | BE52: 0 | BF52: 0 | BG52: 0 | BH52: 0 | BI52: 0 | BJ52: 0 | BK52: 0
D55: Capital Placed in Service | F55: AFUDC | G55: COD
C56: =C55+1 -> 1 | D56: =D$10 -> .05 Compressors | F56: =J42 -> 0 | G56: =G10 -> 2015-01-01 | H56: =YEAR(G56) -> 2015 | J56: =SUM(M56:BK56) -> 286056.248 | M56: =Book_Capital!L98 -> 0 | N56: =Book_Capital!M98 -> 66012.98031 | O56: =Book_Capital!N98 -> 132025.9606 | P56: =Book_Capital!O98 -> 88017.30708 | Q56: =Book_Capital!P98 -> 0 | R56: =Book_Capital!Q98 -> 0 | S56: =Book_Capital!R98 -> 0 | T56: =Book_Capital!S98 -> 0 | U56: =Book_Capital!T98 -> 0 | V56: =Book_Capital!U98 -> 0 | W56: =Book_Capital!V98 -> 0 | X56: =Book_Capital!W98 -> 0 | Y56: =Book_Capital!X98 -> 0 | Z56: =Book_Capital!Y98 -> 0 | AA56: =Book_Capital!Z98 -> 0 | AB56: =Book_Capital!AA98 -> 0 | AC56: =Book_Capital!AB98 -> 0 | AD56: =Book_Capital!AC98 -> 0 | AE56: =Book_Capital!AD98 -> 0 | AF56: =Book_Capital!AE98 -> 0 | AG56: =Book_Capital!AF98 -> 0 | AH56: =Book_Capital!AG98 -> 0 | AI56: =Book_Capital!AH98 -> 0 | AJ56: =Book_Capital!AI98 -> 0 | AK56: =Book_Capital!AJ98 -> 0 | AL56: =Book_Capital!AK98 -> 0 | AM56: =Book_Capital!AL98 -> 0 | AN56: =Book_Capital!AM98 -> 0 | AO56: =Book_Capital!AN98 -> 0 | AP56: =Book_Capital!AO98 -> 0 | AQ56: =Book_Capital!AP98 -> 0 | AR56: =Book_Capital!AQ98 -> 0 | AS56: =Book_Capital!AR98 -> 0 | AT56: =Book_Capital!AS98 -> 0 | AU56: =Book_Capital!AT98 -> 0 | AV56: =Book_Capital!AU98 -> 0 | AW56: =Book_Capital!AV98 -> 0 | AX56: =Book_Capital!AW98 -> 0 | AY56: =Book_Capital!AX98 -> 0 | AZ56: =Book_Capital!AY98 -> 0 | BA56: =Book_Capital!AZ98 -> 0 | BB56: =Book_Capital!BA98 -> 0 | BC56: =Book_Capital!BB98 -> 0 | BD56: =Book_Capital!BC98 -> 0 | BE56: =Book_Capital!BD98 -> 0 | BF56: =Book_Capital!BE98 -> 0 | BG56: =Book_Capital!BF98 -> 0 | BH56: =Book_Capital!BG98 -> 0 | BI56: =Book_Capital!BH98 -> 0 | BJ56: =Book_Capital!BI98 -> 0 | BK56: =Book_Capital!BJ98 -> 0
C57: =C56+1 -> 2 | D57: =D$11 -> Installation Costs | F57: =J43 -> 0 | G57: 2015-01-01 | H57: =YEAR(G57) -> 2015 | J57: =SUM(M57:BK57) -> 38735.37426 | M57: =IF(M$3>=YEAR($G57),M11,0)+IF(M$3=YEAR($G57),SUM($L11:L11)+$F57,0) -> 0 | N57: =IF(N$3>=YEAR($G57),N11,0)+IF(N$3=YEAR($G57),SUM($L11:M11)+$F57,0) -> 2758.179144 | O57: =IF(O$3>=YEAR($G57),O11,0)+IF(O$3=YEAR($G57),SUM($L11:N11)+$F57,0) -> 20539.38648 | P57: =IF(P$3>=YEAR($G57),P11,0)+IF(P$3=YEAR($G57),SUM($L11:O11)+$F57,0) -> 15437.80864 | Q57: =IF(Q$3>=YEAR($G57),Q11,0)+IF(Q$3=YEAR($G57),SUM($L11:P11)+$F57,0) -> 0 | R57: =IF(R$3>=YEAR($G57),R11,0)+IF(R$3=YEAR($G57),SUM($L11:Q11)+$F57,0) -> 0 | S57: =IF(S$3>=YEAR($G57),S11,0)+IF(S$3=YEAR($G57),SUM($L11:R11)+$F57,0) -> 0 | T57: =IF(T$3>=YEAR($G57),T11,0)+IF(T$3=YEAR($G57),SUM($L11:S11)+$F57,0) -> 0 | U57: =IF(U$3>=YEAR($G57),U11,0)+IF(U$3=YEAR($G57),SUM($L11:T11)+$F57,0) -> 0 | V57: =IF(V$3>=YEAR($G57),V11,0)+IF(V$3=YEAR($G57),SUM($L11:U11)+$F57,0) -> 0 | W57: =IF(W$3>=YEAR($G57),W11,0)+IF(W$3=YEAR($G57),SUM($L11:V11)+$F57,0) -> 0 | X57: =IF(X$3>=YEAR($G57),X11,0)+IF(X$3=YEAR($G57),SUM($L11:W11)+$F57,0) -> 0 | Y57: =IF(Y$3>=YEAR($G57),Y11,0)+IF(Y$3=YEAR($G57),SUM($L11:X11)+$F57,0) -> 0 | Z57: =IF(Z$3>=YEAR($G57),Z11,0)+IF(Z$3=YEAR($G57),SUM($L11:Y11)+$F57,0) -> 0 | AA57: =IF(AA$3>=YEAR($G57),AA11,0)+IF(AA$3=YEAR($G57),SUM($L11:Z11)+$F57,0) -> 0 | AB57: =IF(AB$3>=YEAR($G57),AB11,0)+IF(AB$3=YEAR($G57),SUM($L11:AA11)+$F57,0) -> 0 | AC57: =IF(AC$3>=YEAR($G57),AC11,0)+IF(AC$3=YEAR($G57),SUM($L11:AB11)+$F57,0) -> 0 | AD57: =IF(AD$3>=YEAR($G57),AD11,0)+IF(AD$3=YEAR($G57),SUM($L11:AC11)+$F57,0) -> 0 | AE57: =IF(AE$3>=YEAR($G57),AE11,0)+IF(AE$3=YEAR($G57),SUM($L11:AD11)+$F57,0) -> 0 | AF57: =IF(AF$3>=YEAR($G57),AF11,0)+IF(AF$3=YEAR($G57),SUM($L11:AE11)+$F57,0) -> 0 | AG57: =IF(AG$3>=YEAR($G57),AG11,0)+IF(AG$3=YEAR($G57),SUM($L11:AF11)+$F57,0) -> 0 | AH57: =IF(AH$3>=YEAR($G57),AH11,0)+IF(AH$3=YEAR($G57),SUM($L11:AG11)+$F57,0) -> 0 | AI57: =IF(AI$3>=YEAR($G57),AI11,0)+IF(AI$3=YEAR($G57),SUM($L11:AH11)+$F57,0) -> 0 | AJ57: =IF(AJ$3>=YEAR($G57),AJ11,0)+IF(AJ$3=YEAR($G57),SUM($L11:AI11)+$F57,0) -> 0 | AK57: =IF(AK$3>=YEAR($G57),AK11,0)+IF(AK$3=YEAR($G57),SUM($L11:AJ11)+$F57,0) -> 0 | AL57: =IF(AL$3>=YEAR($G57),AL11,0)+IF(AL$3=YEAR($G57),SUM($L11:AK11)+$F57,0) -> 0 | AM57: =IF(AM$3>=YEAR($G57),AM11,0)+IF(AM$3=YEAR($G57),SUM($L11:AL11)+$F57,0) -> 0 | AN57: =IF(AN$3>=YEAR($G57),AN11,0)+IF(AN$3=YEAR($G57),SUM($L11:AM11)+$F57,0) -> 0 | AO57: =IF(AO$3>=YEAR($G57),AO11,0)+IF(AO$3=YEAR($G57),SUM($L11:AN11)+$F57,0) -> 0 | AP57: =IF(AP$3>=YEAR($G57),AP11,0)+IF(AP$3=YEAR($G57),SUM($L11:AO11)+$F57,0) -> 0 | AQ57: =IF(AQ$3>=YEAR($G57),AQ11,0)+IF(AQ$3=YEAR($G57),SUM($L11:AP11)+$F57,0) -> 0 | AR57: =IF(AR$3>=YEAR($G57),AR11,0)+IF(AR$3=YEAR($G57),SUM($L11:AQ11)+$F57,0) -> 0 | AS57: =IF(AS$3>=YEAR($G57),AS11,0)+IF(AS$3=YEAR($G57),SUM($L11:AR11)+$F57,0) -> 0 | AT57: =IF(AT$3>=YEAR($G57),AT11,0)+IF(AT$3=YEAR($G57),SUM($L11:AS11)+$F57,0) -> 0 | AU57: =IF(AU$3>=YEAR($G57),AU11,0)+IF(AU$3=YEAR($G57),SUM($L11:AT11)+$F57,0) -> 0 | AV57: =IF(AV$3>=YEAR($G57),AV11,0)+IF(AV$3=YEAR($G57),SUM($L11:AU11)+$F57,0) -> 0 | AW57: =IF(AW$3>=YEAR($G57),AW11,0)+IF(AW$3=YEAR($G57),SUM($L11:AV11)+$F57,0) -> 0 | AX57: =IF(AX$3>=YEAR($G57),AX11,0)+IF(AX$3=YEAR($G57),SUM($L11:AW11)+$F57,0) -> 0 | AY57: =IF(AY$3>=YEAR($G57),AY11,0)+IF(AY$3=YEAR($G57),SUM($L11:AX11)+$F57,0) -> 0 | AZ57: =IF(AZ$3>=YEAR($G57),AZ11,0)+IF(AZ$3=YEAR($G57),SUM($L11:AY11)+$F57,0) -> 0 | BA57: =IF(BA$3>=YEAR($G57),BA11,0)+IF(BA$3=YEAR($G57),SUM($L11:AZ11)+$F57,0) -> 0 | BB57: =IF(BB$3>=YEAR($G57),BB11,0)+IF(BB$3=YEAR($G57),SUM($L11:BA11)+$F57,0) -> 0 | BC57: =IF(BC$3>=YEAR($G57),BC11,0)+IF(BC$3=YEAR($G57),SUM($L11:BB11)+$F57,0) -> 0 | BD57: =IF(BD$3>=YEAR($G57),BD11,0)+IF(BD$3=YEAR($G57),SUM($L11:BC11)+$F57,0) -> 0 | BE57: =IF(BE$3>=YEAR($G57),BE11,0)+IF(BE$3=YEAR($G57),SUM($L11:BD11)+$F57,0) -> 0 | BF57: =IF(BF$3>=YEAR($G57),BF11,0)+IF(BF$3=YEAR($G57),SUM($L11:BE11)+$F57,0) -> 0 | BG57: =IF(BG$3>=YEAR($G57),BG11,0)+IF(BG$3=YEAR($G57),SUM($L11:BF11)+$F57,0) -> 0 | BH57: =IF(BH$3>=YEAR($G57),BH11,0)+IF(BH$3=YEAR($G57),SUM($L11:BG11)+$F57,0) -> 0 | BI57: =IF(BI$3>=YEAR($G57),BI11,0)+IF(BI$3=YEAR($G57),SUM($L11:BH11)+$F57,0) -> 0 | BJ57: =IF(BJ$3>=YEAR($G57),BJ11,0)+IF(BJ$3=YEAR($G57),SUM($L11:BI11)+$F57,0) -> 0 | BK57: =IF(BK$3>=YEAR($G57),BK11,0)+IF(BK$3=YEAR($G57),SUM($L11:BJ11)+$F57,0) -> 0
C58: 3 | D58: =D$12 -> Avoided Like-Kind Replacements | F58: 0 | G58: 2015-01-01 | H58: 2015 | J58: -376923.4266 | M58: =IF(M$3>=YEAR($G58),M12,0)+IF(M$3=YEAR($G58),SUM($L12:L12)+$F58,0) -> 0 | N58: =IF(N$3>=YEAR($G58),N12,0)+IF(N$3=YEAR($G58),SUM($L12:M12)+$F58,0) -> 0 | O58: =IF(O$3>=YEAR($G58),O12,0)+IF(O$3=YEAR($G58),SUM($L12:N12)+$F58,0) -> 0 | P58: =IF(P$3>=YEAR($G58),P12,0)+IF(P$3=YEAR($G58),SUM($L12:O12)+$F58,0) -> 0 | Q58: =IF(Q$3>=YEAR($G58),Q12,0)+IF(Q$3=YEAR($G58),SUM($L12:P12)+$F58,0) -> 0 | R58: =IF(R$3>=YEAR($G58),R12,0)+IF(R$3=YEAR($G58),SUM($L12:Q12)+$F58,0) -> 0 | S58: =IF(S$3>=YEAR($G58),S12,0)+IF(S$3=YEAR($G58),SUM($L12:R12)+$F58,0) -> 0 | T58: =IF(T$3>=YEAR($G58),T12,0)+IF(T$3=YEAR($G58),SUM($L12:S12)+$F58,0) -> 0 | U58: =IF(U$3>=YEAR($G58),U12,0)+IF(U$3=YEAR($G58),SUM($L12:T12)+$F58,0) -> 0 | V58: =IF(V$3>=YEAR($G58),V12,0)+IF(V$3=YEAR($G58),SUM($L12:U12)+$F58,0) -> -12532.6183 | W58: =IF(W$3>=YEAR($G58),W12,0)+IF(W$3=YEAR($G58),SUM($L12:V12)+$F58,0) -> 0 | X58: =IF(X$3>=YEAR($G58),X12,0)+IF(X$3=YEAR($G58),SUM($L12:W12)+$F58,0) -> -79125.56632 | Y58: =IF(Y$3>=YEAR($G58),Y12,0)+IF(Y$3=YEAR($G58),SUM($L12:X12)+$F58,0) -> -13594.17866 | Z58: =IF(Z$3>=YEAR($G58),Z12,0)+IF(Z$3=YEAR($G58),SUM($L12:Y12)+$F58,0) -> -13798.26055 | AA58: =IF(AA$3>=YEAR($G58),AA12,0)+IF(AA$3=YEAR($G58),SUM($L12:Z12)+$F58,0) -> -43238.7594 | AB58: =IF(AB$3>=YEAR($G58),AB12,0)+IF(AB$3=YEAR($G58),SUM($L12:AA12)+$F58,0) -> -88007.62813 | AC58: =IF(AC$3>=YEAR($G58),AC12,0)+IF(AC$3=YEAR($G58),SUM($L12:AB12)+$F58,0) -> -60493.71635 | AD58: =IF(AD$3>=YEAR($G58),AD12,0)+IF(AD$3=YEAR($G58),SUM($L12:AC12)+$F58,0) -> -31444.4126 | AE58: =IF(AE$3>=YEAR($G58),AE12,0)+IF(AE$3=YEAR($G58),SUM($L12:AD12)+$F58,0) -> 0 | AF58: =IF(AF$3>=YEAR($G58),AF12,0)+IF(AF$3=YEAR($G58),SUM($L12:AE12)+$F58,0) -> -16639.43165 | AG58: =IF(AG$3>=YEAR($G58),AG12,0)+IF(AG$3=YEAR($G58),SUM($L12:AF12)+$F58,0) -> 0 | AH58: =IF(AH$3>=YEAR($G58),AH12,0)+IF(AH$3=YEAR($G58),SUM($L12:AG12)+$F58,0) -> 0 | AI58: =IF(AI$3>=YEAR($G58),AI12,0)+IF(AI$3=YEAR($G58),SUM($L12:AH12)+$F58,0) -> -18048.85469 | AJ58: =IF(AJ$3>=YEAR($G58),AJ12,0)+IF(AJ$3=YEAR($G58),SUM($L12:AI12)+$F58,0) -> 0 | AK58: =IF(AK$3>=YEAR($G58),AK12,0)+IF(AK$3=YEAR($G58),SUM($L12:AJ12)+$F58,0) -> 0 | AL58: =IF(AL$3>=YEAR($G58),AL12,0)+IF(AL$3=YEAR($G58),SUM($L12:AK12)+$F58,0) -> 0 | AM58: =IF(AM$3>=YEAR($G58),AM12,0)+IF(AM$3=YEAR($G58),SUM($L12:AL12)+$F58,0) -> 0 | AN58: =IF(AN$3>=YEAR($G58),AN12,0)+IF(AN$3=YEAR($G58),SUM($L12:AM12)+$F58,0) -> 0 | AO58: =IF(AO$3>=YEAR($G58),AO12,0)+IF(AO$3=YEAR($G58),SUM($L12:AN12)+$F58,0) -> 0 | AP58: =IF(AP$3>=YEAR($G58),AP12,0)+IF(AP$3=YEAR($G58),SUM($L12:AO12)+$F58,0) -> 0 | AQ58: =IF(AQ$3>=YEAR($G58),AQ12,0)+IF(AQ$3=YEAR($G58),SUM($L12:AP12)+$F58,0) -> 0 | AR58: =IF(AR$3>=YEAR($G58),AR12,0)+IF(AR$3=YEAR($G58),SUM($L12:AQ12)+$F58,0) -> 0 | AS58: =IF(AS$3>=YEAR($G58),AS12,0)+IF(AS$3=YEAR($G58),SUM($L12:AR12)+$F58,0) -> 0 | AT58: =IF(AT$3>=YEAR($G58),AT12,0)+IF(AT$3=YEAR($G58),SUM($L12:AS12)+$F58,0) -> 0 | AU58: =IF(AU$3>=YEAR($G58),AU12,0)+IF(AU$3=YEAR($G58),SUM($L12:AT12)+$F58,0) -> 0 | AV58: =IF(AV$3>=YEAR($G58),AV12,0)+IF(AV$3=YEAR($G58),SUM($L12:AU12)+$F58,0) -> 0 | AW58: =IF(AW$3>=YEAR($G58),AW12,0)+IF(AW$3=YEAR($G58),SUM($L12:AV12)+$F58,0) -> 0 | AX58: =IF(AX$3>=YEAR($G58),AX12,0)+IF(AX$3=YEAR($G58),SUM($L12:AW12)+$F58,0) -> 0 | AY58: =IF(AY$3>=YEAR($G58),AY12,0)+IF(AY$3=YEAR($G58),SUM($L12:AX12)+$F58,0) -> 0 | AZ58: =IF(AZ$3>=YEAR($G58),AZ12,0)+IF(AZ$3=YEAR($G58),SUM($L12:AY12)+$F58,0) -> 0 | BA58: =IF(BA$3>=YEAR($G58),BA12,0)+IF(BA$3=YEAR($G58),SUM($L12:AZ12)+$F58,0) -> 0 | BB58: =IF(BB$3>=YEAR($G58),BB12,0)+IF(BB$3=YEAR($G58),SUM($L12:BA12)+$F58,0) -> 0 | BC58: =IF(BC$3>=YEAR($G58),BC12,0)+IF(BC$3=YEAR($G58),SUM($L12:BB12)+$F58,0) -> 0 | BD58: =IF(BD$3>=YEAR($G58),BD12,0)+IF(BD$3=YEAR($G58),SUM($L12:BC12)+$F58,0) -> 0 | BE58: =IF(BE$3>=YEAR($G58),BE12,0)+IF(BE$3=YEAR($G58),SUM($L12:BD12)+$F58,0) -> 0 | BF58: =IF(BF$3>=YEAR($G58),BF12,0)+IF(BF$3=YEAR($G58),SUM($L12:BE12)+$F58,0) -> 0 | BG58: =IF(BG$3>=YEAR($G58),BG12,0)+IF(BG$3=YEAR($G58),SUM($L12:BF12)+$F58,0) -> 0 | BH58: =IF(BH$3>=YEAR($G58),BH12,0)+IF(BH$3=YEAR($G58),SUM($L12:BG12)+$F58,0) -> 0 | BI58: =IF(BI$3>=YEAR($G58),BI12,0)+IF(BI$3=YEAR($G58),SUM($L12:BH12)+$F58,0) -> 0 | BJ58: =IF(BJ$3>=YEAR($G58),BJ12,0)+IF(BJ$3=YEAR($G58),SUM($L12:BI12)+$F58,0) -> 0 | BK58: =IF(BK$3>=YEAR($G58),BK12,0)+IF(BK$3=YEAR($G58),SUM($L12:BJ12)+$F58,0) -> 0
C59: 4 | D59: =D$13 -> Tax Effects of Existing Part Retirement | F59: 0 | G59: 2015-01-01 | H59: 2015 | J59: 0 | M59: =IF(M$3>=YEAR($G59),M13,0)+IF(M$3=YEAR($G59),SUM($L13:L13)+$F59,0) -> 0 | N59: =IF(N$3>=YEAR($G59),N13,0)+IF(N$3=YEAR($G59),SUM($L13:M13)+$F59,0) -> 0 | O59: =IF(O$3>=YEAR($G59),O13,0)+IF(O$3=YEAR($G59),SUM($L13:N13)+$F59,0) -> 0 | P59: =IF(P$3>=YEAR($G59),P13,0)+IF(P$3=YEAR($G59),SUM($L13:O13)+$F59,0) -> 0 | Q59: =IF(Q$3>=YEAR($G59),Q13,0)+IF(Q$3=YEAR($G59),SUM($L13:P13)+$F59,0) -> 0 | R59: =IF(R$3>=YEAR($G59),R13,0)+IF(R$3=YEAR($G59),SUM($L13:Q13)+$F59,0) -> 0 | S59: =IF(S$3>=YEAR($G59),S13,0)+IF(S$3=YEAR($G59),SUM($L13:R13)+$F59,0) -> 0 | T59: =IF(T$3>=YEAR($G59),T13,0)+IF(T$3=YEAR($G59),SUM($L13:S13)+$F59,0) -> 0 | U59: =IF(U$3>=YEAR($G59),U13,0)+IF(U$3=YEAR($G59),SUM($L13:T13)+$F59,0) -> 0 | V59: =IF(V$3>=YEAR($G59),V13,0)+IF(V$3=YEAR($G59),SUM($L13:U13)+$F59,0) -> 0 | W59: =IF(W$3>=YEAR($G59),W13,0)+IF(W$3=YEAR($G59),SUM($L13:V13)+$F59,0) -> 0 | X59: =IF(X$3>=YEAR($G59),X13,0)+IF(X$3=YEAR($G59),SUM($L13:W13)+$F59,0) -> 0 | Y59: =IF(Y$3>=YEAR($G59),Y13,0)+IF(Y$3=YEAR($G59),SUM($L13:X13)+$F59,0) -> 0 | Z59: =IF(Z$3>=YEAR($G59),Z13,0)+IF(Z$3=YEAR($G59),SUM($L13:Y13)+$F59,0) -> 0 | AA59: =IF(AA$3>=YEAR($G59),AA13,0)+IF(AA$3=YEAR($G59),SUM($L13:Z13)+$F59,0) -> 0 | AB59: =IF(AB$3>=YEAR($G59),AB13,0)+IF(AB$3=YEAR($G59),SUM($L13:AA13)+$F59,0) -> 0 | AC59: =IF(AC$3>=YEAR($G59),AC13,0)+IF(AC$3=YEAR($G59),SUM($L13:AB13)+$F59,0) -> 0 | AD59: =IF(AD$3>=YEAR($G59),AD13,0)+IF(AD$3=YEAR($G59),SUM($L13:AC13)+$F59,0) -> 0 | AE59: =IF(AE$3>=YEAR($G59),AE13,0)+IF(AE$3=YEAR($G59),SUM($L13:AD13)+$F59,0) -> 0 | AF59: =IF(AF$3>=YEAR($G59),AF13,0)+IF(AF$3=YEAR($G59),SUM($L13:AE13)+$F59,0) -> 0 | AG59: =IF(AG$3>=YEAR($G59),AG13,0)+IF(AG$3=YEAR($G59),SUM($L13:AF13)+$F59,0) -> 0 | AH59: =IF(AH$3>=YEAR($G59),AH13,0)+IF(AH$3=YEAR($G59),SUM($L13:AG13)+$F59,0) -> 0 | AI59: =IF(AI$3>=YEAR($G59),AI13,0)+IF(AI$3=YEAR($G59),SUM($L13:AH13)+$F59,0) -> 0 | AJ59: =IF(AJ$3>=YEAR($G59),AJ13,0)+IF(AJ$3=YEAR($G59),SUM($L13:AI13)+$F59,0) -> 0 | AK59: =IF(AK$3>=YEAR($G59),AK13,0)+IF(AK$3=YEAR($G59),SUM($L13:AJ13)+$F59,0) -> 0 | AL59: =IF(AL$3>=YEAR($G59),AL13,0)+IF(AL$3=YEAR($G59),SUM($L13:AK13)+$F59,0) -> 0 | AM59: =IF(AM$3>=YEAR($G59),AM13,0)+IF(AM$3=YEAR($G59),SUM($L13:AL13)+$F59,0) -> 0 | AN59: =IF(AN$3>=YEAR($G59),AN13,0)+IF(AN$3=YEAR($G59),SUM($L13:AM13)+$F59,0) -> 0 | AO59: =IF(AO$3>=YEAR($G59),AO13,0)+IF(AO$3=YEAR($G59),SUM($L13:AN13)+$F59,0) -> 0 | AP59: =IF(AP$3>=YEAR($G59),AP13,0)+IF(AP$3=YEAR($G59),SUM($L13:AO13)+$F59,0) -> 0 | AQ59: =IF(AQ$3>=YEAR($G59),AQ13,0)+IF(AQ$3=YEAR($G59),SUM($L13:AP13)+$F59,0) -> 0 | AR59: =IF(AR$3>=YEAR($G59),AR13,0)+IF(AR$3=YEAR($G59),SUM($L13:AQ13)+$F59,0) -> 0 | AS59: =IF(AS$3>=YEAR($G59),AS13,0)+IF(AS$3=YEAR($G59),SUM($L13:AR13)+$F59,0) -> 0 | AT59: =IF(AT$3>=YEAR($G59),AT13,0)+IF(AT$3=YEAR($G59),SUM($L13:AS13)+$F59,0) -> 0 | AU59: =IF(AU$3>=YEAR($G59),AU13,0)+IF(AU$3=YEAR($G59),SUM($L13:AT13)+$F59,0) -> 0 | AV59: =IF(AV$3>=YEAR($G59),AV13,0)+IF(AV$3=YEAR($G59),SUM($L13:AU13)+$F59,0) -> 0 | AW59: =IF(AW$3>=YEAR($G59),AW13,0)+IF(AW$3=YEAR($G59),SUM($L13:AV13)+$F59,0) -> 0 | AX59: =IF(AX$3>=YEAR($G59),AX13,0)+IF(AX$3=YEAR($G59),SUM($L13:AW13)+$F59,0) -> 0 | AY59: =IF(AY$3>=YEAR($G59),AY13,0)+IF(AY$3=YEAR($G59),SUM($L13:AX13)+$F59,0) -> 0 | AZ59: =IF(AZ$3>=YEAR($G59),AZ13,0)+IF(AZ$3=YEAR($G59),SUM($L13:AY13)+$F59,0) -> 0 | BA59: =IF(BA$3>=YEAR($G59),BA13,0)+IF(BA$3=YEAR($G59),SUM($L13:AZ13)+$F59,0) -> 0 | BB59: =IF(BB$3>=YEAR($G59),BB13,0)+IF(BB$3=YEAR($G59),SUM($L13:BA13)+$F59,0) -> 0 | BC59: =IF(BC$3>=YEAR($G59),BC13,0)+IF(BC$3=YEAR($G59),SUM($L13:BB13)+$F59,0) -> 0 | BD59: =IF(BD$3>=YEAR($G59),BD13,0)+IF(BD$3=YEAR($G59),SUM($L13:BC13)+$F59,0) -> 0 | BE59: =IF(BE$3>=YEAR($G59),BE13,0)+IF(BE$3=YEAR($G59),SUM($L13:BD13)+$F59,0) -> 0 | BF59: =IF(BF$3>=YEAR($G59),BF13,0)+IF(BF$3=YEAR($G59),SUM($L13:BE13)+$F59,0) -> 0 | BG59: =IF(BG$3>=YEAR($G59),BG13,0)+IF(BG$3=YEAR($G59),SUM($L13:BF13)+$F59,0) -> 0 | BH59: =IF(BH$3>=YEAR($G59),BH13,0)+IF(BH$3=YEAR($G59),SUM($L13:BG13)+$F59,0) -> 0 | BI59: =IF(BI$3>=YEAR($G59),BI13,0)+IF(BI$3=YEAR($G59),SUM($L13:BH13)+$F59,0) -> 0 | BJ59: =IF(BJ$3>=YEAR($G59),BJ13,0)+IF(BJ$3=YEAR($G59),SUM($L13:BI13)+$F59,0) -> 0 | BK59: =IF(BK$3>=YEAR($G59),BK13,0)+IF(BK$3=YEAR($G59),SUM($L13:BJ13)+$F59,0) -> 0
C60: 5 | D60: =D$14 -> … | F60: 0 | G60: 00:00:00 | H60: 1900 | J60: 0 | M60: =IF(M$3>=YEAR($G60),M14,0)+IF(M$3=YEAR($G60),SUM($L14:L14)+$F60,0) -> 0 | N60: =IF(N$3>=YEAR($G60),N14,0)+IF(N$3=YEAR($G60),SUM($L14:M14)+$F60,0) -> 0 | O60: =IF(O$3>=YEAR($G60),O14,0)+IF(O$3=YEAR($G60),SUM($L14:N14)+$F60,0) -> 0 | P60: =IF(P$3>=YEAR($G60),P14,0)+IF(P$3=YEAR($G60),SUM($L14:O14)+$F60,0) -> 0 | Q60: =IF(Q$3>=YEAR($G60),Q14,0)+IF(Q$3=YEAR($G60),SUM($L14:P14)+$F60,0) -> 0 | R60: =IF(R$3>=YEAR($G60),R14,0)+IF(R$3=YEAR($G60),SUM($L14:Q14)+$F60,0) -> 0 | S60: =IF(S$3>=YEAR($G60),S14,0)+IF(S$3=YEAR($G60),SUM($L14:R14)+$F60,0) -> 0 | T60: =IF(T$3>=YEAR($G60),T14,0)+IF(T$3=YEAR($G60),SUM($L14:S14)+$F60,0) -> 0 | U60: =IF(U$3>=YEAR($G60),U14,0)+IF(U$3=YEAR($G60),SUM($L14:T14)+$F60,0) -> 0 | V60: =IF(V$3>=YEAR($G60),V14,0)+IF(V$3=YEAR($G60),SUM($L14:U14)+$F60,0) -> 0 | W60: =IF(W$3>=YEAR($G60),W14,0)+IF(W$3=YEAR($G60),SUM($L14:V14)+$F60,0) -> 0 | X60: =IF(X$3>=YEAR($G60),X14,0)+IF(X$3=YEAR($G60),SUM($L14:W14)+$F60,0) -> 0 | Y60: =IF(Y$3>=YEAR($G60),Y14,0)+IF(Y$3=YEAR($G60),SUM($L14:X14)+$F60,0) -> 0 | Z60: =IF(Z$3>=YEAR($G60),Z14,0)+IF(Z$3=YEAR($G60),SUM($L14:Y14)+$F60,0) -> 0 | AA60: =IF(AA$3>=YEAR($G60),AA14,0)+IF(AA$3=YEAR($G60),SUM($L14:Z14)+$F60,0) -> 0 | AB60: =IF(AB$3>=YEAR($G60),AB14,0)+IF(AB$3=YEAR($G60),SUM($L14:AA14)+$F60,0) -> 0 | AC60: =IF(AC$3>=YEAR($G60),AC14,0)+IF(AC$3=YEAR($G60),SUM($L14:AB14)+$F60,0) -> 0 | AD60: =IF(AD$3>=YEAR($G60),AD14,0)+IF(AD$3=YEAR($G60),SUM($L14:AC14)+$F60,0) -> 0 | AE60: =IF(AE$3>=YEAR($G60),AE14,0)+IF(AE$3=YEAR($G60),SUM($L14:AD14)+$F60,0) -> 0 | AF60: =IF(AF$3>=YEAR($G60),AF14,0)+IF(AF$3=YEAR($G60),SUM($L14:AE14)+$F60,0) -> 0 | AG60: =IF(AG$3>=YEAR($G60),AG14,0)+IF(AG$3=YEAR($G60),SUM($L14:AF14)+$F60,0) -> 0 | AH60: =IF(AH$3>=YEAR($G60),AH14,0)+IF(AH$3=YEAR($G60),SUM($L14:AG14)+$F60,0) -> 0 | AI60: =IF(AI$3>=YEAR($G60),AI14,0)+IF(AI$3=YEAR($G60),SUM($L14:AH14)+$F60,0) -> 0 | AJ60: =IF(AJ$3>=YEAR($G60),AJ14,0)+IF(AJ$3=YEAR($G60),SUM($L14:AI14)+$F60,0) -> 0 | AK60: =IF(AK$3>=YEAR($G60),AK14,0)+IF(AK$3=YEAR($G60),SUM($L14:AJ14)+$F60,0) -> 0 | AL60: =IF(AL$3>=YEAR($G60),AL14,0)+IF(AL$3=YEAR($G60),SUM($L14:AK14)+$F60,0) -> 0 | AM60: =IF(AM$3>=YEAR($G60),AM14,0)+IF(AM$3=YEAR($G60),SUM($L14:AL14)+$F60,0) -> 0 | AN60: =IF(AN$3>=YEAR($G60),AN14,0)+IF(AN$3=YEAR($G60),SUM($L14:AM14)+$F60,0) -> 0 | AO60: =IF(AO$3>=YEAR($G60),AO14,0)+IF(AO$3=YEAR($G60),SUM($L14:AN14)+$F60,0) -> 0 | AP60: =IF(AP$3>=YEAR($G60),AP14,0)+IF(AP$3=YEAR($G60),SUM($L14:AO14)+$F60,0) -> 0 | AQ60: =IF(AQ$3>=YEAR($G60),AQ14,0)+IF(AQ$3=YEAR($G60),SUM($L14:AP14)+$F60,0) -> 0 | AR60: =IF(AR$3>=YEAR($G60),AR14,0)+IF(AR$3=YEAR($G60),SUM($L14:AQ14)+$F60,0) -> 0 | AS60: =IF(AS$3>=YEAR($G60),AS14,0)+IF(AS$3=YEAR($G60),SUM($L14:AR14)+$F60,0) -> 0 | AT60: =IF(AT$3>=YEAR($G60),AT14,0)+IF(AT$3=YEAR($G60),SUM($L14:AS14)+$F60,0) -> 0 | AU60: =IF(AU$3>=YEAR($G60),AU14,0)+IF(AU$3=YEAR($G60),SUM($L14:AT14)+$F60,0) -> 0 | AV60: =IF(AV$3>=YEAR($G60),AV14,0)+IF(AV$3=YEAR($G60),SUM($L14:AU14)+$F60,0) -> 0 | AW60: =IF(AW$3>=YEAR($G60),AW14,0)+IF(AW$3=YEAR($G60),SUM($L14:AV14)+$F60,0) -> 0 | AX60: =IF(AX$3>=YEAR($G60),AX14,0)+IF(AX$3=YEAR($G60),SUM($L14:AW14)+$F60,0) -> 0 | AY60: =IF(AY$3>=YEAR($G60),AY14,0)+IF(AY$3=YEAR($G60),SUM($L14:AX14)+$F60,0) -> 0 | AZ60: =IF(AZ$3>=YEAR($G60),AZ14,0)+IF(AZ$3=YEAR($G60),SUM($L14:AY14)+$F60,0) -> 0 | BA60: =IF(BA$3>=YEAR($G60),BA14,0)+IF(BA$3=YEAR($G60),SUM($L14:AZ14)+$F60,0) -> 0 | BB60: =IF(BB$3>=YEAR($G60),BB14,0)+IF(BB$3=YEAR($G60),SUM($L14:BA14)+$F60,0) -> 0 | BC60: =IF(BC$3>=YEAR($G60),BC14,0)+IF(BC$3=YEAR($G60),SUM($L14:BB14)+$F60,0) -> 0 | BD60: =IF(BD$3>=YEAR($G60),BD14,0)+IF(BD$3=YEAR($G60),SUM($L14:BC14)+$F60,0) -> 0 | BE60: =IF(BE$3>=YEAR($G60),BE14,0)+IF(BE$3=YEAR($G60),SUM($L14:BD14)+$F60,0) -> 0 | BF60: =IF(BF$3>=YEAR($G60),BF14,0)+IF(BF$3=YEAR($G60),SUM($L14:BE14)+$F60,0) -> 0 | BG60: =IF(BG$3>=YEAR($G60),BG14,0)+IF(BG$3=YEAR($G60),SUM($L14:BF14)+$F60,0) -> 0 | BH60: =IF(BH$3>=YEAR($G60),BH14,0)+IF(BH$3=YEAR($G60),SUM($L14:BG14)+$F60,0) -> 0 | BI60: =IF(BI$3>=YEAR($G60),BI14,0)+IF(BI$3=YEAR($G60),SUM($L14:BH14)+$F60,0) -> 0 | BJ60: =IF(BJ$3>=YEAR($G60),BJ14,0)+IF(BJ$3=YEAR($G60),SUM($L14:BI14)+$F60,0) -> 0 | BK60: =IF(BK$3>=YEAR($G60),BK14,0)+IF(BK$3=YEAR($G60),SUM($L14:BJ14)+$F60,0) -> 0
C61: 6 | D61: =D$15 -> … | F61: 0 | G61: 00:00:00 | H61: 1900 | J61: 0 | M61: =IF(M$3>=YEAR($G61),M15,0)+IF(M$3=YEAR($G61),SUM($L15:L15)+$F61,0) -> 0 | N61: =IF(N$3>=YEAR($G61),N15,0)+IF(N$3=YEAR($G61),SUM($L15:M15)+$F61,0) -> 0 | O61: =IF(O$3>=YEAR($G61),O15,0)+IF(O$3=YEAR($G61),SUM($L15:N15)+$F61,0) -> 0 | P61: =IF(P$3>=YEAR($G61),P15,0)+IF(P$3=YEAR($G61),SUM($L15:O15)+$F61,0) -> 0 | Q61: =IF(Q$3>=YEAR($G61),Q15,0)+IF(Q$3=YEAR($G61),SUM($L15:P15)+$F61,0) -> 0 | R61: =IF(R$3>=YEAR($G61),R15,0)+IF(R$3=YEAR($G61),SUM($L15:Q15)+$F61,0) -> 0 | S61: =IF(S$3>=YEAR($G61),S15,0)+IF(S$3=YEAR($G61),SUM($L15:R15)+$F61,0) -> 0 | T61: =IF(T$3>=YEAR($G61),T15,0)+IF(T$3=YEAR($G61),SUM($L15:S15)+$F61,0) -> 0 | U61: =IF(U$3>=YEAR($G61),U15,0)+IF(U$3=YEAR($G61),SUM($L15:T15)+$F61,0) -> 0 | V61: =IF(V$3>=YEAR($G61),V15,0)+IF(V$3=YEAR($G61),SUM($L15:U15)+$F61,0) -> 0 | W61: =IF(W$3>=YEAR($G61),W15,0)+IF(W$3=YEAR($G61),SUM($L15:V15)+$F61,0) -> 0 | X61: =IF(X$3>=YEAR($G61),X15,0)+IF(X$3=YEAR($G61),SUM($L15:W15)+$F61,0) -> 0 | Y61: =IF(Y$3>=YEAR($G61),Y15,0)+IF(Y$3=YEAR($G61),SUM($L15:X15)+$F61,0) -> 0 | Z61: =IF(Z$3>=YEAR($G61),Z15,0)+IF(Z$3=YEAR($G61),SUM($L15:Y15)+$F61,0) -> 0 | AA61: =IF(AA$3>=YEAR($G61),AA15,0)+IF(AA$3=YEAR($G61),SUM($L15:Z15)+$F61,0) -> 0 | AB61: =IF(AB$3>=YEAR($G61),AB15,0)+IF(AB$3=YEAR($G61),SUM($L15:AA15)+$F61,0) -> 0 | AC61: =IF(AC$3>=YEAR($G61),AC15,0)+IF(AC$3=YEAR($G61),SUM($L15:AB15)+$F61,0) -> 0 | AD61: =IF(AD$3>=YEAR($G61),AD15,0)+IF(AD$3=YEAR($G61),SUM($L15:AC15)+$F61,0) -> 0 | AE61: =IF(AE$3>=YEAR($G61),AE15,0)+IF(AE$3=YEAR($G61),SUM($L15:AD15)+$F61,0) -> 0 | AF61: =IF(AF$3>=YEAR($G61),AF15,0)+IF(AF$3=YEAR($G61),SUM($L15:AE15)+$F61,0) -> 0 | AG61: =IF(AG$3>=YEAR($G61),AG15,0)+IF(AG$3=YEAR($G61),SUM($L15:AF15)+$F61,0) -> 0 | AH61: =IF(AH$3>=YEAR($G61),AH15,0)+IF(AH$3=YEAR($G61),SUM($L15:AG15)+$F61,0) -> 0 | AI61: =IF(AI$3>=YEAR($G61),AI15,0)+IF(AI$3=YEAR($G61),SUM($L15:AH15)+$F61,0) -> 0 | AJ61: =IF(AJ$3>=YEAR($G61),AJ15,0)+IF(AJ$3=YEAR($G61),SUM($L15:AI15)+$F61,0) -> 0 | AK61: =IF(AK$3>=YEAR($G61),AK15,0)+IF(AK$3=YEAR($G61),SUM($L15:AJ15)+$F61,0) -> 0 | AL61: =IF(AL$3>=YEAR($G61),AL15,0)+IF(AL$3=YEAR($G61),SUM($L15:AK15)+$F61,0) -> 0 | AM61: =IF(AM$3>=YEAR($G61),AM15,0)+IF(AM$3=YEAR($G61),SUM($L15:AL15)+$F61,0) -> 0 | AN61: =IF(AN$3>=YEAR($G61),AN15,0)+IF(AN$3=YEAR($G61),SUM($L15:AM15)+$F61,0) -> 0 | AO61: =IF(AO$3>=YEAR($G61),AO15,0)+IF(AO$3=YEAR($G61),SUM($L15:AN15)+$F61,0) -> 0 | AP61: =IF(AP$3>=YEAR($G61),AP15,0)+IF(AP$3=YEAR($G61),SUM($L15:AO15)+$F61,0) -> 0 | AQ61: =IF(AQ$3>=YEAR($G61),AQ15,0)+IF(AQ$3=YEAR($G61),SUM($L15:AP15)+$F61,0) -> 0 | AR61: =IF(AR$3>=YEAR($G61),AR15,0)+IF(AR$3=YEAR($G61),SUM($L15:AQ15)+$F61,0) -> 0 | AS61: =IF(AS$3>=YEAR($G61),AS15,0)+IF(AS$3=YEAR($G61),SUM($L15:AR15)+$F61,0) -> 0 | AT61: =IF(AT$3>=YEAR($G61),AT15,0)+IF(AT$3=YEAR($G61),SUM($L15:AS15)+$F61,0) -> 0 | AU61: =IF(AU$3>=YEAR($G61),AU15,0)+IF(AU$3=YEAR($G61),SUM($L15:AT15)+$F61,0) -> 0 | AV61: =IF(AV$3>=YEAR($G61),AV15,0)+IF(AV$3=YEAR($G61),SUM($L15:AU15)+$F61,0) -> 0 | AW61: =IF(AW$3>=YEAR($G61),AW15,0)+IF(AW$3=YEAR($G61),SUM($L15:AV15)+$F61,0) -> 0 | AX61: =IF(AX$3>=YEAR($G61),AX15,0)+IF(AX$3=YEAR($G61),SUM($L15:AW15)+$F61,0) -> 0 | AY61: =IF(AY$3>=YEAR($G61),AY15,0)+IF(AY$3=YEAR($G61),SUM($L15:AX15)+$F61,0) -> 0 | AZ61: =IF(AZ$3>=YEAR($G61),AZ15,0)+IF(AZ$3=YEAR($G61),SUM($L15:AY15)+$F61,0) -> 0 | BA61: =IF(BA$3>=YEAR($G61),BA15,0)+IF(BA$3=YEAR($G61),SUM($L15:AZ15)+$F61,0) -> 0 | BB61: =IF(BB$3>=YEAR($G61),BB15,0)+IF(BB$3=YEAR($G61),SUM($L15:BA15)+$F61,0) -> 0 | BC61: =IF(BC$3>=YEAR($G61),BC15,0)+IF(BC$3=YEAR($G61),SUM($L15:BB15)+$F61,0) -> 0 | BD61: =IF(BD$3>=YEAR($G61),BD15,0)+IF(BD$3=YEAR($G61),SUM($L15:BC15)+$F61,0) -> 0 | BE61: =IF(BE$3>=YEAR($G61),BE15,0)+IF(BE$3=YEAR($G61),SUM($L15:BD15)+$F61,0) -> 0 | BF61: =IF(BF$3>=YEAR($G61),BF15,0)+IF(BF$3=YEAR($G61),SUM($L15:BE15)+$F61,0) -> 0 | BG61: =IF(BG$3>=YEAR($G61),BG15,0)+IF(BG$3=YEAR($G61),SUM($L15:BF15)+$F61,0) -> 0 | BH61: =IF(BH$3>=YEAR($G61),BH15,0)+IF(BH$3=YEAR($G61),SUM($L15:BG15)+$F61,0) -> 0 | BI61: =IF(BI$3>=YEAR($G61),BI15,0)+IF(BI$3=YEAR($G61),SUM($L15:BH15)+$F61,0) -> 0 | BJ61: =IF(BJ$3>=YEAR($G61),BJ15,0)+IF(BJ$3=YEAR($G61),SUM($L15:BI15)+$F61,0) -> 0 | BK61: =IF(BK$3>=YEAR($G61),BK15,0)+IF(BK$3=YEAR($G61),SUM($L15:BJ15)+$F61,0) -> 0
C62: 7 | D62: =D$16 -> … | F62: 0 | G62: 00:00:00 | H62: 1900 | J62: 0 | M62: =IF(M$3>=YEAR($G62),M16,0)+IF(M$3=YEAR($G62),SUM($L16:L16)+$F62,0) -> 0 | N62: =IF(N$3>=YEAR($G62),N16,0)+IF(N$3=YEAR($G62),SUM($L16:M16)+$F62,0) -> 0 | O62: =IF(O$3>=YEAR($G62),O16,0)+IF(O$3=YEAR($G62),SUM($L16:N16)+$F62,0) -> 0 | P62: =IF(P$3>=YEAR($G62),P16,0)+IF(P$3=YEAR($G62),SUM($L16:O16)+$F62,0) -> 0 | Q62: =IF(Q$3>=YEAR($G62),Q16,0)+IF(Q$3=YEAR($G62),SUM($L16:P16)+$F62,0) -> 0 | R62: =IF(R$3>=YEAR($G62),R16,0)+IF(R$3=YEAR($G62),SUM($L16:Q16)+$F62,0) -> 0 | S62: =IF(S$3>=YEAR($G62),S16,0)+IF(S$3=YEAR($G62),SUM($L16:R16)+$F62,0) -> 0 | T62: =IF(T$3>=YEAR($G62),T16,0)+IF(T$3=YEAR($G62),SUM($L16:S16)+$F62,0) -> 0 | U62: =IF(U$3>=YEAR($G62),U16,0)+IF(U$3=YEAR($G62),SUM($L16:T16)+$F62,0) -> 0 | V62: =IF(V$3>=YEAR($G62),V16,0)+IF(V$3=YEAR($G62),SUM($L16:U16)+$F62,0) -> 0 | W62: =IF(W$3>=YEAR($G62),W16,0)+IF(W$3=YEAR($G62),SUM($L16:V16)+$F62,0) -> 0 | X62: =IF(X$3>=YEAR($G62),X16,0)+IF(X$3=YEAR($G62),SUM($L16:W16)+$F62,0) -> 0 | Y62: =IF(Y$3>=YEAR($G62),Y16,0)+IF(Y$3=YEAR($G62),SUM($L16:X16)+$F62,0) -> 0 | Z62: =IF(Z$3>=YEAR($G62),Z16,0)+IF(Z$3=YEAR($G62),SUM($L16:Y16)+$F62,0) -> 0 | AA62: =IF(AA$3>=YEAR($G62),AA16,0)+IF(AA$3=YEAR($G62),SUM($L16:Z16)+$F62,0) -> 0 | AB62: =IF(AB$3>=YEAR($G62),AB16,0)+IF(AB$3=YEAR($G62),SUM($L16:AA16)+$F62,0) -> 0 | AC62: =IF(AC$3>=YEAR($G62),AC16,0)+IF(AC$3=YEAR($G62),SUM($L16:AB16)+$F62,0) -> 0 | AD62: =IF(AD$3>=YEAR($G62),AD16,0)+IF(AD$3=YEAR($G62),SUM($L16:AC16)+$F62,0) -> 0 | AE62: =IF(AE$3>=YEAR($G62),AE16,0)+IF(AE$3=YEAR($G62),SUM($L16:AD16)+$F62,0) -> 0 | AF62: =IF(AF$3>=YEAR($G62),AF16,0)+IF(AF$3=YEAR($G62),SUM($L16:AE16)+$F62,0) -> 0 | AG62: =IF(AG$3>=YEAR($G62),AG16,0)+IF(AG$3=YEAR($G62),SUM($L16:AF16)+$F62,0) -> 0 | AH62: =IF(AH$3>=YEAR($G62),AH16,0)+IF(AH$3=YEAR($G62),SUM($L16:AG16)+$F62,0) -> 0 | AI62: =IF(AI$3>=YEAR($G62),AI16,0)+IF(AI$3=YEAR($G62),SUM($L16:AH16)+$F62,0) -> 0 | AJ62: =IF(AJ$3>=YEAR($G62),AJ16,0)+IF(AJ$3=YEAR($G62),SUM($L16:AI16)+$F62,0) -> 0 | AK62: =IF(AK$3>=YEAR($G62),AK16,0)+IF(AK$3=YEAR($G62),SUM($L16:AJ16)+$F62,0) -> 0 | AL62: =IF(AL$3>=YEAR($G62),AL16,0)+IF(AL$3=YEAR($G62),SUM($L16:AK16)+$F62,0) -> 0 | AM62: =IF(AM$3>=YEAR($G62),AM16,0)+IF(AM$3=YEAR($G62),SUM($L16:AL16)+$F62,0) -> 0 | AN62: =IF(AN$3>=YEAR($G62),AN16,0)+IF(AN$3=YEAR($G62),SUM($L16:AM16)+$F62,0) -> 0 | AO62: =IF(AO$3>=YEAR($G62),AO16,0)+IF(AO$3=YEAR($G62),SUM($L16:AN16)+$F62,0) -> 0 | AP62: =IF(AP$3>=YEAR($G62),AP16,0)+IF(AP$3=YEAR($G62),SUM($L16:AO16)+$F62,0) -> 0 | AQ62: =IF(AQ$3>=YEAR($G62),AQ16,0)+IF(AQ$3=YEAR($G62),SUM($L16:AP16)+$F62,0) -> 0 | AR62: =IF(AR$3>=YEAR($G62),AR16,0)+IF(AR$3=YEAR($G62),SUM($L16:AQ16)+$F62,0) -> 0 | AS62: =IF(AS$3>=YEAR($G62),AS16,0)+IF(AS$3=YEAR($G62),SUM($L16:AR16)+$F62,0) -> 0 | AT62: =IF(AT$3>=YEAR($G62),AT16,0)+IF(AT$3=YEAR($G62),SUM($L16:AS16)+$F62,0) -> 0 | AU62: =IF(AU$3>=YEAR($G62),AU16,0)+IF(AU$3=YEAR($G62),SUM($L16:AT16)+$F62,0) -> 0 | AV62: =IF(AV$3>=YEAR($G62),AV16,0)+IF(AV$3=YEAR($G62),SUM($L16:AU16)+$F62,0) -> 0 | AW62: =IF(AW$3>=YEAR($G62),AW16,0)+IF(AW$3=YEAR($G62),SUM($L16:AV16)+$F62,0) -> 0 | AX62: =IF(AX$3>=YEAR($G62),AX16,0)+IF(AX$3=YEAR($G62),SUM($L16:AW16)+$F62,0) -> 0 | AY62: =IF(AY$3>=YEAR($G62),AY16,0)+IF(AY$3=YEAR($G62),SUM($L16:AX16)+$F62,0) -> 0 | AZ62: =IF(AZ$3>=YEAR($G62),AZ16,0)+IF(AZ$3=YEAR($G62),SUM($L16:AY16)+$F62,0) -> 0 | BA62: =IF(BA$3>=YEAR($G62),BA16,0)+IF(BA$3=YEAR($G62),SUM($L16:AZ16)+$F62,0) -> 0 | BB62: =IF(BB$3>=YEAR($G62),BB16,0)+IF(BB$3=YEAR($G62),SUM($L16:BA16)+$F62,0) -> 0 | BC62: =IF(BC$3>=YEAR($G62),BC16,0)+IF(BC$3=YEAR($G62),SUM($L16:BB16)+$F62,0) -> 0 | BD62: =IF(BD$3>=YEAR($G62),BD16,0)+IF(BD$3=YEAR($G62),SUM($L16:BC16)+$F62,0) -> 0 | BE62: =IF(BE$3>=YEAR($G62),BE16,0)+IF(BE$3=YEAR($G62),SUM($L16:BD16)+$F62,0) -> 0 | BF62: =IF(BF$3>=YEAR($G62),BF16,0)+IF(BF$3=YEAR($G62),SUM($L16:BE16)+$F62,0) -> 0 | BG62: =IF(BG$3>=YEAR($G62),BG16,0)+IF(BG$3=YEAR($G62),SUM($L16:BF16)+$F62,0) -> 0 | BH62: =IF(BH$3>=YEAR($G62),BH16,0)+IF(BH$3=YEAR($G62),SUM($L16:BG16)+$F62,0) -> 0 | BI62: =IF(BI$3>=YEAR($G62),BI16,0)+IF(BI$3=YEAR($G62),SUM($L16:BH16)+$F62,0) -> 0 | BJ62: =IF(BJ$3>=YEAR($G62),BJ16,0)+IF(BJ$3=YEAR($G62),SUM($L16:BI16)+$F62,0) -> 0 | BK62: =IF(BK$3>=YEAR($G62),BK16,0)+IF(BK$3=YEAR($G62),SUM($L16:BJ16)+$F62,0) -> 0
C63: 8 | D63: =D$17 -> … | F63: 0 | G63: 00:00:00 | H63: 1900 | J63: 0 | M63: =IF(M$3>=YEAR($G63),M17,0)+IF(M$3=YEAR($G63),SUM($L17:L17)+$F63,0) -> 0 | N63: =IF(N$3>=YEAR($G63),N17,0)+IF(N$3=YEAR($G63),SUM($L17:M17)+$F63,0) -> 0 | O63: =IF(O$3>=YEAR($G63),O17,0)+IF(O$3=YEAR($G63),SUM($L17:N17)+$F63,0) -> 0 | P63: =IF(P$3>=YEAR($G63),P17,0)+IF(P$3=YEAR($G63),SUM($L17:O17)+$F63,0) -> 0 | Q63: =IF(Q$3>=YEAR($G63),Q17,0)+IF(Q$3=YEAR($G63),SUM($L17:P17)+$F63,0) -> 0 | R63: =IF(R$3>=YEAR($G63),R17,0)+IF(R$3=YEAR($G63),SUM($L17:Q17)+$F63,0) -> 0 | S63: =IF(S$3>=YEAR($G63),S17,0)+IF(S$3=YEAR($G63),SUM($L17:R17)+$F63,0) -> 0 | T63: =IF(T$3>=YEAR($G63),T17,0)+IF(T$3=YEAR($G63),SUM($L17:S17)+$F63,0) -> 0 | U63: =IF(U$3>=YEAR($G63),U17,0)+IF(U$3=YEAR($G63),SUM($L17:T17)+$F63,0) -> 0 | V63: =IF(V$3>=YEAR($G63),V17,0)+IF(V$3=YEAR($G63),SUM($L17:U17)+$F63,0) -> 0 | W63: =IF(W$3>=YEAR($G63),W17,0)+IF(W$3=YEAR($G63),SUM($L17:V17)+$F63,0) -> 0 | X63: =IF(X$3>=YEAR($G63),X17,0)+IF(X$3=YEAR($G63),SUM($L17:W17)+$F63,0) -> 0 | Y63: =IF(Y$3>=YEAR($G63),Y17,0)+IF(Y$3=YEAR($G63),SUM($L17:X17)+$F63,0) -> 0 | Z63: =IF(Z$3>=YEAR($G63),Z17,0)+IF(Z$3=YEAR($G63),SUM($L17:Y17)+$F63,0) -> 0 | AA63: =IF(AA$3>=YEAR($G63),AA17,0)+IF(AA$3=YEAR($G63),SUM($L17:Z17)+$F63,0) -> 0 | AB63: =IF(AB$3>=YEAR($G63),AB17,0)+IF(AB$3=YEAR($G63),SUM($L17:AA17)+$F63,0) -> 0 | AC63: =IF(AC$3>=YEAR($G63),AC17,0)+IF(AC$3=YEAR($G63),SUM($L17:AB17)+$F63,0) -> 0 | AD63: =IF(AD$3>=YEAR($G63),AD17,0)+IF(AD$3=YEAR($G63),SUM($L17:AC17)+$F63,0) -> 0 | AE63: =IF(AE$3>=YEAR($G63),AE17,0)+IF(AE$3=YEAR($G63),SUM($L17:AD17)+$F63,0) -> 0 | AF63: =IF(AF$3>=YEAR($G63),AF17,0)+IF(AF$3=YEAR($G63),SUM($L17:AE17)+$F63,0) -> 0 | AG63: =IF(AG$3>=YEAR($G63),AG17,0)+IF(AG$3=YEAR($G63),SUM($L17:AF17)+$F63,0) -> 0 | AH63: =IF(AH$3>=YEAR($G63),AH17,0)+IF(AH$3=YEAR($G63),SUM($L17:AG17)+$F63,0) -> 0 | AI63: =IF(AI$3>=YEAR($G63),AI17,0)+IF(AI$3=YEAR($G63),SUM($L17:AH17)+$F63,0) -> 0 | AJ63: =IF(AJ$3>=YEAR($G63),AJ17,0)+IF(AJ$3=YEAR($G63),SUM($L17:AI17)+$F63,0) -> 0 | AK63: =IF(AK$3>=YEAR($G63),AK17,0)+IF(AK$3=YEAR($G63),SUM($L17:AJ17)+$F63,0) -> 0 | AL63: =IF(AL$3>=YEAR($G63),AL17,0)+IF(AL$3=YEAR($G63),SUM($L17:AK17)+$F63,0) -> 0 | AM63: =IF(AM$3>=YEAR($G63),AM17,0)+IF(AM$3=YEAR($G63),SUM($L17:AL17)+$F63,0) -> 0 | AN63: =IF(AN$3>=YEAR($G63),AN17,0)+IF(AN$3=YEAR($G63),SUM($L17:AM17)+$F63,0) -> 0 | AO63: =IF(AO$3>=YEAR($G63),AO17,0)+IF(AO$3=YEAR($G63),SUM($L17:AN17)+$F63,0) -> 0 | AP63: =IF(AP$3>=YEAR($G63),AP17,0)+IF(AP$3=YEAR($G63),SUM($L17:AO17)+$F63,0) -> 0 | AQ63: =IF(AQ$3>=YEAR($G63),AQ17,0)+IF(AQ$3=YEAR($G63),SUM($L17:AP17)+$F63,0) -> 0 | AR63: =IF(AR$3>=YEAR($G63),AR17,0)+IF(AR$3=YEAR($G63),SUM($L17:AQ17)+$F63,0) -> 0 | AS63: =IF(AS$3>=YEAR($G63),AS17,0)+IF(AS$3=YEAR($G63),SUM($L17:AR17)+$F63,0) -> 0 | AT63: =IF(AT$3>=YEAR($G63),AT17,0)+IF(AT$3=YEAR($G63),SUM($L17:AS17)+$F63,0) -> 0 | AU63: =IF(AU$3>=YEAR($G63),AU17,0)+IF(AU$3=YEAR($G63),SUM($L17:AT17)+$F63,0) -> 0 | AV63: =IF(AV$3>=YEAR($G63),AV17,0)+IF(AV$3=YEAR($G63),SUM($L17:AU17)+$F63,0) -> 0 | AW63: =IF(AW$3>=YEAR($G63),AW17,0)+IF(AW$3=YEAR($G63),SUM($L17:AV17)+$F63,0) -> 0 | AX63: =IF(AX$3>=YEAR($G63),AX17,0)+IF(AX$3=YEAR($G63),SUM($L17:AW17)+$F63,0) -> 0 | AY63: =IF(AY$3>=YEAR($G63),AY17,0)+IF(AY$3=YEAR($G63),SUM($L17:AX17)+$F63,0) -> 0 | AZ63: =IF(AZ$3>=YEAR($G63),AZ17,0)+IF(AZ$3=YEAR($G63),SUM($L17:AY17)+$F63,0) -> 0 | BA63: =IF(BA$3>=YEAR($G63),BA17,0)+IF(BA$3=YEAR($G63),SUM($L17:AZ17)+$F63,0) -> 0 | BB63: =IF(BB$3>=YEAR($G63),BB17,0)+IF(BB$3=YEAR($G63),SUM($L17:BA17)+$F63,0) -> 0 | BC63: =IF(BC$3>=YEAR($G63),BC17,0)+IF(BC$3=YEAR($G63),SUM($L17:BB17)+$F63,0) -> 0 | BD63: =IF(BD$3>=YEAR($G63),BD17,0)+IF(BD$3=YEAR($G63),SUM($L17:BC17)+$F63,0) -> 0 | BE63: =IF(BE$3>=YEAR($G63),BE17,0)+IF(BE$3=YEAR($G63),SUM($L17:BD17)+$F63,0) -> 0 | BF63: =IF(BF$3>=YEAR($G63),BF17,0)+IF(BF$3=YEAR($G63),SUM($L17:BE17)+$F63,0) -> 0 | BG63: =IF(BG$3>=YEAR($G63),BG17,0)+IF(BG$3=YEAR($G63),SUM($L17:BF17)+$F63,0) -> 0 | BH63: =IF(BH$3>=YEAR($G63),BH17,0)+IF(BH$3=YEAR($G63),SUM($L17:BG17)+$F63,0) -> 0 | BI63: =IF(BI$3>=YEAR($G63),BI17,0)+IF(BI$3=YEAR($G63),SUM($L17:BH17)+$F63,0) -> 0 | BJ63: =IF(BJ$3>=YEAR($G63),BJ17,0)+IF(BJ$3=YEAR($G63),SUM($L17:BI17)+$F63,0) -> 0 | BK63: =IF(BK$3>=YEAR($G63),BK17,0)+IF(BK$3=YEAR($G63),SUM($L17:BJ17)+$F63,0) -> 0
C64: 9 | D64: =D$18 -> … | F64: 0 | G64: 00:00:00 | H64: 1900 | J64: 0 | M64: =IF(M$3>=YEAR($G64),M18,0)+IF(M$3=YEAR($G64),SUM($L18:L18)+$F64,0) -> 0 | N64: =IF(N$3>=YEAR($G64),N18,0)+IF(N$3=YEAR($G64),SUM($L18:M18)+$F64,0) -> 0 | O64: =IF(O$3>=YEAR($G64),O18,0)+IF(O$3=YEAR($G64),SUM($L18:N18)+$F64,0) -> 0 | P64: =IF(P$3>=YEAR($G64),P18,0)+IF(P$3=YEAR($G64),SUM($L18:O18)+$F64,0) -> 0 | Q64: =IF(Q$3>=YEAR($G64),Q18,0)+IF(Q$3=YEAR($G64),SUM($L18:P18)+$F64,0) -> 0 | R64: =IF(R$3>=YEAR($G64),R18,0)+IF(R$3=YEAR($G64),SUM($L18:Q18)+$F64,0) -> 0 | S64: =IF(S$3>=YEAR($G64),S18,0)+IF(S$3=YEAR($G64),SUM($L18:R18)+$F64,0) -> 0 | T64: =IF(T$3>=YEAR($G64),T18,0)+IF(T$3=YEAR($G64),SUM($L18:S18)+$F64,0) -> 0 | U64: =IF(U$3>=YEAR($G64),U18,0)+IF(U$3=YEAR($G64),SUM($L18:T18)+$F64,0) -> 0 | V64: =IF(V$3>=YEAR($G64),V18,0)+IF(V$3=YEAR($G64),SUM($L18:U18)+$F64,0) -> 0 | W64: =IF(W$3>=YEAR($G64),W18,0)+IF(W$3=YEAR($G64),SUM($L18:V18)+$F64,0) -> 0 | X64: =IF(X$3>=YEAR($G64),X18,0)+IF(X$3=YEAR($G64),SUM($L18:W18)+$F64,0) -> 0 | Y64: =IF(Y$3>=YEAR($G64),Y18,0)+IF(Y$3=YEAR($G64),SUM($L18:X18)+$F64,0) -> 0 | Z64: =IF(Z$3>=YEAR($G64),Z18,0)+IF(Z$3=YEAR($G64),SUM($L18:Y18)+$F64,0) -> 0 | AA64: =IF(AA$3>=YEAR($G64),AA18,0)+IF(AA$3=YEAR($G64),SUM($L18:Z18)+$F64,0) -> 0 | AB64: =IF(AB$3>=YEAR($G64),AB18,0)+IF(AB$3=YEAR($G64),SUM($L18:AA18)+$F64,0) -> 0 | AC64: =IF(AC$3>=YEAR($G64),AC18,0)+IF(AC$3=YEAR($G64),SUM($L18:AB18)+$F64,0) -> 0 | AD64: =IF(AD$3>=YEAR($G64),AD18,0)+IF(AD$3=YEAR($G64),SUM($L18:AC18)+$F64,0) -> 0 | AE64: =IF(AE$3>=YEAR($G64),AE18,0)+IF(AE$3=YEAR($G64),SUM($L18:AD18)+$F64,0) -> 0 | AF64: =IF(AF$3>=YEAR($G64),AF18,0)+IF(AF$3=YEAR($G64),SUM($L18:AE18)+$F64,0) -> 0 | AG64: =IF(AG$3>=YEAR($G64),AG18,0)+IF(AG$3=YEAR($G64),SUM($L18:AF18)+$F64,0) -> 0 | AH64: =IF(AH$3>=YEAR($G64),AH18,0)+IF(AH$3=YEAR($G64),SUM($L18:AG18)+$F64,0) -> 0 | AI64: =IF(AI$3>=YEAR($G64),AI18,0)+IF(AI$3=YEAR($G64),SUM($L18:AH18)+$F64,0) -> 0 | AJ64: =IF(AJ$3>=YEAR($G64),AJ18,0)+IF(AJ$3=YEAR($G64),SUM($L18:AI18)+$F64,0) -> 0 | AK64: =IF(AK$3>=YEAR($G64),AK18,0)+IF(AK$3=YEAR($G64),SUM($L18:AJ18)+$F64,0) -> 0 | AL64: =IF(AL$3>=YEAR($G64),AL18,0)+IF(AL$3=YEAR($G64),SUM($L18:AK18)+$F64,0) -> 0 | AM64: =IF(AM$3>=YEAR($G64),AM18,0)+IF(AM$3=YEAR($G64),SUM($L18:AL18)+$F64,0) -> 0 | AN64: =IF(AN$3>=YEAR($G64),AN18,0)+IF(AN$3=YEAR($G64),SUM($L18:AM18)+$F64,0) -> 0 | AO64: =IF(AO$3>=YEAR($G64),AO18,0)+IF(AO$3=YEAR($G64),SUM($L18:AN18)+$F64,0) -> 0 | AP64: =IF(AP$3>=YEAR($G64),AP18,0)+IF(AP$3=YEAR($G64),SUM($L18:AO18)+$F64,0) -> 0 | AQ64: =IF(AQ$3>=YEAR($G64),AQ18,0)+IF(AQ$3=YEAR($G64),SUM($L18:AP18)+$F64,0) -> 0 | AR64: =IF(AR$3>=YEAR($G64),AR18,0)+IF(AR$3=YEAR($G64),SUM($L18:AQ18)+$F64,0) -> 0 | AS64: =IF(AS$3>=YEAR($G64),AS18,0)+IF(AS$3=YEAR($G64),SUM($L18:AR18)+$F64,0) -> 0 | AT64: =IF(AT$3>=YEAR($G64),AT18,0)+IF(AT$3=YEAR($G64),SUM($L18:AS18)+$F64,0) -> 0 | AU64: =IF(AU$3>=YEAR($G64),AU18,0)+IF(AU$3=YEAR($G64),SUM($L18:AT18)+$F64,0) -> 0 | AV64: =IF(AV$3>=YEAR($G64),AV18,0)+IF(AV$3=YEAR($G64),SUM($L18:AU18)+$F64,0) -> 0 | AW64: =IF(AW$3>=YEAR($G64),AW18,0)+IF(AW$3=YEAR($G64),SUM($L18:AV18)+$F64,0) -> 0 | AX64: =IF(AX$3>=YEAR($G64),AX18,0)+IF(AX$3=YEAR($G64),SUM($L18:AW18)+$F64,0) -> 0 | AY64: =IF(AY$3>=YEAR($G64),AY18,0)+IF(AY$3=YEAR($G64),SUM($L18:AX18)+$F64,0) -> 0 | AZ64: =IF(AZ$3>=YEAR($G64),AZ18,0)+IF(AZ$3=YEAR($G64),SUM($L18:AY18)+$F64,0) -> 0 | BA64: =IF(BA$3>=YEAR($G64),BA18,0)+IF(BA$3=YEAR($G64),SUM($L18:AZ18)+$F64,0) -> 0 | BB64: =IF(BB$3>=YEAR($G64),BB18,0)+IF(BB$3=YEAR($G64),SUM($L18:BA18)+$F64,0) -> 0 | BC64: =IF(BC$3>=YEAR($G64),BC18,0)+IF(BC$3=YEAR($G64),SUM($L18:BB18)+$F64,0) -> 0 | BD64: =IF(BD$3>=YEAR($G64),BD18,0)+IF(BD$3=YEAR($G64),SUM($L18:BC18)+$F64,0) -> 0 | BE64: =IF(BE$3>=YEAR($G64),BE18,0)+IF(BE$3=YEAR($G64),SUM($L18:BD18)+$F64,0) -> 0 | BF64: =IF(BF$3>=YEAR($G64),BF18,0)+IF(BF$3=YEAR($G64),SUM($L18:BE18)+$F64,0) -> 0 | BG64: =IF(BG$3>=YEAR($G64),BG18,0)+IF(BG$3=YEAR($G64),SUM($L18:BF18)+$F64,0) -> 0 | BH64: =IF(BH$3>=YEAR($G64),BH18,0)+IF(BH$3=YEAR($G64),SUM($L18:BG18)+$F64,0) -> 0 | BI64: =IF(BI$3>=YEAR($G64),BI18,0)+IF(BI$3=YEAR($G64),SUM($L18:BH18)+$F64,0) -> 0 | BJ64: =IF(BJ$3>=YEAR($G64),BJ18,0)+IF(BJ$3=YEAR($G64),SUM($L18:BI18)+$F64,0) -> 0 | BK64: =IF(BK$3>=YEAR($G64),BK18,0)+IF(BK$3=YEAR($G64),SUM($L18:BJ18)+$F64,0) -> 0
C65: 10 | D65: =D$19 -> … | F65: 0 | G65: 00:00:00 | H65: 1900 | J65: 0 | M65: =IF(M$3>=YEAR($G65),M19,0)+IF(M$3=YEAR($G65),SUM($L19:L19)+$F65,0) -> 0 | N65: =IF(N$3>=YEAR($G65),N19,0)+IF(N$3=YEAR($G65),SUM($L19:M19)+$F65,0) -> 0 | O65: =IF(O$3>=YEAR($G65),O19,0)+IF(O$3=YEAR($G65),SUM($L19:N19)+$F65,0) -> 0 | P65: =IF(P$3>=YEAR($G65),P19,0)+IF(P$3=YEAR($G65),SUM($L19:O19)+$F65,0) -> 0 | Q65: =IF(Q$3>=YEAR($G65),Q19,0)+IF(Q$3=YEAR($G65),SUM($L19:P19)+$F65,0) -> 0 | R65: =IF(R$3>=YEAR($G65),R19,0)+IF(R$3=YEAR($G65),SUM($L19:Q19)+$F65,0) -> 0 | S65: =IF(S$3>=YEAR($G65),S19,0)+IF(S$3=YEAR($G65),SUM($L19:R19)+$F65,0) -> 0 | T65: =IF(T$3>=YEAR($G65),T19,0)+IF(T$3=YEAR($G65),SUM($L19:S19)+$F65,0) -> 0 | U65: =IF(U$3>=YEAR($G65),U19,0)+IF(U$3=YEAR($G65),SUM($L19:T19)+$F65,0) -> 0 | V65: =IF(V$3>=YEAR($G65),V19,0)+IF(V$3=YEAR($G65),SUM($L19:U19)+$F65,0) -> 0 | W65: =IF(W$3>=YEAR($G65),W19,0)+IF(W$3=YEAR($G65),SUM($L19:V19)+$F65,0) -> 0 | X65: =IF(X$3>=YEAR($G65),X19,0)+IF(X$3=YEAR($G65),SUM($L19:W19)+$F65,0) -> 0 | Y65: =IF(Y$3>=YEAR($G65),Y19,0)+IF(Y$3=YEAR($G65),SUM($L19:X19)+$F65,0) -> 0 | Z65: =IF(Z$3>=YEAR($G65),Z19,0)+IF(Z$3=YEAR($G65),SUM($L19:Y19)+$F65,0) -> 0 | AA65: =IF(AA$3>=YEAR($G65),AA19,0)+IF(AA$3=YEAR($G65),SUM($L19:Z19)+$F65,0) -> 0 | AB65: =IF(AB$3>=YEAR($G65),AB19,0)+IF(AB$3=YEAR($G65),SUM($L19:AA19)+$F65,0) -> 0 | AC65: =IF(AC$3>=YEAR($G65),AC19,0)+IF(AC$3=YEAR($G65),SUM($L19:AB19)+$F65,0) -> 0 | AD65: =IF(AD$3>=YEAR($G65),AD19,0)+IF(AD$3=YEAR($G65),SUM($L19:AC19)+$F65,0) -> 0 | AE65: =IF(AE$3>=YEAR($G65),AE19,0)+IF(AE$3=YEAR($G65),SUM($L19:AD19)+$F65,0) -> 0 | AF65: =IF(AF$3>=YEAR($G65),AF19,0)+IF(AF$3=YEAR($G65),SUM($L19:AE19)+$F65,0) -> 0 | AG65: =IF(AG$3>=YEAR($G65),AG19,0)+IF(AG$3=YEAR($G65),SUM($L19:AF19)+$F65,0) -> 0 | AH65: =IF(AH$3>=YEAR($G65),AH19,0)+IF(AH$3=YEAR($G65),SUM($L19:AG19)+$F65,0) -> 0 | AI65: =IF(AI$3>=YEAR($G65),AI19,0)+IF(AI$3=YEAR($G65),SUM($L19:AH19)+$F65,0) -> 0 | AJ65: =IF(AJ$3>=YEAR($G65),AJ19,0)+IF(AJ$3=YEAR($G65),SUM($L19:AI19)+$F65,0) -> 0 | AK65: =IF(AK$3>=YEAR($G65),AK19,0)+IF(AK$3=YEAR($G65),SUM($L19:AJ19)+$F65,0) -> 0 | AL65: =IF(AL$3>=YEAR($G65),AL19,0)+IF(AL$3=YEAR($G65),SUM($L19:AK19)+$F65,0) -> 0 | AM65: =IF(AM$3>=YEAR($G65),AM19,0)+IF(AM$3=YEAR($G65),SUM($L19:AL19)+$F65,0) -> 0 | AN65: =IF(AN$3>=YEAR($G65),AN19,0)+IF(AN$3=YEAR($G65),SUM($L19:AM19)+$F65,0) -> 0 | AO65: =IF(AO$3>=YEAR($G65),AO19,0)+IF(AO$3=YEAR($G65),SUM($L19:AN19)+$F65,0) -> 0 | AP65: =IF(AP$3>=YEAR($G65),AP19,0)+IF(AP$3=YEAR($G65),SUM($L19:AO19)+$F65,0) -> 0 | AQ65: =IF(AQ$3>=YEAR($G65),AQ19,0)+IF(AQ$3=YEAR($G65),SUM($L19:AP19)+$F65,0) -> 0 | AR65: =IF(AR$3>=YEAR($G65),AR19,0)+IF(AR$3=YEAR($G65),SUM($L19:AQ19)+$F65,0) -> 0 | AS65: =IF(AS$3>=YEAR($G65),AS19,0)+IF(AS$3=YEAR($G65),SUM($L19:AR19)+$F65,0) -> 0 | AT65: =IF(AT$3>=YEAR($G65),AT19,0)+IF(AT$3=YEAR($G65),SUM($L19:AS19)+$F65,0) -> 0 | AU65: =IF(AU$3>=YEAR($G65),AU19,0)+IF(AU$3=YEAR($G65),SUM($L19:AT19)+$F65,0) -> 0 | AV65: =IF(AV$3>=YEAR($G65),AV19,0)+IF(AV$3=YEAR($G65),SUM($L19:AU19)+$F65,0) -> 0 | AW65: =IF(AW$3>=YEAR($G65),AW19,0)+IF(AW$3=YEAR($G65),SUM($L19:AV19)+$F65,0) -> 0 | AX65: =IF(AX$3>=YEAR($G65),AX19,0)+IF(AX$3=YEAR($G65),SUM($L19:AW19)+$F65,0) -> 0 | AY65: =IF(AY$3>=YEAR($G65),AY19,0)+IF(AY$3=YEAR($G65),SUM($L19:AX19)+$F65,0) -> 0 | AZ65: =IF(AZ$3>=YEAR($G65),AZ19,0)+IF(AZ$3=YEAR($G65),SUM($L19:AY19)+$F65,0) -> 0 | BA65: =IF(BA$3>=YEAR($G65),BA19,0)+IF(BA$3=YEAR($G65),SUM($L19:AZ19)+$F65,0) -> 0 | BB65: =IF(BB$3>=YEAR($G65),BB19,0)+IF(BB$3=YEAR($G65),SUM($L19:BA19)+$F65,0) -> 0 | BC65: =IF(BC$3>=YEAR($G65),BC19,0)+IF(BC$3=YEAR($G65),SUM($L19:BB19)+$F65,0) -> 0 | BD65: =IF(BD$3>=YEAR($G65),BD19,0)+IF(BD$3=YEAR($G65),SUM($L19:BC19)+$F65,0) -> 0 | BE65: =IF(BE$3>=YEAR($G65),BE19,0)+IF(BE$3=YEAR($G65),SUM($L19:BD19)+$F65,0) -> 0 | BF65: =IF(BF$3>=YEAR($G65),BF19,0)+IF(BF$3=YEAR($G65),SUM($L19:BE19)+$F65,0) -> 0 | BG65: =IF(BG$3>=YEAR($G65),BG19,0)+IF(BG$3=YEAR($G65),SUM($L19:BF19)+$F65,0) -> 0 | BH65: =IF(BH$3>=YEAR($G65),BH19,0)+IF(BH$3=YEAR($G65),SUM($L19:BG19)+$F65,0) -> 0 | BI65: =IF(BI$3>=YEAR($G65),BI19,0)+IF(BI$3=YEAR($G65),SUM($L19:BH19)+$F65,0) -> 0 | BJ65: =IF(BJ$3>=YEAR($G65),BJ19,0)+IF(BJ$3=YEAR($G65),SUM($L19:BI19)+$F65,0) -> 0 | BK65: =IF(BK$3>=YEAR($G65),BK19,0)+IF(BK$3=YEAR($G65),SUM($L19:BJ19)+$F65,0) -> 0
D66: =D55 -> Capital Placed in Service | J66: =SUM(J56:J65) -> -52131.80438 | M66: =SUM(M56:M65) -> 0 | N66: 68771.15945 | O66: 152565.3471 | P66: 103455.1157 | Q66: 0 | R66: 0 | S66: 0 | T66: 0 | U66: 0 | V66: -12532.6183 | W66: 0 | X66: -79125.56632 | Y66: -13594.17866 | Z66: -13798.26055 | AA66: -43238.7594 | AB66: -88007.62813 | AC66: -60493.71635 | AD66: -31444.4126 | AE66: 0 | AF66: -16639.43165 | AG66: 0 | AH66: 0 | AI66: -18048.85469 | AJ66: 0 | AK66: 0 | AL66: 0 | AM66: 0 | AN66: 0 | AO66: 0 | AP66: =SUM(AP56:AP65) -> 0 | AQ66: 0 | AR66: 0 | AS66: 0 | AT66: 0 | AU66: 0 | AV66: 0 | AW66: 0 | AX66: 0 | AY66: 0 | AZ66: 0 | BA66: 0 | BB66: 0 | BC66: 0 | BD66: 0 | BE66: 0 | BF66: 0 | BG66: 0 | BH66: 0 | BI66: 0 | BJ66: 0 | BK66: 0
D69: Book Depreciation Rates | F69: Book Life | M69: DEPR RATES RELATIVE TO YEAR PLACED IN SERVICE
C70: =C69+1 -> 1 | D70: =D$10 -> .05 Compressors | F70: =Input!F25 -> 21.95945946 | J70: =SUM(M70:CE70) -> 1 | M70: 0 | N70: =IFERROR(MIN(1/$F70,1-SUM($M70:M70)),0) -> 0.04553846154 | O70: =IFERROR(MIN(1/$F70,1-SUM($M70:N70)),0) -> 0.04553846154 | P70: =IFERROR(MIN(1/$F70,1-SUM($M70:O70)),0) -> 0.04553846154 | Q70: =IFERROR(MIN(1/$F70,1-SUM($M70:P70)),0) -> 0.04553846154 | R70: =IFERROR(MIN(1/$F70,1-SUM($M70:Q70)),0) -> 0.04553846154 | S70: =IFERROR(MIN(1/$F70,1-SUM($M70:R70)),0) -> 0.04553846154 | T70: =IFERROR(MIN(1/$F70,1-SUM($M70:S70)),0) -> 0.04553846154 | U70: =IFERROR(MIN(1/$F70,1-SUM($M70:T70)),0) -> 0.04553846154 | V70: =IFERROR(MIN(1/$F70,1-SUM($M70:U70)),0) -> 0.04553846154 | W70: =IFERROR(MIN(1/$F70,1-SUM($M70:V70)),0) -> 0.04553846154 | X70: =IFERROR(MIN(1/$F70,1-SUM($M70:W70)),0) -> 0.04553846154 | Y70: =IFERROR(MIN(1/$F70,1-SUM($M70:X70)),0) -> 0.04553846154 | Z70: =IFERROR(MIN(1/$F70,1-SUM($M70:Y70)),0) -> 0.04553846154 | AA70: =IFERROR(MIN(1/$F70,1-SUM($M70:Z70)),0) -> 0.04553846154 | AB70: =IFERROR(MIN(1/$F70,1-SUM($M70:AA70)),0) -> 0.04553846154 | AC70: =IFERROR(MIN(1/$F70,1-SUM($M70:AB70)),0) -> 0.04553846154 | AD70: =IFERROR(MIN(1/$F70,1-SUM($M70:AC70)),0) -> 0.04553846154 | AE70: =IFERROR(MIN(1/$F70,1-SUM($M70:AD70)),0) -> 0.04553846154 | AF70: =IFERROR(MIN(1/$F70,1-SUM($M70:AE70)),0) -> 0.04553846154 | AG70: =IFERROR(MIN(1/$F70,1-SUM($M70:AF70)),0) -> 0.04553846154 | AH70: =IFERROR(MIN(1/$F70,1-SUM($M70:AG70)),0) -> 0.04553846154 | AI70: =IFERROR(MIN(1/$F70,1-SUM($M70:AH70)),0) -> 0.04369230769 | AJ70: =IFERROR(MIN(1/$F70,1-SUM($M70:AI70)),0) -> 0 | AK70: =IFERROR(MIN(1/$F70,1-SUM($M70:AJ70)),0) -> 0 | AL70: =IFERROR(MIN(1/$F70,1-SUM($M70:AK70)),0) -> 0 | AM70: =IFERROR(MIN(1/$F70,1-SUM($M70:AL70)),0) -> 0 | AN70: =IFERROR(MIN(1/$F70,1-SUM($M70:AM70)),0) -> 0 | AO70: =IFERROR(MIN(1/$F70,1-SUM($M70:AN70)),0) -> 0 | AP70: =IFERROR(MIN(1/$F70,1-SUM($M70:AO70)),0) -> 0 | AQ70: =IFERROR(MIN(1/$F70,1-SUM($M70:AP70)),0) -> 0 | AR70: =IFERROR(MIN(1/$F70,1-SUM($M70:AQ70)),0) -> 0 | AS70: =IFERROR(MIN(1/$F70,1-SUM($M70:AR70)),0) -> 0 | AT70: =IFERROR(MIN(1/$F70,1-SUM($M70:AS70)),0) -> 0 | AU70: =IFERROR(MIN(1/$F70,1-SUM($M70:AT70)),0) -> 0 | AV70: =IFERROR(MIN(1/$F70,1-SUM($M70:AU70)),0) -> 0 | AW70: =IFERROR(MIN(1/$F70,1-SUM($M70:AV70)),0) -> 0 | AX70: =IFERROR(MIN(1/$F70,1-SUM($M70:AW70)),0) -> 0 | AY70: =IFERROR(MIN(1/$F70,1-SUM($M70:AX70)),0) -> 0 | AZ70: =IFERROR(MIN(1/$F70,1-SUM($M70:AY70)),0) -> 0 | BA70: =IFERROR(MIN(1/$F70,1-SUM($M70:AZ70)),0) -> 0 | BB70: =IFERROR(MIN(1/$F70,1-SUM($M70:BA70)),0) -> 0 | BC70: =IFERROR(MIN(1/$F70,1-SUM($M70:BB70)),0) -> 0 | BD70: =IFERROR(MIN(1/$F70,1-SUM($M70:BC70)),0) -> 0 | BE70: =IFERROR(MIN(1/$F70,1-SUM($M70:BD70)),0) -> 0 | BF70: =IFERROR(MIN(1/$F70,1-SUM($M70:BE70)),0) -> 0 | BG70: =IFERROR(MIN(1/$F70,1-SUM($M70:BF70)),0) -> 0 | BH70: =IFERROR(MIN(1/$F70,1-SUM($M70:BG70)),0) -> 0 | BI70: =IFERROR(MIN(1/$F70,1-SUM($M70:BH70)),0) -> 0 | BJ70: =IFERROR(MIN(1/$F70,1-SUM($M70:BI70)),0) -> 0 | BK70: =IFERROR(MIN(1/$F70,1-SUM($M70:BJ70)),0) -> 0 | BL70: =IFERROR(MIN(1/$F70,1-SUM($M70:BK70)),0) -> 0 | BM70: =IFERROR(MIN(1/$F70,1-SUM($M70:BL70)),0) -> 0 | BN70: =IFERROR(MIN(1/$F70,1-SUM($M70:BM70)),0) -> 0 | BO70: =IFERROR(MIN(1/$F70,1-SUM($M70:BN70)),0) -> 0 | BP70: =IFERROR(MIN(1/$F70,1-SUM($M70:BO70)),0) -> 0 | BQ70: =IFERROR(MIN(1/$F70,1-SUM($M70:BP70)),0) -> 0 | BR70: =IFERROR(MIN(1/$F70,1-SUM($M70:BQ70)),0) -> 0 | BS70: =IFERROR(MIN(1/$F70,1-SUM($M70:BR70)),0) -> 0 | BT70: =IFERROR(MIN(1/$F70,1-SUM($M70:BS70)),0) -> 0 | BU70: =IFERROR(MIN(1/$F70,1-SUM($M70:BT70)),0) -> 0 | BV70: =IFERROR(MIN(1/$F70,1-SUM($M70:BU70)),0) -> 0 | BW70: =IFERROR(MIN(1/$F70,1-SUM($M70:BV70)),0) -> 0 | BX70: =IFERROR(MIN(1/$F70,1-SUM($M70:BW70)),0) -> 0 | BY70: =IFERROR(MIN(1/$F70,1-SUM($M70:BX70)),0) -> 0 | BZ70: =IFERROR(MIN(1/$F70,1-SUM($M70:BY70)),0) -> 0 | CA70: =IFERROR(MIN(1/$F70,1-SUM($M70:BZ70)),0) -> 0 | CB70: =IFERROR(MIN(1/$F70,1-SUM($M70:CA70)),0) -> 0 | CC70: =IFERROR(MIN(1/$F70,1-SUM($M70:CB70)),0) -> 0 | CD70: =IFERROR(MIN(1/$F70,1-SUM($M70:CC70)),0) -> 0 | CE70: =IFERROR(MIN(1/$F70,1-SUM($M70:CD70)),0) -> 0
C71: =C70+1 -> 2 | D71: =D$11 -> Installation Costs | F71: =Input!F26 -> 21.95945946 | J71: =SUM(M71:CE71) -> 1 | M71: 0 | N71: =IFERROR(MIN(1/$F71,1-SUM($M71:M71)),0) -> 0.04553846154 | O71: =IFERROR(MIN(1/$F71,1-SUM($M71:N71)),0) -> 0.04553846154 | P71: =IFERROR(MIN(1/$F71,1-SUM($M71:O71)),0) -> 0.04553846154 | Q71: =IFERROR(MIN(1/$F71,1-SUM($M71:P71)),0) -> 0.04553846154 | R71: =IFERROR(MIN(1/$F71,1-SUM($M71:Q71)),0) -> 0.04553846154 | S71: =IFERROR(MIN(1/$F71,1-SUM($M71:R71)),0) -> 0.04553846154 | T71: =IFERROR(MIN(1/$F71,1-SUM($M71:S71)),0) -> 0.04553846154 | U71: =IFERROR(MIN(1/$F71,1-SUM($M71:T71)),0) -> 0.04553846154 | V71: =IFERROR(MIN(1/$F71,1-SUM($M71:U71)),0) -> 0.04553846154 | W71: =IFERROR(MIN(1/$F71,1-SUM($M71:V71)),0) -> 0.04553846154 | X71: =IFERROR(MIN(1/$F71,1-SUM($M71:W71)),0) -> 0.04553846154 | Y71: =IFERROR(MIN(1/$F71,1-SUM($M71:X71)),0) -> 0.04553846154 | Z71: =IFERROR(MIN(1/$F71,1-SUM($M71:Y71)),0) -> 0.04553846154 | AA71: =IFERROR(MIN(1/$F71,1-SUM($M71:Z71)),0) -> 0.04553846154 | AB71: =IFERROR(MIN(1/$F71,1-SUM($M71:AA71)),0) -> 0.04553846154 | AC71: =IFERROR(MIN(1/$F71,1-SUM($M71:AB71)),0) -> 0.04553846154 | AD71: =IFERROR(MIN(1/$F71,1-SUM($M71:AC71)),0) -> 0.04553846154 | AE71: =IFERROR(MIN(1/$F71,1-SUM($M71:AD71)),0) -> 0.04553846154 | AF71: =IFERROR(MIN(1/$F71,1-SUM($M71:AE71)),0) -> 0.04553846154 | AG71: =IFERROR(MIN(1/$F71,1-SUM($M71:AF71)),0) -> 0.04553846154 | AH71: =IFERROR(MIN(1/$F71,1-SUM($M71:AG71)),0) -> 0.04553846154 | AI71: =IFERROR(MIN(1/$F71,1-SUM($M71:AH71)),0) -> 0.04369230769 | AJ71: =IFERROR(MIN(1/$F71,1-SUM($M71:AI71)),0) -> 0 | AK71: =IFERROR(MIN(1/$F71,1-SUM($M71:AJ71)),0) -> 0 | AL71: =IFERROR(MIN(1/$F71,1-SUM($M71:AK71)),0) -> 0 | AM71: =IFERROR(MIN(1/$F71,1-SUM($M71:AL71)),0) -> 0 | AN71: =IFERROR(MIN(1/$F71,1-SUM($M71:AM71)),0) -> 0 | AO71: =IFERROR(MIN(1/$F71,1-SUM($M71:AN71)),0) -> 0 | AP71: =IFERROR(MIN(1/$F71,1-SUM($M71:AO71)),0) -> 0 | AQ71: =IFERROR(MIN(1/$F71,1-SUM($M71:AP71)),0) -> 0 | AR71: =IFERROR(MIN(1/$F71,1-SUM($M71:AQ71)),0) -> 0 | AS71: =IFERROR(MIN(1/$F71,1-SUM($M71:AR71)),0) -> 0 | AT71: =IFERROR(MIN(1/$F71,1-SUM($M71:AS71)),0) -> 0 | AU71: =IFERROR(MIN(1/$F71,1-SUM($M71:AT71)),0) -> 0 | AV71: =IFERROR(MIN(1/$F71,1-SUM($M71:AU71)),0) -> 0 | AW71: =IFERROR(MIN(1/$F71,1-SUM($M71:AV71)),0) -> 0 | AX71: =IFERROR(MIN(1/$F71,1-SUM($M71:AW71)),0) -> 0 | AY71: =IFERROR(MIN(1/$F71,1-SUM($M71:AX71)),0) -> 0 | AZ71: =IFERROR(MIN(1/$F71,1-SUM($M71:AY71)),0) -> 0 | BA71: =IFERROR(MIN(1/$F71,1-SUM($M71:AZ71)),0) -> 0 | BB71: =IFERROR(MIN(1/$F71,1-SUM($M71:BA71)),0) -> 0 | BC71: =IFERROR(MIN(1/$F71,1-SUM($M71:BB71)),0) -> 0 | BD71: =IFERROR(MIN(1/$F71,1-SUM($M71:BC71)),0) -> 0 | BE71: =IFERROR(MIN(1/$F71,1-SUM($M71:BD71)),0) -> 0 | BF71: =IFERROR(MIN(1/$F71,1-SUM($M71:BE71)),0) -> 0 | BG71: =IFERROR(MIN(1/$F71,1-SUM($M71:BF71)),0) -> 0 | BH71: =IFERROR(MIN(1/$F71,1-SUM($M71:BG71)),0) -> 0 | BI71: =IFERROR(MIN(1/$F71,1-SUM($M71:BH71)),0) -> 0 | BJ71: =IFERROR(MIN(1/$F71,1-SUM($M71:BI71)),0) -> 0 | BK71: =IFERROR(MIN(1/$F71,1-SUM($M71:BJ71)),0) -> 0 | BL71: =IFERROR(MIN(1/$F71,1-SUM($M71:BK71)),0) -> 0 | BM71: =IFERROR(MIN(1/$F71,1-SUM($M71:BL71)),0) -> 0 | BN71: =IFERROR(MIN(1/$F71,1-SUM($M71:BM71)),0) -> 0 | BO71: =IFERROR(MIN(1/$F71,1-SUM($M71:BN71)),0) -> 0 | BP71: =IFERROR(MIN(1/$F71,1-SUM($M71:BO71)),0) -> 0 | BQ71: =IFERROR(MIN(1/$F71,1-SUM($M71:BP71)),0) -> 0 | BR71: =IFERROR(MIN(1/$F71,1-SUM($M71:BQ71)),0) -> 0 | BS71: =IFERROR(MIN(1/$F71,1-SUM($M71:BR71)),0) -> 0 | BT71: =IFERROR(MIN(1/$F71,1-SUM($M71:BS71)),0) -> 0 | BU71: =IFERROR(MIN(1/$F71,1-SUM($M71:BT71)),0) -> 0 | BV71: =IFERROR(MIN(1/$F71,1-SUM($M71:BU71)),0) -> 0 | BW71: =IFERROR(MIN(1/$F71,1-SUM($M71:BV71)),0) -> 0 | BX71: =IFERROR(MIN(1/$F71,1-SUM($M71:BW71)),0) -> 0 | BY71: =IFERROR(MIN(1/$F71,1-SUM($M71:BX71)),0) -> 0 | BZ71: =IFERROR(MIN(1/$F71,1-SUM($M71:BY71)),0) -> 0 | CA71: =IFERROR(MIN(1/$F71,1-SUM($M71:BZ71)),0) -> 0 | CB71: =IFERROR(MIN(1/$F71,1-SUM($M71:CA71)),0) -> 0 | CC71: =IFERROR(MIN(1/$F71,1-SUM($M71:CB71)),0) -> 0 | CD71: =IFERROR(MIN(1/$F71,1-SUM($M71:CC71)),0) -> 0 | CE71: =IFERROR(MIN(1/$F71,1-SUM($M71:CD71)),0) -> 0
C72: 3 | D72: =D$12 -> Avoided Like-Kind Replacements | F72: =Input!F27 -> 21.95945946 | J72: 1 | M72: 0 | N72: =IFERROR(MIN(1/$F72,1-SUM($M72:M72)),0) -> 0.04553846154 | O72: =IFERROR(MIN(1/$F72,1-SUM($M72:N72)),0) -> 0.04553846154 | P72: =IFERROR(MIN(1/$F72,1-SUM($M72:O72)),0) -> 0.04553846154 | Q72: =IFERROR(MIN(1/$F72,1-SUM($M72:P72)),0) -> 0.04553846154 | R72: =IFERROR(MIN(1/$F72,1-SUM($M72:Q72)),0) -> 0.04553846154 | S72: =IFERROR(MIN(1/$F72,1-SUM($M72:R72)),0) -> 0.04553846154 | T72: =IFERROR(MIN(1/$F72,1-SUM($M72:S72)),0) -> 0.04553846154 | U72: =IFERROR(MIN(1/$F72,1-SUM($M72:T72)),0) -> 0.04553846154 | V72: =IFERROR(MIN(1/$F72,1-SUM($M72:U72)),0) -> 0.04553846154 | W72: =IFERROR(MIN(1/$F72,1-SUM($M72:V72)),0) -> 0.04553846154 | X72: =IFERROR(MIN(1/$F72,1-SUM($M72:W72)),0) -> 0.04553846154 | Y72: =IFERROR(MIN(1/$F72,1-SUM($M72:X72)),0) -> 0.04553846154 | Z72: =IFERROR(MIN(1/$F72,1-SUM($M72:Y72)),0) -> 0.04553846154 | AA72: =IFERROR(MIN(1/$F72,1-SUM($M72:Z72)),0) -> 0.04553846154 | AB72: =IFERROR(MIN(1/$F72,1-SUM($M72:AA72)),0) -> 0.04553846154 | AC72: =IFERROR(MIN(1/$F72,1-SUM($M72:AB72)),0) -> 0.04553846154 | AD72: =IFERROR(MIN(1/$F72,1-SUM($M72:AC72)),0) -> 0.04553846154 | AE72: =IFERROR(MIN(1/$F72,1-SUM($M72:AD72)),0) -> 0.04553846154 | AF72: =IFERROR(MIN(1/$F72,1-SUM($M72:AE72)),0) -> 0.04553846154 | AG72: =IFERROR(MIN(1/$F72,1-SUM($M72:AF72)),0) -> 0.04553846154 | AH72: =IFERROR(MIN(1/$F72,1-SUM($M72:AG72)),0) -> 0.04553846154 | AI72: =IFERROR(MIN(1/$F72,1-SUM($M72:AH72)),0) -> 0.04369230769 | AJ72: =IFERROR(MIN(1/$F72,1-SUM($M72:AI72)),0) -> 0 | AK72: =IFERROR(MIN(1/$F72,1-SUM($M72:AJ72)),0) -> 0 | AL72: =IFERROR(MIN(1/$F72,1-SUM($M72:AK72)),0) -> 0 | AM72: =IFERROR(MIN(1/$F72,1-SUM($M72:AL72)),0) -> 0 | AN72: =IFERROR(MIN(1/$F72,1-SUM($M72:AM72)),0) -> 0 | AO72: =IFERROR(MIN(1/$F72,1-SUM($M72:AN72)),0) -> 0 | AP72: =IFERROR(MIN(1/$F72,1-SUM($M72:AO72)),0) -> 0 | AQ72: =IFERROR(MIN(1/$F72,1-SUM($M72:AP72)),0) -> 0 | AR72: =IFERROR(MIN(1/$F72,1-SUM($M72:AQ72)),0) -> 0 | AS72: =IFERROR(MIN(1/$F72,1-SUM($M72:AR72)),0) -> 0 | AT72: =IFERROR(MIN(1/$F72,1-SUM($M72:AS72)),0) -> 0 | AU72: =IFERROR(MIN(1/$F72,1-SUM($M72:AT72)),0) -> 0 | AV72: =IFERROR(MIN(1/$F72,1-SUM($M72:AU72)),0) -> 0 | AW72: =IFERROR(MIN(1/$F72,1-SUM($M72:AV72)),0) -> 0 | AX72: =IFERROR(MIN(1/$F72,1-SUM($M72:AW72)),0) -> 0 | AY72: =IFERROR(MIN(1/$F72,1-SUM($M72:AX72)),0) -> 0 | AZ72: =IFERROR(MIN(1/$F72,1-SUM($M72:AY72)),0) -> 0 | BA72: =IFERROR(MIN(1/$F72,1-SUM($M72:AZ72)),0) -> 0 | BB72: =IFERROR(MIN(1/$F72,1-SUM($M72:BA72)),0) -> 0 | BC72: =IFERROR(MIN(1/$F72,1-SUM($M72:BB72)),0) -> 0 | BD72: =IFERROR(MIN(1/$F72,1-SUM($M72:BC72)),0) -> 0 | BE72: =IFERROR(MIN(1/$F72,1-SUM($M72:BD72)),0) -> 0 | BF72: =IFERROR(MIN(1/$F72,1-SUM($M72:BE72)),0) -> 0 | BG72: =IFERROR(MIN(1/$F72,1-SUM($M72:BF72)),0) -> 0 | BH72: =IFERROR(MIN(1/$F72,1-SUM($M72:BG72)),0) -> 0 | BI72: =IFERROR(MIN(1/$F72,1-SUM($M72:BH72)),0) -> 0 | BJ72: =IFERROR(MIN(1/$F72,1-SUM($M72:BI72)),0) -> 0 | BK72: =IFERROR(MIN(1/$F72,1-SUM($M72:BJ72)),0) -> 0 | BL72: =IFERROR(MIN(1/$F72,1-SUM($M72:BK72)),0) -> 0 | BM72: =IFERROR(MIN(1/$F72,1-SUM($M72:BL72)),0) -> 0 | BN72: =IFERROR(MIN(1/$F72,1-SUM($M72:BM72)),0) -> 0 | BO72: =IFERROR(MIN(1/$F72,1-SUM($M72:BN72)),0) -> 0 | BP72: =IFERROR(MIN(1/$F72,1-SUM($M72:BO72)),0) -> 0 | BQ72: =IFERROR(MIN(1/$F72,1-SUM($M72:BP72)),0) -> 0 | BR72: =IFERROR(MIN(1/$F72,1-SUM($M72:BQ72)),0) -> 0 | BS72: =IFERROR(MIN(1/$F72,1-SUM($M72:BR72)),0) -> 0 | BT72: =IFERROR(MIN(1/$F72,1-SUM($M72:BS72)),0) -> 0 | BU72: =IFERROR(MIN(1/$F72,1-SUM($M72:BT72)),0) -> 0 | BV72: =IFERROR(MIN(1/$F72,1-SUM($M72:BU72)),0) -> 0 | BW72: =IFERROR(MIN(1/$F72,1-SUM($M72:BV72)),0) -> 0 | BX72: =IFERROR(MIN(1/$F72,1-SUM($M72:BW72)),0) -> 0 | BY72: =IFERROR(MIN(1/$F72,1-SUM($M72:BX72)),0) -> 0 | BZ72: =IFERROR(MIN(1/$F72,1-SUM($M72:BY72)),0) -> 0 | CA72: =IFERROR(MIN(1/$F72,1-SUM($M72:BZ72)),0) -> 0 | CB72: =IFERROR(MIN(1/$F72,1-SUM($M72:CA72)),0) -> 0 | CC72: =IFERROR(MIN(1/$F72,1-SUM($M72:CB72)),0) -> 0 | CD72: =IFERROR(MIN(1/$F72,1-SUM($M72:CC72)),0) -> 0 | CE72: =IFERROR(MIN(1/$F72,1-SUM($M72:CD72)),0) -> 0
C73: 4 | D73: =D$13 -> Tax Effects of Existing Part Retirement | F73: =Input!F28 -> 21.95945946 | J73: 1 | M73: 0 | N73: =IFERROR(MIN(1/$F73,1-SUM($M73:M73)),0) -> 0.04553846154 | O73: =IFERROR(MIN(1/$F73,1-SUM($M73:N73)),0) -> 0.04553846154 | P73: =IFERROR(MIN(1/$F73,1-SUM($M73:O73)),0) -> 0.04553846154 | Q73: =IFERROR(MIN(1/$F73,1-SUM($M73:P73)),0) -> 0.04553846154 | R73: =IFERROR(MIN(1/$F73,1-SUM($M73:Q73)),0) -> 0.04553846154 | S73: =IFERROR(MIN(1/$F73,1-SUM($M73:R73)),0) -> 0.04553846154 | T73: =IFERROR(MIN(1/$F73,1-SUM($M73:S73)),0) -> 0.04553846154 | U73: =IFERROR(MIN(1/$F73,1-SUM($M73:T73)),0) -> 0.04553846154 | V73: =IFERROR(MIN(1/$F73,1-SUM($M73:U73)),0) -> 0.04553846154 | W73: =IFERROR(MIN(1/$F73,1-SUM($M73:V73)),0) -> 0.04553846154 | X73: =IFERROR(MIN(1/$F73,1-SUM($M73:W73)),0) -> 0.04553846154 | Y73: =IFERROR(MIN(1/$F73,1-SUM($M73:X73)),0) -> 0.04553846154 | Z73: =IFERROR(MIN(1/$F73,1-SUM($M73:Y73)),0) -> 0.04553846154 | AA73: =IFERROR(MIN(1/$F73,1-SUM($M73:Z73)),0) -> 0.04553846154 | AB73: =IFERROR(MIN(1/$F73,1-SUM($M73:AA73)),0) -> 0.04553846154 | AC73: =IFERROR(MIN(1/$F73,1-SUM($M73:AB73)),0) -> 0.04553846154 | AD73: =IFERROR(MIN(1/$F73,1-SUM($M73:AC73)),0) -> 0.04553846154 | AE73: =IFERROR(MIN(1/$F73,1-SUM($M73:AD73)),0) -> 0.04553846154 | AF73: =IFERROR(MIN(1/$F73,1-SUM($M73:AE73)),0) -> 0.04553846154 | AG73: =IFERROR(MIN(1/$F73,1-SUM($M73:AF73)),0) -> 0.04553846154 | AH73: =IFERROR(MIN(1/$F73,1-SUM($M73:AG73)),0) -> 0.04553846154 | AI73: =IFERROR(MIN(1/$F73,1-SUM($M73:AH73)),0) -> 0.04369230769 | AJ73: =IFERROR(MIN(1/$F73,1-SUM($M73:AI73)),0) -> 0 | AK73: =IFERROR(MIN(1/$F73,1-SUM($M73:AJ73)),0) -> 0 | AL73: =IFERROR(MIN(1/$F73,1-SUM($M73:AK73)),0) -> 0 | AM73: =IFERROR(MIN(1/$F73,1-SUM($M73:AL73)),0) -> 0 | AN73: =IFERROR(MIN(1/$F73,1-SUM($M73:AM73)),0) -> 0 | AO73: =IFERROR(MIN(1/$F73,1-SUM($M73:AN73)),0) -> 0 | AP73: =IFERROR(MIN(1/$F73,1-SUM($M73:AO73)),0) -> 0 | AQ73: =IFERROR(MIN(1/$F73,1-SUM($M73:AP73)),0) -> 0 | AR73: =IFERROR(MIN(1/$F73,1-SUM($M73:AQ73)),0) -> 0 | AS73: =IFERROR(MIN(1/$F73,1-SUM($M73:AR73)),0) -> 0 | AT73: =IFERROR(MIN(1/$F73,1-SUM($M73:AS73)),0) -> 0 | AU73: =IFERROR(MIN(1/$F73,1-SUM($M73:AT73)),0) -> 0 | AV73: =IFERROR(MIN(1/$F73,1-SUM($M73:AU73)),0) -> 0 | AW73: =IFERROR(MIN(1/$F73,1-SUM($M73:AV73)),0) -> 0 | AX73: =IFERROR(MIN(1/$F73,1-SUM($M73:AW73)),0) -> 0 | AY73: =IFERROR(MIN(1/$F73,1-SUM($M73:AX73)),0) -> 0 | AZ73: =IFERROR(MIN(1/$F73,1-SUM($M73:AY73)),0) -> 0 | BA73: =IFERROR(MIN(1/$F73,1-SUM($M73:AZ73)),0) -> 0 | BB73: =IFERROR(MIN(1/$F73,1-SUM($M73:BA73)),0) -> 0 | BC73: =IFERROR(MIN(1/$F73,1-SUM($M73:BB73)),0) -> 0 | BD73: =IFERROR(MIN(1/$F73,1-SUM($M73:BC73)),0) -> 0 | BE73: =IFERROR(MIN(1/$F73,1-SUM($M73:BD73)),0) -> 0 | BF73: =IFERROR(MIN(1/$F73,1-SUM($M73:BE73)),0) -> 0 | BG73: =IFERROR(MIN(1/$F73,1-SUM($M73:BF73)),0) -> 0 | BH73: =IFERROR(MIN(1/$F73,1-SUM($M73:BG73)),0) -> 0 | BI73: =IFERROR(MIN(1/$F73,1-SUM($M73:BH73)),0) -> 0 | BJ73: =IFERROR(MIN(1/$F73,1-SUM($M73:BI73)),0) -> 0 | BK73: =IFERROR(MIN(1/$F73,1-SUM($M73:BJ73)),0) -> 0 | BL73: =IFERROR(MIN(1/$F73,1-SUM($M73:BK73)),0) -> 0 | BM73: =IFERROR(MIN(1/$F73,1-SUM($M73:BL73)),0) -> 0 | BN73: =IFERROR(MIN(1/$F73,1-SUM($M73:BM73)),0) -> 0 | BO73: =IFERROR(MIN(1/$F73,1-SUM($M73:BN73)),0) -> 0 | BP73: =IFERROR(MIN(1/$F73,1-SUM($M73:BO73)),0) -> 0 | BQ73: =IFERROR(MIN(1/$F73,1-SUM($M73:BP73)),0) -> 0 | BR73: =IFERROR(MIN(1/$F73,1-SUM($M73:BQ73)),0) -> 0 | BS73: =IFERROR(MIN(1/$F73,1-SUM($M73:BR73)),0) -> 0 | BT73: =IFERROR(MIN(1/$F73,1-SUM($M73:BS73)),0) -> 0 | BU73: =IFERROR(MIN(1/$F73,1-SUM($M73:BT73)),0) -> 0 | BV73: =IFERROR(MIN(1/$F73,1-SUM($M73:BU73)),0) -> 0 | BW73: =IFERROR(MIN(1/$F73,1-SUM($M73:BV73)),0) -> 0 | BX73: =IFERROR(MIN(1/$F73,1-SUM($M73:BW73)),0) -> 0 | BY73: =IFERROR(MIN(1/$F73,1-SUM($M73:BX73)),0) -> 0 | BZ73: =IFERROR(MIN(1/$F73,1-SUM($M73:BY73)),0) -> 0 | CA73: =IFERROR(MIN(1/$F73,1-SUM($M73:BZ73)),0) -> 0 | CB73: =IFERROR(MIN(1/$F73,1-SUM($M73:CA73)),0) -> 0 | CC73: =IFERROR(MIN(1/$F73,1-SUM($M73:CB73)),0) -> 0 | CD73: =IFERROR(MIN(1/$F73,1-SUM($M73:CC73)),0) -> 0 | CE73: =IFERROR(MIN(1/$F73,1-SUM($M73:CD73)),0) -> 0
C74: 5 | D74: =D$14 -> … | F74: =Input!F29 -> 21.95945946 | J74: 1 | M74: 0 | N74: =IFERROR(MIN(1/$F74,1-SUM($M74:M74)),0) -> 0.04553846154 | O74: =IFERROR(MIN(1/$F74,1-SUM($M74:N74)),0) -> 0.04553846154 | P74: =IFERROR(MIN(1/$F74,1-SUM($M74:O74)),0) -> 0.04553846154 | Q74: =IFERROR(MIN(1/$F74,1-SUM($M74:P74)),0) -> 0.04553846154 | R74: =IFERROR(MIN(1/$F74,1-SUM($M74:Q74)),0) -> 0.04553846154 | S74: =IFERROR(MIN(1/$F74,1-SUM($M74:R74)),0) -> 0.04553846154 | T74: =IFERROR(MIN(1/$F74,1-SUM($M74:S74)),0) -> 0.04553846154 | U74: =IFERROR(MIN(1/$F74,1-SUM($M74:T74)),0) -> 0.04553846154 | V74: =IFERROR(MIN(1/$F74,1-SUM($M74:U74)),0) -> 0.04553846154 | W74: =IFERROR(MIN(1/$F74,1-SUM($M74:V74)),0) -> 0.04553846154 | X74: =IFERROR(MIN(1/$F74,1-SUM($M74:W74)),0) -> 0.04553846154 | Y74: =IFERROR(MIN(1/$F74,1-SUM($M74:X74)),0) -> 0.04553846154 | Z74: =IFERROR(MIN(1/$F74,1-SUM($M74:Y74)),0) -> 0.04553846154 | AA74: =IFERROR(MIN(1/$F74,1-SUM($M74:Z74)),0) -> 0.04553846154 | AB74: =IFERROR(MIN(1/$F74,1-SUM($M74:AA74)),0) -> 0.04553846154 | AC74: =IFERROR(MIN(1/$F74,1-SUM($M74:AB74)),0) -> 0.04553846154 | AD74: =IFERROR(MIN(1/$F74,1-SUM($M74:AC74)),0) -> 0.04553846154 | AE74: =IFERROR(MIN(1/$F74,1-SUM($M74:AD74)),0) -> 0.04553846154 | AF74: =IFERROR(MIN(1/$F74,1-SUM($M74:AE74)),0) -> 0.04553846154 | AG74: =IFERROR(MIN(1/$F74,1-SUM($M74:AF74)),0) -> 0.04553846154 | AH74: =IFERROR(MIN(1/$F74,1-SUM($M74:AG74)),0) -> 0.04553846154 | AI74: =IFERROR(MIN(1/$F74,1-SUM($M74:AH74)),0) -> 0.04369230769 | AJ74: =IFERROR(MIN(1/$F74,1-SUM($M74:AI74)),0) -> 0 | AK74: =IFERROR(MIN(1/$F74,1-SUM($M74:AJ74)),0) -> 0 | AL74: =IFERROR(MIN(1/$F74,1-SUM($M74:AK74)),0) -> 0 | AM74: =IFERROR(MIN(1/$F74,1-SUM($M74:AL74)),0) -> 0 | AN74: =IFERROR(MIN(1/$F74,1-SUM($M74:AM74)),0) -> 0 | AO74: =IFERROR(MIN(1/$F74,1-SUM($M74:AN74)),0) -> 0 | AP74: =IFERROR(MIN(1/$F74,1-SUM($M74:AO74)),0) -> 0 | AQ74: =IFERROR(MIN(1/$F74,1-SUM($M74:AP74)),0) -> 0 | AR74: =IFERROR(MIN(1/$F74,1-SUM($M74:AQ74)),0) -> 0 | AS74: =IFERROR(MIN(1/$F74,1-SUM($M74:AR74)),0) -> 0 | AT74: =IFERROR(MIN(1/$F74,1-SUM($M74:AS74)),0) -> 0 | AU74: =IFERROR(MIN(1/$F74,1-SUM($M74:AT74)),0) -> 0 | AV74: =IFERROR(MIN(1/$F74,1-SUM($M74:AU74)),0) -> 0 | AW74: =IFERROR(MIN(1/$F74,1-SUM($M74:AV74)),0) -> 0 | AX74: =IFERROR(MIN(1/$F74,1-SUM($M74:AW74)),0) -> 0 | AY74: =IFERROR(MIN(1/$F74,1-SUM($M74:AX74)),0) -> 0 | AZ74: =IFERROR(MIN(1/$F74,1-SUM($M74:AY74)),0) -> 0 | BA74: =IFERROR(MIN(1/$F74,1-SUM($M74:AZ74)),0) -> 0 | BB74: =IFERROR(MIN(1/$F74,1-SUM($M74:BA74)),0) -> 0 | BC74: =IFERROR(MIN(1/$F74,1-SUM($M74:BB74)),0) -> 0 | BD74: =IFERROR(MIN(1/$F74,1-SUM($M74:BC74)),0) -> 0 | BE74: =IFERROR(MIN(1/$F74,1-SUM($M74:BD74)),0) -> 0 | BF74: =IFERROR(MIN(1/$F74,1-SUM($M74:BE74)),0) -> 0 | BG74: =IFERROR(MIN(1/$F74,1-SUM($M74:BF74)),0) -> 0 | BH74: =IFERROR(MIN(1/$F74,1-SUM($M74:BG74)),0) -> 0 | BI74: =IFERROR(MIN(1/$F74,1-SUM($M74:BH74)),0) -> 0 | BJ74: =IFERROR(MIN(1/$F74,1-SUM($M74:BI74)),0) -> 0 | BK74: =IFERROR(MIN(1/$F74,1-SUM($M74:BJ74)),0) -> 0 | BL74: =IFERROR(MIN(1/$F74,1-SUM($M74:BK74)),0) -> 0 | BM74: =IFERROR(MIN(1/$F74,1-SUM($M74:BL74)),0) -> 0 | BN74: =IFERROR(MIN(1/$F74,1-SUM($M74:BM74)),0) -> 0 | BO74: =IFERROR(MIN(1/$F74,1-SUM($M74:BN74)),0) -> 0 | BP74: =IFERROR(MIN(1/$F74,1-SUM($M74:BO74)),0) -> 0 | BQ74: =IFERROR(MIN(1/$F74,1-SUM($M74:BP74)),0) -> 0 | BR74: =IFERROR(MIN(1/$F74,1-SUM($M74:BQ74)),0) -> 0 | BS74: =IFERROR(MIN(1/$F74,1-SUM($M74:BR74)),0) -> 0 | BT74: =IFERROR(MIN(1/$F74,1-SUM($M74:BS74)),0) -> 0 | BU74: =IFERROR(MIN(1/$F74,1-SUM($M74:BT74)),0) -> 0 | BV74: =IFERROR(MIN(1/$F74,1-SUM($M74:BU74)),0) -> 0 | BW74: =IFERROR(MIN(1/$F74,1-SUM($M74:BV74)),0) -> 0 | BX74: =IFERROR(MIN(1/$F74,1-SUM($M74:BW74)),0) -> 0 | BY74: =IFERROR(MIN(1/$F74,1-SUM($M74:BX74)),0) -> 0 | BZ74: =IFERROR(MIN(1/$F74,1-SUM($M74:BY74)),0) -> 0 | CA74: =IFERROR(MIN(1/$F74,1-SUM($M74:BZ74)),0) -> 0 | CB74: =IFERROR(MIN(1/$F74,1-SUM($M74:CA74)),0) -> 0 | CC74: =IFERROR(MIN(1/$F74,1-SUM($M74:CB74)),0) -> 0 | CD74: =IFERROR(MIN(1/$F74,1-SUM($M74:CC74)),0) -> 0 | CE74: =IFERROR(MIN(1/$F74,1-SUM($M74:CD74)),0) -> 0
C75: 6 | D75: =D$15 -> … | F75: =Input!F30 -> 21.95945946 | J75: 1 | M75: 0 | N75: =IFERROR(MIN(1/$F75,1-SUM($M75:M75)),0) -> 0.04553846154 | O75: =IFERROR(MIN(1/$F75,1-SUM($M75:N75)),0) -> 0.04553846154 | P75: =IFERROR(MIN(1/$F75,1-SUM($M75:O75)),0) -> 0.04553846154 | Q75: =IFERROR(MIN(1/$F75,1-SUM($M75:P75)),0) -> 0.04553846154 | R75: =IFERROR(MIN(1/$F75,1-SUM($M75:Q75)),0) -> 0.04553846154 | S75: =IFERROR(MIN(1/$F75,1-SUM($M75:R75)),0) -> 0.04553846154 | T75: =IFERROR(MIN(1/$F75,1-SUM($M75:S75)),0) -> 0.04553846154 | U75: =IFERROR(MIN(1/$F75,1-SUM($M75:T75)),0) -> 0.04553846154 | V75: =IFERROR(MIN(1/$F75,1-SUM($M75:U75)),0) -> 0.04553846154 | W75: =IFERROR(MIN(1/$F75,1-SUM($M75:V75)),0) -> 0.04553846154 | X75: =IFERROR(MIN(1/$F75,1-SUM($M75:W75)),0) -> 0.04553846154 | Y75: =IFERROR(MIN(1/$F75,1-SUM($M75:X75)),0) -> 0.04553846154 | Z75: =IFERROR(MIN(1/$F75,1-SUM($M75:Y75)),0) -> 0.04553846154 | AA75: =IFERROR(MIN(1/$F75,1-SUM($M75:Z75)),0) -> 0.04553846154 | AB75: =IFERROR(MIN(1/$F75,1-SUM($M75:AA75)),0) -> 0.04553846154 | AC75: =IFERROR(MIN(1/$F75,1-SUM($M75:AB75)),0) -> 0.04553846154 | AD75: =IFERROR(MIN(1/$F75,1-SUM($M75:AC75)),0) -> 0.04553846154 | AE75: =IFERROR(MIN(1/$F75,1-SUM($M75:AD75)),0) -> 0.04553846154 | AF75: =IFERROR(MIN(1/$F75,1-SUM($M75:AE75)),0) -> 0.04553846154 | AG75: =IFERROR(MIN(1/$F75,1-SUM($M75:AF75)),0) -> 0.04553846154 | AH75: =IFERROR(MIN(1/$F75,1-SUM($M75:AG75)),0) -> 0.04553846154 | AI75: =IFERROR(MIN(1/$F75,1-SUM($M75:AH75)),0) -> 0.04369230769 | AJ75: =IFERROR(MIN(1/$F75,1-SUM($M75:AI75)),0) -> 0 | AK75: =IFERROR(MIN(1/$F75,1-SUM($M75:AJ75)),0) -> 0 | AL75: =IFERROR(MIN(1/$F75,1-SUM($M75:AK75)),0) -> 0 | AM75: =IFERROR(MIN(1/$F75,1-SUM($M75:AL75)),0) -> 0 | AN75: =IFERROR(MIN(1/$F75,1-SUM($M75:AM75)),0) -> 0 | AO75: =IFERROR(MIN(1/$F75,1-SUM($M75:AN75)),0) -> 0 | AP75: =IFERROR(MIN(1/$F75,1-SUM($M75:AO75)),0) -> 0 | AQ75: =IFERROR(MIN(1/$F75,1-SUM($M75:AP75)),0) -> 0 | AR75: =IFERROR(MIN(1/$F75,1-SUM($M75:AQ75)),0) -> 0 | AS75: =IFERROR(MIN(1/$F75,1-SUM($M75:AR75)),0) -> 0 | AT75: =IFERROR(MIN(1/$F75,1-SUM($M75:AS75)),0) -> 0 | AU75: =IFERROR(MIN(1/$F75,1-SUM($M75:AT75)),0) -> 0 | AV75: =IFERROR(MIN(1/$F75,1-SUM($M75:AU75)),0) -> 0 | AW75: =IFERROR(MIN(1/$F75,1-SUM($M75:AV75)),0) -> 0 | AX75: =IFERROR(MIN(1/$F75,1-SUM($M75:AW75)),0) -> 0 | AY75: =IFERROR(MIN(1/$F75,1-SUM($M75:AX75)),0) -> 0 | AZ75: =IFERROR(MIN(1/$F75,1-SUM($M75:AY75)),0) -> 0 | BA75: =IFERROR(MIN(1/$F75,1-SUM($M75:AZ75)),0) -> 0 | BB75: =IFERROR(MIN(1/$F75,1-SUM($M75:BA75)),0) -> 0 | BC75: =IFERROR(MIN(1/$F75,1-SUM($M75:BB75)),0) -> 0 | BD75: =IFERROR(MIN(1/$F75,1-SUM($M75:BC75)),0) -> 0 | BE75: =IFERROR(MIN(1/$F75,1-SUM($M75:BD75)),0) -> 0 | BF75: =IFERROR(MIN(1/$F75,1-SUM($M75:BE75)),0) -> 0 | BG75: =IFERROR(MIN(1/$F75,1-SUM($M75:BF75)),0) -> 0 | BH75: =IFERROR(MIN(1/$F75,1-SUM($M75:BG75)),0) -> 0 | BI75: =IFERROR(MIN(1/$F75,1-SUM($M75:BH75)),0) -> 0 | BJ75: =IFERROR(MIN(1/$F75,1-SUM($M75:BI75)),0) -> 0 | BK75: =IFERROR(MIN(1/$F75,1-SUM($M75:BJ75)),0) -> 0 | BL75: =IFERROR(MIN(1/$F75,1-SUM($M75:BK75)),0) -> 0 | BM75: =IFERROR(MIN(1/$F75,1-SUM($M75:BL75)),0) -> 0 | BN75: =IFERROR(MIN(1/$F75,1-SUM($M75:BM75)),0) -> 0 | BO75: =IFERROR(MIN(1/$F75,1-SUM($M75:BN75)),0) -> 0 | BP75: =IFERROR(MIN(1/$F75,1-SUM($M75:BO75)),0) -> 0 | BQ75: =IFERROR(MIN(1/$F75,1-SUM($M75:BP75)),0) -> 0 | BR75: =IFERROR(MIN(1/$F75,1-SUM($M75:BQ75)),0) -> 0 | BS75: =IFERROR(MIN(1/$F75,1-SUM($M75:BR75)),0) -> 0 | BT75: =IFERROR(MIN(1/$F75,1-SUM($M75:BS75)),0) -> 0 | BU75: =IFERROR(MIN(1/$F75,1-SUM($M75:BT75)),0) -> 0 | BV75: =IFERROR(MIN(1/$F75,1-SUM($M75:BU75)),0) -> 0 | BW75: =IFERROR(MIN(1/$F75,1-SUM($M75:BV75)),0) -> 0 | BX75: =IFERROR(MIN(1/$F75,1-SUM($M75:BW75)),0) -> 0 | BY75: =IFERROR(MIN(1/$F75,1-SUM($M75:BX75)),0) -> 0 | BZ75: =IFERROR(MIN(1/$F75,1-SUM($M75:BY75)),0) -> 0 | CA75: =IFERROR(MIN(1/$F75,1-SUM($M75:BZ75)),0) -> 0 | CB75: =IFERROR(MIN(1/$F75,1-SUM($M75:CA75)),0) -> 0 | CC75: =IFERROR(MIN(1/$F75,1-SUM($M75:CB75)),0) -> 0 | CD75: =IFERROR(MIN(1/$F75,1-SUM($M75:CC75)),0) -> 0 | CE75: =IFERROR(MIN(1/$F75,1-SUM($M75:CD75)),0) -> 0
C76: 7 | D76: =D$16 -> … | F76: =Input!F31 -> 21.95945946 | J76: 1 | M76: 0 | N76: =IFERROR(MIN(1/$F76,1-SUM($M76:M76)),0) -> 0.04553846154 | O76: =IFERROR(MIN(1/$F76,1-SUM($M76:N76)),0) -> 0.04553846154 | P76: =IFERROR(MIN(1/$F76,1-SUM($M76:O76)),0) -> 0.04553846154 | Q76: =IFERROR(MIN(1/$F76,1-SUM($M76:P76)),0) -> 0.04553846154 | R76: =IFERROR(MIN(1/$F76,1-SUM($M76:Q76)),0) -> 0.04553846154 | S76: =IFERROR(MIN(1/$F76,1-SUM($M76:R76)),0) -> 0.04553846154 | T76: =IFERROR(MIN(1/$F76,1-SUM($M76:S76)),0) -> 0.04553846154 | U76: =IFERROR(MIN(1/$F76,1-SUM($M76:T76)),0) -> 0.04553846154 | V76: =IFERROR(MIN(1/$F76,1-SUM($M76:U76)),0) -> 0.04553846154 | W76: =IFERROR(MIN(1/$F76,1-SUM($M76:V76)),0) -> 0.04553846154 | X76: =IFERROR(MIN(1/$F76,1-SUM($M76:W76)),0) -> 0.04553846154 | Y76: =IFERROR(MIN(1/$F76,1-SUM($M76:X76)),0) -> 0.04553846154 | Z76: =IFERROR(MIN(1/$F76,1-SUM($M76:Y76)),0) -> 0.04553846154 | AA76: =IFERROR(MIN(1/$F76,1-SUM($M76:Z76)),0) -> 0.04553846154 | AB76: =IFERROR(MIN(1/$F76,1-SUM($M76:AA76)),0) -> 0.04553846154 | AC76: =IFERROR(MIN(1/$F76,1-SUM($M76:AB76)),0) -> 0.04553846154 | AD76: =IFERROR(MIN(1/$F76,1-SUM($M76:AC76)),0) -> 0.04553846154 | AE76: =IFERROR(MIN(1/$F76,1-SUM($M76:AD76)),0) -> 0.04553846154 | AF76: =IFERROR(MIN(1/$F76,1-SUM($M76:AE76)),0) -> 0.04553846154 | AG76: =IFERROR(MIN(1/$F76,1-SUM($M76:AF76)),0) -> 0.04553846154 | AH76: =IFERROR(MIN(1/$F76,1-SUM($M76:AG76)),0) -> 0.04553846154 | AI76: =IFERROR(MIN(1/$F76,1-SUM($M76:AH76)),0) -> 0.04369230769 | AJ76: =IFERROR(MIN(1/$F76,1-SUM($M76:AI76)),0) -> 0 | AK76: =IFERROR(MIN(1/$F76,1-SUM($M76:AJ76)),0) -> 0 | AL76: =IFERROR(MIN(1/$F76,1-SUM($M76:AK76)),0) -> 0 | AM76: =IFERROR(MIN(1/$F76,1-SUM($M76:AL76)),0) -> 0 | AN76: =IFERROR(MIN(1/$F76,1-SUM($M76:AM76)),0) -> 0 | AO76: =IFERROR(MIN(1/$F76,1-SUM($M76:AN76)),0) -> 0 | AP76: =IFERROR(MIN(1/$F76,1-SUM($M76:AO76)),0) -> 0 | AQ76: =IFERROR(MIN(1/$F76,1-SUM($M76:AP76)),0) -> 0 | AR76: =IFERROR(MIN(1/$F76,1-SUM($M76:AQ76)),0) -> 0 | AS76: =IFERROR(MIN(1/$F76,1-SUM($M76:AR76)),0) -> 0 | AT76: =IFERROR(MIN(1/$F76,1-SUM($M76:AS76)),0) -> 0 | AU76: =IFERROR(MIN(1/$F76,1-SUM($M76:AT76)),0) -> 0 | AV76: =IFERROR(MIN(1/$F76,1-SUM($M76:AU76)),0) -> 0 | AW76: =IFERROR(MIN(1/$F76,1-SUM($M76:AV76)),0) -> 0 | AX76: =IFERROR(MIN(1/$F76,1-SUM($M76:AW76)),0) -> 0 | AY76: =IFERROR(MIN(1/$F76,1-SUM($M76:AX76)),0) -> 0 | AZ76: =IFERROR(MIN(1/$F76,1-SUM($M76:AY76)),0) -> 0 | BA76: =IFERROR(MIN(1/$F76,1-SUM($M76:AZ76)),0) -> 0 | BB76: =IFERROR(MIN(1/$F76,1-SUM($M76:BA76)),0) -> 0 | BC76: =IFERROR(MIN(1/$F76,1-SUM($M76:BB76)),0) -> 0 | BD76: =IFERROR(MIN(1/$F76,1-SUM($M76:BC76)),0) -> 0 | BE76: =IFERROR(MIN(1/$F76,1-SUM($M76:BD76)),0) -> 0 | BF76: =IFERROR(MIN(1/$F76,1-SUM($M76:BE76)),0) -> 0 | BG76: =IFERROR(MIN(1/$F76,1-SUM($M76:BF76)),0) -> 0 | BH76: =IFERROR(MIN(1/$F76,1-SUM($M76:BG76)),0) -> 0 | BI76: =IFERROR(MIN(1/$F76,1-SUM($M76:BH76)),0) -> 0 | BJ76: =IFERROR(MIN(1/$F76,1-SUM($M76:BI76)),0) -> 0 | BK76: =IFERROR(MIN(1/$F76,1-SUM($M76:BJ76)),0) -> 0 | BL76: =IFERROR(MIN(1/$F76,1-SUM($M76:BK76)),0) -> 0 | BM76: =IFERROR(MIN(1/$F76,1-SUM($M76:BL76)),0) -> 0 | BN76: =IFERROR(MIN(1/$F76,1-SUM($M76:BM76)),0) -> 0 | BO76: =IFERROR(MIN(1/$F76,1-SUM($M76:BN76)),0) -> 0 | BP76: =IFERROR(MIN(1/$F76,1-SUM($M76:BO76)),0) -> 0 | BQ76: =IFERROR(MIN(1/$F76,1-SUM($M76:BP76)),0) -> 0 | BR76: =IFERROR(MIN(1/$F76,1-SUM($M76:BQ76)),0) -> 0 | BS76: =IFERROR(MIN(1/$F76,1-SUM($M76:BR76)),0) -> 0 | BT76: =IFERROR(MIN(1/$F76,1-SUM($M76:BS76)),0) -> 0 | BU76: =IFERROR(MIN(1/$F76,1-SUM($M76:BT76)),0) -> 0 | BV76: =IFERROR(MIN(1/$F76,1-SUM($M76:BU76)),0) -> 0 | BW76: =IFERROR(MIN(1/$F76,1-SUM($M76:BV76)),0) -> 0 | BX76: =IFERROR(MIN(1/$F76,1-SUM($M76:BW76)),0) -> 0 | BY76: =IFERROR(MIN(1/$F76,1-SUM($M76:BX76)),0) -> 0 | BZ76: =IFERROR(MIN(1/$F76,1-SUM($M76:BY76)),0) -> 0 | CA76: =IFERROR(MIN(1/$F76,1-SUM($M76:BZ76)),0) -> 0 | CB76: =IFERROR(MIN(1/$F76,1-SUM($M76:CA76)),0) -> 0 | CC76: =IFERROR(MIN(1/$F76,1-SUM($M76:CB76)),0) -> 0 | CD76: =IFERROR(MIN(1/$F76,1-SUM($M76:CC76)),0) -> 0 | CE76: =IFERROR(MIN(1/$F76,1-SUM($M76:CD76)),0) -> 0
C77: 8 | D77: =D$17 -> … | F77: =Input!F32 -> 21.95945946 | J77: 1 | M77: 0 | N77: =IFERROR(MIN(1/$F77,1-SUM($M77:M77)),0) -> 0.04553846154 | O77: =IFERROR(MIN(1/$F77,1-SUM($M77:N77)),0) -> 0.04553846154 | P77: =IFERROR(MIN(1/$F77,1-SUM($M77:O77)),0) -> 0.04553846154 | Q77: =IFERROR(MIN(1/$F77,1-SUM($M77:P77)),0) -> 0.04553846154 | R77: =IFERROR(MIN(1/$F77,1-SUM($M77:Q77)),0) -> 0.04553846154 | S77: =IFERROR(MIN(1/$F77,1-SUM($M77:R77)),0) -> 0.04553846154 | T77: =IFERROR(MIN(1/$F77,1-SUM($M77:S77)),0) -> 0.04553846154 | U77: =IFERROR(MIN(1/$F77,1-SUM($M77:T77)),0) -> 0.04553846154 | V77: =IFERROR(MIN(1/$F77,1-SUM($M77:U77)),0) -> 0.04553846154 | W77: =IFERROR(MIN(1/$F77,1-SUM($M77:V77)),0) -> 0.04553846154 | X77: =IFERROR(MIN(1/$F77,1-SUM($M77:W77)),0) -> 0.04553846154 | Y77: =IFERROR(MIN(1/$F77,1-SUM($M77:X77)),0) -> 0.04553846154 | Z77: =IFERROR(MIN(1/$F77,1-SUM($M77:Y77)),0) -> 0.04553846154 | AA77: =IFERROR(MIN(1/$F77,1-SUM($M77:Z77)),0) -> 0.04553846154 | AB77: =IFERROR(MIN(1/$F77,1-SUM($M77:AA77)),0) -> 0.04553846154 | AC77: =IFERROR(MIN(1/$F77,1-SUM($M77:AB77)),0) -> 0.04553846154 | AD77: =IFERROR(MIN(1/$F77,1-SUM($M77:AC77)),0) -> 0.04553846154 | AE77: =IFERROR(MIN(1/$F77,1-SUM($M77:AD77)),0) -> 0.04553846154 | AF77: =IFERROR(MIN(1/$F77,1-SUM($M77:AE77)),0) -> 0.04553846154 | AG77: =IFERROR(MIN(1/$F77,1-SUM($M77:AF77)),0) -> 0.04553846154 | AH77: =IFERROR(MIN(1/$F77,1-SUM($M77:AG77)),0) -> 0.04553846154 | AI77: =IFERROR(MIN(1/$F77,1-SUM($M77:AH77)),0) -> 0.04369230769 | AJ77: =IFERROR(MIN(1/$F77,1-SUM($M77:AI77)),0) -> 0 | AK77: =IFERROR(MIN(1/$F77,1-SUM($M77:AJ77)),0) -> 0 | AL77: =IFERROR(MIN(1/$F77,1-SUM($M77:AK77)),0) -> 0 | AM77: =IFERROR(MIN(1/$F77,1-SUM($M77:AL77)),0) -> 0 | AN77: =IFERROR(MIN(1/$F77,1-SUM($M77:AM77)),0) -> 0 | AO77: =IFERROR(MIN(1/$F77,1-SUM($M77:AN77)),0) -> 0 | AP77: =IFERROR(MIN(1/$F77,1-SUM($M77:AO77)),0) -> 0 | AQ77: =IFERROR(MIN(1/$F77,1-SUM($M77:AP77)),0) -> 0 | AR77: =IFERROR(MIN(1/$F77,1-SUM($M77:AQ77)),0) -> 0 | AS77: =IFERROR(MIN(1/$F77,1-SUM($M77:AR77)),0) -> 0 | AT77: =IFERROR(MIN(1/$F77,1-SUM($M77:AS77)),0) -> 0 | AU77: =IFERROR(MIN(1/$F77,1-SUM($M77:AT77)),0) -> 0 | AV77: =IFERROR(MIN(1/$F77,1-SUM($M77:AU77)),0) -> 0 | AW77: =IFERROR(MIN(1/$F77,1-SUM($M77:AV77)),0) -> 0 | AX77: =IFERROR(MIN(1/$F77,1-SUM($M77:AW77)),0) -> 0 | AY77: =IFERROR(MIN(1/$F77,1-SUM($M77:AX77)),0) -> 0 | AZ77: =IFERROR(MIN(1/$F77,1-SUM($M77:AY77)),0) -> 0 | BA77: =IFERROR(MIN(1/$F77,1-SUM($M77:AZ77)),0) -> 0 | BB77: =IFERROR(MIN(1/$F77,1-SUM($M77:BA77)),0) -> 0 | BC77: =IFERROR(MIN(1/$F77,1-SUM($M77:BB77)),0) -> 0 | BD77: =IFERROR(MIN(1/$F77,1-SUM($M77:BC77)),0) -> 0 | BE77: =IFERROR(MIN(1/$F77,1-SUM($M77:BD77)),0) -> 0 | BF77: =IFERROR(MIN(1/$F77,1-SUM($M77:BE77)),0) -> 0 | BG77: =IFERROR(MIN(1/$F77,1-SUM($M77:BF77)),0) -> 0 | BH77: =IFERROR(MIN(1/$F77,1-SUM($M77:BG77)),0) -> 0 | BI77: =IFERROR(MIN(1/$F77,1-SUM($M77:BH77)),0) -> 0 | BJ77: =IFERROR(MIN(1/$F77,1-SUM($M77:BI77)),0) -> 0 | BK77: =IFERROR(MIN(1/$F77,1-SUM($M77:BJ77)),0) -> 0 | BL77: =IFERROR(MIN(1/$F77,1-SUM($M77:BK77)),0) -> 0 | BM77: =IFERROR(MIN(1/$F77,1-SUM($M77:BL77)),0) -> 0 | BN77: =IFERROR(MIN(1/$F77,1-SUM($M77:BM77)),0) -> 0 | BO77: =IFERROR(MIN(1/$F77,1-SUM($M77:BN77)),0) -> 0 | BP77: =IFERROR(MIN(1/$F77,1-SUM($M77:BO77)),0) -> 0 | BQ77: =IFERROR(MIN(1/$F77,1-SUM($M77:BP77)),0) -> 0 | BR77: =IFERROR(MIN(1/$F77,1-SUM($M77:BQ77)),0) -> 0 | BS77: =IFERROR(MIN(1/$F77,1-SUM($M77:BR77)),0) -> 0 | BT77: =IFERROR(MIN(1/$F77,1-SUM($M77:BS77)),0) -> 0 | BU77: =IFERROR(MIN(1/$F77,1-SUM($M77:BT77)),0) -> 0 | BV77: =IFERROR(MIN(1/$F77,1-SUM($M77:BU77)),0) -> 0 | BW77: =IFERROR(MIN(1/$F77,1-SUM($M77:BV77)),0) -> 0 | BX77: =IFERROR(MIN(1/$F77,1-SUM($M77:BW77)),0) -> 0 | BY77: =IFERROR(MIN(1/$F77,1-SUM($M77:BX77)),0) -> 0 | BZ77: =IFERROR(MIN(1/$F77,1-SUM($M77:BY77)),0) -> 0 | CA77: =IFERROR(MIN(1/$F77,1-SUM($M77:BZ77)),0) -> 0 | CB77: =IFERROR(MIN(1/$F77,1-SUM($M77:CA77)),0) -> 0 | CC77: =IFERROR(MIN(1/$F77,1-SUM($M77:CB77)),0) -> 0 | CD77: =IFERROR(MIN(1/$F77,1-SUM($M77:CC77)),0) -> 0 | CE77: =IFERROR(MIN(1/$F77,1-SUM($M77:CD77)),0) -> 0
C78: 9 | D78: =D$18 -> … | F78: =Input!F33 -> 21.95945946 | J78: 1 | M78: 0 | N78: =IFERROR(MIN(1/$F78,1-SUM($M78:M78)),0) -> 0.04553846154 | O78: =IFERROR(MIN(1/$F78,1-SUM($M78:N78)),0) -> 0.04553846154 | P78: =IFERROR(MIN(1/$F78,1-SUM($M78:O78)),0) -> 0.04553846154 | Q78: =IFERROR(MIN(1/$F78,1-SUM($M78:P78)),0) -> 0.04553846154 | R78: =IFERROR(MIN(1/$F78,1-SUM($M78:Q78)),0) -> 0.04553846154 | S78: =IFERROR(MIN(1/$F78,1-SUM($M78:R78)),0) -> 0.04553846154 | T78: =IFERROR(MIN(1/$F78,1-SUM($M78:S78)),0) -> 0.04553846154 | U78: =IFERROR(MIN(1/$F78,1-SUM($M78:T78)),0) -> 0.04553846154 | V78: =IFERROR(MIN(1/$F78,1-SUM($M78:U78)),0) -> 0.04553846154 | W78: =IFERROR(MIN(1/$F78,1-SUM($M78:V78)),0) -> 0.04553846154 | X78: =IFERROR(MIN(1/$F78,1-SUM($M78:W78)),0) -> 0.04553846154 | Y78: =IFERROR(MIN(1/$F78,1-SUM($M78:X78)),0) -> 0.04553846154 | Z78: =IFERROR(MIN(1/$F78,1-SUM($M78:Y78)),0) -> 0.04553846154 | AA78: =IFERROR(MIN(1/$F78,1-SUM($M78:Z78)),0) -> 0.04553846154 | AB78: =IFERROR(MIN(1/$F78,1-SUM($M78:AA78)),0) -> 0.04553846154 | AC78: =IFERROR(MIN(1/$F78,1-SUM($M78:AB78)),0) -> 0.04553846154 | AD78: =IFERROR(MIN(1/$F78,1-SUM($M78:AC78)),0) -> 0.04553846154 | AE78: =IFERROR(MIN(1/$F78,1-SUM($M78:AD78)),0) -> 0.04553846154 | AF78: =IFERROR(MIN(1/$F78,1-SUM($M78:AE78)),0) -> 0.04553846154 | AG78: =IFERROR(MIN(1/$F78,1-SUM($M78:AF78)),0) -> 0.04553846154 | AH78: =IFERROR(MIN(1/$F78,1-SUM($M78:AG78)),0) -> 0.04553846154 | AI78: =IFERROR(MIN(1/$F78,1-SUM($M78:AH78)),0) -> 0.04369230769 | AJ78: =IFERROR(MIN(1/$F78,1-SUM($M78:AI78)),0) -> 0 | AK78: =IFERROR(MIN(1/$F78,1-SUM($M78:AJ78)),0) -> 0 | AL78: =IFERROR(MIN(1/$F78,1-SUM($M78:AK78)),0) -> 0 | AM78: =IFERROR(MIN(1/$F78,1-SUM($M78:AL78)),0) -> 0 | AN78: =IFERROR(MIN(1/$F78,1-SUM($M78:AM78)),0) -> 0 | AO78: =IFERROR(MIN(1/$F78,1-SUM($M78:AN78)),0) -> 0 | AP78: =IFERROR(MIN(1/$F78,1-SUM($M78:AO78)),0) -> 0 | AQ78: =IFERROR(MIN(1/$F78,1-SUM($M78:AP78)),0) -> 0 | AR78: =IFERROR(MIN(1/$F78,1-SUM($M78:AQ78)),0) -> 0 | AS78: =IFERROR(MIN(1/$F78,1-SUM($M78:AR78)),0) -> 0 | AT78: =IFERROR(MIN(1/$F78,1-SUM($M78:AS78)),0) -> 0 | AU78: =IFERROR(MIN(1/$F78,1-SUM($M78:AT78)),0) -> 0 | AV78: =IFERROR(MIN(1/$F78,1-SUM($M78:AU78)),0) -> 0 | AW78: =IFERROR(MIN(1/$F78,1-SUM($M78:AV78)),0) -> 0 | AX78: =IFERROR(MIN(1/$F78,1-SUM($M78:AW78)),0) -> 0 | AY78: =IFERROR(MIN(1/$F78,1-SUM($M78:AX78)),0) -> 0 | AZ78: =IFERROR(MIN(1/$F78,1-SUM($M78:AY78)),0) -> 0 | BA78: =IFERROR(MIN(1/$F78,1-SUM($M78:AZ78)),0) -> 0 | BB78: =IFERROR(MIN(1/$F78,1-SUM($M78:BA78)),0) -> 0 | BC78: =IFERROR(MIN(1/$F78,1-SUM($M78:BB78)),0) -> 0 | BD78: =IFERROR(MIN(1/$F78,1-SUM($M78:BC78)),0) -> 0 | BE78: =IFERROR(MIN(1/$F78,1-SUM($M78:BD78)),0) -> 0 | BF78: =IFERROR(MIN(1/$F78,1-SUM($M78:BE78)),0) -> 0 | BG78: =IFERROR(MIN(1/$F78,1-SUM($M78:BF78)),0) -> 0 | BH78: =IFERROR(MIN(1/$F78,1-SUM($M78:BG78)),0) -> 0 | BI78: =IFERROR(MIN(1/$F78,1-SUM($M78:BH78)),0) -> 0 | BJ78: =IFERROR(MIN(1/$F78,1-SUM($M78:BI78)),0) -> 0 | BK78: =IFERROR(MIN(1/$F78,1-SUM($M78:BJ78)),0) -> 0 | BL78: =IFERROR(MIN(1/$F78,1-SUM($M78:BK78)),0) -> 0 | BM78: =IFERROR(MIN(1/$F78,1-SUM($M78:BL78)),0) -> 0 | BN78: =IFERROR(MIN(1/$F78,1-SUM($M78:BM78)),0) -> 0 | BO78: =IFERROR(MIN(1/$F78,1-SUM($M78:BN78)),0) -> 0 | BP78: =IFERROR(MIN(1/$F78,1-SUM($M78:BO78)),0) -> 0 | BQ78: =IFERROR(MIN(1/$F78,1-SUM($M78:BP78)),0) -> 0 | BR78: =IFERROR(MIN(1/$F78,1-SUM($M78:BQ78)),0) -> 0 | BS78: =IFERROR(MIN(1/$F78,1-SUM($M78:BR78)),0) -> 0 | BT78: =IFERROR(MIN(1/$F78,1-SUM($M78:BS78)),0) -> 0 | BU78: =IFERROR(MIN(1/$F78,1-SUM($M78:BT78)),0) -> 0 | BV78: =IFERROR(MIN(1/$F78,1-SUM($M78:BU78)),0) -> 0 | BW78: =IFERROR(MIN(1/$F78,1-SUM($M78:BV78)),0) -> 0 | BX78: =IFERROR(MIN(1/$F78,1-SUM($M78:BW78)),0) -> 0 | BY78: =IFERROR(MIN(1/$F78,1-SUM($M78:BX78)),0) -> 0 | BZ78: =IFERROR(MIN(1/$F78,1-SUM($M78:BY78)),0) -> 0 | CA78: =IFERROR(MIN(1/$F78,1-SUM($M78:BZ78)),0) -> 0 | CB78: =IFERROR(MIN(1/$F78,1-SUM($M78:CA78)),0) -> 0 | CC78: =IFERROR(MIN(1/$F78,1-SUM($M78:CB78)),0) -> 0 | CD78: =IFERROR(MIN(1/$F78,1-SUM($M78:CC78)),0) -> 0 | CE78: =IFERROR(MIN(1/$F78,1-SUM($M78:CD78)),0) -> 0
C79: 10 | D79: =D$19 -> … | F79: =Input!F34 -> 21.95945946 | J79: 1 | M79: 0 | N79: =IFERROR(MIN(1/$F79,1-SUM($M79:M79)),0) -> 0.04553846154 | O79: =IFERROR(MIN(1/$F79,1-SUM($M79:N79)),0) -> 0.04553846154 | P79: =IFERROR(MIN(1/$F79,1-SUM($M79:O79)),0) -> 0.04553846154 | Q79: =IFERROR(MIN(1/$F79,1-SUM($M79:P79)),0) -> 0.04553846154 | R79: =IFERROR(MIN(1/$F79,1-SUM($M79:Q79)),0) -> 0.04553846154 | S79: =IFERROR(MIN(1/$F79,1-SUM($M79:R79)),0) -> 0.04553846154 | T79: =IFERROR(MIN(1/$F79,1-SUM($M79:S79)),0) -> 0.04553846154 | U79: =IFERROR(MIN(1/$F79,1-SUM($M79:T79)),0) -> 0.04553846154 | V79: =IFERROR(MIN(1/$F79,1-SUM($M79:U79)),0) -> 0.04553846154 | W79: =IFERROR(MIN(1/$F79,1-SUM($M79:V79)),0) -> 0.04553846154 | X79: =IFERROR(MIN(1/$F79,1-SUM($M79:W79)),0) -> 0.04553846154 | Y79: =IFERROR(MIN(1/$F79,1-SUM($M79:X79)),0) -> 0.04553846154 | Z79: =IFERROR(MIN(1/$F79,1-SUM($M79:Y79)),0) -> 0.04553846154 | AA79: =IFERROR(MIN(1/$F79,1-SUM($M79:Z79)),0) -> 0.04553846154 | AB79: =IFERROR(MIN(1/$F79,1-SUM($M79:AA79)),0) -> 0.04553846154 | AC79: =IFERROR(MIN(1/$F79,1-SUM($M79:AB79)),0) -> 0.04553846154 | AD79: =IFERROR(MIN(1/$F79,1-SUM($M79:AC79)),0) -> 0.04553846154 | AE79: =IFERROR(MIN(1/$F79,1-SUM($M79:AD79)),0) -> 0.04553846154 | AF79: =IFERROR(MIN(1/$F79,1-SUM($M79:AE79)),0) -> 0.04553846154 | AG79: =IFERROR(MIN(1/$F79,1-SUM($M79:AF79)),0) -> 0.04553846154 | AH79: =IFERROR(MIN(1/$F79,1-SUM($M79:AG79)),0) -> 0.04553846154 | AI79: =IFERROR(MIN(1/$F79,1-SUM($M79:AH79)),0) -> 0.04369230769 | AJ79: =IFERROR(MIN(1/$F79,1-SUM($M79:AI79)),0) -> 0 | AK79: =IFERROR(MIN(1/$F79,1-SUM($M79:AJ79)),0) -> 0 | AL79: =IFERROR(MIN(1/$F79,1-SUM($M79:AK79)),0) -> 0 | AM79: =IFERROR(MIN(1/$F79,1-SUM($M79:AL79)),0) -> 0 | AN79: =IFERROR(MIN(1/$F79,1-SUM($M79:AM79)),0) -> 0 | AO79: =IFERROR(MIN(1/$F79,1-SUM($M79:AN79)),0) -> 0 | AP79: =IFERROR(MIN(1/$F79,1-SUM($M79:AO79)),0) -> 0 | AQ79: =IFERROR(MIN(1/$F79,1-SUM($M79:AP79)),0) -> 0 | AR79: =IFERROR(MIN(1/$F79,1-SUM($M79:AQ79)),0) -> 0 | AS79: =IFERROR(MIN(1/$F79,1-SUM($M79:AR79)),0) -> 0 | AT79: =IFERROR(MIN(1/$F79,1-SUM($M79:AS79)),0) -> 0 | AU79: =IFERROR(MIN(1/$F79,1-SUM($M79:AT79)),0) -> 0 | AV79: =IFERROR(MIN(1/$F79,1-SUM($M79:AU79)),0) -> 0 | AW79: =IFERROR(MIN(1/$F79,1-SUM($M79:AV79)),0) -> 0 | AX79: =IFERROR(MIN(1/$F79,1-SUM($M79:AW79)),0) -> 0 | AY79: =IFERROR(MIN(1/$F79,1-SUM($M79:AX79)),0) -> 0 | AZ79: =IFERROR(MIN(1/$F79,1-SUM($M79:AY79)),0) -> 0 | BA79: =IFERROR(MIN(1/$F79,1-SUM($M79:AZ79)),0) -> 0 | BB79: =IFERROR(MIN(1/$F79,1-SUM($M79:BA79)),0) -> 0 | BC79: =IFERROR(MIN(1/$F79,1-SUM($M79:BB79)),0) -> 0 | BD79: =IFERROR(MIN(1/$F79,1-SUM($M79:BC79)),0) -> 0 | BE79: =IFERROR(MIN(1/$F79,1-SUM($M79:BD79)),0) -> 0 | BF79: =IFERROR(MIN(1/$F79,1-SUM($M79:BE79)),0) -> 0 | BG79: =IFERROR(MIN(1/$F79,1-SUM($M79:BF79)),0) -> 0 | BH79: =IFERROR(MIN(1/$F79,1-SUM($M79:BG79)),0) -> 0 | BI79: =IFERROR(MIN(1/$F79,1-SUM($M79:BH79)),0) -> 0 | BJ79: =IFERROR(MIN(1/$F79,1-SUM($M79:BI79)),0) -> 0 | BK79: =IFERROR(MIN(1/$F79,1-SUM($M79:BJ79)),0) -> 0 | BL79: =IFERROR(MIN(1/$F79,1-SUM($M79:BK79)),0) -> 0 | BM79: =IFERROR(MIN(1/$F79,1-SUM($M79:BL79)),0) -> 0 | BN79: =IFERROR(MIN(1/$F79,1-SUM($M79:BM79)),0) -> 0 | BO79: =IFERROR(MIN(1/$F79,1-SUM($M79:BN79)),0) -> 0 | BP79: =IFERROR(MIN(1/$F79,1-SUM($M79:BO79)),0) -> 0 | BQ79: =IFERROR(MIN(1/$F79,1-SUM($M79:BP79)),0) -> 0 | BR79: =IFERROR(MIN(1/$F79,1-SUM($M79:BQ79)),0) -> 0 | BS79: =IFERROR(MIN(1/$F79,1-SUM($M79:BR79)),0) -> 0 | BT79: =IFERROR(MIN(1/$F79,1-SUM($M79:BS79)),0) -> 0 | BU79: =IFERROR(MIN(1/$F79,1-SUM($M79:BT79)),0) -> 0 | BV79: =IFERROR(MIN(1/$F79,1-SUM($M79:BU79)),0) -> 0 | BW79: =IFERROR(MIN(1/$F79,1-SUM($M79:BV79)),0) -> 0 | BX79: =IFERROR(MIN(1/$F79,1-SUM($M79:BW79)),0) -> 0 | BY79: =IFERROR(MIN(1/$F79,1-SUM($M79:BX79)),0) -> 0 | BZ79: =IFERROR(MIN(1/$F79,1-SUM($M79:BY79)),0) -> 0 | CA79: =IFERROR(MIN(1/$F79,1-SUM($M79:BZ79)),0) -> 0 | CB79: =IFERROR(MIN(1/$F79,1-SUM($M79:CA79)),0) -> 0 | CC79: =IFERROR(MIN(1/$F79,1-SUM($M79:CB79)),0) -> 0 | CD79: =IFERROR(MIN(1/$F79,1-SUM($M79:CC79)),0) -> 0 | CE79: =IFERROR(MIN(1/$F79,1-SUM($M79:CD79)),0) -> 0
D80: =D69 -> Book Depreciation Rates | J80: =SUMPRODUCT(J70:J79,$J$10:$J$19)/$J$20 -> 1 | M80: =SUMPRODUCT(M70:M79,$J$10:$J$19)/$J$20 -> 0 | N80: =SUMPRODUCT(N70:N79,$J$10:$J$19)/$J$20 -> 0.04553846154 | O80: 0.04553846154 | P80: 0.04553846154 | Q80: 0.04553846154 | R80: 0.04553846154 | S80: 0.04553846154 | T80: 0.04553846154 | U80: 0.04553846154 | V80: 0.04553846154 | W80: 0.04553846154 | X80: 0.04553846154 | Y80: 0.04553846154 | Z80: 0.04553846154 | AA80: 0.04553846154 | AB80: 0.04553846154 | AC80: 0.04553846154 | AD80: 0.04553846154 | AE80: 0.04553846154 | AF80: 0.04553846154 | AG80: 0.04553846154 | AH80: 0.04553846154 | AI80: 0.04369230769 | AJ80: 0 | AK80: 0 | AL80: 0 | AM80: 0 | AN80: 0 | AO80: 0 | AP80: 0 | AQ80: 0 | AR80: 0 | AS80: 0 | AT80: 0 | AU80: 0 | AV80: 0 | AW80: 0 | AX80: 0 | AY80: 0 | AZ80: 0 | BA80: 0 | BB80: 0 | BC80: 0 | BD80: 0 | BE80: 0 | BF80: 0 | BG80: 0 | BH80: 0 | BI80: 0 | BJ80: 0 | BK80: 0 | BL80: 0 | BM80: 0 | BN80: 0 | BO80: 0 | BP80: 0 | BQ80: 0 | BR80: 0 | BS80: 0 | BT80: 0 | BU80: 0 | BV80: 0 | BW80: 0 | BX80: 0 | BY80: 0 | BZ80: =SUMPRODUCT(BZ70:BZ79,$J$10:$J$19)/$J$20 -> 0 | CA80: 0 | CB80: 0 | CC80: 0 | CD80: 0 | CE80: 0
D85: Book Depreciation | F85: Book Life
C86: =C85+1 -> 1 | D86: =D$10 -> .05 Compressors | F86: =Input!F25 -> 21.95945946 | G86: =IFERROR(1/F86,0) -> 0.04553846154 | I86: =SUMPRODUCT(M86:BK86,$M$5:$BK$5,$M$193:$BK$193) -> -127120.5995 | J86: =SUM(M86:BK86) -> -286056.248 | M86: =Book_Capital!L154 -> 0 | N86: =Book_Capital!M154 -> -1402.775832 | O86: =Book_Capital!N154 -> -5968.673636 | P86: =Book_Capital!O154 -> -11079.17853 | Q86: =Book_Capital!P154 -> -13026.56145 | R86: =Book_Capital!Q154 -> -13026.56145 | S86: =Book_Capital!R154 -> -13026.56145 | T86: =Book_Capital!S154 -> -13026.56145 | U86: =Book_Capital!T154 -> -13026.56145 | V86: =Book_Capital!U154 -> -13026.56145 | W86: =Book_Capital!V154 -> -13026.56145 | X86: =Book_Capital!W154 -> -13026.56145 | Y86: =Book_Capital!X154 -> -13026.56145 | Z86: =Book_Capital!Y154 -> -13026.56145 | AA86: =Book_Capital!Z154 -> -13026.56145 | AB86: =Book_Capital!AA154 -> -13026.56145 | AC86: =Book_Capital!AB154 -> -13026.56145 | AD86: =Book_Capital!AC154 -> -13026.56145 | AE86: =Book_Capital!AD154 -> -13026.56145 | AF86: =Book_Capital!AE154 -> -13026.56145 | AG86: =Book_Capital!AF154 -> -11227.70773 | AH86: =Book_Capital!AG154 -> -10545.5736 | AI86: =Book_Capital!AH154 -> -10518.0682 | AJ86: =Book_Capital!AI154 -> -9109.791283 | AK86: =Book_Capital!AJ154 -> -8059.084679 | AL86: =Book_Capital!AK154 -> -5798.140104 | AM86: =Book_Capital!AL154 -> -3350.158751 | AN86: =Book_Capital!AM154 -> -572.112496 | AO86: =Book_Capital!AN154 -> 0 | AP86: =Book_Capital!AO154 -> 0 | AQ86: =Book_Capital!AP154 -> 0 | AR86: =Book_Capital!AQ154 -> 0 | AS86: =Book_Capital!AR154 -> 0 | AT86: =Book_Capital!AS154 -> 0 | AU86: =Book_Capital!AT154 -> 0 | AV86: =Book_Capital!AU154 -> 0 | AW86: =Book_Capital!AV154 -> 0 | AX86: =Book_Capital!AW154 -> 0 | AY86: =Book_Capital!AX154 -> 0 | AZ86: =Book_Capital!AY154 -> 0 | BA86: =Book_Capital!AZ154 -> 0 | BB86: =Book_Capital!BA154 -> 0 | BC86: =Book_Capital!BB154 -> 0 | BD86: =Book_Capital!BC154 -> 0 | BE86: =Book_Capital!BD154 -> 0 | BF86: =Book_Capital!BE154 -> 0 | BG86: =Book_Capital!BF154 -> 0 | BH86: =Book_Capital!BG154 -> 0 | BI86: =Book_Capital!BH154 -> 0 | BJ86: =Book_Capital!BI154 -> 0 | BK86: =Book_Capital!BJ154 -> 0
C87: =C86+1 -> 2 | D87: =D$11 -> Installation Costs | F87: =Input!F26 -> 21.95945946 | G87: =IFERROR(1/F87,0) -> 0.04553846154 | I87: -17087.49791 | J87: =SUM(M87:BK87) -> -38735.37426 | M87: =Book_Capital!L182 -> 0 | N87: =Book_Capital!M182 -> -58.80104638 | O87: =Book_Capital!N182 -> -622.526572 | P87: =Book_Capital!O182 -> -1462.357749 | Q87: =Book_Capital!P182 -> -1797.264446 | R87: =Book_Capital!Q182 -> -1797.264446 | S87: =Book_Capital!R182 -> -1797.264446 | T87: =Book_Capital!S182 -> -1797.264446 | U87: =Book_Capital!T182 -> -1797.264446 | V87: =Book_Capital!U182 -> -1797.264446 | W87: =Book_Capital!V182 -> -1797.264446 | X87: =Book_Capital!W182 -> -1797.264446 | Y87: =Book_Capital!X182 -> -1797.264446 | Z87: =Book_Capital!Y182 -> -1797.264446 | AA87: =Book_Capital!Z182 -> -1797.264446 | AB87: =Book_Capital!AA182 -> -1797.264446 | AC87: =Book_Capital!AB182 -> -1797.264446 | AD87: =Book_Capital!AC182 -> -1797.264446 | AE87: =Book_Capital!AD182 -> -1797.264446 | AF87: =Book_Capital!AE182 -> -1797.264446 | AG87: =Book_Capital!AF182 -> -1403.207565 | AH87: =Book_Capital!AG182 -> -1324.188186 | AI87: =Book_Capital!AH182 -> -1321.392619 | AJ87: =Book_Capital!AI182 -> -1140.50442 | AK87: =Book_Capital!AJ182 -> -1031.595348 | AL87: =Book_Capital!AK182 -> -894.8204136 | AM87: =Book_Capital!AL182 -> -594.070986 | AN87: =Book_Capital!AM182 -> -125.6782202 | AO87: =Book_Capital!AN182 -> 0 | AP87: =Book_Capital!AO182 -> 0 | AQ87: =Book_Capital!AP182 -> 0 | AR87: =Book_Capital!AQ182 -> 0 | AS87: =Book_Capital!AR182 -> 0 | AT87: =Book_Capital!AS182 -> 0 | AU87: =Book_Capital!AT182 -> 0 | AV87: =Book_Capital!AU182 -> 0 | AW87: =Book_Capital!AV182 -> 0 | AX87: =Book_Capital!AW182 -> 0 | AY87: =Book_Capital!AX182 -> 0 | AZ87: =Book_Capital!AY182 -> 0 | BA87: =Book_Capital!AZ182 -> 0 | BB87: =Book_Capital!BA182 -> 0 | BC87: =Book_Capital!BB182 -> 0 | BD87: =Book_Capital!BC182 -> 0 | BE87: =Book_Capital!BD182 -> 0 | BF87: =Book_Capital!BE182 -> 0 | BG87: =Book_Capital!BF182 -> 0 | BH87: =Book_Capital!BG182 -> 0 | BI87: =Book_Capital!BH182 -> 0 | BJ87: =Book_Capital!BI182 -> 0 | BK87: =Book_Capital!BJ182 -> 0
C88: 3 | D88: =D$12 -> Avoided Like-Kind Replacements | F88: =Input!F27 -> 21.95945946 | G88: 0.04553846154 | I88: 59716.9677 | J88: 376923.4266 | M88: =-Book_Capital!L306 -> 0 | N88: =-Book_Capital!M306 -> 0 | O88: =-Book_Capital!N306 -> 0 | P88: =-Book_Capital!O306 -> 0 | Q88: =-Book_Capital!P306 -> 0 | R88: =-Book_Capital!Q306 -> 0 | S88: =-Book_Capital!R306 -> 0 | T88: =-Book_Capital!S306 -> 0 | U88: =-Book_Capital!T306 -> 0 | V88: =-Book_Capital!U306 -> 357.1796215 | W88: =-Book_Capital!V306 -> 714.359243 | X88: =-Book_Capital!W306 -> 2395.728569 | Y88: =-Book_Capital!X306 -> 4369.372735 | Z88: =-Book_Capital!Y306 -> 4958.310178 | AA88: =-Book_Capital!Z306 -> 6170.075014 | AB88: =-Book_Capital!AA306 -> 9138.585863 | AC88: =-Book_Capital!AB306 -> 12553.38068 | AD88: =-Book_Capital!AC306 -> 14583.01891 | AE88: =-Book_Capital!AD306 -> 15251.27092 | AF88: =-Book_Capital!AE306 -> 15725.49473 | AG88: =-Book_Capital!AF306 -> 16199.71853 | AH88: =-Book_Capital!AG306 -> 16199.71853 | AI88: =-Book_Capital!AH306 -> 16714.11089 | AJ88: =-Book_Capital!AI306 -> 17228.50325 | AK88: =-Book_Capital!AJ306 -> 17228.50325 | AL88: =-Book_Capital!AK306 -> 17228.50325 | AM88: =-Book_Capital!AL306 -> 17228.50325 | AN88: =-Book_Capital!AM306 -> 16545.47555 | AO88: =-Book_Capital!AN306 -> 16514.144 | AP88: =-Book_Capital!AO306 -> 16514.144 | AQ88: =-Book_Capital!AP306 -> 16514.144 | AR88: =-Book_Capital!AQ306 -> 16514.144 | AS88: =-Book_Capital!AR306 -> 16514.144 | AT88: =-Book_Capital!AS306 -> 15714.46584 | AU88: =-Book_Capital!AT306 -> 15263.40227 | AV88: =-Book_Capital!AU306 -> 12687.89494 | AW88: =-Book_Capital!AV306 -> 10648.77977 | AX88: =-Book_Capital!AW306 -> 7705.356094 | AY88: =-Book_Capital!AX306 -> 5719.955882 | AZ88: =-Book_Capital!AY306 -> 4012.838646 | BA88: =-Book_Capital!AZ306 -> 1607.326043 | BB88: =-Book_Capital!BA306 -> 202.8742004 | BC88: =-Book_Capital!BB306 -> 0 | BD88: =-Book_Capital!BC306 -> 0 | BE88: =-Book_Capital!BD306 -> 0 | BF88: =-Book_Capital!BE306 -> 0 | BG88: =-Book_Capital!BF306 -> 0 | BH88: =-Book_Capital!BG306 -> 0 | BI88: =-Book_Capital!BH306 -> 0 | BJ88: =-Book_Capital!BI306 -> 0 | BK88: =-Book_Capital!BJ306 -> 0
C89: 4 | D89: =D$13 -> Tax Effects of Existing Part Retirement | F89: =Input!F28 -> 21.95945946 | G89: 0.04553846154 | I89: 0 | J89: 0 | M89: =-SUMPRODUCT(M59:$M59,N(OFFSET(M73:$M73,0,MAX(COLUMN(M73:$M73))-COLUMN(M73:$M73),1,1))) -> 0 | N89: =-SUMPRODUCT($M59:N59,N(OFFSET($M73:N73,0,MAX(COLUMN($M73:N73))-COLUMN($M73:N73),1,1))) -> 0 | O89: =-SUMPRODUCT($M59:O59,N(OFFSET($M73:O73,0,MAX(COLUMN($M73:O73))-COLUMN($M73:O73),1,1))) -> 0 | P89: =-SUMPRODUCT($M59:P59,N(OFFSET($M73:P73,0,MAX(COLUMN($M73:P73))-COLUMN($M73:P73),1,1))) -> 0 | Q89: =-SUMPRODUCT($M59:Q59,N(OFFSET($M73:Q73,0,MAX(COLUMN($M73:Q73))-COLUMN($M73:Q73),1,1))) -> 0 | R89: =-SUMPRODUCT($M59:R59,N(OFFSET($M73:R73,0,MAX(COLUMN($M73:R73))-COLUMN($M73:R73),1,1))) -> 0 | S89: =-SUMPRODUCT($M59:S59,N(OFFSET($M73:S73,0,MAX(COLUMN($M73:S73))-COLUMN($M73:S73),1,1))) -> 0 | T89: =-SUMPRODUCT($M59:T59,N(OFFSET($M73:T73,0,MAX(COLUMN($M73:T73))-COLUMN($M73:T73),1,1))) -> 0 | U89: =-SUMPRODUCT($M59:U59,N(OFFSET($M73:U73,0,MAX(COLUMN($M73:U73))-COLUMN($M73:U73),1,1))) -> 0 | V89: =-SUMPRODUCT($M59:V59,N(OFFSET($M73:V73,0,MAX(COLUMN($M73:V73))-COLUMN($M73:V73),1,1))) -> 0 | W89: =-SUMPRODUCT($M59:W59,N(OFFSET($M73:W73,0,MAX(COLUMN($M73:W73))-COLUMN($M73:W73),1,1))) -> 0 | X89: =-SUMPRODUCT($M59:X59,N(OFFSET($M73:X73,0,MAX(COLUMN($M73:X73))-COLUMN($M73:X73),1,1))) -> 0 | Y89: =-SUMPRODUCT($M59:Y59,N(OFFSET($M73:Y73,0,MAX(COLUMN($M73:Y73))-COLUMN($M73:Y73),1,1))) -> 0 | Z89: =-SUMPRODUCT($M59:Z59,N(OFFSET($M73:Z73,0,MAX(COLUMN($M73:Z73))-COLUMN($M73:Z73),1,1))) -> 0 | AA89: =-SUMPRODUCT($M59:AA59,N(OFFSET($M73:AA73,0,MAX(COLUMN($M73:AA73))-COLUMN($M73:AA73),1,1))) -> 0 | AB89: =-SUMPRODUCT($M59:AB59,N(OFFSET($M73:AB73,0,MAX(COLUMN($M73:AB73))-COLUMN($M73:AB73),1,1))) -> 0 | AC89: =-SUMPRODUCT($M59:AC59,N(OFFSET($M73:AC73,0,MAX(COLUMN($M73:AC73))-COLUMN($M73:AC73),1,1))) -> 0 | AD89: =-SUMPRODUCT($M59:AD59,N(OFFSET($M73:AD73,0,MAX(COLUMN($M73:AD73))-COLUMN($M73:AD73),1,1))) -> 0 | AE89: =-SUMPRODUCT($M59:AE59,N(OFFSET($M73:AE73,0,MAX(COLUMN($M73:AE73))-COLUMN($M73:AE73),1,1))) -> 0 | AF89: =-SUMPRODUCT($M59:AF59,N(OFFSET($M73:AF73,0,MAX(COLUMN($M73:AF73))-COLUMN($M73:AF73),1,1))) -> 0 | AG89: =-SUMPRODUCT($M59:AG59,N(OFFSET($M73:AG73,0,MAX(COLUMN($M73:AG73))-COLUMN($M73:AG73),1,1))) -> 0 | AH89: =-SUMPRODUCT($M59:AH59,N(OFFSET($M73:AH73,0,MAX(COLUMN($M73:AH73))-COLUMN($M73:AH73),1,1))) -> 0 | AI89: =-SUMPRODUCT($M59:AI59,N(OFFSET($M73:AI73,0,MAX(COLUMN($M73:AI73))-COLUMN($M73:AI73),1,1))) -> 0 | AJ89: =-SUMPRODUCT($M59:AJ59,N(OFFSET($M73:AJ73,0,MAX(COLUMN($M73:AJ73))-COLUMN($M73:AJ73),1,1))) -> 0 | AK89: =-SUMPRODUCT($M59:AK59,N(OFFSET($M73:AK73,0,MAX(COLUMN($M73:AK73))-COLUMN($M73:AK73),1,1))) -> 0 | AL89: =-SUMPRODUCT($M59:AL59,N(OFFSET($M73:AL73,0,MAX(COLUMN($M73:AL73))-COLUMN($M73:AL73),1,1))) -> 0 | AM89: =-SUMPRODUCT($M59:AM59,N(OFFSET($M73:AM73,0,MAX(COLUMN($M73:AM73))-COLUMN($M73:AM73),1,1))) -> 0 | AN89: =-SUMPRODUCT($M59:AN59,N(OFFSET($M73:AN73,0,MAX(COLUMN($M73:AN73))-COLUMN($M73:AN73),1,1))) -> 0 | AO89: =-SUMPRODUCT($M59:AO59,N(OFFSET($M73:AO73,0,MAX(COLUMN($M73:AO73))-COLUMN($M73:AO73),1,1))) -> 0 | AP89: =-SUMPRODUCT($M59:AP59,N(OFFSET($M73:AP73,0,MAX(COLUMN($M73:AP73))-COLUMN($M73:AP73),1,1))) -> 0 | AQ89: =-SUMPRODUCT($M59:AQ59,N(OFFSET($M73:AQ73,0,MAX(COLUMN($M73:AQ73))-COLUMN($M73:AQ73),1,1))) -> 0 | AR89: =-SUMPRODUCT($M59:AR59,N(OFFSET($M73:AR73,0,MAX(COLUMN($M73:AR73))-COLUMN($M73:AR73),1,1))) -> 0 | AS89: =-SUMPRODUCT($M59:AS59,N(OFFSET($M73:AS73,0,MAX(COLUMN($M73:AS73))-COLUMN($M73:AS73),1,1))) -> 0 | AT89: =-SUMPRODUCT($M59:AT59,N(OFFSET($M73:AT73,0,MAX(COLUMN($M73:AT73))-COLUMN($M73:AT73),1,1))) -> 0 | AU89: =-SUMPRODUCT($M59:AU59,N(OFFSET($M73:AU73,0,MAX(COLUMN($M73:AU73))-COLUMN($M73:AU73),1,1))) -> 0 | AV89: =-SUMPRODUCT($M59:AV59,N(OFFSET($M73:AV73,0,MAX(COLUMN($M73:AV73))-COLUMN($M73:AV73),1,1))) -> 0 | AW89: =-SUMPRODUCT($M59:AW59,N(OFFSET($M73:AW73,0,MAX(COLUMN($M73:AW73))-COLUMN($M73:AW73),1,1))) -> 0 | AX89: =-SUMPRODUCT($M59:AX59,N(OFFSET($M73:AX73,0,MAX(COLUMN($M73:AX73))-COLUMN($M73:AX73),1,1))) -> 0 | AY89: =-SUMPRODUCT($M59:AY59,N(OFFSET($M73:AY73,0,MAX(COLUMN($M73:AY73))-COLUMN($M73:AY73),1,1))) -> 0 | AZ89: =-SUMPRODUCT($M59:AZ59,N(OFFSET($M73:AZ73,0,MAX(COLUMN($M73:AZ73))-COLUMN($M73:AZ73),1,1))) -> 0 | BA89: =-SUMPRODUCT($M59:BA59,N(OFFSET($M73:BA73,0,MAX(COLUMN($M73:BA73))-COLUMN($M73:BA73),1,1))) -> 0 | BB89: =-SUMPRODUCT($M59:BB59,N(OFFSET($M73:BB73,0,MAX(COLUMN($M73:BB73))-COLUMN($M73:BB73),1,1))) -> 0 | BC89: =-SUMPRODUCT($M59:BC59,N(OFFSET($M73:BC73,0,MAX(COLUMN($M73:BC73))-COLUMN($M73:BC73),1,1))) -> 0 | BD89: =-SUMPRODUCT($M59:BD59,N(OFFSET($M73:BD73,0,MAX(COLUMN($M73:BD73))-COLUMN($M73:BD73),1,1))) -> 0 | BE89: =-SUMPRODUCT($M59:BE59,N(OFFSET($M73:BE73,0,MAX(COLUMN($M73:BE73))-COLUMN($M73:BE73),1,1))) -> 0 | BF89: =-SUMPRODUCT($M59:BF59,N(OFFSET($M73:BF73,0,MAX(COLUMN($M73:BF73))-COLUMN($M73:BF73),1,1))) -> 0 | BG89: =-SUMPRODUCT($M59:BG59,N(OFFSET($M73:BG73,0,MAX(COLUMN($M73:BG73))-COLUMN($M73:BG73),1,1))) -> 0 | BH89: =-SUMPRODUCT($M59:BH59,N(OFFSET($M73:BH73,0,MAX(COLUMN($M73:BH73))-COLUMN($M73:BH73),1,1))) -> 0 | BI89: =-SUMPRODUCT($M59:BI59,N(OFFSET($M73:BI73,0,MAX(COLUMN($M73:BI73))-COLUMN($M73:BI73),1,1))) -> 0 | BJ89: =-SUMPRODUCT($M59:BJ59,N(OFFSET($M73:BJ73,0,MAX(COLUMN($M73:BJ73))-COLUMN($M73:BJ73),1,1))) -> 0 | BK89: =-SUMPRODUCT($M59:BK59,N(OFFSET($M73:BK73,0,MAX(COLUMN($M73:BK73))-COLUMN($M73:BK73),1,1))) -> 0
C90: 5 | D90: =D$14 -> … | F90: =Input!F29 -> 21.95945946 | G90: 0.04553846154 | I90: 0 | J90: 0 | M90: =-SUMPRODUCT(M60:$M60,N(OFFSET(M74:$M74,0,MAX(COLUMN(M74:$M74))-COLUMN(M74:$M74),1,1))) -> 0 | N90: =-SUMPRODUCT($M60:N60,N(OFFSET($M74:N74,0,MAX(COLUMN($M74:N74))-COLUMN($M74:N74),1,1))) -> 0 | O90: =-SUMPRODUCT($M60:O60,N(OFFSET($M74:O74,0,MAX(COLUMN($M74:O74))-COLUMN($M74:O74),1,1))) -> 0 | P90: =-SUMPRODUCT($M60:P60,N(OFFSET($M74:P74,0,MAX(COLUMN($M74:P74))-COLUMN($M74:P74),1,1))) -> 0 | Q90: =-SUMPRODUCT($M60:Q60,N(OFFSET($M74:Q74,0,MAX(COLUMN($M74:Q74))-COLUMN($M74:Q74),1,1))) -> 0 | R90: =-SUMPRODUCT($M60:R60,N(OFFSET($M74:R74,0,MAX(COLUMN($M74:R74))-COLUMN($M74:R74),1,1))) -> 0 | S90: =-SUMPRODUCT($M60:S60,N(OFFSET($M74:S74,0,MAX(COLUMN($M74:S74))-COLUMN($M74:S74),1,1))) -> 0 | T90: =-SUMPRODUCT($M60:T60,N(OFFSET($M74:T74,0,MAX(COLUMN($M74:T74))-COLUMN($M74:T74),1,1))) -> 0 | U90: =-SUMPRODUCT($M60:U60,N(OFFSET($M74:U74,0,MAX(COLUMN($M74:U74))-COLUMN($M74:U74),1,1))) -> 0 | V90: =-SUMPRODUCT($M60:V60,N(OFFSET($M74:V74,0,MAX(COLUMN($M74:V74))-COLUMN($M74:V74),1,1))) -> 0 | W90: =-SUMPRODUCT($M60:W60,N(OFFSET($M74:W74,0,MAX(COLUMN($M74:W74))-COLUMN($M74:W74),1,1))) -> 0 | X90: =-SUMPRODUCT($M60:X60,N(OFFSET($M74:X74,0,MAX(COLUMN($M74:X74))-COLUMN($M74:X74),1,1))) -> 0 | Y90: =-SUMPRODUCT($M60:Y60,N(OFFSET($M74:Y74,0,MAX(COLUMN($M74:Y74))-COLUMN($M74:Y74),1,1))) -> 0 | Z90: =-SUMPRODUCT($M60:Z60,N(OFFSET($M74:Z74,0,MAX(COLUMN($M74:Z74))-COLUMN($M74:Z74),1,1))) -> 0 | AA90: =-SUMPRODUCT($M60:AA60,N(OFFSET($M74:AA74,0,MAX(COLUMN($M74:AA74))-COLUMN($M74:AA74),1,1))) -> 0 | AB90: =-SUMPRODUCT($M60:AB60,N(OFFSET($M74:AB74,0,MAX(COLUMN($M74:AB74))-COLUMN($M74:AB74),1,1))) -> 0 | AC90: =-SUMPRODUCT($M60:AC60,N(OFFSET($M74:AC74,0,MAX(COLUMN($M74:AC74))-COLUMN($M74:AC74),1,1))) -> 0 | AD90: =-SUMPRODUCT($M60:AD60,N(OFFSET($M74:AD74,0,MAX(COLUMN($M74:AD74))-COLUMN($M74:AD74),1,1))) -> 0 | AE90: =-SUMPRODUCT($M60:AE60,N(OFFSET($M74:AE74,0,MAX(COLUMN($M74:AE74))-COLUMN($M74:AE74),1,1))) -> 0 | AF90: =-SUMPRODUCT($M60:AF60,N(OFFSET($M74:AF74,0,MAX(COLUMN($M74:AF74))-COLUMN($M74:AF74),1,1))) -> 0 | AG90: =-SUMPRODUCT($M60:AG60,N(OFFSET($M74:AG74,0,MAX(COLUMN($M74:AG74))-COLUMN($M74:AG74),1,1))) -> 0 | AH90: =-SUMPRODUCT($M60:AH60,N(OFFSET($M74:AH74,0,MAX(COLUMN($M74:AH74))-COLUMN($M74:AH74),1,1))) -> 0 | AI90: =-SUMPRODUCT($M60:AI60,N(OFFSET($M74:AI74,0,MAX(COLUMN($M74:AI74))-COLUMN($M74:AI74),1,1))) -> 0 | AJ90: =-SUMPRODUCT($M60:AJ60,N(OFFSET($M74:AJ74,0,MAX(COLUMN($M74:AJ74))-COLUMN($M74:AJ74),1,1))) -> 0 | AK90: =-SUMPRODUCT($M60:AK60,N(OFFSET($M74:AK74,0,MAX(COLUMN($M74:AK74))-COLUMN($M74:AK74),1,1))) -> 0 | AL90: =-SUMPRODUCT($M60:AL60,N(OFFSET($M74:AL74,0,MAX(COLUMN($M74:AL74))-COLUMN($M74:AL74),1,1))) -> 0 | AM90: =-SUMPRODUCT($M60:AM60,N(OFFSET($M74:AM74,0,MAX(COLUMN($M74:AM74))-COLUMN($M74:AM74),1,1))) -> 0 | AN90: =-SUMPRODUCT($M60:AN60,N(OFFSET($M74:AN74,0,MAX(COLUMN($M74:AN74))-COLUMN($M74:AN74),1,1))) -> 0 | AO90: =-SUMPRODUCT($M60:AO60,N(OFFSET($M74:AO74,0,MAX(COLUMN($M74:AO74))-COLUMN($M74:AO74),1,1))) -> 0 | AP90: =-SUMPRODUCT($M60:AP60,N(OFFSET($M74:AP74,0,MAX(COLUMN($M74:AP74))-COLUMN($M74:AP74),1,1))) -> 0 | AQ90: =-SUMPRODUCT($M60:AQ60,N(OFFSET($M74:AQ74,0,MAX(COLUMN($M74:AQ74))-COLUMN($M74:AQ74),1,1))) -> 0 | AR90: =-SUMPRODUCT($M60:AR60,N(OFFSET($M74:AR74,0,MAX(COLUMN($M74:AR74))-COLUMN($M74:AR74),1,1))) -> 0 | AS90: =-SUMPRODUCT($M60:AS60,N(OFFSET($M74:AS74,0,MAX(COLUMN($M74:AS74))-COLUMN($M74:AS74),1,1))) -> 0 | AT90: =-SUMPRODUCT($M60:AT60,N(OFFSET($M74:AT74,0,MAX(COLUMN($M74:AT74))-COLUMN($M74:AT74),1,1))) -> 0 | AU90: =-SUMPRODUCT($M60:AU60,N(OFFSET($M74:AU74,0,MAX(COLUMN($M74:AU74))-COLUMN($M74:AU74),1,1))) -> 0 | AV90: =-SUMPRODUCT($M60:AV60,N(OFFSET($M74:AV74,0,MAX(COLUMN($M74:AV74))-COLUMN($M74:AV74),1,1))) -> 0 | AW90: =-SUMPRODUCT($M60:AW60,N(OFFSET($M74:AW74,0,MAX(COLUMN($M74:AW74))-COLUMN($M74:AW74),1,1))) -> 0 | AX90: =-SUMPRODUCT($M60:AX60,N(OFFSET($M74:AX74,0,MAX(COLUMN($M74:AX74))-COLUMN($M74:AX74),1,1))) -> 0 | AY90: =-SUMPRODUCT($M60:AY60,N(OFFSET($M74:AY74,0,MAX(COLUMN($M74:AY74))-COLUMN($M74:AY74),1,1))) -> 0 | AZ90: =-SUMPRODUCT($M60:AZ60,N(OFFSET($M74:AZ74,0,MAX(COLUMN($M74:AZ74))-COLUMN($M74:AZ74),1,1))) -> 0 | BA90: =-SUMPRODUCT($M60:BA60,N(OFFSET($M74:BA74,0,MAX(COLUMN($M74:BA74))-COLUMN($M74:BA74),1,1))) -> 0 | BB90: =-SUMPRODUCT($M60:BB60,N(OFFSET($M74:BB74,0,MAX(COLUMN($M74:BB74))-COLUMN($M74:BB74),1,1))) -> 0 | BC90: =-SUMPRODUCT($M60:BC60,N(OFFSET($M74:BC74,0,MAX(COLUMN($M74:BC74))-COLUMN($M74:BC74),1,1))) -> 0 | BD90: =-SUMPRODUCT($M60:BD60,N(OFFSET($M74:BD74,0,MAX(COLUMN($M74:BD74))-COLUMN($M74:BD74),1,1))) -> 0 | BE90: =-SUMPRODUCT($M60:BE60,N(OFFSET($M74:BE74,0,MAX(COLUMN($M74:BE74))-COLUMN($M74:BE74),1,1))) -> 0 | BF90: =-SUMPRODUCT($M60:BF60,N(OFFSET($M74:BF74,0,MAX(COLUMN($M74:BF74))-COLUMN($M74:BF74),1,1))) -> 0 | BG90: =-SUMPRODUCT($M60:BG60,N(OFFSET($M74:BG74,0,MAX(COLUMN($M74:BG74))-COLUMN($M74:BG74),1,1))) -> 0 | BH90: =-SUMPRODUCT($M60:BH60,N(OFFSET($M74:BH74,0,MAX(COLUMN($M74:BH74))-COLUMN($M74:BH74),1,1))) -> 0 | BI90: =-SUMPRODUCT($M60:BI60,N(OFFSET($M74:BI74,0,MAX(COLUMN($M74:BI74))-COLUMN($M74:BI74),1,1))) -> 0 | BJ90: =-SUMPRODUCT($M60:BJ60,N(OFFSET($M74:BJ74,0,MAX(COLUMN($M74:BJ74))-COLUMN($M74:BJ74),1,1))) -> 0 | BK90: =-SUMPRODUCT($M60:BK60,N(OFFSET($M74:BK74,0,MAX(COLUMN($M74:BK74))-COLUMN($M74:BK74),1,1))) -> 0
C91: 6 | D91: =D$15 -> … | F91: =Input!F30 -> 21.95945946 | G91: 0.04553846154 | I91: 0 | J91: 0 | M91: =-SUMPRODUCT(M61:$M61,N(OFFSET(M75:$M75,0,MAX(COLUMN(M75:$M75))-COLUMN(M75:$M75),1,1))) -> 0 | N91: =-SUMPRODUCT($M61:N61,N(OFFSET($M75:N75,0,MAX(COLUMN($M75:N75))-COLUMN($M75:N75),1,1))) -> 0 | O91: =-SUMPRODUCT($M61:O61,N(OFFSET($M75:O75,0,MAX(COLUMN($M75:O75))-COLUMN($M75:O75),1,1))) -> 0 | P91: =-SUMPRODUCT($M61:P61,N(OFFSET($M75:P75,0,MAX(COLUMN($M75:P75))-COLUMN($M75:P75),1,1))) -> 0 | Q91: =-SUMPRODUCT($M61:Q61,N(OFFSET($M75:Q75,0,MAX(COLUMN($M75:Q75))-COLUMN($M75:Q75),1,1))) -> 0 | R91: =-SUMPRODUCT($M61:R61,N(OFFSET($M75:R75,0,MAX(COLUMN($M75:R75))-COLUMN($M75:R75),1,1))) -> 0 | S91: =-SUMPRODUCT($M61:S61,N(OFFSET($M75:S75,0,MAX(COLUMN($M75:S75))-COLUMN($M75:S75),1,1))) -> 0 | T91: =-SUMPRODUCT($M61:T61,N(OFFSET($M75:T75,0,MAX(COLUMN($M75:T75))-COLUMN($M75:T75),1,1))) -> 0 | U91: =-SUMPRODUCT($M61:U61,N(OFFSET($M75:U75,0,MAX(COLUMN($M75:U75))-COLUMN($M75:U75),1,1))) -> 0 | V91: =-SUMPRODUCT($M61:V61,N(OFFSET($M75:V75,0,MAX(COLUMN($M75:V75))-COLUMN($M75:V75),1,1))) -> 0 | W91: =-SUMPRODUCT($M61:W61,N(OFFSET($M75:W75,0,MAX(COLUMN($M75:W75))-COLUMN($M75:W75),1,1))) -> 0 | X91: =-SUMPRODUCT($M61:X61,N(OFFSET($M75:X75,0,MAX(COLUMN($M75:X75))-COLUMN($M75:X75),1,1))) -> 0 | Y91: =-SUMPRODUCT($M61:Y61,N(OFFSET($M75:Y75,0,MAX(COLUMN($M75:Y75))-COLUMN($M75:Y75),1,1))) -> 0 | Z91: =-SUMPRODUCT($M61:Z61,N(OFFSET($M75:Z75,0,MAX(COLUMN($M75:Z75))-COLUMN($M75:Z75),1,1))) -> 0 | AA91: =-SUMPRODUCT($M61:AA61,N(OFFSET($M75:AA75,0,MAX(COLUMN($M75:AA75))-COLUMN($M75:AA75),1,1))) -> 0 | AB91: =-SUMPRODUCT($M61:AB61,N(OFFSET($M75:AB75,0,MAX(COLUMN($M75:AB75))-COLUMN($M75:AB75),1,1))) -> 0 | AC91: =-SUMPRODUCT($M61:AC61,N(OFFSET($M75:AC75,0,MAX(COLUMN($M75:AC75))-COLUMN($M75:AC75),1,1))) -> 0 | AD91: =-SUMPRODUCT($M61:AD61,N(OFFSET($M75:AD75,0,MAX(COLUMN($M75:AD75))-COLUMN($M75:AD75),1,1))) -> 0 | AE91: =-SUMPRODUCT($M61:AE61,N(OFFSET($M75:AE75,0,MAX(COLUMN($M75:AE75))-COLUMN($M75:AE75),1,1))) -> 0 | AF91: =-SUMPRODUCT($M61:AF61,N(OFFSET($M75:AF75,0,MAX(COLUMN($M75:AF75))-COLUMN($M75:AF75),1,1))) -> 0 | AG91: =-SUMPRODUCT($M61:AG61,N(OFFSET($M75:AG75,0,MAX(COLUMN($M75:AG75))-COLUMN($M75:AG75),1,1))) -> 0 | AH91: =-SUMPRODUCT($M61:AH61,N(OFFSET($M75:AH75,0,MAX(COLUMN($M75:AH75))-COLUMN($M75:AH75),1,1))) -> 0 | AI91: =-SUMPRODUCT($M61:AI61,N(OFFSET($M75:AI75,0,MAX(COLUMN($M75:AI75))-COLUMN($M75:AI75),1,1))) -> 0 | AJ91: =-SUMPRODUCT($M61:AJ61,N(OFFSET($M75:AJ75,0,MAX(COLUMN($M75:AJ75))-COLUMN($M75:AJ75),1,1))) -> 0 | AK91: =-SUMPRODUCT($M61:AK61,N(OFFSET($M75:AK75,0,MAX(COLUMN($M75:AK75))-COLUMN($M75:AK75),1,1))) -> 0 | AL91: =-SUMPRODUCT($M61:AL61,N(OFFSET($M75:AL75,0,MAX(COLUMN($M75:AL75))-COLUMN($M75:AL75),1,1))) -> 0 | AM91: =-SUMPRODUCT($M61:AM61,N(OFFSET($M75:AM75,0,MAX(COLUMN($M75:AM75))-COLUMN($M75:AM75),1,1))) -> 0 | AN91: =-SUMPRODUCT($M61:AN61,N(OFFSET($M75:AN75,0,MAX(COLUMN($M75:AN75))-COLUMN($M75:AN75),1,1))) -> 0 | AO91: =-SUMPRODUCT($M61:AO61,N(OFFSET($M75:AO75,0,MAX(COLUMN($M75:AO75))-COLUMN($M75:AO75),1,1))) -> 0 | AP91: =-SUMPRODUCT($M61:AP61,N(OFFSET($M75:AP75,0,MAX(COLUMN($M75:AP75))-COLUMN($M75:AP75),1,1))) -> 0 | AQ91: =-SUMPRODUCT($M61:AQ61,N(OFFSET($M75:AQ75,0,MAX(COLUMN($M75:AQ75))-COLUMN($M75:AQ75),1,1))) -> 0 | AR91: =-SUMPRODUCT($M61:AR61,N(OFFSET($M75:AR75,0,MAX(COLUMN($M75:AR75))-COLUMN($M75:AR75),1,1))) -> 0 | AS91: =-SUMPRODUCT($M61:AS61,N(OFFSET($M75:AS75,0,MAX(COLUMN($M75:AS75))-COLUMN($M75:AS75),1,1))) -> 0 | AT91: =-SUMPRODUCT($M61:AT61,N(OFFSET($M75:AT75,0,MAX(COLUMN($M75:AT75))-COLUMN($M75:AT75),1,1))) -> 0 | AU91: =-SUMPRODUCT($M61:AU61,N(OFFSET($M75:AU75,0,MAX(COLUMN($M75:AU75))-COLUMN($M75:AU75),1,1))) -> 0 | AV91: =-SUMPRODUCT($M61:AV61,N(OFFSET($M75:AV75,0,MAX(COLUMN($M75:AV75))-COLUMN($M75:AV75),1,1))) -> 0 | AW91: =-SUMPRODUCT($M61:AW61,N(OFFSET($M75:AW75,0,MAX(COLUMN($M75:AW75))-COLUMN($M75:AW75),1,1))) -> 0 | AX91: =-SUMPRODUCT($M61:AX61,N(OFFSET($M75:AX75,0,MAX(COLUMN($M75:AX75))-COLUMN($M75:AX75),1,1))) -> 0 | AY91: =-SUMPRODUCT($M61:AY61,N(OFFSET($M75:AY75,0,MAX(COLUMN($M75:AY75))-COLUMN($M75:AY75),1,1))) -> 0 | AZ91: =-SUMPRODUCT($M61:AZ61,N(OFFSET($M75:AZ75,0,MAX(COLUMN($M75:AZ75))-COLUMN($M75:AZ75),1,1))) -> 0 | BA91: =-SUMPRODUCT($M61:BA61,N(OFFSET($M75:BA75,0,MAX(COLUMN($M75:BA75))-COLUMN($M75:BA75),1,1))) -> 0 | BB91: =-SUMPRODUCT($M61:BB61,N(OFFSET($M75:BB75,0,MAX(COLUMN($M75:BB75))-COLUMN($M75:BB75),1,1))) -> 0 | BC91: =-SUMPRODUCT($M61:BC61,N(OFFSET($M75:BC75,0,MAX(COLUMN($M75:BC75))-COLUMN($M75:BC75),1,1))) -> 0 | BD91: =-SUMPRODUCT($M61:BD61,N(OFFSET($M75:BD75,0,MAX(COLUMN($M75:BD75))-COLUMN($M75:BD75),1,1))) -> 0 | BE91: =-SUMPRODUCT($M61:BE61,N(OFFSET($M75:BE75,0,MAX(COLUMN($M75:BE75))-COLUMN($M75:BE75),1,1))) -> 0 | BF91: =-SUMPRODUCT($M61:BF61,N(OFFSET($M75:BF75,0,MAX(COLUMN($M75:BF75))-COLUMN($M75:BF75),1,1))) -> 0 | BG91: =-SUMPRODUCT($M61:BG61,N(OFFSET($M75:BG75,0,MAX(COLUMN($M75:BG75))-COLUMN($M75:BG75),1,1))) -> 0 | BH91: =-SUMPRODUCT($M61:BH61,N(OFFSET($M75:BH75,0,MAX(COLUMN($M75:BH75))-COLUMN($M75:BH75),1,1))) -> 0 | BI91: =-SUMPRODUCT($M61:BI61,N(OFFSET($M75:BI75,0,MAX(COLUMN($M75:BI75))-COLUMN($M75:BI75),1,1))) -> 0 | BJ91: =-SUMPRODUCT($M61:BJ61,N(OFFSET($M75:BJ75,0,MAX(COLUMN($M75:BJ75))-COLUMN($M75:BJ75),1,1))) -> 0 | BK91: =-SUMPRODUCT($M61:BK61,N(OFFSET($M75:BK75,0,MAX(COLUMN($M75:BK75))-COLUMN($M75:BK75),1,1))) -> 0
C92: 7 | D92: =D$16 -> … | F92: =Input!F31 -> 21.95945946 | G92: 0.04553846154 | I92: 0 | J92: 0 | M92: =-SUMPRODUCT(M62:$M62,N(OFFSET(M76:$M76,0,MAX(COLUMN(M76:$M76))-COLUMN(M76:$M76),1,1))) -> 0 | N92: =-SUMPRODUCT($M62:N62,N(OFFSET($M76:N76,0,MAX(COLUMN($M76:N76))-COLUMN($M76:N76),1,1))) -> 0 | O92: =-SUMPRODUCT($M62:O62,N(OFFSET($M76:O76,0,MAX(COLUMN($M76:O76))-COLUMN($M76:O76),1,1))) -> 0 | P92: =-SUMPRODUCT($M62:P62,N(OFFSET($M76:P76,0,MAX(COLUMN($M76:P76))-COLUMN($M76:P76),1,1))) -> 0 | Q92: =-SUMPRODUCT($M62:Q62,N(OFFSET($M76:Q76,0,MAX(COLUMN($M76:Q76))-COLUMN($M76:Q76),1,1))) -> 0 | R92: =-SUMPRODUCT($M62:R62,N(OFFSET($M76:R76,0,MAX(COLUMN($M76:R76))-COLUMN($M76:R76),1,1))) -> 0 | S92: =-SUMPRODUCT($M62:S62,N(OFFSET($M76:S76,0,MAX(COLUMN($M76:S76))-COLUMN($M76:S76),1,1))) -> 0 | T92: =-SUMPRODUCT($M62:T62,N(OFFSET($M76:T76,0,MAX(COLUMN($M76:T76))-COLUMN($M76:T76),1,1))) -> 0 | U92: =-SUMPRODUCT($M62:U62,N(OFFSET($M76:U76,0,MAX(COLUMN($M76:U76))-COLUMN($M76:U76),1,1))) -> 0 | V92: =-SUMPRODUCT($M62:V62,N(OFFSET($M76:V76,0,MAX(COLUMN($M76:V76))-COLUMN($M76:V76),1,1))) -> 0 | W92: =-SUMPRODUCT($M62:W62,N(OFFSET($M76:W76,0,MAX(COLUMN($M76:W76))-COLUMN($M76:W76),1,1))) -> 0 | X92: =-SUMPRODUCT($M62:X62,N(OFFSET($M76:X76,0,MAX(COLUMN($M76:X76))-COLUMN($M76:X76),1,1))) -> 0 | Y92: =-SUMPRODUCT($M62:Y62,N(OFFSET($M76:Y76,0,MAX(COLUMN($M76:Y76))-COLUMN($M76:Y76),1,1))) -> 0 | Z92: =-SUMPRODUCT($M62:Z62,N(OFFSET($M76:Z76,0,MAX(COLUMN($M76:Z76))-COLUMN($M76:Z76),1,1))) -> 0 | AA92: =-SUMPRODUCT($M62:AA62,N(OFFSET($M76:AA76,0,MAX(COLUMN($M76:AA76))-COLUMN($M76:AA76),1,1))) -> 0 | AB92: =-SUMPRODUCT($M62:AB62,N(OFFSET($M76:AB76,0,MAX(COLUMN($M76:AB76))-COLUMN($M76:AB76),1,1))) -> 0 | AC92: =-SUMPRODUCT($M62:AC62,N(OFFSET($M76:AC76,0,MAX(COLUMN($M76:AC76))-COLUMN($M76:AC76),1,1))) -> 0 | AD92: =-SUMPRODUCT($M62:AD62,N(OFFSET($M76:AD76,0,MAX(COLUMN($M76:AD76))-COLUMN($M76:AD76),1,1))) -> 0 | AE92: =-SUMPRODUCT($M62:AE62,N(OFFSET($M76:AE76,0,MAX(COLUMN($M76:AE76))-COLUMN($M76:AE76),1,1))) -> 0 | AF92: =-SUMPRODUCT($M62:AF62,N(OFFSET($M76:AF76,0,MAX(COLUMN($M76:AF76))-COLUMN($M76:AF76),1,1))) -> 0 | AG92: =-SUMPRODUCT($M62:AG62,N(OFFSET($M76:AG76,0,MAX(COLUMN($M76:AG76))-COLUMN($M76:AG76),1,1))) -> 0 | AH92: =-SUMPRODUCT($M62:AH62,N(OFFSET($M76:AH76,0,MAX(COLUMN($M76:AH76))-COLUMN($M76:AH76),1,1))) -> 0 | AI92: =-SUMPRODUCT($M62:AI62,N(OFFSET($M76:AI76,0,MAX(COLUMN($M76:AI76))-COLUMN($M76:AI76),1,1))) -> 0 | AJ92: =-SUMPRODUCT($M62:AJ62,N(OFFSET($M76:AJ76,0,MAX(COLUMN($M76:AJ76))-COLUMN($M76:AJ76),1,1))) -> 0 | AK92: =-SUMPRODUCT($M62:AK62,N(OFFSET($M76:AK76,0,MAX(COLUMN($M76:AK76))-COLUMN($M76:AK76),1,1))) -> 0 | AL92: =-SUMPRODUCT($M62:AL62,N(OFFSET($M76:AL76,0,MAX(COLUMN($M76:AL76))-COLUMN($M76:AL76),1,1))) -> 0 | AM92: =-SUMPRODUCT($M62:AM62,N(OFFSET($M76:AM76,0,MAX(COLUMN($M76:AM76))-COLUMN($M76:AM76),1,1))) -> 0 | AN92: =-SUMPRODUCT($M62:AN62,N(OFFSET($M76:AN76,0,MAX(COLUMN($M76:AN76))-COLUMN($M76:AN76),1,1))) -> 0 | AO92: =-SUMPRODUCT($M62:AO62,N(OFFSET($M76:AO76,0,MAX(COLUMN($M76:AO76))-COLUMN($M76:AO76),1,1))) -> 0 | AP92: =-SUMPRODUCT($M62:AP62,N(OFFSET($M76:AP76,0,MAX(COLUMN($M76:AP76))-COLUMN($M76:AP76),1,1))) -> 0 | AQ92: =-SUMPRODUCT($M62:AQ62,N(OFFSET($M76:AQ76,0,MAX(COLUMN($M76:AQ76))-COLUMN($M76:AQ76),1,1))) -> 0 | AR92: =-SUMPRODUCT($M62:AR62,N(OFFSET($M76:AR76,0,MAX(COLUMN($M76:AR76))-COLUMN($M76:AR76),1,1))) -> 0 | AS92: =-SUMPRODUCT($M62:AS62,N(OFFSET($M76:AS76,0,MAX(COLUMN($M76:AS76))-COLUMN($M76:AS76),1,1))) -> 0 | AT92: =-SUMPRODUCT($M62:AT62,N(OFFSET($M76:AT76,0,MAX(COLUMN($M76:AT76))-COLUMN($M76:AT76),1,1))) -> 0 | AU92: =-SUMPRODUCT($M62:AU62,N(OFFSET($M76:AU76,0,MAX(COLUMN($M76:AU76))-COLUMN($M76:AU76),1,1))) -> 0 | AV92: =-SUMPRODUCT($M62:AV62,N(OFFSET($M76:AV76,0,MAX(COLUMN($M76:AV76))-COLUMN($M76:AV76),1,1))) -> 0 | AW92: =-SUMPRODUCT($M62:AW62,N(OFFSET($M76:AW76,0,MAX(COLUMN($M76:AW76))-COLUMN($M76:AW76),1,1))) -> 0 | AX92: =-SUMPRODUCT($M62:AX62,N(OFFSET($M76:AX76,0,MAX(COLUMN($M76:AX76))-COLUMN($M76:AX76),1,1))) -> 0 | AY92: =-SUMPRODUCT($M62:AY62,N(OFFSET($M76:AY76,0,MAX(COLUMN($M76:AY76))-COLUMN($M76:AY76),1,1))) -> 0 | AZ92: =-SUMPRODUCT($M62:AZ62,N(OFFSET($M76:AZ76,0,MAX(COLUMN($M76:AZ76))-COLUMN($M76:AZ76),1,1))) -> 0 | BA92: =-SUMPRODUCT($M62:BA62,N(OFFSET($M76:BA76,0,MAX(COLUMN($M76:BA76))-COLUMN($M76:BA76),1,1))) -> 0 | BB92: =-SUMPRODUCT($M62:BB62,N(OFFSET($M76:BB76,0,MAX(COLUMN($M76:BB76))-COLUMN($M76:BB76),1,1))) -> 0 | BC92: =-SUMPRODUCT($M62:BC62,N(OFFSET($M76:BC76,0,MAX(COLUMN($M76:BC76))-COLUMN($M76:BC76),1,1))) -> 0 | BD92: =-SUMPRODUCT($M62:BD62,N(OFFSET($M76:BD76,0,MAX(COLUMN($M76:BD76))-COLUMN($M76:BD76),1,1))) -> 0 | BE92: =-SUMPRODUCT($M62:BE62,N(OFFSET($M76:BE76,0,MAX(COLUMN($M76:BE76))-COLUMN($M76:BE76),1,1))) -> 0 | BF92: =-SUMPRODUCT($M62:BF62,N(OFFSET($M76:BF76,0,MAX(COLUMN($M76:BF76))-COLUMN($M76:BF76),1,1))) -> 0 | BG92: =-SUMPRODUCT($M62:BG62,N(OFFSET($M76:BG76,0,MAX(COLUMN($M76:BG76))-COLUMN($M76:BG76),1,1))) -> 0 | BH92: =-SUMPRODUCT($M62:BH62,N(OFFSET($M76:BH76,0,MAX(COLUMN($M76:BH76))-COLUMN($M76:BH76),1,1))) -> 0 | BI92: =-SUMPRODUCT($M62:BI62,N(OFFSET($M76:BI76,0,MAX(COLUMN($M76:BI76))-COLUMN($M76:BI76),1,1))) -> 0 | BJ92: =-SUMPRODUCT($M62:BJ62,N(OFFSET($M76:BJ76,0,MAX(COLUMN($M76:BJ76))-COLUMN($M76:BJ76),1,1))) -> 0 | BK92: =-SUMPRODUCT($M62:BK62,N(OFFSET($M76:BK76,0,MAX(COLUMN($M76:BK76))-COLUMN($M76:BK76),1,1))) -> 0
C93: 8 | D93: =D$17 -> … | F93: =Input!F32 -> 21.95945946 | G93: 0.04553846154 | I93: 0 | J93: 0 | M93: =-SUMPRODUCT(M63:$M63,N(OFFSET(M77:$M77,0,MAX(COLUMN(M77:$M77))-COLUMN(M77:$M77),1,1))) -> 0 | N93: =-SUMPRODUCT($M63:N63,N(OFFSET($M77:N77,0,MAX(COLUMN($M77:N77))-COLUMN($M77:N77),1,1))) -> 0 | O93: =-SUMPRODUCT($M63:O63,N(OFFSET($M77:O77,0,MAX(COLUMN($M77:O77))-COLUMN($M77:O77),1,1))) -> 0 | P93: =-SUMPRODUCT($M63:P63,N(OFFSET($M77:P77,0,MAX(COLUMN($M77:P77))-COLUMN($M77:P77),1,1))) -> 0 | Q93: =-SUMPRODUCT($M63:Q63,N(OFFSET($M77:Q77,0,MAX(COLUMN($M77:Q77))-COLUMN($M77:Q77),1,1))) -> 0 | R93: =-SUMPRODUCT($M63:R63,N(OFFSET($M77:R77,0,MAX(COLUMN($M77:R77))-COLUMN($M77:R77),1,1))) -> 0 | S93: =-SUMPRODUCT($M63:S63,N(OFFSET($M77:S77,0,MAX(COLUMN($M77:S77))-COLUMN($M77:S77),1,1))) -> 0 | T93: =-SUMPRODUCT($M63:T63,N(OFFSET($M77:T77,0,MAX(COLUMN($M77:T77))-COLUMN($M77:T77),1,1))) -> 0 | U93: =-SUMPRODUCT($M63:U63,N(OFFSET($M77:U77,0,MAX(COLUMN($M77:U77))-COLUMN($M77:U77),1,1))) -> 0 | V93: =-SUMPRODUCT($M63:V63,N(OFFSET($M77:V77,0,MAX(COLUMN($M77:V77))-COLUMN($M77:V77),1,1))) -> 0 | W93: =-SUMPRODUCT($M63:W63,N(OFFSET($M77:W77,0,MAX(COLUMN($M77:W77))-COLUMN($M77:W77),1,1))) -> 0 | X93: =-SUMPRODUCT($M63:X63,N(OFFSET($M77:X77,0,MAX(COLUMN($M77:X77))-COLUMN($M77:X77),1,1))) -> 0 | Y93: =-SUMPRODUCT($M63:Y63,N(OFFSET($M77:Y77,0,MAX(COLUMN($M77:Y77))-COLUMN($M77:Y77),1,1))) -> 0 | Z93: =-SUMPRODUCT($M63:Z63,N(OFFSET($M77:Z77,0,MAX(COLUMN($M77:Z77))-COLUMN($M77:Z77),1,1))) -> 0 | AA93: =-SUMPRODUCT($M63:AA63,N(OFFSET($M77:AA77,0,MAX(COLUMN($M77:AA77))-COLUMN($M77:AA77),1,1))) -> 0 | AB93: =-SUMPRODUCT($M63:AB63,N(OFFSET($M77:AB77,0,MAX(COLUMN($M77:AB77))-COLUMN($M77:AB77),1,1))) -> 0 | AC93: =-SUMPRODUCT($M63:AC63,N(OFFSET($M77:AC77,0,MAX(COLUMN($M77:AC77))-COLUMN($M77:AC77),1,1))) -> 0 | AD93: =-SUMPRODUCT($M63:AD63,N(OFFSET($M77:AD77,0,MAX(COLUMN($M77:AD77))-COLUMN($M77:AD77),1,1))) -> 0 | AE93: =-SUMPRODUCT($M63:AE63,N(OFFSET($M77:AE77,0,MAX(COLUMN($M77:AE77))-COLUMN($M77:AE77),1,1))) -> 0 | AF93: =-SUMPRODUCT($M63:AF63,N(OFFSET($M77:AF77,0,MAX(COLUMN($M77:AF77))-COLUMN($M77:AF77),1,1))) -> 0 | AG93: =-SUMPRODUCT($M63:AG63,N(OFFSET($M77:AG77,0,MAX(COLUMN($M77:AG77))-COLUMN($M77:AG77),1,1))) -> 0 | AH93: =-SUMPRODUCT($M63:AH63,N(OFFSET($M77:AH77,0,MAX(COLUMN($M77:AH77))-COLUMN($M77:AH77),1,1))) -> 0 | AI93: =-SUMPRODUCT($M63:AI63,N(OFFSET($M77:AI77,0,MAX(COLUMN($M77:AI77))-COLUMN($M77:AI77),1,1))) -> 0 | AJ93: =-SUMPRODUCT($M63:AJ63,N(OFFSET($M77:AJ77,0,MAX(COLUMN($M77:AJ77))-COLUMN($M77:AJ77),1,1))) -> 0 | AK93: =-SUMPRODUCT($M63:AK63,N(OFFSET($M77:AK77,0,MAX(COLUMN($M77:AK77))-COLUMN($M77:AK77),1,1))) -> 0 | AL93: =-SUMPRODUCT($M63:AL63,N(OFFSET($M77:AL77,0,MAX(COLUMN($M77:AL77))-COLUMN($M77:AL77),1,1))) -> 0 | AM93: =-SUMPRODUCT($M63:AM63,N(OFFSET($M77:AM77,0,MAX(COLUMN($M77:AM77))-COLUMN($M77:AM77),1,1))) -> 0 | AN93: =-SUMPRODUCT($M63:AN63,N(OFFSET($M77:AN77,0,MAX(COLUMN($M77:AN77))-COLUMN($M77:AN77),1,1))) -> 0 | AO93: =-SUMPRODUCT($M63:AO63,N(OFFSET($M77:AO77,0,MAX(COLUMN($M77:AO77))-COLUMN($M77:AO77),1,1))) -> 0 | AP93: =-SUMPRODUCT($M63:AP63,N(OFFSET($M77:AP77,0,MAX(COLUMN($M77:AP77))-COLUMN($M77:AP77),1,1))) -> 0 | AQ93: =-SUMPRODUCT($M63:AQ63,N(OFFSET($M77:AQ77,0,MAX(COLUMN($M77:AQ77))-COLUMN($M77:AQ77),1,1))) -> 0 | AR93: =-SUMPRODUCT($M63:AR63,N(OFFSET($M77:AR77,0,MAX(COLUMN($M77:AR77))-COLUMN($M77:AR77),1,1))) -> 0 | AS93: =-SUMPRODUCT($M63:AS63,N(OFFSET($M77:AS77,0,MAX(COLUMN($M77:AS77))-COLUMN($M77:AS77),1,1))) -> 0 | AT93: =-SUMPRODUCT($M63:AT63,N(OFFSET($M77:AT77,0,MAX(COLUMN($M77:AT77))-COLUMN($M77:AT77),1,1))) -> 0 | AU93: =-SUMPRODUCT($M63:AU63,N(OFFSET($M77:AU77,0,MAX(COLUMN($M77:AU77))-COLUMN($M77:AU77),1,1))) -> 0 | AV93: =-SUMPRODUCT($M63:AV63,N(OFFSET($M77:AV77,0,MAX(COLUMN($M77:AV77))-COLUMN($M77:AV77),1,1))) -> 0 | AW93: =-SUMPRODUCT($M63:AW63,N(OFFSET($M77:AW77,0,MAX(COLUMN($M77:AW77))-COLUMN($M77:AW77),1,1))) -> 0 | AX93: =-SUMPRODUCT($M63:AX63,N(OFFSET($M77:AX77,0,MAX(COLUMN($M77:AX77))-COLUMN($M77:AX77),1,1))) -> 0 | AY93: =-SUMPRODUCT($M63:AY63,N(OFFSET($M77:AY77,0,MAX(COLUMN($M77:AY77))-COLUMN($M77:AY77),1,1))) -> 0 | AZ93: =-SUMPRODUCT($M63:AZ63,N(OFFSET($M77:AZ77,0,MAX(COLUMN($M77:AZ77))-COLUMN($M77:AZ77),1,1))) -> 0 | BA93: =-SUMPRODUCT($M63:BA63,N(OFFSET($M77:BA77,0,MAX(COLUMN($M77:BA77))-COLUMN($M77:BA77),1,1))) -> 0 | BB93: =-SUMPRODUCT($M63:BB63,N(OFFSET($M77:BB77,0,MAX(COLUMN($M77:BB77))-COLUMN($M77:BB77),1,1))) -> 0 | BC93: =-SUMPRODUCT($M63:BC63,N(OFFSET($M77:BC77,0,MAX(COLUMN($M77:BC77))-COLUMN($M77:BC77),1,1))) -> 0 | BD93: =-SUMPRODUCT($M63:BD63,N(OFFSET($M77:BD77,0,MAX(COLUMN($M77:BD77))-COLUMN($M77:BD77),1,1))) -> 0 | BE93: =-SUMPRODUCT($M63:BE63,N(OFFSET($M77:BE77,0,MAX(COLUMN($M77:BE77))-COLUMN($M77:BE77),1,1))) -> 0 | BF93: =-SUMPRODUCT($M63:BF63,N(OFFSET($M77:BF77,0,MAX(COLUMN($M77:BF77))-COLUMN($M77:BF77),1,1))) -> 0 | BG93: =-SUMPRODUCT($M63:BG63,N(OFFSET($M77:BG77,0,MAX(COLUMN($M77:BG77))-COLUMN($M77:BG77),1,1))) -> 0 | BH93: =-SUMPRODUCT($M63:BH63,N(OFFSET($M77:BH77,0,MAX(COLUMN($M77:BH77))-COLUMN($M77:BH77),1,1))) -> 0 | BI93: =-SUMPRODUCT($M63:BI63,N(OFFSET($M77:BI77,0,MAX(COLUMN($M77:BI77))-COLUMN($M77:BI77),1,1))) -> 0 | BJ93: =-SUMPRODUCT($M63:BJ63,N(OFFSET($M77:BJ77,0,MAX(COLUMN($M77:BJ77))-COLUMN($M77:BJ77),1,1))) -> 0 | BK93: =-SUMPRODUCT($M63:BK63,N(OFFSET($M77:BK77,0,MAX(COLUMN($M77:BK77))-COLUMN($M77:BK77),1,1))) -> 0
C94: 9 | D94: =D$18 -> … | F94: =Input!F33 -> 21.95945946 | G94: 0.04553846154 | I94: 0 | J94: 0 | M94: =-SUMPRODUCT(M64:$M64,N(OFFSET(M78:$M78,0,MAX(COLUMN(M78:$M78))-COLUMN(M78:$M78),1,1))) -> 0 | N94: =-SUMPRODUCT($M64:N64,N(OFFSET($M78:N78,0,MAX(COLUMN($M78:N78))-COLUMN($M78:N78),1,1))) -> 0 | O94: =-SUMPRODUCT($M64:O64,N(OFFSET($M78:O78,0,MAX(COLUMN($M78:O78))-COLUMN($M78:O78),1,1))) -> 0 | P94: =-SUMPRODUCT($M64:P64,N(OFFSET($M78:P78,0,MAX(COLUMN($M78:P78))-COLUMN($M78:P78),1,1))) -> 0 | Q94: =-SUMPRODUCT($M64:Q64,N(OFFSET($M78:Q78,0,MAX(COLUMN($M78:Q78))-COLUMN($M78:Q78),1,1))) -> 0 | R94: =-SUMPRODUCT($M64:R64,N(OFFSET($M78:R78,0,MAX(COLUMN($M78:R78))-COLUMN($M78:R78),1,1))) -> 0 | S94: =-SUMPRODUCT($M64:S64,N(OFFSET($M78:S78,0,MAX(COLUMN($M78:S78))-COLUMN($M78:S78),1,1))) -> 0 | T94: =-SUMPRODUCT($M64:T64,N(OFFSET($M78:T78,0,MAX(COLUMN($M78:T78))-COLUMN($M78:T78),1,1))) -> 0 | U94: =-SUMPRODUCT($M64:U64,N(OFFSET($M78:U78,0,MAX(COLUMN($M78:U78))-COLUMN($M78:U78),1,1))) -> 0 | V94: =-SUMPRODUCT($M64:V64,N(OFFSET($M78:V78,0,MAX(COLUMN($M78:V78))-COLUMN($M78:V78),1,1))) -> 0 | W94: =-SUMPRODUCT($M64:W64,N(OFFSET($M78:W78,0,MAX(COLUMN($M78:W78))-COLUMN($M78:W78),1,1))) -> 0 | X94: =-SUMPRODUCT($M64:X64,N(OFFSET($M78:X78,0,MAX(COLUMN($M78:X78))-COLUMN($M78:X78),1,1))) -> 0 | Y94: =-SUMPRODUCT($M64:Y64,N(OFFSET($M78:Y78,0,MAX(COLUMN($M78:Y78))-COLUMN($M78:Y78),1,1))) -> 0 | Z94: =-SUMPRODUCT($M64:Z64,N(OFFSET($M78:Z78,0,MAX(COLUMN($M78:Z78))-COLUMN($M78:Z78),1,1))) -> 0 | AA94: =-SUMPRODUCT($M64:AA64,N(OFFSET($M78:AA78,0,MAX(COLUMN($M78:AA78))-COLUMN($M78:AA78),1,1))) -> 0 | AB94: =-SUMPRODUCT($M64:AB64,N(OFFSET($M78:AB78,0,MAX(COLUMN($M78:AB78))-COLUMN($M78:AB78),1,1))) -> 0 | AC94: =-SUMPRODUCT($M64:AC64,N(OFFSET($M78:AC78,0,MAX(COLUMN($M78:AC78))-COLUMN($M78:AC78),1,1))) -> 0 | AD94: =-SUMPRODUCT($M64:AD64,N(OFFSET($M78:AD78,0,MAX(COLUMN($M78:AD78))-COLUMN($M78:AD78),1,1))) -> 0 | AE94: =-SUMPRODUCT($M64:AE64,N(OFFSET($M78:AE78,0,MAX(COLUMN($M78:AE78))-COLUMN($M78:AE78),1,1))) -> 0 | AF94: =-SUMPRODUCT($M64:AF64,N(OFFSET($M78:AF78,0,MAX(COLUMN($M78:AF78))-COLUMN($M78:AF78),1,1))) -> 0 | AG94: =-SUMPRODUCT($M64:AG64,N(OFFSET($M78:AG78,0,MAX(COLUMN($M78:AG78))-COLUMN($M78:AG78),1,1))) -> 0 | AH94: =-SUMPRODUCT($M64:AH64,N(OFFSET($M78:AH78,0,MAX(COLUMN($M78:AH78))-COLUMN($M78:AH78),1,1))) -> 0 | AI94: =-SUMPRODUCT($M64:AI64,N(OFFSET($M78:AI78,0,MAX(COLUMN($M78:AI78))-COLUMN($M78:AI78),1,1))) -> 0 | AJ94: =-SUMPRODUCT($M64:AJ64,N(OFFSET($M78:AJ78,0,MAX(COLUMN($M78:AJ78))-COLUMN($M78:AJ78),1,1))) -> 0 | AK94: =-SUMPRODUCT($M64:AK64,N(OFFSET($M78:AK78,0,MAX(COLUMN($M78:AK78))-COLUMN($M78:AK78),1,1))) -> 0 | AL94: =-SUMPRODUCT($M64:AL64,N(OFFSET($M78:AL78,0,MAX(COLUMN($M78:AL78))-COLUMN($M78:AL78),1,1))) -> 0 | AM94: =-SUMPRODUCT($M64:AM64,N(OFFSET($M78:AM78,0,MAX(COLUMN($M78:AM78))-COLUMN($M78:AM78),1,1))) -> 0 | AN94: =-SUMPRODUCT($M64:AN64,N(OFFSET($M78:AN78,0,MAX(COLUMN($M78:AN78))-COLUMN($M78:AN78),1,1))) -> 0 | AO94: =-SUMPRODUCT($M64:AO64,N(OFFSET($M78:AO78,0,MAX(COLUMN($M78:AO78))-COLUMN($M78:AO78),1,1))) -> 0 | AP94: =-SUMPRODUCT($M64:AP64,N(OFFSET($M78:AP78,0,MAX(COLUMN($M78:AP78))-COLUMN($M78:AP78),1,1))) -> 0 | AQ94: =-SUMPRODUCT($M64:AQ64,N(OFFSET($M78:AQ78,0,MAX(COLUMN($M78:AQ78))-COLUMN($M78:AQ78),1,1))) -> 0 | AR94: =-SUMPRODUCT($M64:AR64,N(OFFSET($M78:AR78,0,MAX(COLUMN($M78:AR78))-COLUMN($M78:AR78),1,1))) -> 0 | AS94: =-SUMPRODUCT($M64:AS64,N(OFFSET($M78:AS78,0,MAX(COLUMN($M78:AS78))-COLUMN($M78:AS78),1,1))) -> 0 | AT94: =-SUMPRODUCT($M64:AT64,N(OFFSET($M78:AT78,0,MAX(COLUMN($M78:AT78))-COLUMN($M78:AT78),1,1))) -> 0 | AU94: =-SUMPRODUCT($M64:AU64,N(OFFSET($M78:AU78,0,MAX(COLUMN($M78:AU78))-COLUMN($M78:AU78),1,1))) -> 0 | AV94: =-SUMPRODUCT($M64:AV64,N(OFFSET($M78:AV78,0,MAX(COLUMN($M78:AV78))-COLUMN($M78:AV78),1,1))) -> 0 | AW94: =-SUMPRODUCT($M64:AW64,N(OFFSET($M78:AW78,0,MAX(COLUMN($M78:AW78))-COLUMN($M78:AW78),1,1))) -> 0 | AX94: =-SUMPRODUCT($M64:AX64,N(OFFSET($M78:AX78,0,MAX(COLUMN($M78:AX78))-COLUMN($M78:AX78),1,1))) -> 0 | AY94: =-SUMPRODUCT($M64:AY64,N(OFFSET($M78:AY78,0,MAX(COLUMN($M78:AY78))-COLUMN($M78:AY78),1,1))) -> 0 | AZ94: =-SUMPRODUCT($M64:AZ64,N(OFFSET($M78:AZ78,0,MAX(COLUMN($M78:AZ78))-COLUMN($M78:AZ78),1,1))) -> 0 | BA94: =-SUMPRODUCT($M64:BA64,N(OFFSET($M78:BA78,0,MAX(COLUMN($M78:BA78))-COLUMN($M78:BA78),1,1))) -> 0 | BB94: =-SUMPRODUCT($M64:BB64,N(OFFSET($M78:BB78,0,MAX(COLUMN($M78:BB78))-COLUMN($M78:BB78),1,1))) -> 0 | BC94: =-SUMPRODUCT($M64:BC64,N(OFFSET($M78:BC78,0,MAX(COLUMN($M78:BC78))-COLUMN($M78:BC78),1,1))) -> 0 | BD94: =-SUMPRODUCT($M64:BD64,N(OFFSET($M78:BD78,0,MAX(COLUMN($M78:BD78))-COLUMN($M78:BD78),1,1))) -> 0 | BE94: =-SUMPRODUCT($M64:BE64,N(OFFSET($M78:BE78,0,MAX(COLUMN($M78:BE78))-COLUMN($M78:BE78),1,1))) -> 0 | BF94: =-SUMPRODUCT($M64:BF64,N(OFFSET($M78:BF78,0,MAX(COLUMN($M78:BF78))-COLUMN($M78:BF78),1,1))) -> 0 | BG94: =-SUMPRODUCT($M64:BG64,N(OFFSET($M78:BG78,0,MAX(COLUMN($M78:BG78))-COLUMN($M78:BG78),1,1))) -> 0 | BH94: =-SUMPRODUCT($M64:BH64,N(OFFSET($M78:BH78,0,MAX(COLUMN($M78:BH78))-COLUMN($M78:BH78),1,1))) -> 0 | BI94: =-SUMPRODUCT($M64:BI64,N(OFFSET($M78:BI78,0,MAX(COLUMN($M78:BI78))-COLUMN($M78:BI78),1,1))) -> 0 | BJ94: =-SUMPRODUCT($M64:BJ64,N(OFFSET($M78:BJ78,0,MAX(COLUMN($M78:BJ78))-COLUMN($M78:BJ78),1,1))) -> 0 | BK94: =-SUMPRODUCT($M64:BK64,N(OFFSET($M78:BK78,0,MAX(COLUMN($M78:BK78))-COLUMN($M78:BK78),1,1))) -> 0
